Workbook

Sheet Nagłówek
A1: Nagłówek
F2: =IF(NumerWariantuRaportu = 5,teksty!D288 & " ","") & teksty!D295 -> skonsolidowane sprawozdanie finansowe
F5: =teksty!D300 -> dla:
B6: =IF(Wprowadzenie!$I$4="",teksty!$D$294,Wprowadzenie!$I$4) -> TEST S.A.
F7: =teksty!D302 -> za okres:
E8: 2017-01-01 | F8: =teksty!D305 -> - | G8: 2017-12-31
D9: =IF(ISNONTEXT(DataOd),"",teksty!$D$303) ->  | G9: =IF(ISNONTEXT(DataDo),"",teksty!$D$304) -> 
E10: =IF(D9 <> "",TODAY(),"") ->  | I10: =IF(G9 <> "",TODAY(),"") -> 
F11: =teksty!D299 -> Data sporządzenia: | G11: 2018-03-15
E13: =teksty!D298 -> Wszystkie kwoty tego raportu są podane w: | F13: =VLOOKUP(techniczne!G2,BazyKwot,3) -> tysiącach złotych
E16: =teksty!D297 -> Raport jest wyświetlany w układzie: | F16: =VLOOKUP(techniczne!F2,ListaWariantowRaportow,3) -> skonsolidowanym (dla "Skonsolidowana Jednostka Inna")
F17: =teksty!$D$990 -> (wg schematu XSD obowiązującego od września 2019)
B27: =teksty!D15 -> Etykiety skoroszytu w:
B33: =teksty!D16 -> Niezgodności w powiązanych kwotach:

Sheet Wprowadzenie
A1: Wprowadzenie | L1: 6 | M1: =VLOOKUP(WybranaPozycja,teksty!B105:E110,2) -> Skonsolidowana
G2: =teksty!$D$307 -> Wprowadzenie do sprawozdania finansowego
E3: P_1
E4: P_1A | H4: =IF(WybranaPozycja=6,teksty!$D$366,teksty!$D$310) -> Nazwa jednostki | I4: TEST S.A.
S5: =teksty!$D$281 -> Pola obowiązkowe:
S7: =teksty!$D$282 -> Pola opcjonalne:
A8: =64 -> 64 | G8: =teksty!$D$369 -> Położenie siedziby jednostki dominującej:
A9: =64 -> 64
A10: =2+4+16+32 -> 54 | G10: =teksty!$D$317 -> Dokładny adres siedziby (w Polsce):
A11: 54
A12: 54 | H12: =teksty!$D$318 -> Ulica
A13: 54
A14: 54 | H14: =teksty!$D$319 -> Nr domu | J14: =teksty!$D$320 -> Nr lokalu
A15: 54
H16: =teksty!$D$327 -> Miejscowość | I16: Warszawa
A18: 54 | H18: =teksty!$D$322 -> Poczta | K18: =teksty!$D$321 -> Kod pocztowy | N18: =teksty!$D$325 -> Kod kraju
A19: 54
H20: =teksty!$D$314 -> Gmina | I20: Warszawa
H22: =teksty!$D$313 -> Powiat | I22: Warszawski
H24: =teksty!$D$312 -> Województwo | I24: Mazowieckie
A25: 54
A26: 54 | E26: P_1B | G26: =teksty!$D$324 -> Adres przedsiębiorcy zagranicznego (opcjonalny):
A27: 54
A28: 54 | H28: =teksty!$D$318 -> Ulica
A29: 54
A30: 54 | H30: =teksty!$D$319 -> Nr domu | J30: =teksty!$D$320 -> Nr lokalu
A31: 54
A32: 54 | H32: =teksty!$D$327 -> Miejscowość | K32: =teksty!$D$321 -> Kod pocztowy | N32: =teksty!$D$325 -> Kod kraju
A33: 54
A34: 64
A35: =64 -> 64 | E35: P_1B | I35: =teksty!$D$368 -> Podstawowy przedmiot działalności jednostki dominującej:
A36: =64 -> 64 | I36: działalność holdingów; wynajem nieruchomości;
A37: =64 -> 64
A38: =64 -> 64
A39: =64 -> 64
A40: =2+16 -> 18 | E40: P_1C | G40: =teksty!$D$331 -> Podstawowy przedmiot działalności:
A41: 18
A42: 18 | H42: =teksty!$D$332 -> kod(y) PKD
A43: 18
A44: 18
A45: 18
A46: 18
A47: 18
A48: 18
G49: =teksty!$D$333 -> Identyfikator podmiotu:
A50: =2+4+16+32 -> 54
D51: 1 | E51: =OFFSET(P_Labels, D51,WybranaPozycja) -> P_1C | H51: =teksty!$D$31 -> numer NIP | I51: 1111111111
H52: =teksty!$D$31 -> numer NIP
D53: 19 | E53: =OFFSET(P_Labels, D53,WybranaPozycja) -> P_1D | H53: =teksty!$D$30 -> numer KRS | I53: 0123456789 | J53: =teksty!D991 -> Pole wymagane przez system eKRS
A55: =64 -> 64 | E55: P_2 | G55: =teksty!$D$370 -> Wykaz jednostek zależnych, współzależnych i stowarzyszonych, objętych skonsolidowanym sprawozdaniem finansowym:
A56: =64 -> 64 | C56: break
A57: =64 -> 64 | D57: 1 | H57: =D57& ". " & teksty!$D$371 -> 1. Jednostka objęta sprawozdaniem skonsolidowanym:
A58: =64 -> 64 | I58: =teksty!$D$372 -> Nazwa (firma) i siedziba jednostki:
A59: =64 -> 64 | I59: Epena S.A. Warszawa
A60: =64 -> 64
A61: =64 -> 64
A62: =64 -> 64
A63: =64 -> 64 | I63: =teksty!$D$373 -> Przedmiot działalności:
A64: =64 -> 64 | I64: Wynajem i zarządzanie nieruchomościami
A65: =64 -> 64
A66: =64 -> 64
A67: =64 -> 64
A68: =64 -> 64
A69: =64 -> 64 | M69: =teksty!$D$374 -> Udział jednostki dominującej w kapitale (funduszu) podstawowym | N69: 1
A70: =64 -> 64
A71: =64 -> 64 | M71: =teksty!$D$376 -> Udział w ogólnej liczbie głosów, jeżeli różny od udziału w kapitale
A72: =64 -> 64
A73: =64 -> 64 | I73: =teksty!$D$377 -> Wzajemne powiązania kapitałowe pomiędzy jednostkami objętymi konsolidacją:
A74: =64 -> 64 | I74: Własność TEST S.A.
A75: =64 -> 64
A76: =64 -> 64
A77: =64*B77 -> 64 | B77: =IF(I79="",0,1) -> 1 | C77: =ROW(C94) - ROW() +1 -> 18 | D77: =D57+1 -> 2 | H77: =D77& ". " & teksty!$D$371 -> 2. Jednostka objęta sprawozdaniem skonsolidowanym:
A78: =64*B78 -> 64 | B78: =B77 -> 1 | I78: =teksty!$D$372 -> Nazwa (firma) i siedziba jednostki:
A79: 64 | B79: =B78 -> 1 | I79: TEST Megapex S.A. Warszawa
A80: 64 | B80: 1
A81: 64 | B81: =B80 -> 1
A82: 64 | B82: =B81 -> 1 | I82: =teksty!$D$373 -> Przedmiot działalności:
A83: 64 | B83: 1 | I83: Produkcja aparatury i urządzeń przemysłowych, świadczenie usług spedycyjno-transportowych, generalne wykonawstwo obiektów
A84: 64 | B84: 1
A85: 64 | B85: 1
A86: 64 | B86: 1
A87: 64 | B87: 1 | M87: =teksty!$D$374 -> Udział jednostki dominującej w kapitale (funduszu) podstawowym | N87: 0.9872
A88: 64 | B88: 1
A89: 64 | B89: 1 | M89: =teksty!$D$376 -> Udział w ogólnej liczbie głosów, jeżeli różny od udziału w kapitale
A90: 64 | B90: 1
A91: 64 | B91: 1 | I91: =teksty!$D$377 -> Wzajemne powiązania kapitałowe pomiędzy jednostkami objętymi konsolidacją:
A92: 64 | B92: 1 | I92: Własność TEST S.A.
A93: 64 | B93: 1
A94: 64 | B94: 1 | C94: =C77 -> 18
A95: =64*B95 -> 64 | B95: =IF(I97="",0,1) -> 1 | C95: =ROW(C112) - ROW() +1 -> 18 | D95: =D77+1 -> 3 | H95: =D95& ". " & teksty!$D$371 -> 3. Jednostka objęta sprawozdaniem skonsolidowanym:
A96: =64*B96 -> 64 | B96: =B95 -> 1 | I96: =teksty!$D$372 -> Nazwa (firma) i siedziba jednostki:
A97: 64 | B97: =B96 -> 1 | I97: Megapex Serwis Sp. z o.o. Warszawa
A98: 64 | B98: 1
A99: 64 | B99: =B98 -> 1
A100: 64 | B100: =B99 -> 1 | I100: =teksty!$D$373 -> Przedmiot działalności:
A101: 64 | B101: 1 | I101: budownictwo, wynajem powierzchni biurowej, działalność handlowa, usługowa i produkcyjna
A102: 64 | B102: 1
A103: 64 | B103: 1
A104: 64 | B104: 1
A105: 64 | B105: 1 | M105: =teksty!$D$374 -> Udział jednostki dominującej w kapitale (funduszu) podstawowym | N105: 0.9952
A106: 64 | B106: 1
A107: 64 | B107: 1 | M107: =teksty!$D$376 -> Udział w ogólnej liczbie głosów, jeżeli różny od udziału w kapitale
A108: 64 | B108: 1
A109: 64 | B109: 1 | I109: =teksty!$D$377 -> Wzajemne powiązania kapitałowe pomiędzy jednostkami objętymi konsolidacją:
A110: 64 | B110: 1 | I110: Własność TEST S.A.
A111: 64 | B111: 1
A112: 64 | B112: 1 | C112: =C95 -> 18
A113: =64*B113 -> 64 | B113: =IF(I115="",0,1) -> 1 | C113: =ROW(C130) - ROW() +1 -> 18 | D113: =D95+1 -> 4 | H113: =D113& ". " & teksty!$D$371 -> 4. Jednostka objęta sprawozdaniem skonsolidowanym:
A114: =64*B114 -> 64 | B114: =B113 -> 1 | I114: =teksty!$D$372 -> Nazwa (firma) i siedziba jednostki:
A115: 64 | B115: =B114 -> 1 | I115: Megapex Development Sp. z o.o. Warszawa
A116: 64 | B116: 1
A117: 64 | B117: =B116 -> 1
A118: 64 | B118: =B117 -> 1 | I118: =teksty!$D$373 -> Przedmiot działalności:
A119: 64 | B119: 1 | I119: Wytwarzanie energii elektrycznej
A120: 64 | B120: 1
A121: 64 | B121: 1
A122: 64 | B122: 1
A123: 64 | B123: 1 | M123: =teksty!$D$374 -> Udział jednostki dominującej w kapitale (funduszu) podstawowym | N123: 0.9952
A124: 64 | B124: 1
A125: 64 | B125: 1 | M125: =teksty!$D$376 -> Udział w ogólnej liczbie głosów, jeżeli różny od udziału w kapitale
A126: 64 | B126: 1
A127: 64 | B127: 1 | I127: =teksty!$D$377 -> Wzajemne powiązania kapitałowe pomiędzy jednostkami objętymi konsolidacją:
A128: 64 | B128: 1 | I128: Własność TEST S.A.
A129: 64 | B129: 1
A130: 64 | B130: 1 | C130: =C113 -> 18
A131: =64*B131 -> 64 | B131: =IF(I133="",0,1) -> 1 | C131: =ROW(C148) - ROW() +1 -> 18 | D131: =D113+1 -> 5 | H131: =D131& ". " & teksty!$D$371 -> 5. Jednostka objęta sprawozdaniem skonsolidowanym:
A132: 64 | B132: =B131 -> 1 | I132: =teksty!$D$372 -> Nazwa (firma) i siedziba jednostki:
A133: 64 | B133: =B132 -> 1 | I133: Enelka Taahhut Imlat ve Ticaret Ltd. Stambuł, Turcja
A134: 64 | B134: 1
A135: 64 | B135: 1
A136: 64 | B136: 1 | I136: =teksty!$D$373 -> Przedmiot działalności:
A137: 64 | B137: 1 | I137: Działalność deweloperska na rynku nieruchomości w Turcji
A138: 64 | B138: 1
A139: 64 | B139: 1
A140: 64 | B140: 1
A141: 64 | B141: 1 | M141: =teksty!$D$374 -> Udział jednostki dominującej w kapitale (funduszu) podstawowym | N141: 0.9984
A142: 64 | B142: 1
A143: 64 | B143: 1 | M143: =teksty!$D$376 -> Udział w ogólnej liczbie głosów, jeżeli różny od udziału w kapitale
A144: 64 | B144: 1
A145: 64 | B145: 1 | I145: =teksty!$D$377 -> Wzajemne powiązania kapitałowe pomiędzy jednostkami objętymi konsolidacją:
A146: 64 | B146: 1 | I146: Własność TEST S.A.
A147: 64 | B147: 1
A148: 64 | B148: 1 | C148: =C131 -> 18
A149: =64*B149 -> 64 | B149: =IF(I151="",0,1) -> 1 | C149: =ROW(C166) - ROW() +1 -> 18 | D149: =D131+1 -> 6 | H149: =D149& ". " & teksty!$D$371 -> 6. Jednostka objęta sprawozdaniem skonsolidowanym:
A150: =64*B150 -> 64 | B150: =B149 -> 1 | I150: =teksty!$D$372 -> Nazwa (firma) i siedziba jednostki:
A151: 64 | B151: =B150 -> 1 | I151: Anokymma Ltd. Nikozja, Cypr
A152: 64 | B152: 1
A153: 64 | B153: 1
A154: 64 | B154: 1 | I154: =teksty!$D$373 -> Przedmiot działalności:
A155: 64 | B155: 1 | I155: Działalność holdingów
A156: 64 | B156: 1
A157: 64 | B157: 1
A158: 64 | B158: 1
A159: 64 | B159: 1 | M159: =teksty!$D$374 -> Udział jednostki dominującej w kapitale (funduszu) podstawowym | N159: 1
A160: 64 | B160: 1
A161: 64 | B161: 1 | M161: =teksty!$D$376 -> Udział w ogólnej liczbie głosów, jeżeli różny od udziału w kapitale
A162: 64 | B162: 1
A163: 64 | B163: 1 | I163: =teksty!$D$377 -> Wzajemne powiązania kapitałowe pomiędzy jednostkami objętymi konsolidacją:
A164: 64 | B164: 1 | I164: Własność TEST S.A.
A165: 64 | B165: 1
A166: 64 | B166: 1 | C166: =C149 -> 18
A167: =64*B167 -> 0 | B167: =IF(I169="",0,1) -> 0 | C167: =ROW(C184) - ROW() +1 -> 18 | D167: =D149+1 -> 7 | H167: =D167& ". " & teksty!$D$371 -> 7. Jednostka objęta sprawozdaniem skonsolidowanym:
A168: =64*B168 -> 0 | B168: =B167 -> 0 | I168: =teksty!$D$372 -> Nazwa (firma) i siedziba jednostki:
A169: 0 | B169: =B168 -> 0
A170: 0 | B170: 0
A171: 0 | B171: 0
A172: 0 | B172: 0 | I172: =teksty!$D$373 -> Przedmiot działalności:
A173: 0 | B173: 0
A174: 0 | B174: 0
A175: 0 | B175: 0
A176: 0 | B176: 0
A177: 0 | B177: 0 | M177: =teksty!$D$374 -> Udział jednostki dominującej w kapitale (funduszu) podstawowym
A178: 0 | B178: 0
A179: 0 | B179: 0 | M179: =teksty!$D$376 -> Udział w ogólnej liczbie głosów, jeżeli różny od udziału w kapitale
A180: 0 | B180: 0
A181: 0 | B181: 0 | I181: =teksty!$D$377 -> Wzajemne powiązania kapitałowe pomiędzy jednostkami objętymi konsolidacją:
A182: 0 | B182: 0
A183: 0 | B183: 0
A184: 0 | B184: 0 | C184: =C167 -> 18
A185: =64*B185 -> 0 | B185: =IF(I187="",0,1) -> 0 | C185: =ROW(C202) - ROW() +1 -> 18 | D185: =D167+1 -> 8 | H185: =D185& ". " & teksty!$D$371 -> 8. Jednostka objęta sprawozdaniem skonsolidowanym:
A186: =64*B186 -> 0 | B186: =B185 -> 0 | I186: =teksty!$D$372 -> Nazwa (firma) i siedziba jednostki:
A187: 0 | B187: =B186 -> 0
A188: 0 | B188: 0
A189: 0 | B189: 0
A190: 0 | B190: 0 | I190: =teksty!$D$373 -> Przedmiot działalności:
A191: 0 | B191: 0
A192: 0 | B192: 0
A193: 0 | B193: 0
A194: 0 | B194: 0
A195: 0 | B195: 0 | M195: =teksty!$D$374 -> Udział jednostki dominującej w kapitale (funduszu) podstawowym
A196: 0 | B196: 0
A197: 0 | B197: 0 | M197: =teksty!$D$376 -> Udział w ogólnej liczbie głosów, jeżeli różny od udziału w kapitale
A198: 0 | B198: 0
A199: 0 | B199: 0 | I199: =teksty!$D$377 -> Wzajemne powiązania kapitałowe pomiędzy jednostkami objętymi konsolidacją:
A200: 0 | B200: 0
A201: 0 | B201: 0
A202: 0 | B202: 0 | C202: =C185 -> 18
A203: =64*B203 -> 0 | B203: =IF(I205="",0,1) -> 0 | C203: =ROW(C220) - ROW() +1 -> 18 | D203: =D185+1 -> 9 | H203: =D203& ". " & teksty!$D$371 -> 9. Jednostka objęta sprawozdaniem skonsolidowanym:
A204: =64*B204 -> 0 | B204: =B203 -> 0 | I204: =teksty!$D$372 -> Nazwa (firma) i siedziba jednostki:
A205: 0 | B205: =B204 -> 0
... 1593 more rows

Sheet Bilans
A1: Bilans | C1: Poziom | F1: Składniki | J1: (pełen symbol) | K1: (wyświetlana etykieta) | R1: 6 | S1: =VLOOKUP(WybranaPozycja,teksty!B114:F119,2) -> Skonsolidowana
M2: =teksty!$D$416 -> Bilans
J3: Aktywa | N3: =Wprowadzenie!$I$4 & " " & IF(NumerWariantuRaportu = 5, teksty!$D$289, "") -> TEST S.A. (skonsolidowany) | X3: =teksty!D283 & VLOOKUP(NumerBazyRaportu,BazyKwot,3) -> wszystkie kwoty w tysiącach złotych
A5: =(2+16) -> 18 | J5: JednostkaInna | N5: =teksty!$D$420 -> Aktywa | U5: =IF(DataDo = "","",teksty!$D$417) -> Stan na: | V5: =IF(DataDo = "",teksty!$D$954,DataDo) -> 2017-12-31 | W5: =IF(DataOd = "",teksty!$D$955,DataOd-1) -> 2016-12-31 | X5: =teksty!$D$292 -> Przekszt. dane porów. za poprzedni okres | AA5: =IF(OR(_xlfn.ISFORMULA($V$7),_xlfn.ISFORMULA($W$7)),teksty!$D$951,"") -> W niektórych polach tego zestawienia napotkasz pomocnicze formuły. Jeżeli to potrzebne, możesz je zmienić, lub wpisać w te pola odpowiednie kwoty.
A6: 18 | C6: =COUNTA(D6:H6) -> 1 | D6: A | J6: =$J$3&":"&$D6 -> Aktywa:A | K6: =D6 -> A | N6: =K6 -> A | O6: =teksty!$D$421 -> Aktywa trwałe | V6: =V7+V12+V21+V25+V46 -> 0 | W6: =W7+W12+W21+W25+W46 -> 0
A7: 18 | C7: =COUNTA(D7:H7) -> 2 | D7: =D6 -> A | E7: I | J7: =$J$3&":"&$D7&"."&E7 -> Aktywa:A.I | K7: =E7 -> I | N7: =K7 -> I | O7: =teksty!$D$422 -> Wartości niematerialne i prawne | V7: =V8+V9+V10+V11 -> 0 | W7: =W8+W9+W10+W11 -> 0
A8: 18 | C8: 3 | D8: A | E8: =E7 -> I | F8: 1 | J8: =$J$3&":"&$D8&"."&E8&"."&F8 -> Aktywa:A.I.1 | K8: =F8 -> 1 | N8: =K8 -> 1 | O8: =teksty!$D$423 -> Koszty zakończonych prac rozwojowych
A9: 18 | C9: 3 | D9: A | E9: =E8 -> I | F9: 2 | J9: =$J$3&":"&$D9&"."&E9&"."&F9 -> Aktywa:A.I.2 | K9: =F9 -> 2 | N9: =K9 -> 2 | O9: =teksty!$D$424 -> Wartość firmy
A10: 18 | C10: 3 | D10: A | E10: =E9 -> I | F10: 3 | J10: =$J$3&":"&$D10&"."&E10&"."&F10 -> Aktywa:A.I.3 | K10: 3 | N10: 3 | O10: =teksty!$D$425 -> Inne wartości niematerialne i prawne
A11: 18 | C11: 3 | D11: A | E11: =E10 -> I | F11: 4 | J11: =$J$3&":"&$D11&"."&E11&"."&F11 -> Aktywa:A.I.4 | K11: 4 | N11: =K11 -> 4 | O11: =teksty!$D$426 -> Zaliczki na wartości niematerialne i prawne
A12: 18 | C12: 2 | D12: A | E12: II | J12: =$J$3&":"&$D12&"."&E12 -> Aktywa:A.II | K12: =E12 -> II | N12: II | O12: =teksty!$D$427 -> Rzeczowe aktywa trwałe | V12: =V13+V19+V20 -> 0 | W12: =W13+W19+W20 -> 0
A13: 18 | C13: 3 | D13: A | E13: =E12 -> II | F13: 1 | J13: =$J$3&":"&$D13&"."&E13&"."&F13 -> Aktywa:A.II.1 | K13: =F13 -> 1 | N13: 1 | O13: =teksty!$D$428 -> Środki trwałe | V13: =V14+V15+V16+V17+V18 -> 0 | W13: =W14+W15+W16+W17+W18 -> 0
A14: 18 | C14: 4 | D14: A | E14: =E13 -> II | F14: =F13 -> 1 | G14: a | J14: =$J$3&":"&$D14&"."&E14&"."&F14&"."&G14 -> Aktywa:A.II.1.a | K14: =G14 &")" -> a) | N14: a) | O14: =teksty!$D$429 -> grunty (w tym prawo użytkowania wieczystego gruntu)
A15: 18 | C15: 4 | D15: A | E15: =E14 -> II | F15: =F14 -> 1 | G15: b | J15: =$J$3&":"&$D15&"."&E15&"."&F15&"."&G15 -> Aktywa:A.II.1.b | K15: =G15 &")" -> b) | N15: =K15 -> b) | O15: =teksty!$D$430 -> budynki, lokale, prawa do lokali i obiekty inżynierii lądowej i wodnej
A16: 18 | C16: 4 | D16: =D15 -> A | E16: =E15 -> II | F16: =F15 -> 1 | G16: c | J16: =$J$3&":"&$D16&"."&E16&"."&F16&"."&G16 -> Aktywa:A.II.1.c | K16: =G16 &")" -> c) | N16: =K16 -> c) | O16: =teksty!$D$431 -> urządzenia techniczne i maszyny
A17: 18 | C17: 4 | D17: A | E17: II | F17: 1 | G17: d | J17: =$J$3&":"&$D17&"."&E17&"."&F17&"."&G17 -> Aktywa:A.II.1.d | K17: d) | N17: d) | O17: =teksty!$D$432 -> środki transportu
A18: 18 | C18: =COUNTA(D18:H18) -> 4 | D18: A | E18: II | F18: 1 | G18: e | J18: =$J$3&":"&$D18&"."&E18&"."&F18&"."&G18 -> Aktywa:A.II.1.e | K18: e) | N18: e) | O18: =teksty!$D$433 -> inne środki trwałe
A19: 18 | C19: 3 | D19: =D18 -> A | E19: =E18 -> II | F19: 2 | J19: =$J$3&":"&$D19&"."&E19&"."&F19 -> Aktywa:A.II.2 | K19: =F19 -> 2 | N19: 2 | O19: =teksty!$D$434 -> Środki trwałe w budowie
A20: 18 | C20: 3 | D20: =D19 -> A | E20: =E19 -> II | F20: 3 | J20: =$J$3&":"&$D20&"."&E20&"."&F20 -> Aktywa:A.II.3 | K20: =F20 -> 3 | N20: =K20 -> 3 | O20: =teksty!$D$435 -> Zaliczki na środki trwałe w budowie
A21: 18 | C21: 2 | D21: =D20 -> A | E21: III | J21: =$J$3&":"&$D21&"."&E21 -> Aktywa:A.III | K21: =E21 -> III | N21: III | O21: =teksty!$D$436 -> Należności długoterminowe | V21: =V22+V23+V24 -> 0 | W21: =W22+W23+W24 -> 0
A22: 18 | C22: 3 | D22: A | E22: =E21 -> III | F22: 1 | J22: =$J$3&":"&$D22&"."&E22&"."&F22 -> Aktywa:A.III.1 | K22: =F22 -> 1 | N22: 1 | O22: =teksty!$D$437 -> Od jednostek powiązanych
A23: 18 | C23: =COUNTA(D23:H23) -> 3 | D23: A | E23: =E22 -> III | F23: 2 | J23: =$J$3&":"&$D23&"."&E23&"."&F23 -> Aktywa:A.III.2 | K23: =F23 -> 2 | N23: =K23 -> 2 | O23: =teksty!$D$438 -> Od pozostałych jednostek, w których jednostka posiada zaangażowanie w kapitale
A24: 18 | C24: 3 | D24: A | E24: =E23 -> III | F24: 3 | J24: =$J$3&":"&$D24&"."&E24&"."&F24 -> Aktywa:A.III.3 | K24: =F24 -> 3 | N24: =K24 -> 3 | O24: =teksty!$D$439 -> Od pozostałych jednostek
A25: 18 | C25: 2 | D25: A | E25: IV | J25: =$J$3&":"&$D25&"."&E25 -> Aktywa:A.IV | K25: =E25 -> IV | N25: IV | O25: =teksty!$D$440 -> Inwestycje długoterminowe | V25: =V26+V27+V28+V45 -> 0 | W25: =W26+W27+W28+W45 -> 0
A26: 18 | C26: 3 | D26: A | E26: =E25 -> IV | F26: 1 | J26: =$J$3&":"&$D26&"."&E26&"."&F26 -> Aktywa:A.IV.1 | K26: =F26 -> 1 | N26: 1 | O26: =teksty!$D$441 -> Nieruchomości
A27: 18 | C27: 3 | D27: A | E27: IV | F27: 2 | J27: =$J$3&":"&$D27&"."&E27&"."&F27 -> Aktywa:A.IV.2 | K27: =F27 -> 2 | N27: =K27 -> 2 | O27: =teksty!$D$442 -> Wartości niematerialne i prawne
A28: 18 | C28: 3 | D28: A | E28: IV | F28: 3 | J28: =$J$3&":"&$D28&"."&E28&"."&F28 -> Aktywa:A.IV.3 | K28: =F28 -> 3 | N28: =K28 -> 3 | O28: =teksty!$D$443 -> Długoterminowe aktywa finansowe | V28: =V29+V35+V40 -> 0 | W28: =W29+W35+W40 -> 0
A29: 18 | C29: 4 | D29: A | E29: IV | F29: =F28 -> 3 | G29: a | J29: =$J$3&":"&$D29&"."&E29&"."&F29&"."&G29 -> Aktywa:A.IV.3.a | K29: =G29 &")" -> a) | N29: a) | O29: =teksty!$D$444 -> w jednostkach powiązanych | V29: =V30+V31+V32+V33 -> 0 | W29: =W30+W31+W32+W33 -> 0
A30: 18 | C30: 5 | D30: A | E30: IV | F30: =F29 -> 3 | G30: =G29 -> a | H30: 1 | J30: =$J$3&":"&$D30&"."&E30&"."&F30&"."&G30&"."&H30 -> Aktywa:A.IV.3.a.1 | K30: =H30 & ") " -> 1) | O30: =K30&teksty!$D445 -> 1) udziały lub akcje
A31: 18 | C31: 5 | D31: A | E31: IV | F31: =F30 -> 3 | G31: =G30 -> a | H31: 2 | J31: =$J$3&":"&$D31&"."&E31&"."&F31&"."&G31&"."&H31 -> Aktywa:A.IV.3.a.2 | K31: =H31 & ") " -> 2) | O31: =K31&teksty!$D446 -> 2) inne papiery wartościowe
A32: 18 | C32: 5 | D32: =D31 -> A | E32: =E31 -> IV | F32: =F31 -> 3 | G32: =G31 -> a | H32: 3 | J32: =$J$3&":"&$D32&"."&E32&"."&F32&"."&G32&"."&H32 -> Aktywa:A.IV.3.a.3 | K32: 3) | O32: =K32&teksty!$D447 -> 3) udzielone pożyczki
A33: 18 | C33: 5 | D33: A | E33: IV | F33: 3 | G33: a | H33: 4 | I33: =$N$5 & teksty!$D$284 & 1 -> Aktywa, koniec strony 1 | J33: =$J$3&":"&$D33&"."&E33&"."&F33&"."&G33&"."&H33 -> Aktywa:A.IV.3.a.4 | K33: 4) | O33: =K33&teksty!$D448 -> 4) inne długoterminowe aktywa finansowe
A34: 18 | B34: P | C34: 3 | D34: =D33 -> A | E34: =E33 -> IV | F34: =F33 -> 3 | N34: =teksty!D449 & O28 &teksty!$D$418 -> Aktywa (c.d. "Długoterminowe aktywa finansowe") | U34: =$U$5 -> Stan na: | V34: =$V$5 -> 2017-12-31 | W34: =$W$5 -> 2016-12-31 | X34: =teksty!$D$292 -> Przekszt. dane porów. za poprzedni okres
A35: 18 | C35: =COUNTA(D35:H35) -> 4 | D35: =D34 -> A | E35: IV | F35: 3 | G35: b | J35: =$J$3&":"&$D35&"."&E35&"."&F35&"."&G35 -> Aktywa:A.IV.3.b | K35: =G35 &")" -> b) | N35: =K35 -> b) | O35: =teksty!$D$450 -> w pozostałych jednostkach, w których jednostka posiada zaangażowanie w kapitale | V35: =V36+V37+V38+V39 -> 0 | W35: =W36+W37+W38+W39 -> 0 | Z35: =teksty!$D$285 -> ukryty wiersz powyżej zawiera nagłówek dla kolejnej strony
A36: 18 | C36: =COUNTA(D36:H36) -> 5 | D36: A | E36: IV | F36: 3 | G36: =G35 -> b | H36: 1 | J36: =$J$3&":"&$D36&"."&E36&"."&F36&"."&G36&"."&H36 -> Aktywa:A.IV.3.b.1 | K36: =H36 & ") " -> 1) | O36: =K36&teksty!$D451 -> 1) udziały lub akcje
A37: 18 | C37: 5 | D37: A | E37: IV | F37: 3 | G37: =G36 -> b | H37: 2 | J37: =$J$3&":"&$D37&"."&E37&"."&F37&"."&G37&"."&H37 -> Aktywa:A.IV.3.b.2 | K37: =H37 & ") " -> 2) | O37: =K37&teksty!$D452 -> 2) inne papiery wartościowe
A38: 18 | C38: 5 | D38: =D37 -> A | E38: =E37 -> IV | F38: =F37 -> 3 | G38: =G37 -> b | H38: 3 | J38: =$J$3&":"&$D38&"."&E38&"."&F38&"."&G38&"."&H38 -> Aktywa:A.IV.3.b.3 | K38: =H38 & ") " -> 3) | O38: =K38&teksty!$D453 -> 3) udzielone pożyczki
A39: 18 | C39: 5 | D39: A | E39: IV | F39: 3 | G39: b | H39: 4 | J39: =$J$3&":"&$D39&"."&E39&"."&F39&"."&G39&"."&H39 -> Aktywa:A.IV.3.b.4 | K39: 4) | O39: =K39&teksty!$D454 -> 4) inne długoterminowe aktywa finansowe
A40: 18 | C40: 4 | D40: =D39 -> A | E40: IV | F40: 3 | G40: c | J40: =$J$3&":"&$D40&"."&E40&"."&F40&"."&G40 -> Aktywa:A.IV.3.c | K40: =G40 &")" -> c) | N40: =K40 -> c) | O40: =teksty!$D$455 -> w pozostałych jednostkach | V40: =V41+V42+V43+V44 -> 0 | W40: =W41+W42+W43+W44 -> 0
A41: 18 | C41: 5 | D41: A | E41: IV | F41: 3 | G41: =G40 -> c | H41: 1 | J41: =$J$3&":"&$D41&"."&E41&"."&F41&"."&G41&"."&H41 -> Aktywa:A.IV.3.c.1 | K41: =H41 & ") " -> 1) | O41: =K41&teksty!$D456 -> 1) udziały lub akcje
A42: 18 | C42: 5 | D42: A | E42: IV | F42: 3 | G42: =G41 -> c | H42: 2 | J42: =$J$3&":"&$D42&"."&E42&"."&F42&"."&G42&"."&H42 -> Aktywa:A.IV.3.c.2 | K42: =H42 & ") " -> 2) | O42: =K42&teksty!$D457 -> 2) inne papiery wartościowe
A43: 18 | C43: 5 | D43: =D42 -> A | E43: =E42 -> IV | F43: =F42 -> 3 | G43: =G42 -> c | H43: 3 | J43: =$J$3&":"&$D43&"."&E43&"."&F43&"."&G43&"."&H43 -> Aktywa:A.IV.3.c.3 | K43: =H43 & ") " -> 3) | O43: =K43&teksty!$D458 -> 3) udzielone pożyczki
A44: 18 | C44: 5 | D44: A | E44: IV | F44: 3 | G44: c | H44: 4 | J44: =$J$3&":"&$D44&"."&E44&"."&F44&"."&G44&"."&H44 -> Aktywa:A.IV.3.c.4 | K44: 4) | O44: =K44&teksty!$D459 -> 4) inne długoterminowe aktywa finansowe
A45: 18 | C45: 3 | D45: =D44 -> A | E45: =E44 -> IV | F45: 4 | J45: =$J$3&":"&$D45&"."&E45&"."&F45 -> Aktywa:A.IV.4 | K45: =F45 -> 4 | N45: =K45 -> 4 | O45: =teksty!D460 -> Inne inwestycje długoterminowe
A46: 18 | C46: 2 | D46: =D45 -> A | E46: V | J46: =$J$3&":"&$D46&"."&E46 -> Aktywa:A.V | K46: =E46 -> V | N46: V | O46: =teksty!$D$461 -> Długoterminowe rozliczenia międzyokresowe | V46: =V47+V48 -> 0 | W46: =W47+W48 -> 0
A47: 18 | C47: 3 | D47: =D46 -> A | E47: =E46 -> V | F47: 1 | J47: =$J$3&":"&$D47&"."&E47&"."&F47 -> Aktywa:A.V.1 | K47: =F47 -> 1 | N47: =K47 -> 1 | O47: =teksty!$D$462 -> Aktywa z tytułu odroczonego podatku dochodowego
A48: 18 | C48: 3 | D48: =D47 -> A | E48: =E47 -> V | F48: 2 | J48: =$J$3&":"&$D48&"."&E48&"."&F48 -> Aktywa:A.V.2 | K48: =F48 -> 2 | N48: =K48 -> 2 | O48: =teksty!$D$463 -> Inne rozliczenia międzyokresowe
A49: 18 | C49: 1 | D49: B | J49: =$J$3&":"&$D49 -> Aktywa:B | K49: =D49 -> B | N49: B | O49: =teksty!$D$464 -> Aktywa obrotowe | V49: =V50+V57+V76+V93 -> 0 | W49: =W50+W57+W76+W93 -> 0
A50: 18 | C50: 2 | D50: =D49 -> B | E50: I | J50: =$J$3&":"&$D50&"."&E50 -> Aktywa:B.I | K50: =E50 -> I | N50: I | O50: =teksty!$D$465 -> Zapasy | V50: =V51+V52+V54+V55+V56 -> 0 | W50: =W51+W52+W54+W55+W56 -> 0
A51: 18 | C51: 3 | D51: B | E51: =E50 -> I | F51: 1 | J51: =$J$3&":"&$D51&"."&E51&"."&F51 -> Aktywa:B.I.1 | K51: =F51 -> 1 | N51: 1 | O51: =teksty!$D$466 -> Materiały
A52: 18 | C52: 3 | D52: B | E52: =E51 -> I | F52: 2 | J52: =$J$3&":"&$D52&"."&E52&"."&F52 -> Aktywa:B.I.2 | K52: =F52 -> 2 | N52: =K52 -> 2 | O52: =teksty!$D$467 -> Półprodukty i produkty w toku
A53: 18 | C53: =COUNTA(D53:H53) -> 4 | D53: B | E53: =E52 -> I | F53: =F52 -> 2 | G53: j | J53: =$J$3&":"&$D53&"."&E53&"."&F53&"."&G53&"."&H53 -> Aktywa:B.I.2.j. | O53: =teksty!$D$467 -> Półprodukty i produkty w toku
A54: 18 | C54: 3 | D54: =D52 -> B | E54: =E52 -> I | F54: 3 | J54: =$J$3&":"&$D54&"."&E54&"."&F54 -> Aktywa:B.I.3 | K54: =F54 -> 3 | N54: 3 | O54: =teksty!$D$469 -> Produkty gotowe
A55: 18 | C55: 3 | D55: B | E55: =E54 -> I | F55: 4 | J55: =$J$3&":"&$D55&"."&E55&"."&F55 -> Aktywa:B.I.4 | K55: =F55 -> 4 | N55: =K55 -> 4 | O55: =teksty!$D$470 -> Towary
A56: 18 | C56: 3 | D56: B | E56: =E55 -> I | F56: 5 | J56: =$J$3&":"&$D56&"."&E56&"."&F56 -> Aktywa:B.I.5 | K56: =F56 -> 5 | N56: =K56 -> 5 | O56: =teksty!$D$471 -> Zaliczki na dostawy i usługi
A57: 18 | C57: 2 | D57: B | E57: II | J57: =$J$3&":"&$D57&"."&E57 -> Aktywa:B.II | K57: =E57 -> II | N57: II | O57: =teksty!$D$472 -> Należności krótkoterminowe | V57: =V58+V64+V69 -> 0 | W57: =W58+W64+W69 -> 0
A58: 18 | C58: 3 | D58: B | E58: =E57 -> II | F58: 1 | J58: =$J$3&":"&$D58&"."&E58&"."&F58 -> Aktywa:B.II.1 | K58: =F58 -> 1 | N58: 1 | O58: =teksty!$D$473 -> Należności od jednostek powiązanych | V58: =V59+V62 -> 0 | W58: =W59+W62 -> 0
A59: 18 | C59: 4 | D59: B | E59: =E58 -> II | F59: =F58 -> 1 | G59: a | J59: =$J$3&":"&$D59&"."&E59&"."&F59&"."&G59 -> Aktywa:B.II.1.a | K59: =G59 &")" -> a) | N59: a) | O59: =teksty!$D$474 -> z tytułu dostaw i usług, o okresie spłaty: | V59: =V60+V61 -> 0 | W59: =W60+W61 -> 0
A60: 18 | C60: 5 | D60: B | E60: =E59 -> II | F60: =F59 -> 1 | G60: =G59 -> a | H60: 1 | J60: =$J$3&":"&$D60&"."&E60&"."&F60&"."&G60&"."&H60 -> Aktywa:B.II.1.a.1 | K60: =H60 & ") " -> 1) | O60: =$K$60&teksty!$D$475 -> 1) do 12 miesięcy
A61: 18 | C61: 5 | D61: B | E61: =E60 -> II | F61: =F60 -> 1 | G61: =G60 -> a | H61: 2 | J61: =$J$3&":"&$D61&"."&E61&"."&F61&"."&G61&"."&H61 -> Aktywa:B.II.1.a.2 | K61: =H61 & ") " -> 2) | O61: =$K$61&teksty!$D$476 -> 2) powyżej 12 miesięcy
A62: 18 | C62: 4 | D62: B | E62: =E61 -> II | F62: =F61 -> 1 | G62: b | I62: =$N$5 & teksty!$D$284 & 2 -> Aktywa, koniec strony 2 | J62: =$J$3&":"&$D62&"."&E62&"."&F62&"."&G62 -> Aktywa:B.II.1.b | K62: =G62 &")" -> b) | N62: =K62 -> b) | O62: =teksty!$D$477 -> inne
A63: 18 | B63: P | C63: 3 | D63: =D62 -> B | E63: =E62 -> II | F63: =F62 -> 1 | N63: =teksty!D478 & O57 &teksty!$D$418 -> Aktywa (c.d. "Należności krótkoterminowe") | U63: =$U$5 -> Stan na: | V63: =$V$5 -> 2017-12-31 | W63: =$W$5 -> 2016-12-31 | X63: =teksty!$D$292 -> Przekszt. dane porów. za poprzedni okres
A64: 18 | C64: 3 | D64: =D62 -> B | E64: =E62 -> II | F64: 2 | J64: =$J$3&":"&$D64&"."&E64&"."&F64 -> Aktywa:B.II.2 | K64: =F64 -> 2 | N64: 2 | O64: =teksty!$D$479 -> Należności od pozostałych jednostek, w których jednostka posiada zaangażowanie w kapitale | V64: =V65+V68 -> 0 | W64: =W65+W68 -> 0 | Z64: =teksty!$D$285 -> ukryty wiersz powyżej zawiera nagłówek dla kolejnej strony
A65: 18 | C65: 4 | D65: =D64 -> B | E65: II | F65: 2 | G65: a | J65: =$J$3&":"&$D65&"."&E65&"."&F65&"."&G65 -> Aktywa:B.II.2.a | K65: =G65 &")" -> a) | N65: a) | O65: =teksty!$D$480 -> z tytułu dostaw i usług, o okresie spłaty: | V65: =V66+V67 -> 0 | W65: =W66+W67 -> 0
A66: 18 | C66: 5 | D66: B | E66: II | F66: 2 | G66: =G65 -> a | H66: 1 | J66: =$J$3&":"&$D66&"."&E66&"."&F66&"."&G66&"."&H66 -> Aktywa:B.II.2.a.1 | K66: =H66 & ") " -> 1) | O66: =$K$66&teksty!$D$481 -> 1) do 12 miesięcy
A67: 18 | C67: 5 | D67: B | E67: II | F67: 2 | G67: =G66 -> a | H67: 2 | J67: =$J$3&":"&$D67&"."&E67&"."&F67&"."&G67&"."&H67 -> Aktywa:B.II.2.a.2 | K67: =H67 & ") " -> 2) | O67: =$K$67&teksty!$D$482 -> 2) powyżej 12 miesięcy
A68: 18 | C68: 4 | D68: B | E68: II | F68: 2 | G68: b | J68: =$J$3&":"&$D68&"."&E68&"."&F68&"."&G68 -> Aktywa:B.II.2.b | K68: =G68 &")" -> b) | N68: =K68 -> b) | O68: =teksty!$D$483 -> inne
A69: 18 | C69: 3 | D69: =D68 -> B | E69: II | F69: 3 | J69: =$J$3&":"&$D69&"."&E69&"."&F69 -> Aktywa:B.II.3 | K69: =F69 -> 3 | N69: 3 | O69: =teksty!$D$484 -> Należności od pozostałych jednostek | V69: =V70+V73+V74+V75 -> 0 | W69: =W70+W73+W74+W75 -> 0
A70: =(2+16) -> 18 | C70: 4 | D70: B | E70: II | F70: =F69 -> 3 | G70: a | J70: =$J$3&":"&$D70&"."&E70&"."&F70&"."&G70 -> Aktywa:B.II.3.a | K70: =G70 &")" -> a) | N70: a) | O70: =teksty!$D$485 -> z tytułu dostaw i usług, o okresie spłaty: | V70: =V71+V72 -> 0 | W70: =W71+W72 -> 0
A71: 18 | C71: 5 | D71: B | E71: II | F71: 3 | G71: =G70 -> a | H71: 1 | J71: =$J$3&":"&$D71&"."&E71&"."&F71&"."&G71&"."&H71 -> Aktywa:B.II.3.a.1 | K71: =H71 & ") " -> 1) | O71: =$K$71&teksty!$D$486 -> 1) do 12 miesięcy
A72: 18 | C72: 5 | D72: B | E72: II | F72: 3 | G72: =G71 -> a | H72: 2 | J72: =$J$3&":"&$D72&"."&E72&"."&F72&"."&G72&"."&H72 -> Aktywa:B.II.3.a.2 | K72: =H72 & ") " -> 2) | O72: =$K$72&teksty!$D$487 -> 2) powyżej 12 miesięcy
A73: 18 | C73: 4 | D73: B | E73: II | F73: 3 | G73: b | J73: =$J$3&":"&$D73&"."&E73&"."&F73&"."&G73 -> Aktywa:B.II.3.b | K73: =G73 &")" -> b) | N73: =K73 -> b) | O73: =teksty!$D$488 -> z tytułu podatków, dotacji, ceł, ubezpieczeń społecznych i zdrowotnych oraz innych tytułów publicznoprawnych
A74: 18 | C74: 4 | D74: B | E74: II | F74: 3 | G74: c | J74: =$J$3&":"&$D74&"."&E74&"."&F74&"."&G74 -> Aktywa:B.II.3.c | K74: =G74 &")" -> c) | N74: =K74 -> c) | O74: =teksty!$D$489 -> inne
A75: 18 | C75: 4 | D75: B | E75: II | F75: 3 | G75: d | J75: =$J$3&":"&$D75&"."&E75&"."&F75&"."&G75 -> Aktywa:B.II.3.d | K75: =G75 &")" -> d) | N75: =K75 -> d) | O75: =teksty!$D$490 -> dochodzone na drodze sądowej
A76: 18 | C76: 2 | D76: =D75 -> B | E76: III | J76: =$J$3&":"&$D76&"."&E76 -> Aktywa:B.III | K76: =E76 -> III | N76: III | O76: =teksty!$D$491 -> Inwestycje krótkoterminowe | V76: =V77+V92 -> 0 | W76: =W77+W92 -> 0
A77: 18 | C77: 3 | D77: B | E77: =E76 -> III | F77: 1 | J77: =$J$3&":"&$D77&"."&E77&"."&F77 -> Aktywa:B.III.1 | K77: =F77 -> 1 | N77: 1 | O77: =teksty!$D$492 -> Krótkoterminowe aktywa finansowe | V77: =V78+V83+V88 -> 0 | W77: =W78+W83+W88 -> 0
A78: 18 | C78: 4 | D78: B | E78: III | F78: =F77 -> 1 | G78: a | J78: =$J$3&":"&$D78&"."&E78&"."&F78&"."&G78 -> Aktywa:B.III.1.a | K78: =G78 &")" -> a) | N78: a) | O78: =teksty!$D$493 -> w jednostkach powiązanych | V78: =V79+V80+V81+V82 -> 0 | W78: =W79+W80+W81+W82 -> 0
A79: 18 | C79: 5 | D79: B | E79: III | F79: 1 | G79: =G78 -> a | H79: 1 | J79: =$J$3&":"&$D79&"."&E79&"."&F79&"."&G79&"."&H79 -> Aktywa:B.III.1.a.1 | K79: =H79 & ") " -> 1) | O79: =K79&teksty!$D494 -> 1) udziały lub akcje
A80: 18 | C80: 5 | D80: B | E80: III | F80: 1 | G80: =G79 -> a | H80: 2 | J80: =$J$3&":"&$D80&"."&E80&"."&F80&"."&G80&"."&H80 -> Aktywa:B.III.1.a.2 | K80: =H80 & ") " -> 2) | O80: =K80&teksty!$D495 -> 2) inne papiery wartościowe
A81: 18 | C81: 5 | D81: B | E81: III | F81: 1 | G81: =G80 -> a | H81: 3 | J81: =$J$3&":"&$D81&"."&E81&"."&F81&"."&G81&"."&H81 -> Aktywa:B.III.1.a.3 | K81: =H81 & ") " -> 3) | O81: =K81&teksty!$D496 -> 3) udzielone pożyczki
A82: 18 | C82: 5 | D82: B | E82: III | F82: 1 | G82: =G81 -> a | H82: 4 | J82: =$J$3&":"&$D82&"."&E82&"."&F82&"."&G82&"."&H82 -> Aktywa:B.III.1.a.4 | K82: =H82 & ") " -> 4) | O82: =K82&teksty!$D497 -> 4) inne krótkoterminowe aktywa finansowe
A83: 18 | C83: 4 | D83: B | E83: III | F83: 1 | G83: b | J83: =$J$3&":"&$D83&"."&E83&"."&F83&"."&G83 -> Aktywa:B.III.1.b | K83: =G83 &")" -> b) | N83: =K83 -> b) | O83: =teksty!$D$498 -> w pozostałych jednostkach | V83: =V84+V85+V86+V87 -> 0 | W83: =W84+W85+W86+W87 -> 0
A84: 18 | C84: 5 | D84: B | E84: III | F84: 1 | G84: =G83 -> b | H84: 1 | J84: =$J$3&":"&$D84&"."&E84&"."&F84&"."&G84&"."&H84 -> Aktywa:B.III.1.b.1 | K84: =H84 & ") " -> 1) | O84: =K84&teksty!$D499 -> 1) udziały lub akcje
A85: 18 | C85: 5 | D85: =D84 -> B | E85: =E84 -> III | F85: =F84 -> 1 | G85: =G84 -> b | H85: 2 | J85: =$J$3&":"&$D85&"."&E85&"."&F85&"."&G85&"."&H85 -> Aktywa:B.III.1.b.2 | K85: =H85 & ") " -> 2) | O85: =K85&teksty!$D500 -> 2) inne papiery wartościowe
A86: 18 | C86: 5 | D86: B | E86: III | F86: 1 | G86: b | H86: 3 | J86: =$J$3&":"&$D86&"."&E86&"."&F86&"."&G86&"."&H86 -> Aktywa:B.III.1.b.3 | K86: 3) | O86: =K86&teksty!$D501 -> 3) udzielone pożyczki
A87: 18 | C87: 5 | D87: B | E87: III | F87: 1 | G87: b | H87: 4 | J87: =$J$3&":"&$D87&"."&E87&"."&F87&"."&G87&"."&H87 -> Aktywa:B.III.1.b.4 | K87: 4) | O87: =K87&teksty!$D502 -> 4) inne krótkoterminowe aktywa finansowe
A88: 18 | C88: 4 | D88: =D87 -> B | E88: III | F88: 1 | G88: c | J88: =$J$3&":"&$D88&"."&E88&"."&F88&"."&G88 -> Aktywa:B.III.1.c | K88: =G88 &")" -> c) | N88: =K88 -> c) | O88: =teksty!$D$503 -> środki pieniężne i inne aktywa pieniężne | V88: =V89+V90+V91 -> 0 | W88: =W89+W90+W91 -> 0
A89: 18 | C89: 5 | D89: B | E89: III | F89: 1 | G89: =G88 -> c | H89: 1 | J89: =$J$3&":"&$D89&"."&E89&"."&F89&"."&G89&"."&H89 -> Aktywa:B.III.1.c.1 | K89: =H89 & ") " -> 1) | O89: =K89&teksty!$D504 -> 1) środki pieniężne w kasie i na rachunkach
A90: 18 | C90: 5 | D90: =D89 -> B | E90: =E89 -> III | F90: =F89 -> 1 | G90: =G89 -> c | H90: 2 | J90: =$J$3&":"&$D90&"."&E90&"."&F90&"."&G90&"."&H90 -> Aktywa:B.III.1.c.2 | K90: =H90 & ") " -> 2) | O90: =K90&teksty!$D505 -> 2) inne środki pieniężne
A91: 18 | C91: 5 | D91: B | E91: III | F91: 1 | G91: c | H91: 3 | J91: =$J$3&":"&$D91&"."&E91&"."&F91&"."&G91&"."&H91 -> Aktywa:B.III.1.c.3 | K91: 3) | O91: =K91&teksty!$D506 -> 3) inne aktywa pieniężne
A92: 18 | C92: 3 | D92: =D91 -> B | E92: =E91 -> III | F92: 2 | J92: =$J$3&":"&$D92&"."&E92&"."&F92 -> Aktywa:B.III.2 | K92: =F92 -> 2 | N92: =K92 -> 2 | O92: =teksty!$D$507 -> Inne inwestycje krótkoterminowe
A93: 18 | C93: 2 | D93: =D92 -> B | E93: IV | J93: =$J$3&":"&$D93&"."&E93 -> Aktywa:B.IV | K93: =E93 -> IV | N93: IV | O93: =teksty!$D$508 -> Krótkoterminowe rozliczenia międzyokresowe
A94: 18 | C94: 3 | D94: =D93 -> B | E94: =E93 -> IV | F94: j | J94: =$J$3&":"&$D94&"."&E94&"."&F94 -> Aktywa:B.IV.j | O94: =teksty!$D$508 -> Krótkoterminowe rozliczenia międzyokresowe
A95: 18 | C95: 1 | D95: C | J95: =$J$3&":"&$D95 -> Aktywa:C | K95: =D95 -> C | N95: C | O95: =teksty!$D$510 -> Należne wpłaty na kapitał (fundusz) podstawowy
A96: 18 | C96: 1 | D96: D | J96: =$J$3&":"&$D96 -> Aktywa:D | K96: =D96 -> D | N96: =K96 -> D | O96: =teksty!$D$511 -> Udziały (akcje) własne
A97: 18 | C97: 0 | O97: =teksty!$D$512 -> Aktywa razem (suma pozycji A, B, C i D) | V97: =V96+V95+V49+V6 -> 0 | W97: =W96+W95+W49+W6 -> 0 | Z97: =IF(WrfKwot,IF(AND(AF97=0,AG97=0,AH97=0),"=","!"),"") ->  | AA97: =teksty!$D$514 & ":" -> Pasywa: | AB97: =V167 -> 0 | AC97: =W167 -> 0 | AD97: =X167 -> 0 | AF97: =ROUND(V97-AB97,2) -> 0 | AG97: =ROUND(W97-AC97,2) -> 0 | AH97: =ROUND(X97-AD97,2) -> 0
A98: 18 | C98: 0
A99: 18 | C99: 0
A100: 18 | B100: P | C100: 0
A101: 18 | C101: 0 | J101: Pasywa | N101: =teksty!$D$514 -> Pasywa | U101: =$U$5 -> Stan na: | V101: =$V$5 -> 2017-12-31 | W101: =$W$5 -> 2016-12-31 | X101: =teksty!$D$292 -> Przekszt. dane porów. za poprzedni okres | AB101: `
A102: 18 | C102: =COUNTA(D102:H102) -> 1 | D102: A | J102: =$J$101&":"&$D102 -> Pasywa:A | K102: =D102 -> A | N102: =K102 -> A | O102: =teksty!$D$515 -> Kapitał (fundusz) własny | V102: =V103+V104+V107+V109+V113+V116+V117 -> 0 | W102: =W103+W104+W107+W109+W113+W116+W117 -> 0
A103: 18 | C103: 2 | D103: =D102 -> A | E103: I | J103: =$J$101&":"&$D103&"."&E103 -> Pasywa:A.I | K103: =E103 -> I | N103: I | O103: =teksty!$D$516 -> Kapitał (fundusz) podstawowy
A104: 18 | C104: 2 | D104: A | E104: II | J104: =$J$101&":"&$D104&"."&E104 -> Pasywa:A.II | K104: =E104 -> II | N104: =K104 -> II | O104: =teksty!$D$517 -> Kapitał (fundusz) zapasowy, w tym:
A105: 18 | C105: 4 | D105: A | E105: =E104 -> II | F105: 1 | G105: X | J105: =$J$101&":"&$D105&"."&E105&"."&F105 -> Pasywa:A.II.1 | K105: =F105 -> 1 | O105: =" – " & teksty!$D$518 -> – nadwyżka wartości sprzedaży (wartości emisyjnej) nad wartością nominalną udziałów (akcji)
A106: 18 | C106: =COUNTA(D106:H106) -> 4 | D106: A | E106: =E105 -> II | F106: 2 | G106: X | J106: =$J$101&":"&$D106&"."&E106&"."&F106 -> Pasywa:A.II.2 | K106: =F106 -> 2 | O106: =" – " & teksty!$D$518 -> – nadwyżka wartości sprzedaży (wartości emisyjnej) nad wartością nominalną udziałów (akcji)
A107: 18 | C107: 2 | D107: =D105 -> A | E107: III | J107: =$J$101&":"&$D107&"."&E107 -> Pasywa:A.III | K107: =E107 -> III | N107: =K107 -> III | O107: =teksty!$D$520 -> Kapitał (fundusz) z aktualizacji wyceny, w tym:
A108: 18 | C108: 4 | D108: A | E108: =E107 -> III | F108: 1 | G108: X | J108: =$J$101&":"&$D108&"."&E108&"."&F108 -> Pasywa:A.III.1 | K108: =F108 -> 1 | O108: =" – " & teksty!$D$521 -> – z tytułu aktualizacji wartości godziwej
A109: 18 | C109: 2 | D109: A | E109: IV | J109: =$J$101&":"&$D109&"."&E109 -> Pasywa:A.IV | K109: =E109 -> IV | N109: =K109 -> IV | O109: =teksty!$D$522 -> Pozostałe kapitały (fundusze) rezerwowe, w tym:
A110: 18 | C110: 4 | D110: A | E110: =E109 -> IV | F110: 1 | G110: X | J110: =$J$101&":"&$D110&"."&E110&"."&F110 -> Pasywa:A.IV.1 | K110: =F110 -> 1 | O110: =" – " & teksty!$D$523 -> – tworzone zgodnie z umową (statutem) spółki
A111: 18 | C111: 4 | D111: A | E111: =E110 -> IV | F111: 2 | G111: X | J111: =$J$101&":"&$D111&"."&E111&"."&F111 -> Pasywa:A.IV.2 | K111: =F111 -> 2 | O111: =" – " & teksty!$D$524 -> – na udziały (akcje) własne
A112: 18 | C112: 4 | D112: A | E112: =E111 -> IV | F112: 3 | G112: X | J112: =$J$101&":"&$D112&"."&E112&"."&F112 -> Pasywa:A.IV.3 | K112: =F112 -> 3 | O112: =" – " & teksty!$D$524 -> – na udziały (akcje) własne
A113: 18 | C113: 2 | D113: =D111 -> A | E113: V | J113: =$J$101&":"&$D113&"."&E113 -> Pasywa:A.V | K113: =E113 -> V | N113: =K113 -> V | O113: =teksty!$D$526 -> Zysk (strata) z lat ubiegłych, w tym:
A114: 18 | C114: =COUNTA(D114:H114) -> 4 | D114: A | E114: =E113 -> V | F114: 1 | G114: X | J114: =$J$101&":"&$D114&"."&E114&"."&F114 -> Pasywa:A.V.1 | K114: =F114 -> 1 | O114: =" – " & teksty!$D$526 -> – Zysk (strata) z lat ubiegłych, w tym:
A115: 18 | C115: 4 | D115: A | E115: =E114 -> V | F115: 2 | G115: X | J115: =$J$101&":"&$D115&"."&E115&"."&F115 -> Pasywa:A.V.2 | K115: =F115 -> 2 | O115: =IF(O114=" – " & teksty!$D$526," – " & teksty!$D$527,"") -> – kwota niepodzielonych zysków w latach przed opodatkowaniem ryczałtem
A116: 18 | C116: 2 | D116: =D113 -> A | E116: VI | J116: =$J$101&":"&$D116&"."&E116 -> Pasywa:A.VI | K116: =E116 -> VI | N116: =K116 -> VI | O116: =teksty!$D$529 -> Zysk (strata) netto
A117: 18 | C117: 2 | D117: A | E117: VII | J117: =$J$101&":"&$D117&"."&E117 -> Pasywa:A.VII | K117: =E117 -> VII | N117: =K117 -> VII | O117: =teksty!$D$530 -> Odpisy z zysku netto w ciągu roku obrotowego (wielkość ujemna)
A118: 18 | C118: 1 | D118: B | J118: =$J$101&":"&$D118 -> Pasywa:B | K118: =D118 -> B | N118: B | O118: =teksty!$D$531 -> Zobowiązania i rezerwy na zobowiązania | V118: =V119+V127+V137+V161 -> 0 | W118: =W119+W127+W137+W161 -> 0
A119: 18 | C119: 2 | D119: =D118 -> B | E119: I | J119: =$J$101&":"&$D119&"."&E119 -> Pasywa:B.I | K119: =E119 -> I | N119: I | O119: =teksty!$D$532 -> Rezerwy na zobowiązania | V119: =V120+V121+V124 -> 0 | W119: =W120+W121+W124 -> 0
A120: 18 | C120: 3 | D120: B | E120: =E119 -> I | F120: 1 | J120: =$J$101&":"&$D120&"."&E120&"."&F120 -> Pasywa:B.I.1 | K120: =F120 -> 1 | N120: =K120 -> 1 | O120: =teksty!$D$533 -> Rezerwa z tytułu odroczonego podatku dochodowego
A121: 18 | C121: 3 | D121: B | E121: I | F121: 2 | J121: =$J$101&":"&$D121&"."&E121&"."&F121 -> Pasywa:B.I.2 | K121: 2 | N121: =K121 -> 2 | O121: =teksty!$D$534 -> Rezerwa na świadczenia emerytalne i podobne | V121: =V122+V123 -> 0 | W121: =W122+W123 -> 0
A122: 18 | C122: 4 | D122: B | E122: I | F122: =F121 -> 2 | G122: 1 | J122: =$J$101&":"&$D122&"."&E122&"."&F122&"."&G122 -> Pasywa:B.I.2.1 | K122: 2 | O122: =" – " & teksty!$D$535 -> – długoterminowa
A123: 18 | C123: 4 | D123: B | E123: I | F123: =F122 -> 2 | G123: 2 | J123: =$J$101&":"&$D123&"."&E123&"."&F123&"."&G123 -> Pasywa:B.I.2.2 | K123: 2 | O123: =" – " & teksty!$D$536 -> – krótkoterminowa
A124: 18 | C124: 3 | D124: B | E124: I | F124: 3 | J124: =$J$101&":"&$D124&"."&E124&"."&F124 -> Pasywa:B.I.3 | K124: 3 | N124: =K124 -> 3 | O124: =teksty!$D$537 -> Pozostałe rezerwy | V124: =V125+V126 -> 0 | W124: =W125+W126 -> 0
A125: 18 | C125: 4 | D125: B | E125: I | F125: =F124 -> 3 | G125: 1 | J125: =$J$101&":"&$D125&"."&E125&"."&F125&"."&G125 -> Pasywa:B.I.3.1 | K125: 3 | O125: =" – " & teksty!$D$538 -> – długoterminowe
A126: 18 | C126: 4 | D126: B | E126: I | F126: =F125 -> 3 | G126: 2 | J126: =$J$101&":"&$D126&"."&E126&"."&F126&"."&G126 -> Pasywa:B.I.3.2 | K126: 3 | O126: =" – " & teksty!$D$539 -> – krótkoterminowe
A127: 18 | C127: 2 | D127: B | E127: II | J127: =$J$101&":"&$D127&"."&E127 -> Pasywa:B.II | K127: =E127 -> II | N127: =K127 -> II | O127: =teksty!$D$540 -> Zobowiązania długoterminowe | V127: =V128+V129+V130 -> 0 | W127: =W128+W129+W130 -> 0
A128: 18 | C128: 3 | D128: B | E128: =E127 -> II | F128: 1 | J128: =$J$101&":"&$D128&"."&E128&"."&F128 -> Pasywa:B.II.1 | K128: =F128 -> 1 | N128: =K128 -> 1 | O128: =teksty!$D$541 -> Wobec jednostek powiązanych
A129: 18 | C129: 3 | D129: =D128 -> B | E129: =E128 -> II | F129: 2 | J129: =$J$101&":"&$D129&"."&E129&"."&F129 -> Pasywa:B.II.2 | K129: =F129 -> 2 | N129: =K129 -> 2 | O129: =teksty!$D$542 -> Wobec pozostałych jednostek, w których jednostka posiada zaangażowanie w kapitale
A130: 18 | C130: 3 | D130: B | E130: II | F130: 3 | J130: =$J$101&":"&$D130&"."&E130&"."&F130 -> Pasywa:B.II.3 | K130: 3 | N130: 3 | O130: =teksty!$D$543 -> Wobec pozostałych jednostek | V130: =V131+V132+V133+V134+V135 -> 0 | W130: =W131+W132+W133+W134+W135 -> 0
A131: 18 | C131: 4 | D131: =D130 -> B | E131: II | F131: 3 | G131: a | J131: =$J$101&":"&$D131&"."&E131&"."&F131&"."&G131 -> Pasywa:B.II.3.a | K131: =G131 &")" -> a) | N131: a) | O131: =teksty!$D$544 -> kredyty i pożyczki
A132: 18 | C132: 4 | D132: B | E132: II | F132: 3 | G132: b | J132: =$J$101&":"&$D132&"."&E132&"."&F132&"."&G132 -> Pasywa:B.II.3.b | K132: =G132 &")" -> b) | N132: =K132 -> b) | O132: =teksty!$D$545 -> z tytułu emisji dłużnych papierów wartościowych
A133: 18 | C133: 4 | D133: B | E133: II | F133: 3 | G133: c | J133: =$J$101&":"&$D133&"."&E133&"."&F133&"."&G133 -> Pasywa:B.II.3.c | K133: =G133 &")" -> c) | N133: =K133 -> c) | O133: =teksty!$D$546 -> inne zobowiązania finansowe
A134: 18 | C134: 4 | D134: =D133 -> B | E134: =E133 -> II | F134: =F133 -> 3 | G134: d | J134: =$J$101&":"&$D134&"."&E134&"."&F134&"."&G134 -> Pasywa:B.II.3.d | K134: =G134 &")" -> d) | N134: =K134 -> d) | O134: =teksty!$D$547 -> zobowiązania wekslowe
A135: 18 | C135: 4 | D135: B | E135: II | F135: 3 | G135: e | I135: =$N$101 & teksty!$D$284 & 1 -> Pasywa, koniec strony 1 | J135: =$J$101&":"&$D135&"."&E135&"."&F135&"."&G135 -> Pasywa:B.II.3.e | K135: e) | N135: e) | O135: =teksty!$D$548 -> inne
A136: 18 | B136: P | C136: 3 | D136: B | E136: II | F136: 3 | N136: =teksty!D549 & O118 &teksty!$D$418 -> Pasywa (c.d. "Zobowiązania i rezerwy na zobowiązania") | U136: =$U$5 -> Stan na: | V136: =$V$5 -> 2017-12-31 | W136: =$W$5 -> 2016-12-31 | X136: =teksty!$D$292 -> Przekszt. dane porów. za poprzedni okres
A137: 18 | C137: 2 | D137: =D136 -> B | E137: III | J137: =$J$101&":"&$D137&"."&E137 -> Pasywa:B.III | K137: =E137 -> III | N137: =K137 -> III | O137: =teksty!$D$550 -> Zobowiązania krótkoterminowe | V137: =V138+V143+V148+V160 -> 0 | W137: =W138+W143+W148+W160 -> 0 | Z137: =teksty!$D$285 -> ukryty wiersz powyżej zawiera nagłówek dla kolejnej strony
A138: 18 | C138: 3 | D138: =D137 -> B | E138: =E137 -> III | F138: 1 | J138: =$J$101&":"&$D138&"."&E138&"."&F138 -> Pasywa:B.III.1 | K138: =F138 -> 1 | N138: 1 | O138: =teksty!$D$551 -> Zobowiązania wobec jednostek powiązanych | V138: =V139+V142 -> 0 | W138: =W139+W142 -> 0
A139: =(2+16) -> 18 | C139: 4 | D139: =D138 -> B | E139: III | F139: 1 | G139: a | J139: =$J$101&":"&$D139&"."&E139&"."&F139&"."&G139 -> Pasywa:B.III.1.a | K139: =G139 &")" -> a) | N139: a) | O139: =teksty!$D$552 -> z tytułu dostaw i usług, o okresie wymagalności: | V139: =V140+V141 -> 0 | W139: =W140+W141 -> 0
A140: 18 | C140: 5 | D140: B | E140: III | F140: 1 | G140: =G139 -> a | H140: 1 | J140: =$J$101&":"&$D140&"."&E140&"."&F140&"."&G140&"."&H140 -> Pasywa:B.III.1.a.1 | K140: =H140 & ") " -> 1) | O140: =$K$140&teksty!$D$553 -> 1) do 12 miesięcy
A141: 18 | C141: 5 | D141: B | E141: III | F141: 1 | G141: =G140 -> a | H141: 2 | J141: =$J$101&":"&$D141&"."&E141&"."&F141&"."&G141&"."&H141 -> Pasywa:B.III.1.a.2 | K141: =H141 & ") " -> 2) | O141: =$K$141&teksty!$D$554 -> 2) powyżej 12 miesięcy
A142: 18 | C142: 4 | D142: B | E142: III | F142: 1 | G142: b | J142: =$J$101&":"&$D142&"."&E142&"."&F142&"."&G142 -> Pasywa:B.III.1.b | K142: =G142 &")" -> b) | N142: =K142 -> b) | O142: =teksty!$D$555 -> inne
A143: 18 | C143: 3 | D143: =D142 -> B | E143: =E142 -> III | F143: 2 | J143: =$J$101&":"&$D143&"."&E143&"."&F143 -> Pasywa:B.III.2 | K143: =F143 -> 2 | N143: 2 | O143: =teksty!$D$556 -> Zobowiązania wobec pozostałych jednostek, w których jednostka posiada zaangażowanie w kapitale | V143: =V144+V147 -> 0 | W143: =W144+W147 -> 0
A144: 18 | C144: 4 | D144: =D143 -> B | E144: III | F144: 2 | G144: a | J144: =$J$101&":"&$D144&"."&E144&"."&F144&"."&G144 -> Pasywa:B.III.2.a | K144: =G144 &")" -> a) | N144: a) | O144: =teksty!$D$557 -> z tytułu dostaw i usług, o okresie wymagalności: | V144: =V145+V146 -> 0 | W144: =W145+W146 -> 0
A145: 18 | C145: 5 | D145: B | E145: III | F145: 2 | G145: =G144 -> a | H145: 1 | J145: =$J$101&":"&$D145&"."&E145&"."&F145&"."&G145&"."&H145 -> Pasywa:B.III.2.a.1 | K145: =H145 & ") " -> 1) | O145: =$K$145&teksty!$D$558 -> 1) do 12 miesięcy
A146: 18 | C146: 5 | D146: B | E146: III | F146: 2 | G146: =G145 -> a | H146: 2 | J146: =$J$101&":"&$D146&"."&E146&"."&F146&"."&G146&"."&H146 -> Pasywa:B.III.2.a.2 | K146: =H146 & ") " -> 2) | O146: =$K$146&teksty!$D$559 -> 2) powyżej 12 miesięcy
A147: 18 | C147: 4 | D147: B | E147: III | F147: 2 | G147: b | J147: =$J$101&":"&$D147&"."&E147&"."&F147&"."&G147 -> Pasywa:B.III.2.b | K147: =G147 &")" -> b) | N147: =K147 -> b) | O147: =teksty!$D$560 -> inne
A148: 18 | C148: 3 | D148: =D147 -> B | E148: =E147 -> III | F148: 3 | J148: =$J$101&":"&$D148&"."&E148&"."&F148 -> Pasywa:B.III.3 | K148: =F148 -> 3 | N148: 3 | O148: =teksty!$D$561 -> Zobowiązania wobec pozostałych jednostek | V148: =V149+V150+V151+V152+V155+V156+V157+V158+V159 -> 0 | W148: =W149+W150+W151+W152+W155+W156+W157+W158+W159 -> 0
A149: 18 | C149: 4 | D149: =D148 -> B | E149: III | F149: 3 | G149: a | J149: =$J$101&":"&$D149&"."&E149&"."&F149&"."&G149 -> Pasywa:B.III.3.a | K149: =G149 &")" -> a) | N149: =K149 -> a) | O149: =teksty!$D$562 -> kredyty i pożyczki
A150: 18 | C150: 4 | D150: B | E150: III | F150: 3 | G150: b | J150: =$J$101&":"&$D150&"."&E150&"."&F150&"."&G150 -> Pasywa:B.III.3.b | K150: =G150 &")" -> b) | N150: =K150 -> b) | O150: =teksty!$D$563 -> z tytułu emisji dłużnych papierów wartościowych
A151: 18 | C151: 4 | D151: B | E151: III | F151: 3 | G151: c | J151: =$J$101&":"&$D151&"."&E151&"."&F151&"."&G151 -> Pasywa:B.III.3.c | K151: =G151 &")" -> c) | N151: =K151 -> c) | O151: =teksty!$D$564 -> inne zobowiązania finansowe
A152: 18 | C152: 4 | D152: B | E152: III | F152: 3 | G152: d | J152: =$J$101&":"&$D152&"."&E152&"."&F152&"."&G152 -> Pasywa:B.III.3.d | K152: =G152 &")" -> d) | N152: =K152 -> d) | O152: =teksty!$D$565 -> z tytułu dostaw i usług, o okresie wymagalności: | V152: =V153+V154 -> 0 | W152: =W153+W154 -> 0
A153: 18 | C153: 5 | D153: B | E153: III | F153: 3 | G153: =G152 -> d | H153: 1 | J153: =$J$101&":"&$D153&"."&E153&"."&F153&"."&G153&"."&H153 -> Pasywa:B.III.3.d.1 | K153: =H153 & ") " -> 1) | O153: =$K$153&teksty!$D$566 -> 1) do 12 miesięcy
A154: 18 | C154: 5 | D154: B | E154: III | F154: 3 | G154: =G153 -> d | H154: 2 | J154: =$J$101&":"&$D154&"."&E154&"."&F154&"."&G154&"."&H154 -> Pasywa:B.III.3.d.2 | K154: =H154 & ") " -> 2) | O154: =$K$154&teksty!$D$567 -> 2) powyżej 12 miesięcy
A155: 18 | C155: 4 | D155: B | E155: III | F155: 3 | G155: e | J155: =$J$101&":"&$D155&"."&E155&"."&F155&"."&G155 -> Pasywa:B.III.3.e | K155: =G155 &")" -> e) | N155: =K155 -> e) | O155: =teksty!$D$568 -> zaliczki otrzymane na dostawy i usługi
A156: 18 | C156: 4 | D156: B | E156: III | F156: 3 | G156: f | J156: =$J$101&":"&$D156&"."&E156&"."&F156&"."&G156 -> Pasywa:B.III.3.f | K156: =G156 &")" -> f) | N156: =K156 -> f) | O156: =teksty!$D$569 -> zobowiązania wekslowe
A157: 18 | C157: 4 | D157: =D156 -> B | E157: =E156 -> III | F157: =F156 -> 3 | G157: g | J157: =$J$101&":"&$D157&"."&E157&"."&F157&"."&G157 -> Pasywa:B.III.3.g | K157: =G157 &")" -> g) | N157: =K157 -> g) | O157: =teksty!$D$570 -> z tytułu podatków, ceł, ubezpieczeń społecznych i zdrowotnych oraz innych tytułów publicznoprawnych
A158: 18 | C158: 4 | D158: B | E158: III | F158: 3 | G158: h | J158: =$J$101&":"&$D158&"."&E158&"."&F158&"."&G158 -> Pasywa:B.III.3.h | K158: h) | N158: h) | O158: =teksty!$D$571 -> z tytułu wynagrodzeń
A159: 18 | C159: 4 | D159: =D158 -> B | E159: =E158 -> III | F159: =F158 -> 3 | G159: i | J159: =$J$101&":"&$D159&"."&E159&"."&F159&"."&G159 -> Pasywa:B.III.3.i | K159: =G159 &")" -> i) | N159: =K159 -> i) | O159: =teksty!$D$572 -> inne
A160: 18 | C160: 3 | D160: B | E160: III | F160: 4 | J160: =$J$101&":"&$D160&"."&E160&"."&F160 -> Pasywa:B.III.4 | K160: =F160 -> 4 | N160: 4 | O160: =teksty!$D$573 -> Fundusze specjalne
A161: 18 | C161: 2 | D161: =D160 -> B | E161: IV | J161: =$J$101&":"&$D161&"."&E161 -> Pasywa:B.IV | K161: =E161 -> IV | N161: IV | O161: =teksty!$D$574 -> Rozliczenia międzyokresowe | V161: =V162+V163 -> 0 | W161: =W162+W163 -> 0
A162: 18 | C162: 3 | D162: =D161 -> B | E162: =E161 -> IV | F162: 1 | J162: =$J$101&":"&$D162&"."&E162&"."&F162 -> Pasywa:B.IV.1 | K162: =F162 -> 1 | N162: =K162 -> 1 | O162: =teksty!$D$575 -> Ujemna wartość firmy
A163: 18 | C163: 3 | D163: =D162 -> B | E163: =E162 -> IV | F163: 2 | J163: =$J$101&":"&$D163&"."&E163&"."&F163 -> Pasywa:B.IV.2 | K163: =F163 -> 2 | N163: =K163 -> 2 | O163: =teksty!$D$576 -> Inne rozliczenia międzyokresowe | V163: =V164+V165+V166 -> 0 | W163: =W164+W165+W166 -> 0
A164: 18 | C164: 4 | D164: =D163 -> B | E164: IV | F164: 2 | G164: 1 | J164: =$J$101&":"&$D164&"."&E164&"."&F164&"."&G164 -> Pasywa:B.IV.2.1 | K164: =F164 -> 2 | O164: =" – " & teksty!$D$577 -> – długoterminowe
A165: 18 | C165: 4 | D165: B | E165: IV | F165: 2 | G165: 2 | J165: =$J$101&":"&$D165&"."&E165&"."&F165&"."&G165 -> Pasywa:B.IV.2.2 | K165: =F165 -> 2 | O165: =" – " & teksty!$D$578 -> – krótkoterminowe
A166: 18 | C166: 4 | D166: B | E166: IV | F166: 2 | G166: 3 | J166: =$J$101&":"&$D166&"."&E166&"."&F166&"."&G166 -> Pasywa:B.IV.2.3 | K166: =F166 -> 2 | O166: =" – " & teksty!$D$578 -> – krótkoterminowe
A167: 18 | C167: 0 | O167: =teksty!$D$580 -> Pasywa razem (suma pozycji A i B) | V167: =V118+V102 -> 0 | W167: =W118+W102 -> 0 | Z167: =IF(WrfKwot,IF(AND(AF167=0,AG167=0,AH167=0),"=","!"),"") ->  | AA167: =teksty!$D$420 & ":" -> Aktywa: | AB167: =V97 -> 0 | AC167: =W97 -> 0 | AD167: =X97 -> 0 | AF167: =ROUND(V167-AB167,2) -> 0 | AG167: =ROUND(W167-AC167,2) -> 0 | AH167: =ROUND(X167-AD167,2) -> 0
A168: 18 | C168: 0
A169: 18 | C169: 0
A170: =4 -> 4 | C170: 0 | J170: JednostkaMala | N170: =teksty!$D$420 -> Aktywa | U170: =$U$5 -> Stan na: | V170: =$V$5 -> 2017-12-31 | W170: =$W$5 -> 2016-12-31 | X170: =teksty!$D$292 -> Przekszt. dane porów. za poprzedni okres
A171: =4 -> 4 | C171: =COUNTA(D171:H171) -> 1 | D171: A | J171: =$J$3&":"&$D171 -> Aktywa:A | K171: =D171 -> A | N171: =K171 -> A | O171: =teksty!$D$421 -> Aktywa trwałe | V171: =V172+V173+V176+V177+V180 -> 0 | W171: =W172+W173+W176+W177+W180 -> 0
A172: =4 -> 4 | C172: =COUNTA(D172:H172) -> 2 | D172: =D171 -> A | E172: I | J172: =$J$3&":"&$D172&"."&E172 -> Aktywa:A.I | K172: =E172 -> I | N172: =K172 -> I | O172: =teksty!$D$422 -> Wartości niematerialne i prawne
A173: =4 -> 4 | C173: 2 | D173: A | E173: II | J173: =$J$3&":"&$D173&"."&E173 -> Aktywa:A.II | K173: =E173 -> II | N173: =K173 -> II | O173: =teksty!$D$427 & inc -> Rzeczowe aktywa trwałe, w tym:
A174: =4 -> 4 | C174: 3 | D174: A | E174: =E173 -> II | F174: 1 | J174: =$J$3&":"&$D174&"."&E174&"."&F174 -> Aktywa:A.II.1 | K174: =F174 -> 1 | O174: =" – " & LOWER(teksty!$D$428) -> – środki trwałe
A175: =4 -> 4 | C175: =COUNTA(D175:H175) -> 3 | D175: A | E175: II | F175: 2 | J175: =$J$3&":"&$D175&"."&E175&"."&F175 -> Aktywa:A.II.2 | K175: =F175 -> 2 | O175: =" – " & LOWER(teksty!$D$434) -> – środki trwałe w budowie
A176: =4 -> 4 | C176: 2 | D176: A | E176: III | J176: =$J$3&":"&$D176&"."&E176 -> Aktywa:A.III | K176: =E176 -> III | N176: III | O176: =teksty!$D$436 -> Należności długoterminowe
A177: =4 -> 4 | C177: =COUNTA(D177:H177) -> 2 | D177: A | E177: IV | J177: =$J$3&":"&$D177&"."&E177 -> Aktywa:A.IV | K177: =E177 -> IV | N177: IV | O177: =teksty!$D$440 & inc -> Inwestycje długoterminowe, w tym:
A178: =4 -> 4 | C178: 3 | D178: =D177 -> A | E178: IV | F178: 1 | J178: =$J$3&":"&$D178&"."&E178&"."&F178 -> Aktywa:A.IV.1 | K178: =F178 -> 1 | O178: =" – " & LOWER(teksty!$D$441) -> – nieruchomości
A179: =4 -> 4 | C179: 3 | D179: A | E179: IV | F179: 2 | J179: =$J$3&":"&$D179&"."&E179&"."&F179 -> Aktywa:A.IV.2 | K179: =F179 -> 2 | O179: =" – " & LOWER(teksty!$D$443) -> – długoterminowe aktywa finansowe
A180: =4 -> 4 | C180: 2 | D180: =D179 -> A | E180: V | J180: =$J$3&":"&$D180&"."&E180 -> Aktywa:A.V | K180: =E180 -> V | N180: =K180 -> V | O180: =teksty!$D$461 -> Długoterminowe rozliczenia międzyokresowe
A181: =4 -> 4 | C181: 1 | D181: B | J181: =$J$3&":"&$D181 -> Aktywa:B | K181: =D181 -> B | N181: B | O181: =teksty!$D$464 -> Aktywa obrotowe | V181: =V182+V183+V187+V190 -> 0 | W181: =W182+W183+W187+W190 -> 0
A182: =4 -> 4 | C182: 2 | D182: =D181 -> B | E182: I | J182: =$J$3&":"&$D182&"."&E182 -> Aktywa:B.I | K182: =E182 -> I | N182: I | O182: =teksty!$D$465 -> Zapasy
A183: =4 -> 4 | C183: 2 | D183: B | E183: II | J183: =$J$3&":"&$D183&"."&E183 -> Aktywa:B.II | K183: =E183 -> II | N183: II | O183: =teksty!$D$472 & inc -> Należności krótkoterminowe, w tym:
A184: =4 -> 4 | C184: =COUNTA(D184:G184) -> 3 | D184: B | E184: II | F184: a | J184: =$J$3&":"&$D184&"."&E184&"."&F184 -> Aktywa:B.II.a | K184: =F184 &")" -> a) | N184: a) | O184: =teksty!$D$474 -> z tytułu dostaw i usług, o okresie spłaty: | V184: =V185+V186 -> 0 | W184: =W185+W186 -> 0
A185: =4 -> 4 | C185: =COUNTA(D185:G185) -> 4 | D185: B | E185: =E184 -> II | F185: =F184 -> a | G185: 1 | J185: =$J$3&":"&$D185&"."&E185&"."&F185&"."&G185 -> Aktywa:B.II.a.1 | K185: =G185 & ") " -> 1) | O185: =" – " & teksty!$D$475 -> – do 12 miesięcy
A186: =4 -> 4 | C186: =COUNTA(D186:G186) -> 4 | D186: B | E186: =E185 -> II | F186: =F185 -> a | G186: 2 | J186: =$J$3&":"&$D186&"."&E186&"."&F186&"."&G186 -> Aktywa:B.II.a.2 | K186: =G186 & ") " -> 2) | O186: =" – " & teksty!$D$476 -> – powyżej 12 miesięcy
A187: =4 -> 4 | C187: 2 | D187: B | E187: III | J187: =$J$3&":"&$D187&"."&E187 -> Aktywa:B.III | K187: =E187 -> III | N187: =K187 -> III | O187: =teksty!$D$491 & inc -> Inwestycje krótkoterminowe, w tym:
A188: =4 -> 4 | C188: 3 | D188: =D187 -> B | E188: III | F188: a | J188: =$J$3&":"&$D188&"."&E188&"."&F188 -> Aktywa:B.III.a | K188: =F188 &")" -> a) | N188: a) | O188: =teksty!$D$492 & inc -> Krótkoterminowe aktywa finansowe, w tym:
A189: =4 -> 4 | C189: 4 | D189: B | E189: III | F189: a | G189: 1 | J189: =$J$3&":"&$D189&"."&E189&"."&F189&"."&G189 -> Aktywa:B.III.a.1 | K189: =G189 &")" -> 1) | O189: =" – " &teksty!$D$504 -> – środki pieniężne w kasie i na rachunkach
A190: =4 -> 4 | C190: 2 | D190: B | E190: IV | J190: =$J$3&":"&$D190&"."&E190 -> Aktywa:B.IV | K190: =E190 -> IV | N190: =K190 -> IV | O190: =teksty!$D$508 -> Krótkoterminowe rozliczenia międzyokresowe
A191: =4 -> 4 | C191: 1 | D191: C | J191: =$J$3&":"&$D191 -> Aktywa:C | K191: =D191 -> C | N191: C | O191: =teksty!$D$510 -> Należne wpłaty na kapitał (fundusz) podstawowy
A192: =4 -> 4 | C192: 1 | D192: D | J192: =$J$3&":"&$D192 -> Aktywa:D | K192: =D192 -> D | N192: D | O192: =teksty!$D$511 -> Udziały (akcje) własne
A193: =4 -> 4 | C193: 0 | O193: =teksty!$D$512 -> Aktywa razem (suma pozycji A, B, C i D) | V193: =V192+V191+V181+V171 -> 0 | W193: =W192+W191+W181+W171 -> 0 | Z193: =IF(WrfKwot,IF(AND(AF193=0,AG193=0,AH193=0),"=","!"),"") ->  | AA193: =teksty!$D$514 & ":" -> Pasywa: | AB193: =V224 -> 0 | AC193: =W224 -> 0 | AD193: =X224 -> 0 | AF193: =ROUND(V193-AB193,2) -> 0 | AG193: =ROUND(W193-AC193,2) -> 0 | AH193: 0
A194: =4 -> 4 | C194: 0
A195: =4 -> 4 | C195: 0 | I195: =M2 & teksty!$D$284 & 1 -> Bilans, koniec strony 1
A196: =4 -> 4 | B196: P | C196: 0
A197: =4 -> 4 | C197: 0 | N197: =teksty!$D$514 -> Pasywa | U197: =$U$5 -> Stan na: | V197: =$V$5 -> 2017-12-31 | W197: =$W$5 -> 2016-12-31 | X197: =teksty!$D$292 -> Przekszt. dane porów. za poprzedni okres
A198: =4 -> 4 | C198: 1 | D198: A | J198: =$J$101&":"&$D198 -> Pasywa:A | K198: =D198 -> A | N198: =K198 -> A | O198: =teksty!$D$515 -> Kapitał (fundusz) własny | V198: =V199+V200+V203+V205+V207+V210+V211 -> 0 | W198: =W199+W200+W203+W205+W207+W210+W211 -> 0
A199: =4 -> 4 | C199: =COUNTA(D199:H199) -> 2 | D199: =D198 -> A | E199: I | J199: =$J$101&":"&$D199&"."&E199 -> Pasywa:A.I | K199: =E199 -> I | N199: I | O199: =teksty!$D$516 -> Kapitał (fundusz) podstawowy
A200: =4 -> 4 | C200: 2 | D200: A | E200: II | J200: =$J$101&":"&$D200&"."&E200 -> Pasywa:A.II | K200: =E200 -> II | N200: II | O200: =teksty!$D$517 -> Kapitał (fundusz) zapasowy, w tym:
A201: =4 -> 4 | C201: 3 | D201: A | E201: =E200 -> II | F201: 1 | J201: =$J$101&":"&$D201&"."&E201&"."&F201 -> Pasywa:A.II.1 | K201: =F201 -> 1 | O201: =" – " & teksty!$D$518 -> – nadwyżka wartości sprzedaży (wartości emisyjnej) nad wartością nominalną udziałów (akcji)
... 249 more rows

Sheet RZiS
A1: RZiS | C1: Poziom | F1: Składniki | J1: (pełen symbol) | K1: (wyświetlana etykieta) | R1: 6 | S1: =VLOOKUP(WybranaPozycja,teksty!B131:F136,2) -> Skonsolidowana | U1: 1 | V1: =VLOOKUP(WybranaPodpozycja,teksty!B140:F141,2) -> Kalkulacyjny | W1: =IF(WybranaPodpozycja=1,1,0) -> 1 | X1: =IF(WybranaPodpozycja=2,1,0) -> 0
M2: =teksty!D613 -> Rachunek zysków i strat
N3: =Wprowadzenie!$I$4 & " " & IF(NumerWariantuRaportu = 5, teksty!$D$289, "") -> TEST S.A. (skonsolidowany) | X3: =teksty!D283 & VLOOKUP(NumerBazyRaportu,BazyKwot,3) -> wszystkie kwoty w tysiącach złotych
A5: =6*65536 + (2+4+16+64) -> 393302 | N5: =VLOOKUP(WybranaPodpozycja,teksty!$B$140:$F$141,3) -> wariant kalkulacyjny | U5: =IF(BezDat,"",teksty!$D$615) -> za rok: | V5: =IF(BezDat,teksty!$D$954,YEAR(DataDo)) -> 2017 | W5: =IF(BezDat,teksty!$D$955,V5-1) -> 2016 | X5: =teksty!$D$292 -> Przekszt. dane porów. za poprzedni okres | AA5: =IF(OR(_xlfn.ISFORMULA($V$6),_xlfn.ISFORMULA($W$6)),teksty!$D$951,"") -> W niektórych polach tego zestawienia napotkasz pomocnicze formuły. Jeżeli to potrzebne, możesz je zmienić, lub wpisać w te pola odpowiednie kwoty.
A6: =(4*65536)+(2+16) -> 262162 | C6: =COUNTA(D6:H6) -> 1 | D6: A | J6: =$D6 -> A | K6: =D6 -> A | N6: =K6 -> A | O6: =teksty!$D$618 -> Przychody netto ze sprzedaży i zrównane z nimi, w tym: | V6: =V8+V9+V11+V12 -> 0 | W6: =W8+W9+W11+W12 -> 0
A7: =(4*65536)+(2+16) -> 262162 | C7: 2 | D7: =D6 -> A | E7: j | J7: =D7&"."&E7 -> A.j | O7: =IF($N$7=""," – ") & teksty!$D$619 -> – od jednostek powiązanych
A8: 262162 | C8: 2 | D8: =D6 -> A | E8: I | J8: =D8&"."&E8 -> A.I | K8: =E8 -> I | N8: =K8 -> I | O8: =teksty!$D$620 -> Przychody netto ze sprzedaży produktów
A9: 262162 | C9: 2 | D9: =D8 -> A | E9: II | J9: A.II | K9: =E9 -> II | N9: =K9 -> II | O9: =teksty!$D$621 -> Zmiana stanu produktów (zwiększenie – wartość dodatnia, zmniejszenie – wartość ujemna)
A10: 262162 | C10: =COUNTA(D10:H10) -> 2 | D10: =D9 -> A | E10: j | J10: =D10&"."&E10 -> A.j | O10: =IF($N$7=""," – ") & teksty!$D$621 -> – Zmiana stanu produktów (zwiększenie – wartość dodatnia, zmniejszenie – wartość ujemna)
A11: 262162 | C11: 2 | D11: =D9 -> A | E11: III | J11: A.III | K11: III | N11: =K11 -> III | O11: =teksty!$D$623 -> Koszt wytworzenia produktów na własne potrzeby jednostki
A12: 262162 | C12: 2 | D12: A | E12: IV | J12: A.IV | K12: IV | N12: =K12 -> IV | O12: =teksty!$D$624 -> Przychody netto ze sprzedaży towarów i materiałów
A13: 262162 | C13: 1 | D13: B | J13: =$D13 -> B | K13: =D13 -> B | N13: =K13 -> B | O13: =teksty!$D$625 -> Koszty działalności operacyjnej | V13: =V14+V15+V16+V17+V19+V20+V22+V23 -> 0 | W13: =W14+W15+W16+W17+W19+W20+W22+W23 -> 0
A14: 262162 | C14: 2 | D14: =D13 -> B | E14: I | J14: B.I | K14: =E14 -> I | N14: =K14 -> I | O14: =teksty!$D$626 -> Amortyzacja
A15: 262162 | C15: 2 | D15: B | E15: II | J15: =D15&"."&E15 -> B.II | K15: =E15 -> II | N15: =K15 -> II | O15: =teksty!$D$627 -> Zużycie materiałów i energii
A16: 262162 | C16: 2 | D16: B | E16: III | J16: B.III | K16: III | N16: III | O16: =teksty!$D$628 -> Usługi obce
A17: 262162 | C17: 2 | D17: B | E17: IV | J17: B.IV | K17: IV | N17: IV | O17: =teksty!$D$629 -> Podatki i opłaty, w tym:
A18: 262162 | C18: 3 | D18: B | E18: IV | F18: 1 | J18: =D18&"."&E18&"."&F18 -> B.IV.1 | O18: =IF($N$18=""," – ") & teksty!$D$630 -> – podatek akcyzowy
A19: 262162 | C19: 2 | D19: =D17 -> B | E19: V | J19: B.V | K19: V | N19: =K19 -> V | O19: =teksty!$D$631 -> Wynagrodzenia
A20: 262162 | C20: 2 | D20: B | E20: VI | J20: B.VI | K20: VI | N20: =K20 -> VI | O20: =teksty!$D$632 -> Ubezpieczenia społeczne i inne świadczenia, w tym:
A21: 262162 | C21: 3 | D21: B | E21: VI | F21: 1 | J21: =D21&"."&E21&"."&F21 -> B.VI.1 | O21: =IF($N$21=""," – ") & teksty!$D$633 -> – emerytalne
A22: 262162 | C22: 2 | D22: =D21 -> B | E22: VII | J22: B.VII | K22: VII | N22: =K22 -> VII | O22: =teksty!$D$634 -> Pozostałe koszty rodzajowe
A23: 262162 | C23: 2 | D23: =D22 -> B | E23: VIII | J23: B.VIII | K23: VIII | N23: VIII | O23: =teksty!$D$635 -> Wartość sprzedanych towarów i materiałów
A24: 262162 | C24: 1 | D24: C | J24: =$D24 -> C | K24: =D24 -> C | N24: =K24 -> C | O24: =teksty!$D$636 -> Zysk (strata) ze sprzedaży (A–B) | V24: =V6-V13 -> 0 | W24: =W6-W13 -> 0
A25: 262162 | C25: 1 | D25: D | J25: =$D25 -> D | K25: =D25 -> D | N25: =K25 -> D | O25: =teksty!$D$637 -> Pozostałe przychody operacyjne | V25: =V26+V27+V28+V29 -> 0 | W25: =W26+W27+W28+W29 -> 0
A26: 262162 | C26: 2 | D26: =D25 -> D | E26: I | J26: =D26&"."&E26 -> D.I | K26: =E26 -> I | N26: =K26 -> I | O26: =teksty!$D$638 -> Zysk z tytułu rozchodu niefinansowych aktywów trwałych
A27: 262162 | C27: 2 | D27: =D26 -> D | E27: II | J27: =D27&"."&E27 -> D.II | K27: =E27 -> II | N27: =K27 -> II | O27: =teksty!$D$639 -> Dotacje
A28: 262162 | C28: 2 | D28: =D27 -> D | E28: III | J28: =D28&"."&E28 -> D.III | K28: =E28 -> III | N28: =K28 -> III | O28: =teksty!$D$640 -> Aktualizacja wartości aktywów niefinansowych
A29: 262162 | C29: 2 | D29: =D28 -> D | E29: IV | J29: =D29&"."&E29 -> D.IV | K29: =E29 -> IV | N29: =K29 -> IV | O29: =teksty!$D$641 -> Inne przychody operacyjne
A30: 262162 | C30: 1 | D30: E | J30: =$D30 -> E | K30: =D30 -> E | N30: =K30 -> E | O30: =teksty!$D$642 -> Pozostałe koszty operacyjne | V30: =V31+V32+V33 -> 0 | W30: =W31+W32+W33 -> 0
A31: 262162 | C31: 2 | D31: =D30 -> E | E31: I | J31: =D31&"."&E31 -> E.I | K31: =E31 -> I | N31: =K31 -> I | O31: =teksty!$D$643 -> Strata z tytułu rozchodu niefinansowych aktywów trwałych
A32: 262162 | C32: 2 | D32: =D31 -> E | E32: II | J32: =D32&"."&E32 -> E.II | K32: =E32 -> II | N32: =K32 -> II | O32: =teksty!$D$644 -> Aktualizacja wartości aktywów niefinansowych
A33: 262162 | C33: 2 | D33: =D32 -> E | E33: III | J33: =D33&"."&E33 -> E.III | K33: =E33 -> III | N33: =K33 -> III | O33: =teksty!$D$645 -> Inne koszty operacyjne
A34: 262162 | C34: 1 | D34: F | J34: =$D34 -> F | K34: =D34 -> F | N34: =K34 -> F | O34: =teksty!$D$646 -> Zysk (strata) z działalności operacyjnej (C+D–E) | V34: =V24+V25-V30 -> 0 | W34: =W24+W25-W30 -> 0
A35: 262162 | C35: 1 | D35: G | I35: =teksty!$D$614 & teksty!$D$284 & 1 -> RZiS, koniec strony 1 | J35: =$D35 -> G | K35: =D35 -> G | N35: =K35 -> G | O35: =teksty!$D$647 -> Przychody finansowe | V35: =V37+V42+V44+V46+V47 -> 0 | W35: =W37+W42+W44+W46+W47 -> 0
A36: 262162 | B36: P | C36: 0 | N36: =teksty!$D$141 & teksty!$D$718 -> wariant porównawczy, c.d. poprzedniej strony | U36: =$U$5 -> za rok: | V36: =$V$5 -> 2017 | W36: =$W$5 -> 2016 | X36: =teksty!$D$292 -> Przekszt. dane porów. za poprzedni okres
A37: 262162 | C37: 2 | D37: =D35 -> G | E37: I | J37: =D37&"."&E37 -> G.I | K37: =E37 -> I | N37: =K37 -> I | O37: =teksty!$D$648 -> Dywidendy i udziały w zyskach, w tym: | Z37: =teksty!$D$285 -> ukryty wiersz powyżej zawiera nagłówek dla kolejnej strony
A38: 262162 | C38: 3 | D38: =D37 -> G | E38: I | F38: a | J38: =$D38&"."&E38&"."&F38 -> G.I.a | K38: =F38 -> a | N38: =K38 & ")" -> a) | O38: =teksty!$D$649 -> od jednostek powiązanych, w tym:
A39: 262162 | C39: 4 | D39: G | E39: I | F39: a | G39: 1 | J39: =D39&"."&E39&"."&F39&"."&G39 -> G.I.a.1 | O39: =IF($N$39=""," – ") & teksty!$D$650 -> – w których jednostka posiada zaangażowanie w kapitale
A40: 262162 | C40: 3 | D40: =D39 -> G | E40: I | F40: b | J40: =$D40&"."&E40&"."&F40 -> G.I.b | K40: =F40 -> b | N40: =K40 & ")" -> b) | O40: =teksty!$D$651 -> od jednostek pozostałych, w tym:
A41: 262162 | C41: 4 | D41: =D40 -> G | E41: I | F41: b | G41: 1 | J41: =D41&"."&E41&"."&F41&"."&G41 -> G.I.b.1 | O41: =IF($N$41=""," – ") & teksty!$D$652 -> – w których jednostka posiada zaangażowanie w kapitale
A42: 262162 | C42: 2 | D42: =D41 -> G | E42: II | J42: =D42&"."&E42 -> G.II | K42: =E42 -> II | N42: =K42 -> II | O42: =teksty!$D$653 -> Odsetki, w tym:
A43: 262162 | C43: 3 | D43: =D42 -> G | E43: II | F43: j | J43: =D43&"."&E43&"."&F43 -> G.II.j | O43: =IF($N$43=""," – ") & teksty!$D$654 -> – od jednostek powiązanych
A44: 262162 | C44: 2 | D44: =D43 -> G | E44: III | J44: =D44&"."&E44 -> G.III | K44: =E44 -> III | N44: =K44 -> III | O44: =teksty!$D$655 -> Zysk z tytułu rozchodu aktywów finansowych, w tym:
A45: 262162 | C45: 3 | D45: =D44 -> G | E45: III | F45: j | J45: =D45&"."&E45&"."&F45 -> G.III.j | O45: =IF($N$45=""," – ") & teksty!$D$656 -> – w jednostkach powiązanych
A46: 262162 | C46: 2 | D46: =D45 -> G | E46: IV | J46: =D46&"."&E46 -> G.IV | K46: =E46 -> IV | N46: =K46 -> IV | O46: =teksty!$D$657 -> Aktualizacja wartości aktywów finansowych
A47: 262162 | C47: 2 | D47: =D46 -> G | E47: V | J47: =D47&"."&E47 -> G.V | K47: =E47 -> V | N47: =K47 -> V | O47: =teksty!$D$658 -> Inne
A48: 262162 | C48: 1 | D48: H | J48: =$D48 -> H | K48: =D48 -> H | N48: =K48 -> H | O48: =teksty!$D$659 -> Koszty finansowe | V48: =V49+V51+V53+V54 -> 0 | W48: =W49+W51+W53+W54 -> 0
A49: 262162 | C49: 2 | D49: =D48 -> H | E49: I | J49: =D49&"."&E49 -> H.I | K49: =E49 -> I | N49: =K49 -> I | O49: =teksty!$D$660 -> Odsetki, w tym:
A50: 262162 | C50: 3 | D50: =D49 -> H | E50: I | F50: j | J50: =D50&"."&E50&"."&F50 -> H.I.j | O50: =IF($N$50=""," – ") & teksty!$D$661 -> – dla jednostek powiązanych
A51: 262162 | C51: 2 | D51: =D50 -> H | E51: II | J51: =D51&"."&E51 -> H.II | K51: =E51 -> II | N51: =K51 -> II | O51: =teksty!$D$662 -> Strata z tytułu rozchodu aktywów finansowych, w tym:
A52: 262162 | C52: 3 | D52: H | E52: II | F52: j | J52: =D52&"."&E52&"."&F52 -> H.II.j | O52: =IF($N$52=""," – ") & teksty!$D$663 -> – w jednostkach powiązanych
A53: 262162 | C53: 2 | D53: =D52 -> H | E53: III | J53: =D53&"."&E53 -> H.III | K53: =E53 -> III | N53: =K53 -> III | O53: =teksty!$D$664 -> Aktualizacja wartości aktywów finansowych
A54: 262162 | C54: 2 | D54: =D53 -> H | E54: IV | J54: =D54&"."&E54 -> H.IV | K54: =E54 -> IV | N54: =K54 -> IV | O54: =teksty!$D$665 -> Inne
A55: 262162 | C55: 1 | D55: I | J55: =$D55 -> I | K55: =D55 -> I | N55: =K55 -> I | O55: =teksty!$D$666 -> Zysk (strata) brutto (F+G–H) | V55: =V34+V35-V48 -> 0 | W55: =W34+W35-W48 -> 0
A56: 262162 | C56: 1 | D56: J | J56: =$D56 -> J | K56: =D56 -> J | N56: =K56 -> J | O56: =teksty!$D$667 -> Podatek dochodowy
A57: 262162 | C57: =COUNTA(D57:H57) -> 2 | D57: =D56 -> J | E57: j | J57: =D57&"."&E57 -> J.j | O57: =IF($N$52=""," – ") & SUBSTITUTE(teksty!D$355,":"," " & teksty!$D$667 & ":") -> – Zasady (polityka) rachunkowości Podatek dochodowy:
A58: 262162 | C58: 1 | D58: K | J58: =$D58 -> K | K58: =D58 -> K | N58: =K58 -> K | O58: =teksty!$D$669 -> Pozostałe obowiązkowe zmniejszenia zysku (zwiększenia straty)
A59: 262162 | C59: =COUNTA(D59:H59) -> 1 | D59: L | J59: =$D59 -> L | K59: =D59 -> L | N59: =K59 -> L | O59: =teksty!$D$670 -> Zysk (strata) netto (I–J–K) | V59: =V55-V56-V58 -> 0 | W59: =W55-W56-W58 -> 0 | Z59: =IF(WrfKwot,IF(AND(AF59=0,AG59=0,AH59=0),"=","!"),"") ->  | AA59: =IF(AB59="-", "-",SUBSTITUTE(SUBSTITUTE(EtykietaNaNazwe(Bilans!$J$210),"_A"," A"),"_",".")) -> - | AB59: =IF(Bilans!WybranyWariant="JednostkaInna",Bilans!V$116,IF(Bilans!WybranyWariant="JednostkaMala",Bilans!V$210,"-")) -> - | AC59: =IF(Bilans!WybranyWariant="JednostkaInna",Bilans!W$116,IF(Bilans!WybranyWariant="JednostkaMala",Bilans!W$210,"-")) -> - | AD59: =IF(Bilans!WybranyWariant="JednostkaInna",Bilans!X$116,IF(Bilans!WybranyWariant="JednostkaMala",Bilans!X$210,"-")) -> - | AF59: =ROUND(IF(ISNUMBER(AB59),V59-AB59,0),2) -> 0 | AG59: =ROUND(IF(ISNUMBER(AC59),W59-AC59,0),2) -> 0 | AH59: 0
A60: 0 | I60: Jednostka Inna | J60: kalkulacyjny
A61: =(2*65536)+(2+16) -> 131090 | C61: =COUNTA(D61:H61) -> 1 | D61: A | J61: =$D61 -> A | K61: =D61 -> A | N61: =K61 -> A | O61: =teksty!$D$672 -> Przychody netto ze sprzedaży produktów, towarów i materiałów, w tym: | V61: =V63+V64 -> 0 | W61: =W63+W64 -> 0
A62: =(2*65536)+(2+16) -> 131090 | C62: =COUNTA(D62:H62) -> 2 | D62: =D61 -> A | E62: j | J62: =D62&"."&E62 -> A.j | O62: =IF($N$62=""," – ") &teksty!$D$673 -> – od jednostek powiązanych
A63: 131090 | C63: 2 | D63: =D61 -> A | E63: I | J63: =D63&"."&E63 -> A.I | K63: =E63 -> I | N63: =K63 -> I | O63: =teksty!$D$674 -> Przychody netto ze sprzedaży produktów
A64: 131090 | C64: 2 | D64: =D63 -> A | E64: II | J64: A.II | K64: =E64 -> II | N64: =K64 -> II | O64: =teksty!$D$675 -> Przychody netto ze sprzedaży towarów i materiałów
A65: 131090 | C65: 1 | D65: B | J65: =$D65 -> B | K65: =D65 -> B | N65: =K65 -> B | O65: =teksty!$D$676 -> Koszty sprzedanych produktów, towarów i materiałów, w tym: | V65: =V67+V68 -> 0 | W65: =W67+W68 -> 0
A66: 131090 | C66: 2 | D66: =D65 -> B | E66: j | J66: =D66&"."&E66 -> B.j | O66: =IF($N$66=""," – ") &teksty!$D$677 -> – jednostkom powiązanym
A67: 131090 | C67: 2 | D67: =D65 -> B | E67: I | J67: =D67&"."&E67 -> B.I | K67: =E67 -> I | N67: =K67 -> I | O67: =teksty!$D$678 -> Koszt wytworzenia sprzedanych produktów
A68: 131090 | C68: 2 | D68: =D66 -> B | E68: II | J68: =D68&"."&E68 -> B.II | K68: =E68 -> II | N68: II | O68: =teksty!$D$679 -> Wartość sprzedanych towarów i materiałów
A69: 131090 | C69: 1 | D69: C | J69: =$D69 -> C | K69: =D69 -> C | N69: C | O69: =teksty!$D$680 -> Zysk (strata) brutto ze sprzedaży (A–B) | V69: =V61-V65 -> 0 | W69: =W61-W65 -> 0
A70: 131090 | C70: 1 | D70: D | J70: =$D70 -> D | K70: =D70 -> D | N70: D | O70: =teksty!$D$681 -> Koszty sprzedaży
A71: 131090 | C71: 1 | D71: E | J71: =$D71 -> E | K71: =D71 -> E | N71: E | O71: =teksty!$D$682 -> Koszty ogólnego zarządu
A72: 131090 | C72: 1 | D72: F | J72: =$D72 -> F | K72: =D72 -> F | N72: F | O72: =teksty!$D$683 -> Zysk (strata) ze sprzedaży (C–D–E) | V72: =V69-V70-V71 -> 0 | W72: =W69-W70-W71 -> 0
A73: 131090 | C73: 1 | D73: G | J73: =$D73 -> G | K73: =D73 -> G | N73: G | O73: =teksty!$D$684 -> Pozostałe przychody operacyjne | V73: =V74+V75+V76+V77 -> 0 | W73: =W74+W75+W76+W77 -> 0
A74: 131090 | C74: 2 | D74: =D73 -> G | E74: I | J74: =D74&"."&E74 -> G.I | K74: =E74 -> I | N74: I | O74: =teksty!$D$685 -> Zysk z tytułu rozchodu niefinansowych aktywów trwałych
A75: 131090 | C75: 2 | D75: =D74 -> G | E75: II | J75: =D75&"."&E75 -> G.II | K75: =E75 -> II | N75: II | O75: =teksty!$D$686 -> Dotacje
A76: 131090 | C76: 2 | D76: =D75 -> G | E76: III | J76: =D76&"."&E76 -> G.III | K76: =E76 -> III | N76: III | O76: =teksty!$D$687 -> Aktualizacja wartości aktywów niefinansowych
A77: 131090 | C77: 2 | D77: =D76 -> G | E77: IV | J77: =D77&"."&E77 -> G.IV | K77: =E77 -> IV | N77: IV | O77: =teksty!$D$688 -> Inne przychody operacyjne
A78: 131090 | C78: 1 | D78: H | J78: =$D78 -> H | K78: =D78 -> H | N78: H | O78: =teksty!$D$689 -> Pozostałe koszty operacyjne | V78: =V79+V80+V81 -> 0 | W78: =W79+W80+W81 -> 0
A79: 131090 | C79: 2 | D79: =D78 -> H | E79: I | J79: =D79&"."&E79 -> H.I | K79: =E79 -> I | N79: I | O79: =teksty!$D$690 -> Strata z tytułu rozchodu niefinansowych aktywów trwałych
A80: 131090 | C80: 2 | D80: =D79 -> H | E80: II | J80: H.II | K80: =E80 -> II | N80: II | O80: =teksty!$D$691 -> Aktualizacja wartości aktywów niefinansowych
A81: 131090 | C81: 2 | D81: =D80 -> H | E81: III | J81: H.III | K81: =E81 -> III | N81: III | O81: =teksty!$D$692 -> Inne koszty operacyjne
A82: 131090 | C82: 1 | D82: I | J82: =$D82 -> I | K82: =D82 -> I | N82: I | O82: =teksty!$D$693 -> Zysk (strata) z działalności operacyjnej (F+G–H) | V82: =V72+V73-V78 -> 0 | W82: =W72+W73-W78 -> 0
A83: 131090 | C83: 1 | D83: J | J83: =$D83 -> J | K83: =D83 -> J | N83: J | O83: =teksty!$D$694 -> Przychody finansowe | V83: =V84+V89+V92+V94+V95 -> 0 | W83: =W84+W89+W92+W94+W95 -> 0
A84: 131090 | C84: 2 | D84: =D83 -> J | E84: I | J84: =D84&"."&E84 -> J.I | K84: =E84 -> I | N84: I | O84: =teksty!$D$695 -> Dywidendy i udziały w zyskach, w tym:
A85: 131090 | C85: 3 | D85: =D84 -> J | E85: I | F85: a | J85: =$D85&"."&E85&"."&F85 -> J.I.a | K85: =F85 -> a | N85: =K85 & ")" -> a) | O85: =teksty!$D$696 -> od jednostek powiązanych, w tym:
A86: 131090 | C86: 4 | D86: =D85 -> J | E86: I | F86: a | G86: 1 | J86: =D86&"."&E86&"."&F86&"."&G86 -> J.I.a.1 | O86: =IF($N$86=""," – ") & teksty!$D$697 -> – w których jednostka posiada zaangażowanie w kapitale
A87: 131090 | C87: 3 | D87: =D86 -> J | E87: I | F87: b | J87: =$D87&"."&E87&"."&F87 -> J.I.b | K87: =F87 -> b | N87: =K87 & ")" -> b) | O87: =teksty!$D$698 -> od jednostek pozostałych, w tym:
A88: 131090 | C88: 4 | D88: =D87 -> J | E88: I | F88: b | G88: 1 | J88: =D88&"."&E88&"."&F88&"."&G88 -> J.I.b.1 | O88: =IF($N$88=""," – ") & teksty!$D$699 -> – w których jednostka posiada zaangażowanie w kapitale
A89: 131090 | C89: 2 | D89: =D88 -> J | E89: II | J89: =D89&"."&E89 -> J.II | K89: =E89 -> II | N89: =K89 -> II | O89: =teksty!$D$700 -> Odsetki, w tym:
A90: 131090 | C90: 3 | D90: =D89 -> J | E90: II | F90: j | I90: =teksty!$D$614 & teksty!$D$284 & 1 -> RZiS, koniec strony 1 | J90: =D90&"."&E90&"."&F90 -> J.II.j | O90: =IF($N$90=""," – ") & teksty!$D$701 -> – od jednostek powiązanych
A91: 131090 | B91: P | C91: 0 | N91: =teksty!$D$140 & teksty!$D$718 -> wariant kalkulacyjny, c.d. poprzedniej strony | U91: =$U$5 -> za rok: | V91: =$V$5 -> 2017 | W91: =$W$5 -> 2016 | X91: =teksty!$D$292 -> Przekszt. dane porów. za poprzedni okres
A92: 131090 | C92: 2 | D92: =D90 -> J | E92: III | J92: =D92&"."&E92 -> J.III | K92: =E92 -> III | N92: =K92 -> III | O92: =teksty!$D$702 -> Zysk z tytułu rozchodu aktywów finansowych, w tym: | Z92: =teksty!$D$285 -> ukryty wiersz powyżej zawiera nagłówek dla kolejnej strony
A93: 131090 | C93: 3 | D93: J | E93: III | F93: j | J93: =D93&"."&E93&"."&F93 -> J.III.j | O93: =IF($N$93=""," – ") & teksty!$D$703 -> – w jednostkach powiązanych
A94: 131090 | C94: 2 | D94: =D93 -> J | E94: IV | J94: =D94&"."&E94 -> J.IV | K94: =E94 -> IV | N94: =K94 -> IV | O94: =teksty!$D$704 -> Aktualizacja wartości aktywów finansowych
A95: 131090 | C95: 2 | D95: =D94 -> J | E95: V | J95: =D95&"."&E95 -> J.V | K95: =E95 -> V | N95: =K95 -> V | O95: =teksty!$D$705 -> Inne
A96: 131090 | C96: 1 | D96: K | J96: =$D96 -> K | K96: =D96 -> K | N96: =K96 -> K | O96: =teksty!$D$706 -> Koszty finansowe | V96: =V97+V99+V101+V102 -> 0 | W96: =W97+W99+W101+W102 -> 0
A97: 131090 | C97: 2 | D97: =D96 -> K | E97: I | J97: =D97&"."&E97 -> K.I | K97: =E97 -> I | N97: =K97 -> I | O97: =teksty!$D$707 -> Odsetki, w tym:
A98: 131090 | C98: 3 | D98: =D97 -> K | E98: I | F98: j | J98: =D98&"."&E98&"."&F98 -> K.I.j | O98: =IF($N$98=""," – ") & teksty!$D$708 -> – dla jednostek powiązanych
A99: 131090 | C99: 2 | D99: =D98 -> K | E99: II | J99: =D99&"."&E99 -> K.II | K99: =E99 -> II | N99: =K99 -> II | O99: =teksty!$D$709 -> Strata z tytułu rozchodu aktywów finansowych, w tym:
A100: 131090 | C100: 3 | D100: =D99 -> K | E100: II | F100: j | J100: =D100&"."&E100&"."&F100 -> K.II.j | O100: =IF($N$100=""," – ") & teksty!$D$710 -> – w jednostkach powiązanych
A101: 131090 | C101: 2 | D101: =D100 -> K | E101: III | J101: =D101&"."&E101 -> K.III | K101: =E101 -> III | N101: =K101 -> III | O101: =teksty!$D$711 -> Aktualizacja wartości aktywów finansowych
A102: 131090 | C102: 2 | D102: =D101 -> K | E102: IV | J102: K.IV | K102: =E102 -> IV | N102: IV | O102: =teksty!$D$712 -> Inne
A103: 131090 | C103: 1 | D103: L | J103: =$D103 -> L | K103: =D103 -> L | N103: L | O103: =teksty!$D$713 -> Zysk (strata) brutto (I+J–K) | V103: =V82+V83-V96 -> 0 | W103: =W82+W83-W96 -> 0
A104: 131090 | C104: 1 | D104: M | J104: =$D104 -> M | K104: =D104 -> M | N104: M | O104: =teksty!$D$714 -> Podatek dochodowy
A105: 131090 | C105: =COUNTA(D105:H105) -> 2 | D105: =D104 -> M | E105: j | J105: =D105&"."&E105 -> M.j | O105: =IF($N$105=""," – ") & SUBSTITUTE(teksty!D$355,":"," " & teksty!$D$667 & ":") -> – Zasady (polityka) rachunkowości Podatek dochodowy:
A106: 131090 | C106: 1 | D106: N | J106: =$D106 -> N | K106: =D106 -> N | N106: N | O106: =teksty!$D$715 -> Pozostałe obowiązkowe zmniejszenia zysku (zwiększenia straty)
A107: 131090 | C107: 1 | D107: O | J107: =$D107 -> O | K107: =D107 -> O | N107: O | O107: =teksty!$D$716 -> Zysk (strata) netto (L–M–N) | V107: =V103-V104-V106 -> 0 | W107: =W103-W104-W106 -> 0 | Z107: =IF(WrfKwot,IF(AND(AF107=0,AG107=0,AH107=0),"=","!"),"") ->  | AA107: =IF(AB107="-", "-",SUBSTITUTE(SUBSTITUTE(EtykietaNaNazwe(Bilans!$J$210),"_A"," A"),"_",".")) -> - | AB107: =IF(Bilans!WybranyWariant="JednostkaInna",Bilans!V$116,IF(Bilans!WybranyWariant = "JednostkaMala", Bilans!V$210,"-")) -> - | AC107: =IF(Bilans!WybranyWariant="JednostkaInna",Bilans!W$116,IF(Bilans!WybranyWariant = "JednostkaMala", Bilans!W$210,"-")) -> - | AD107: =IF(Bilans!WybranyWariant="JednostkaInna",Bilans!X$116,IF(Bilans!WybranyWariant = "JednostkaMala", Bilans!X$210,"-")) -> - | AF107: =ROUND(IF(ISNUMBER(AB107),V107-AB107,0),2) -> 0 | AG107: =ROUND(IF(ISNUMBER(AC107),W107-AC107,0),2) -> 0 | AH107: =ROUND(IF(ISNUMBER(AD107),X107-AD107,0),2) -> 0
A108: 0 | C108: 0 | I108: Jednostka Mala | J108: kalkulacyjny
A109: =(2*65536)+(4) -> 131076 | C109: =COUNTA(D109:H109) -> 1 | D109: A | J109: =$D109 -> A | K109: =D109 -> A | N109: =K109 -> A | O109: =SUBSTITUTE(teksty!$D$672,inc,"") -> Przychody netto ze sprzedaży produktów, towarów i materiałów
A110: =(2*65536)+(4) -> 131076 | C110: =COUNTA(D110:H110) -> 1 | D110: B | J110: B | K110: B | N110: =K110 -> B | O110: =SUBSTITUTE(teksty!$D$676,inc,"") -> Koszty sprzedanych produktów, towarów i materiałów
A111: 131076 | C111: 1 | D111: C | J111: C | K111: C | N111: =K111 -> C | O111: =teksty!$D$681 -> Koszty sprzedaży
A112: 131076 | C112: 1 | D112: D | J112: D | K112: D | N112: D | O112: =teksty!$D$682 -> Koszty ogólnego zarządu
A113: 131076 | C113: 1 | D113: E | J113: E | K113: E | N113: E | O113: =teksty!$D$722 -> Zysk (strata) ze sprzedaży (A - B - C - D) | V113: =V109-V110-V111-V112 -> 0 | W113: =W109-W110-W111-W112 -> 0
A114: 131076 | C114: 1 | D114: F | J114: F | K114: F | N114: F | O114: =teksty!$D$684 & inc -> Pozostałe przychody operacyjne, w tym:
A115: 131076 | C115: 2 | D115: =D114 -> F | E115: 1 | J115: =D115&"."&E115 -> F.1 | K115: =E115 -> 1 | O115: =" – " & LOWER(teksty!$D$687) -> – aktualizacja wartości aktywów niefinansowych
A116: 131076 | C116: 1 | D116: G | J116: =$D116 -> G | K116: =D116 -> G | N116: G | O116: =teksty!$D$689 & inc -> Pozostałe koszty operacyjne, w tym:
A117: 131076 | C117: 2 | D117: =D116 -> G | E117: 1 | J117: =D117&"."&E117 -> G.1 | K117: =E117 -> 1 | O117: =" – " & LOWER(teksty!$D$691) -> – aktualizacja wartości aktywów niefinansowych
A118: 131076 | C118: 1 | D118: H | J118: =$D118 -> H | K118: =D118 -> H | N118: H | O118: =teksty!$D$694 & inc -> Przychody finansowe, w tym:
A119: 131076 | C119: 2 | D119: =D118 -> H | E119: I | J119: =D119&"."&E119 -> H.I | K119: =E119 -> I | N119: I | O119: =teksty!$D$720 -> Dywidendy i udziały w zyskach od jednostek, w których jednostka posiada zaangażowanie w kapitale, w tym:
A120: 131076 | C120: 3 | D120: =D119 -> H | E120: I | F120: 1 | J120: =$D120&"."&E120&"."&F120 -> H.I.1 | K120: =F120 -> 1 | O120: =" – " & SUBSTITUTE(teksty!$D$696,inc,"") & "," & teksty!$D$697 -> – od jednostek powiązanych,w których jednostka posiada zaangażowanie w kapitale
A121: 131076 | C121: 2 | D121: H | E121: II | J121: =D121&"."&E121 -> H.II | K121: =E121 -> II | N121: =K121 -> II | O121: =teksty!$D$700 -> Odsetki, w tym:
A122: 131076 | C122: 3 | D122: =D121 -> H | E122: II | F122: 1 | J122: =D122&"."&E122&"."&F122 -> H.II.1 | O122: =IF($N$90=""," – ") & teksty!$D$701 -> – od jednostek powiązanych
A123: 131076 | C123: 2 | D123: =D122 -> H | E123: III | J123: =D123&"."&E123 -> H.III | K123: =E123 -> III | N123: =K123 -> III | O123: =teksty!$D$702 -> Zysk z tytułu rozchodu aktywów finansowych, w tym:
A124: 131076 | C124: 3 | D124: =D123 -> H | E124: III | F124: 1 | J124: =D124&"."&E124&"."&F124 -> H.III.1 | O124: =IF($N$93=""," – ") & teksty!$D$703 -> – w jednostkach powiązanych
A125: 131076 | C125: 2 | D125: =D124 -> H | E125: IV | J125: =D125&"."&E125 -> H.IV | K125: =E125 -> IV | N125: =K125 -> IV | O125: =teksty!$D$704 -> Aktualizacja wartości aktywów finansowych
A126: 131076 | C126: 1 | D126: I | J126: =$D126 -> I | K126: =D126 -> I | N126: =K126 -> I | O126: =teksty!$D$706 & inc -> Koszty finansowe, w tym:
A127: 131076 | C127: 2 | D127: =D126 -> I | E127: I | J127: =D127&"."&E127 -> I.I | K127: =E127 -> I | N127: =K127 -> I | O127: =teksty!$D$707 -> Odsetki, w tym:
A128: 131076 | C128: 3 | D128: =D127 -> I | E128: I | F128: 1 | J128: =D128&"."&E128&"."&F128 -> I.I.1 | O128: =IF($N$98=""," – ") & teksty!$D$708 -> – dla jednostek powiązanych
A129: 131076 | C129: 2 | D129: =D128 -> I | E129: II | J129: =D129&"."&E129 -> I.II | K129: =E129 -> II | N129: =K129 -> II | O129: =teksty!$D$709 -> Strata z tytułu rozchodu aktywów finansowych, w tym:
A130: 131076 | C130: 3 | D130: =D129 -> I | E130: II | F130: 1 | J130: =D130&"."&E130&"."&F130 -> I.II.1 | O130: =IF($N$100=""," – ") & teksty!$D$710 -> – w jednostkach powiązanych
A131: 131076 | C131: 2 | D131: =D130 -> I | E131: III | J131: =D131&"."&E131 -> I.III | K131: =E131 -> III | N131: =K131 -> III | O131: =teksty!$D$711 -> Aktualizacja wartości aktywów finansowych
A132: 131076 | C132: 1 | D132: J | J132: =$D132 -> J | K132: =D132 -> J | N132: J | O132: =teksty!$D$723 -> Zysk (strata) brutto (E + F - G + H - I) | V132: =V113+V114-V116+V118-V126 -> 0 | W132: =W113+W114-W116+W118-W126 -> 0
A133: 131076 | C133: 1 | D133: K | J133: =$D133 -> K | K133: =D133 -> K | N133: K | O133: =teksty!$D$714 -> Podatek dochodowy
A134: 131076 | C134: =COUNTA(D134:H134) -> 2 | D134: =D133 -> K | E134: j | J134: =D134&"."&E134 -> K.j | K134: =E134 -> j | O134: =IF($N$134=""," – ") & SUBSTITUTE(teksty!D$355,":"," " & teksty!$D$667 & ":") -> – Zasady (polityka) rachunkowości Podatek dochodowy:
A135: 131076 | C135: 1 | D135: L | J135: =$D135 -> L | K135: =D135 -> L | N135: L | O135: =teksty!$D$724 -> Zysk (strata) netto (J - K) | V135: =V132-V133 -> 0 | W135: =W132-W133 -> 0 | Z135: =IF(WrfKwot,IF(AND(AF135=0,AG135=0,AH135=0),"=","!"),"") ->  | AA135: =IF(AB135="-", "-",SUBSTITUTE(SUBSTITUTE(EtykietaNaNazwe(Bilans!$J$210),"_A"," A"),"_",".")) -> - | AB135: =IF(Bilans!WybranyWariant="JednostkaInna",Bilans!V$116,IF(Bilans!WybranyWariant = "JednostkaMala", Bilans!V$210,"-")) -> - | AC135: =IF(Bilans!WybranyWariant="JednostkaInna",Bilans!W$116,IF(Bilans!WybranyWariant = "JednostkaMala", Bilans!W$210,"-")) -> - | AD135: =IF(Bilans!WybranyWariant="JednostkaInna",Bilans!X$116,IF(Bilans!WybranyWariant = "JednostkaMala", Bilans!X$210,"-")) -> - | AF135: =ROUND(IF(ISNUMBER(AB135),V135-AB135,0),2) -> 0 | AG135: =ROUND(IF(ISNUMBER(AC135),W135-AC135,0),2) -> 0 | AH135: =ROUND(IF(ISNUMBER(AD135),X135-AD135,0),2) -> 0
A136: 0 | C136: 0 | I136: Jednostka Mala | J136: porównawczy
A137: =(4*65536)+(4) -> 262148 | C137: 1 | D137: A | J137: =$D137 -> A | K137: =D137 -> A | N137: =K137 -> A | O137: =SUBSTITUTE(teksty!$D$618,inc,"") -> Przychody netto ze sprzedaży i zrównane z nimi | V137: =V138+V139+V140 -> 0 | W137: =W138+W139+W140 -> 0
A138: =(4*65536)+(4) -> 262148 | C138: 2 | D138: =D137 -> A | E138: I | J138: =D138&"."&E138 -> A.I | K138: =E138 -> I | N138: =K138 -> I | O138: =teksty!$D$726 -> Przychody netto ze sprzedaży
A139: 262148 | C139: 2 | D139: =D138 -> A | E139: II | J139: A.II | K139: =E139 -> II | N139: =K139 -> II | O139: =teksty!$D$621 -> Zmiana stanu produktów (zwiększenie – wartość dodatnia, zmniejszenie – wartość ujemna)
A140: 262148 | C140: 2 | D140: =D139 -> A | E140: III | J140: A.III | K140: III | N140: =K140 -> III | O140: =teksty!$D$623 -> Koszt wytworzenia produktów na własne potrzeby jednostki
A141: 262148 | C141: 1 | D141: B | J141: =$D141 -> B | K141: =D141 -> B | N141: =K141 -> B | O141: =teksty!$D$625 -> Koszty działalności operacyjnej | V141: =V142+V143+V144+V145+V146+V148 -> 0 | W141: =W142+W143+W144+W145+W146+W148 -> 0
A142: 262148 | C142: 2 | D142: =D141 -> B | E142: I | J142: =D142&"."&E142 -> B.I | K142: =E142 -> I | N142: =K142 -> I | O142: =teksty!$D$626 -> Amortyzacja
A143: 262148 | C143: 2 | D143: =D142 -> B | E143: II | J143: B.II | K143: =E143 -> II | N143: II | O143: =teksty!$D$627 -> Zużycie materiałów i energii
A144: 262148 | C144: 2 | D144: =D143 -> B | E144: III | J144: B.III | K144: III | N144: III | O144: =teksty!$D$628 -> Usługi obce
A145: 262148 | C145: 2 | D145: B | E145: IV | J145: =D145&"."&E145 -> B.IV | K145: =E145 -> IV | N145: =K145 -> IV | O145: =teksty!$D$631 -> Wynagrodzenia
A146: 262148 | C146: 2 | D146: =D145 -> B | E146: V | J146: B.V | K146: V | N146: V | O146: =teksty!$D$632 -> Ubezpieczenia społeczne i inne świadczenia, w tym:
A147: 262148 | C147: 3 | D147: =D146 -> B | E147: V | F147: 1 | J147: =D147&"."&E147&"."&F147 -> B.V.1 | O147: =" – " & teksty!$D$633 -> – emerytalne
A148: 262148 | C148: 2 | D148: =D147 -> B | E148: VI | J148: =D148&"."&E148 -> B.VI | K148: =E148 -> VI | N148: =K148 -> VI | O148: =teksty!$D$727 -> Pozostałe koszty, w tym:
A149: 262148 | C149: =COUNTA(D149:H149) -> 3 | D149: B | E149: VI | F149: 1 | J149: =D149&"."&E149&"."&F149 -> B.VI.1 | O149: =" – " & LOWER(teksty!$D$635) -> – wartość sprzedanych towarów i materiałów
A150: =(4*65536)+(4) -> 262148 | C150: =COUNTA(D150:H150) -> 1 | D150: C | J150: =$D150 -> C | K150: =D150 -> C | N150: =K150 -> C | O150: =teksty!$D$728 -> Zysk (strata) ze sprzedaży (A - B) | V150: =V137-V141 -> 0 | W150: =W137-W141 -> 0
A151: 262148 | C151: 1 | D151: D | J151: =$D151 -> D | K151: =D151 -> D | N151: D | O151: =teksty!$D$684 & inc -> Pozostałe przychody operacyjne, w tym:
A152: 262148 | C152: 2 | D152: =D151 -> D | E152: 1 | J152: =D152&"."&E152 -> D.1 | K152: =E152 -> 1 | O152: =" – " & LOWER(teksty!$D$687) -> – aktualizacja wartości aktywów niefinansowych
A153: 262148 | C153: 1 | D153: E | J153: =$D153 -> E | K153: =D153 -> E | N153: =K153 -> E | O153: =teksty!$D$689 & inc -> Pozostałe koszty operacyjne, w tym:
A154: 262148 | C154: 2 | D154: =D153 -> E | E154: 1 | J154: =D154&"."&E154 -> E.1 | K154: =E154 -> 1 | O154: =" – " & LOWER(teksty!$D$691) -> – aktualizacja wartości aktywów niefinansowych
A155: 262148 | C155: 1 | D155: F | J155: =$D155 -> F | K155: =D155 -> F | N155: =K155 -> F | O155: =teksty!$D$694 & inc -> Przychody finansowe, w tym:
A156: 262148 | C156: 2 | D156: =D155 -> F | E156: I | J156: =D156&"."&E156 -> F.I | K156: =E156 -> I | N156: I | O156: =teksty!$D$720 -> Dywidendy i udziały w zyskach od jednostek, w których jednostka posiada zaangażowanie w kapitale, w tym:
A157: 262148 | C157: 3 | D157: =D156 -> F | E157: I | F157: 1 | J157: =$D157&"."&E157&"."&F157 -> F.I.1 | K157: =F157 -> 1 | O157: =" – " &SUBSTITUTE(teksty!$D$696,inc,"") & "," & teksty!$D$697 -> – od jednostek powiązanych,w których jednostka posiada zaangażowanie w kapitale
A158: 262148 | C158: 2 | D158: =D157 -> F | E158: II | J158: =D158&"."&E158 -> F.II | K158: =E158 -> II | N158: =K158 -> II | O158: =teksty!$D$700 -> Odsetki, w tym:
A159: 262148 | C159: 3 | D159: =D158 -> F | E159: II | F159: 1 | J159: =D159&"."&E159&"."&F159 -> F.II.1 | O159: =" – " & teksty!$D$701 -> – od jednostek powiązanych
A160: 262148 | C160: 2 | D160: =D159 -> F | E160: III | J160: =D160&"."&E160 -> F.III | K160: =E160 -> III | N160: =K160 -> III | O160: =teksty!$D$702 -> Zysk z tytułu rozchodu aktywów finansowych, w tym:
A161: 262148 | C161: 3 | D161: =D160 -> F | E161: III | F161: 1 | J161: =D161&"."&E161&"."&F161 -> F.III.1 | O161: =" – " &teksty!$D$703 -> – w jednostkach powiązanych
A162: 262148 | C162: 2 | D162: =D161 -> F | E162: IV | J162: =D162&"."&E162 -> F.IV | K162: =E162 -> IV | N162: =K162 -> IV | O162: =teksty!$D$704 -> Aktualizacja wartości aktywów finansowych
A163: 262148 | C163: 1 | D163: G | J163: =$D163 -> G | K163: =D163 -> G | N163: =K163 -> G | O163: =teksty!$D$706 & inc -> Koszty finansowe, w tym:
A164: 262148 | C164: 2 | D164: =D163 -> G | E164: I | J164: =D164&"."&E164 -> G.I | K164: =E164 -> I | N164: =K164 -> I | O164: =teksty!$D$707 -> Odsetki, w tym:
A165: 262148 | C165: 3 | D165: =D164 -> G | E165: I | F165: 1 | J165: =D165&"."&E165&"."&F165 -> G.I.1 | O165: =" – " &teksty!$D$708 -> – dla jednostek powiązanych
A166: 262148 | C166: 2 | D166: =D165 -> G | E166: II | J166: =D166&"."&E166 -> G.II | K166: =E166 -> II | N166: =K166 -> II | O166: =teksty!$D$709 -> Strata z tytułu rozchodu aktywów finansowych, w tym:
A167: 262148 | C167: 3 | D167: =D166 -> G | E167: II | F167: 1 | J167: =D167&"."&E167&"."&F167 -> G.II.1 | O167: =" – " & teksty!$D$710 -> – w jednostkach powiązanych
A168: 262148 | C168: 2 | D168: =D167 -> G | E168: III | I168: =teksty!$D$614 & teksty!$D$284 & 1 -> RZiS, koniec strony 1 | J168: =D168&"."&E168 -> G.III | K168: =E168 -> III | N168: =K168 -> III | O168: =teksty!$D$711 -> Aktualizacja wartości aktywów finansowych
A169: 262148 | B169: P | C169: 0 | N169: =teksty!$D$141 & teksty!$D$718 -> wariant porównawczy, c.d. poprzedniej strony | U169: =$U$5 -> za rok: | V169: =$V$5 -> 2017 | W169: =$W$5 -> 2016 | X169: =teksty!$D$292 -> Przekszt. dane porów. za poprzedni okres
A170: 262148 | C170: 1 | D170: H | J170: =$D170 -> H | K170: =D170 -> H | N170: H | O170: =teksty!$D$729 -> Zysk (strata) brutto (C + D - E + F - G) | V170: =V150+V151-V153+V155-V163 -> 0 | W170: =W150+W151-W153+W155-W163 -> 0 | Z170: =teksty!$D$285 -> ukryty wiersz powyżej zawiera nagłówek dla kolejnej strony
A171: 262148 | C171: 1 | D171: I | J171: =$D171 -> I | K171: =D171 -> I | N171: I | O171: =teksty!$D$714 -> Podatek dochodowy
A172: 262148 | C172: =COUNTA(D172:H172) -> 2 | D172: =D171 -> I | E172: j | J172: =D172&"."&E172 -> I.j | K172: =E172 -> j | O172: =IF($N$172=""," – ") & SUBSTITUTE(teksty!D$355,":"," " & teksty!$D$667 & ":") -> – Zasady (polityka) rachunkowości Podatek dochodowy:
A173: 262148 | C173: 1 | D173: J | J173: =$D173 -> J | K173: =D173 -> J | N173: J | O173: =teksty!$D$730 -> Zysk (strata) netto (H - I) | V173: =V170-V171 -> 0 | W173: =W170-W171 -> 0 | Z173: =IF(WrfKwot,IF(AND(AF173=0,AG173=0,AH173=0),"=","!"),"") ->  | AA173: =IF(AB173="-", "-",SUBSTITUTE(SUBSTITUTE(EtykietaNaNazwe(Bilans!$J$210),"_A"," A"),"_",".")) -> - | AB173: =IF(Bilans!WybranyWariant="JednostkaInna",Bilans!V$116,IF(Bilans!WybranyWariant = "JednostkaMala", Bilans!V$210,"-")) -> - | AC173: =IF(Bilans!WybranyWariant="JednostkaInna",Bilans!W$116,IF(Bilans!WybranyWariant = "JednostkaMala", Bilans!W$210,"-")) -> - | AD173: =IF(Bilans!WybranyWariant="JednostkaInna",Bilans!X$116,IF(Bilans!WybranyWariant = "JednostkaMala", Bilans!X$210,"-")) -> - | AF173: =ROUND(IF(ISNUMBER(AB173),V173-AB173,0),2) -> 0 | AG173: =ROUND(IF(ISNUMBER(AC173),W173-AC173,0),2) -> 0 | AH173: =ROUND(IF(ISNUMBER(AD173),X173-AD173,0),2) -> 0
A174: 262148 | C174: =COUNTA(D174:H174) -> 0
A175: 0 | I175: Jednostka Op
A176: =(6*65536)+(32) -> 393248 | N176: =teksty!$D$885 -> wyszczególnienie | U176: =$U$5 -> za rok: | V176: =$V$5 -> 2017 | W176: =$W$5 -> 2016 | X176: =teksty!$D$292 -> Przekszt. dane porów. za poprzedni okres | AA176: =IF(OR(_xlfn.ISFORMULA($V$177),_xlfn.ISFORMULA($W$177)),teksty!$D$951,"") -> W niektórych polach tego zestawienia napotkasz pomocnicze formuły. Jeżeli to potrzebne, możesz je zmienić, lub wpisać w te pola odpowiednie kwoty.
A177: =(6*65536)+(32) -> 393248 | C177: 1 | D177: A | J177: =$D177 -> A | K177: =D177 -> A | N177: =K177 -> A | O177: =teksty!$D$752 -> Przychody z działalności statutowej | V177: =V178+V179+V180 -> 0 | W177: =W178+W179+W180 -> 0
A178: =(6*65536)+(32) -> 393248 | C178: 2 | D178: =D177 -> A | E178: I | J178: =D178&"."&E178 -> A.I | K178: =E178 -> I | N178: =K178 -> I | O178: =teksty!$D$753 -> Przychody z nieodpłatnej działalności pożytku publicznego
A179: 393248 | C179: 2 | D179: =D178 -> A | E179: II | J179: A.II | K179: =E179 -> II | N179: =K179 -> II | O179: =teksty!$D$754 -> Przychody z odpłatnej działalności pożytku publicznego
A180: 393248 | C180: 2 | D180: A | E180: III | J180: A.III | K180: III | N180: =K180 -> III | O180: =teksty!$D$755 -> Przychody z pozostałej działalności statutowej
A181: 393248 | C181: 1 | D181: B | J181: =$D181 -> B | K181: =D181 -> B | N181: =K181 -> B | O181: =teksty!$D$756 -> Koszty działalnosci statutowej | V181: =V182+V183+V184 -> 0 | W181: =W182+W183+W184 -> 0
A182: 393248 | C182: 2 | D182: =D181 -> B | E182: I | J182: =D182&"."&E182 -> B.I | K182: =E182 -> I | N182: =K182 -> I | O182: =teksty!$D$757 -> Koszty nieodpłatnej działalności pożytku publicznego
A183: 393248 | C183: 2 | D183: =D182 -> B | E183: II | J183: B.II | K183: =E183 -> II | N183: II | O183: =teksty!$D$758 -> Koszty odpłatnej działalności pożytku publicznego
A184: 393248 | C184: 2 | D184: B | E184: III | J184: B.III | K184: III | N184: III | O184: =teksty!$D$759 -> Koszty pozostałej działalności statutowej
A185: 393248 | C185: 1 | D185: C | J185: =$D185 -> C | K185: =D185 -> C | N185: =K185 -> C | O185: =teksty!$D760 -> Zysk (strata) z działalności statutowej (A - B) | V185: =V177-V181 -> 0 | W185: =W177-W181 -> 0
A186: 393248 | C186: 1 | D186: D | J186: D | K186: D | N186: D | O186: =teksty!$D761 -> Przychody z działalności gospodarczej
A187: 393248 | C187: 1 | D187: E | J187: E | K187: E | N187: =K187 -> E | O187: =teksty!$D762 -> Koszty działalności gospodarczej
A188: 393248 | C188: 1 | D188: F | J188: F | K188: F | N188: =K188 -> F | O188: =teksty!$D763 -> Zysk (strata) z działalności gospodarczej (D - E) | V188: =V186-V187 -> 0 | W188: =W186-W187 -> 0
A189: 393248 | C189: 1 | D189: G | J189: G | K189: G | N189: =K189 -> G | O189: =teksty!$D764 -> Koszty ogólnego zarządu
A190: 393248 | C190: 1 | D190: H | J190: H | K190: H | N190: =K190 -> H | O190: =teksty!$D765 -> Zysk (strata) z działalności operacyjnej (C + F - G) | V190: =V185+V188-V189 -> 0 | W190: =W185+W188-W189 -> 0
A191: 393248 | C191: 1 | D191: I | J191: I | K191: I | N191: I | O191: =teksty!$D766 -> Pozostałe przychody operacyjne
A192: 393248 | C192: 1 | D192: J | J192: J | K192: J | N192: J | O192: =teksty!$D767 -> Pozostałe koszty operacyjne
A193: 393248 | C193: =COUNTA(D193:H193) -> 1 | D193: K | J193: K | K193: K | N193: =K193 -> K | O193: =teksty!$D768 -> Przychody finansowe
A194: 393248 | C194: 1 | D194: L | J194: L | K194: L | N194: L | O194: =teksty!$D769 -> Koszty finansowe
A195: 393248 | C195: 1 | D195: M | J195: M | K195: M | N195: =K195 -> M | O195: =teksty!$D770 -> Zysk (strata) brutto (H + I - J + K - L) | V195: =V190+V191-V192+V193-V194 -> 0 | W195: =W190+W191-W192+W193-W194 -> 0
A196: 393248 | C196: 1 | D196: N | J196: N | K196: N | N196: N | O196: =teksty!$D$771 -> Podatek dochodowy
A197: 393248 | C197: =COUNTA(D197:H197) -> 1 | D197: O | J197: O | K197: O | N197: =K197 -> O | O197: =teksty!$D772 -> Zysk (strata) netto (M - N) | V197: =V195-V196 -> 0 | W197: =W195-W196 -> 0 | Z197: =IF(WrfKwot,IF(AND(AF197=0,AG197=0,AH197=0),"=","!"),"") ->  | AA197: =SUBSTITUTE(SUBSTITUTE(EtykietaNaNazwe(Bilans!$J$248),"_A"," A"),"_",".") -> Pasywa A.IV | AB197: =Bilans!$V$248 -> 0 | AC197: =Bilans!$W$248 -> 0 | AD197: =Bilans!$X$248 -> 0 | AF197: =ROUND(V197-AB197,2) -> 0 | AG197: =ROUND(W197-AC197,2) -> 0 | AH197: =ROUND(X197-AD197,2) -> 0
A198: 0 | C198: =COUNTA(D198:H198) -> 0 | I198: Jednostka Mikro
A199: =(6*65536)+(8) -> 393224 | N199: =teksty!$D$885 -> wyszczególnienie | U199: =$U$5 -> za rok: | V199: =$V$5 -> 2017 | W199: =$W$5 -> 2016 | X199: =teksty!$D$292 -> Przekszt. dane porów. za poprzedni okres | AA199: =IF(OR(_xlfn.ISFORMULA($V$202),_xlfn.ISFORMULA($W$202)),teksty!$D$951,"") -> W niektórych polach tego zestawienia napotkasz pomocnicze formuły. Jeżeli to potrzebne, możesz je zmienić, lub wpisać w te pola odpowiednie kwoty.
A200: =(6*65536)+(8) -> 393224 | C200: 1 | D200: A | J200: =$D200 -> A | K200: =D200 -> A | N200: =K200 -> A | O200: =teksty!D774 -> Przychody podstawowej działalności operacyjnej i zrównane z nimi, w tym:
A201: =(6*65536)+(8) -> 393224 | C201: 2 | D201: =D200 -> A | E201: 1 | J201: =D201&"."&E201 -> A.1 | O201: =" – " & LOWER(teksty!$D$621) -> – zmiana stanu produktów (zwiększenie – wartość dodatnia, zmniejszenie – wartość ujemna)
... 136 more rows

Sheet Kapitał
A1: ZestZmianWKapitale | C1: Poziom | F1: Składniki | J1: (pełen symbol) | K1: (wyświetlana etykieta) | R1: 4 | S1: =VLOOKUP(WybranaPozycja,teksty!B123:F127,2) -> Skonsolidowana
M2: =teksty!D884 -> Zestawienie zmian w kapitale (funduszu) własnym
I3: =teksty!$D$291 -> Opcjonalne. Aby nie włączać tego zestawienia do sprawozdania - ukryj ten arkusz | N3: =Wprowadzenie!$I$4 & " " & IF(NumerWariantuRaportu = 5, teksty!$D$289, "") -> TEST S.A. (skonsolidowany) | W3: =teksty!D283 & VLOOKUP(NumerBazyRaportu,BazyKwot,3) -> wszystkie kwoty w tysiącach złotych | X3: =teksty!D283 & VLOOKUP(NumerBazyRaportu,BazyKwot,3) -> wszystkie kwoty w tysiącach złotych
N5: =teksty!D885 -> wyszczególnienie | U5: =IF(BezDat,"",teksty!$D$615) -> za rok: | V5: =IF(BezDat,teksty!$D$954,YEAR(DataDo)) -> 2017 | W5: =IF(BezDat,teksty!$D$955,V5-1) -> 2016 | X5: =teksty!$D$292 -> Przekszt. dane porów. za poprzedni okres | AA5: =IF(OR(_xlfn.ISFORMULA($V$9),_xlfn.ISFORMULA($W$9)),teksty!$D$951,"") -> W niektórych polach tego zestawienia napotkasz pomocnicze formuły. Jeżeli to potrzebne, możesz je zmienić, lub wpisać w te pola odpowiednie kwoty.
A6: =2 -> 2 | C6: =COUNTA(D6:H6) -> 1 | D6: I | J6: =$D6 -> I | K6: =D6 -> I | N6: =K6 -> I | O6: =teksty!$D$888 -> Kapitał (fundusz) własny na początek okresu (BO) | V6: 0 | W6: 0
A7: =A6 -> 2 | C7: =COUNTA(D7:H7) -> 2 | D7: =D6 -> I | E7: 1 | J7: =D7&"."&E7 -> I.1 | O7: =IF($N$7=""," – ") &teksty!$D$889 -> – zmiany przyjętych zasad (polityki) rachunkowości
A8: =A7 -> 2 | C8: =COUNTA(D8:H8) -> 2 | D8: =D7 -> I | E8: 2 | J8: =D8&"."&E8 -> I.2 | O8: =IF($N$8=""," – ") &teksty!$D$890 -> – korekty błędów
A9: 2 | C9: 1 | D9: Ia | J9: =$D9 -> Ia | K9: =D9 -> Ia | N9: =K9 -> Ia | O9: =teksty!$D$891 -> Kapitał (fundusz) własny na początek okresu (BO), po korektach | V9: =V6+V7+V8 -> 0 | W9: =W6+W7+W8 -> 0
A10: 2 | C10: =COUNTA(D10:H10) -> 2 | D10: =D9 -> Ia | E10: 1 | J10: =D10&"."&E10 -> Ia.1 | K10: =E10 -> 1 | N10: =K10 -> 1 | O10: =teksty!$D$892 -> Kapitał (fundusz) podstawowy na początek okresu | V10: 0 | W10: 0 | Z10: =IF(WrfKwot,IF(AND(AF10=0,AG10=0,AH10=0),"=","!"),"") ->  | AA10: =teksty!$D$59 & ": " & J22 & CHAR(10) & "(" & LOWER(SUBSTITUTE(teksty!$D$955, CHAR(10), " ")) &")" -> Kapitał: Ia.1.2 (okres poprzedni) | AB10: =W22 -> 0 | AF10: =ROUND(IF(ISNUMBER(AB10),V10-AB10,0),2) -> 0 | AG10: =ROUND(IF(ISNUMBER(AC10),W10-AC10,0),2) -> 0 | AH10: =ROUND(IF(ISNUMBER(AD10),Y10-AD10,0),2) -> 0 | AI10: -3 | AJ10: -2
A11: 2 | C11: =COUNTA(D11:H11) -> 3 | D11: =D10 -> Ia | E11: 1 | F11: 1 | J11: =D11&"."&E11 & "." & F11 -> Ia.1.1 | K11: =E11&"."&F11 -> 1.1 | N11: =K11 -> 1.1 | O11: =teksty!$D$893 -> Zmiany kapitału (funduszu) podstawowego | V11: =V12-V17 -> 0 | W11: =W12-W17 -> 0
A12: 2 | C12: 4 | D12: Ia | E12: 1 | F12: =F11 -> 1 | G12: a | J12: =D12&"."&E12 & "." & F12& "." & G12 -> Ia.1.1.a | K12: =G12 &")" -> a) | N12: =K12 -> a) | O12: =teksty!$D$894 -> zwiększenie (z tytułu) | V12: =V13+V14+V15+V16 -> 0 | W12: =W13+W14+W15+W16 -> 0
A13: 2 | C13: 5 | D13: =D12 -> Ia | E13: =E12 -> 1 | F13: 1 | G13: =G12 -> a | H13: 1 | J13: =D13&"."&E13 & "." & F13& "." & G13 & "." & H13 -> Ia.1.1.a.1 | O13: =IF($N$13=""," – ") &teksty!$D$895 -> – wydania udziałów (emisji akcji)
A14: 2 | C14: 5 | D14: Ia | E14: =E13 -> 1 | F14: =F13 -> 1 | G14: =G13 -> a | H14: =H13+1 -> 2 | J14: =D14&"."&E14 & "." & F14& "." & G14 & "." & "p" & (H14-H13) -> Ia.1.1.a.p1
A15: 2 | C15: 5 | D15: Ia | E15: 1 | F15: 1 | G15: =G14 -> a | H15: =H14+1 -> 3 | J15: =D15&"."&E15 & "." & F15& "." & G15 & "." & "p" & (H15-H13) -> Ia.1.1.a.p2
A16: 2 | C16: 5 | D16: Ia | E16: 1 | F16: 1 | G16: =G15 -> a | H16: 4 | J16: =D16&"."&E16 & "." & F16& "." & G16 & "." & "p" & (H16-H13) -> Ia.1.1.a.p3
A17: 2 | C17: 4 | D17: Ia | E17: 1 | F17: 1 | G17: b | J17: =D17&"."&E17 & "." & F17& "." & G17 -> Ia.1.1.b | K17: =G17 &")" -> b) | N17: =K17 -> b) | O17: =teksty!$D$896 -> zmniejszenie (z tytułu) | V17: =V18+V19+V20+V21 -> 0 | W17: =W18+W19+W20+W21 -> 0
A18: 2 | C18: 5 | D18: Ia | E18: 1 | F18: =F17 -> 1 | G18: =G17 -> b | H18: 1 | J18: =D18&"."&E18 & "." & F18& "." & G18 & "." & H18 -> Ia.1.1.b.1 | O18: =IF($N$18=""," – ") &teksty!$D$897 -> – umorzenia udziałów (akcji)
A19: 2 | C19: =COUNTA(D19:H19) -> 5 | D19: Ia | E19: 1 | F19: 1 | G19: =G18 -> b | H19: =H18+1 -> 2 | J19: =D19&"."&E19 & "." & F19& "." & G19 & "." & "p" & (H19-H18) -> Ia.1.1.b.p1
A20: 2 | C20: 5 | D20: Ia | E20: 1 | F20: 1 | G20: =G19 -> b | H20: =H19+1 -> 3 | J20: =D20&"."&E20 & "." & F20& "." & G20 & "." & "p" & (H20-H18) -> Ia.1.1.b.p2
A21: 2 | C21: 5 | D21: Ia | E21: 1 | F21: 1 | G21: =G20 -> b | H21: 4 | J21: =D21&"."&E21 & "." & F21& "." & G21 & "." & "p" & (H21-H18) -> Ia.1.1.b.p3
A22: 2 | C22: 3 | D22: Ia | E22: =E18 -> 1 | F22: 2 | J22: =D22&"."&E22 & "." & F22 -> Ia.1.2 | K22: =E22&"."&F22 -> 1.2 | N22: =K22 -> 1.2 | O22: =teksty!$D$898 -> Kapitał (fundusz) podstawowy na koniec okresu | V22: =V10+V11 -> 0 | W22: =W10+W11 -> 0 | Z22: =IF(WrfKwot,IF(AND(AF22=0,AG22=0,AH22=0),"=","!"),"") ->  | AA22: =IF(AB22="-", "-",SUBSTITUTE(SUBSTITUTE(EtykietaNaNazwe(Bilans!$J$103),"_A"," A"),"_",".")) -> - | AB22: =IF(Bilans!WybranyWariant="JednostkaInna",Bilans!V$103, IF(Bilans!WybranyWariant="JednostkaMala",Bilans!V$199,"-")) -> - | AC22: =IF(Bilans!WybranyWariant="JednostkaInna",Bilans!W$103, IF(Bilans!WybranyWariant="JednostkaMala",Bilans!W$199,"-")) -> - | AF22: =ROUND(IF(ISNUMBER(AB22),V22-AB22,0),2) -> 0 | AG22: =ROUND(IF(ISNUMBER(AC22),W22-AC22,0),2) -> 0 | AH22: =ROUND(IF(ISNUMBER(AD22),Y22-AD22,0),2) -> 0 | AI22: -3 | AJ22: -2
A23: 2 | C23: 2 | D23: Ia | E23: 2 | J23: =D23&"."&E23 -> Ia.2 | K23: =E23 -> 2 | N23: =K23 -> 2 | O23: =teksty!$D$899 -> Kapitał (fundusz) zapasowy na początek okresu | V23: 0 | W23: 0 | Z23: =IF(WrfKwot,IF(AND(AF23=0,AG23=0,AH23=0),"=","!"),"") ->  | AA23: =teksty!$D$59 & ": " & J37& CHAR(10) & "(" & LOWER(SUBSTITUTE(teksty!$D$955, CHAR(10), " ")) &")" -> Kapitał: Ia.2.2 (okres poprzedni) | AB23: =W37 -> 0 | AF23: =ROUND(IF(ISNUMBER(AB23),V23-AB23,0),2) -> 0 | AG23: =ROUND(IF(ISNUMBER(AC23),W23-AC23,0),2) -> 0 | AH23: 0 | AI23: -3 | AJ23: -2
A24: 2 | C24: 3 | D24: Ia | E24: 2 | F24: 1 | J24: =D24&"."&E24 & "." & F24 -> Ia.2.1 | K24: =E24&"."&F24 -> 2.1 | N24: =K24 -> 2.1 | O24: =teksty!$D$900 -> Zmiany kapitału (funduszu) zapasowego | V24: =V25-V32 -> 0 | W24: =W25-W32 -> 0
A25: 2 | C25: 4 | D25: Ia | E25: 2 | F25: =F24 -> 1 | G25: a | J25: =D25&"."&E25 & "." & F25& "." & G25 -> Ia.2.1.a | K25: =G25 &")" -> a) | N25: =K25 -> a) | O25: =teksty!$D$901 -> zwiększenie (z tytułu) | V25: =V26+V27+V28+V29+V30+V31 -> 0 | W25: =W26+W27+W28+W29+W30+W31 -> 0
A26: 2 | C26: 5 | D26: =D25 -> Ia | E26: 2 | F26: =F25 -> 1 | G26: =G25 -> a | H26: 1 | J26: =D26&"."&E26 & "." & F26& "." & G26 & "." & H26 -> Ia.2.1.a.1 | O26: =IF($N$26=""," – ") &teksty!$D$902 -> – emisji akcji powyżej wartości nominalnej
A27: 2 | C27: 5 | D27: Ia | E27: 2 | F27: =F26 -> 1 | G27: a | H27: 2 | J27: =D27&"."&E27 & "." & F27& "." & G27 & "." & H27 -> Ia.2.1.a.2 | O27: =IF($N$27=""," – ") &teksty!$D$903 -> – podziału zysku (ustawowo)
A28: 2 | C28: 5 | D28: Ia | E28: 2 | F28: 1 | G28: a | H28: 3 | J28: =D28&"."&E28 & "." & F28& "." & G28 & "." & H28 -> Ia.2.1.a.3 | O28: =IF($N$28=""," – ") &teksty!$D$904 -> – podziału zysku (ponad wymaganą ustawowo minimalną wartość)
A29: 2 | C29: 5 | D29: Ia | E29: 2 | F29: 1 | G29: a | H29: =H28+1 -> 4 | J29: =D29&"."&E29 & "." & F29& "." & G29 & "." & "p" & (H29-H28) -> Ia.2.1.a.p1
A30: 2 | C30: 5 | D30: Ia | E30: 2 | F30: 1 | G30: a | H30: =H29+1 -> 5 | J30: =D30&"."&E30 & "." & F30& "." & G30 & "." & "p" & (H30-H28) -> Ia.2.1.a.p2
A31: 2 | C31: 5 | D31: Ia | E31: 2 | F31: 1 | G31: a | H31: 6 | J31: =D31&"."&E31 & "." & F31& "." & G31 & "." & "p" & (H31-H28) -> Ia.2.1.a.p3
A32: 2 | C32: 4 | D32: =D31 -> Ia | E32: 2 | F32: 1 | G32: b | J32: =D32&"."&E32 & "." & F32& "." & G32 -> Ia.2.1.b | K32: =G32 &")" -> b) | N32: =K32 -> b) | O32: =teksty!$D$905 -> zmniejszenie (z tytułu) | V32: =V33+V34+V35+V36 -> 0 | W32: =W33+W34+W35+W36 -> 0
A33: 2 | C33: 5 | D33: =D32 -> Ia | E33: 2 | F33: =F32 -> 1 | G33: =G32 -> b | H33: 1 | J33: =D33&"."&E33 & "." & F33& "." & G33 & "." & H33 -> Ia.2.1.b.1 | O33: =IF($N$33=""," – ") &teksty!$D$906 -> – pokrycia straty
A34: 2 | C34: =COUNTA(D34:H34) -> 5 | D34: =D33 -> Ia | E34: 2 | F34: 1 | G34: =G33 -> b | H34: =H33+1 -> 2 | J34: =D34&"."&E34 & "." & F34& "." & G34 & "." & "p" & (H34-H33) -> Ia.2.1.b.p1
A35: 2 | C35: 5 | D35: =D34 -> Ia | E35: 2 | F35: 1 | G35: =G34 -> b | H35: =H34+1 -> 3 | J35: =D35&"."&E35 & "." & F35& "." & G35 & "." & "p" & (H35-H33) -> Ia.2.1.b.p2
A36: 2 | C36: 5 | D36: =D35 -> Ia | E36: 2 | F36: 1 | G36: =G35 -> b | H36: 4 | J36: =D36&"."&E36 & "." & F36& "." & G36 & "." & "p" & (H36-H33) -> Ia.2.1.b.p3
A37: 2 | C37: 3 | D37: =D36 -> Ia | E37: 2 | F37: 2 | I37: =teksty!$D$885 & teksty!$D$284 & 1 -> wyszczególnienie, koniec strony 1 | J37: =D37&"."&E37 & "." & F37 -> Ia.2.2 | K37: =E37&"."&F37 -> 2.2 | N37: =K37 -> 2.2 | O37: =teksty!$D$907 -> Stan kapitału (funduszu) zapasowego na koniec okresu | V37: =V23+V24 -> 0 | W37: =W23+W24 -> 0 | Z37: =IF(WrfKwot,IF(AND(AF37=0,AG37=0,AH37=0),"=","!"),"") ->  | AA37: =IF(AB37="-", "-",SUBSTITUTE(SUBSTITUTE(EtykietaNaNazwe(Bilans!$J$200),"_A"," A"),"_",".")) -> - | AB37: =IF(Bilans!WybranyWariant="JednostkaInna",Bilans!V$104, IF(Bilans!WybranyWariant="JednostkaMala",Bilans!V$200,"-")) -> - | AC37: =IF(Bilans!WybranyWariant="JednostkaInna",Bilans!W$104, IF(Bilans!WybranyWariant="JednostkaMala",Bilans!W$200,"-")) -> - | AF37: =ROUND(IF(ISNUMBER(AB37),V37-AB37,0),2) -> 0 | AG37: =ROUND(IF(ISNUMBER(AC37),W37-AC37,0),2) -> 0 | AH37: =ROUND(IF(ISNUMBER(AD37),Y37-AD37,0),2) -> 0 | AI37: -3 | AJ37: -2
A38: 2 | B38: P | C38: 3 | D38: =D37 -> Ia | E38: 2 | F38: 2 | N38: =teksty!$D$885 & teksty!$D$718 -> wyszczególnienie, c.d. poprzedniej strony | U38: =$U$5 -> za rok: | V38: =$V$5 -> 2017 | W38: =$W$5 -> 2016 | X38: =teksty!$D$292 -> Przekszt. dane porów. za poprzedni okres
A39: 2 | C39: 2 | D39: Ia | E39: 3 | J39: =D39&"."&E39 -> Ia.3 | K39: =E39 -> 3 | N39: =K39 -> 3 | O39: =teksty!$D$908 -> Kapitał (fundusz) z aktualizacji wyceny na początek okresu – zmiany przyjętych zasad (polityki) rachunkowości | V39: 0 | W39: 0 | Z39: =IF(WrfKwot,IF(AND(AF39=0,AG39=0,AH39=0),"=","!"),"") ->  | AA39: =teksty!$D$59 & ": " & J50& CHAR(10) & "(" & LOWER(SUBSTITUTE(teksty!$D$955, CHAR(10), " ")) &")" -> Kapitał: Ia.3.2 (okres poprzedni) | AB39: =W50 -> 0 | AF39: =ROUND(IF(ISNUMBER(AB39),V39-AB39,0),2) -> 0 | AG39: =ROUND(IF(ISNUMBER(AC39),W39-AC39,0),2) -> 0 | AH39: =ROUND(IF(ISNUMBER(AD39),Y39-AD39,0),2) -> 0 | AI39: -3 | AJ39: -2
A40: 2 | C40: 3 | D40: Ia | E40: 3 | F40: 1 | J40: =D40&"."&E40 & "." & F40 -> Ia.3.1 | K40: =E40&"."&F40 -> 3.1 | N40: =K40 -> 3.1 | O40: =teksty!$D$909 -> Zmiany kapitału (funduszu) z aktualizacji wyceny | V40: =V41-V45 -> 0 | W40: =W41-W45 -> 0
A41: 2 | C41: 4 | D41: Ia | E41: 3 | F41: =F40 -> 1 | G41: a | J41: =D41&"."&E41 & "." & F41& "." & G41 -> Ia.3.1.a | K41: =G41 &")" -> a) | N41: =K41 -> a) | O41: =teksty!$D$910 -> zwiększenie (z tytułu) | V41: =V42+V43+V44 -> 0 | W41: =W42+W43+W44 -> 0
A42: 2 | C42: 5 | D42: =D41 -> Ia | E42: 3 | F42: =F41 -> 1 | G42: =G41 -> a | H42: =H41+1 -> 1 | J42: =D42&"."&E42 & "." & F42& "." & G42 & "." & "p" & (H42-H41) -> Ia.3.1.a.p1
A43: 2 | C43: 5 | D43: Ia | E43: 3 | F43: 1 | G43: =G42 -> a | H43: =H42+1 -> 2 | J43: =D43&"."&E43 & "." & F43& "." & G43 & "." & "p" & (H43-H41) -> Ia.3.1.a.p2
A44: 2 | C44: 5 | D44: Ia | E44: 3 | F44: 1 | G44: =G43 -> a | H44: 3 | J44: =D44&"."&E44 & "." & F44& "." & G44 & "." & "p" & (H44-H41) -> Ia.3.1.a.p3
A45: 2 | C45: 4 | D45: Ia | E45: 3 | F45: 1 | G45: b | J45: =D45&"."&E45 & "." & F45& "." & G45 -> Ia.3.1.b | K45: =G45 &")" -> b) | N45: =K45 -> b) | O45: =teksty!$D$911 -> zmniejszenie (z tytułu) | V45: =V46+V47+V48+V49 -> 0 | W45: =W46+W47+W48+W49 -> 0
A46: 2 | C46: 5 | D46: Ia | E46: 3 | F46: =F45 -> 1 | G46: =G45 -> b | H46: 1 | J46: =D46&"."&E46 & "." & F46& "." & G46 & "." & H46 -> Ia.3.1.b.1 | O46: =IF($N$46=""," – ") &teksty!$D$912 -> – zbycia środków trwałych
A47: 2 | C47: =COUNTA(D47:H47) -> 5 | D47: Ia | E47: 3 | F47: 1 | G47: =G46 -> b | H47: =H46+1 -> 2 | J47: =D47&"."&E47 & "." & F47& "." & G47 & "." & "p" & (H47-H46) -> Ia.3.1.b.p1
A48: 2 | C48: 5 | D48: Ia | E48: 3 | F48: 1 | G48: =G47 -> b | H48: =H47+1 -> 3 | J48: =D48&"."&E48 & "." & F48& "." & G48 & "." & "p" & (H48-H46) -> Ia.3.1.b.p2
A49: 2 | C49: 5 | D49: Ia | E49: 3 | F49: 1 | G49: =G48 -> b | H49: 4 | J49: =D49&"."&E49 & "." & F49& "." & G49 & "." & "p" & (H49-H46) -> Ia.3.1.b.p3
A50: 2 | C50: 3 | D50: Ia | E50: =E46 -> 3 | F50: 2 | J50: =D50&"."&E50 & "." & F50 -> Ia.3.2 | K50: =E50&"."&F50 -> 3.2 | N50: =K50 -> 3.2 | O50: =teksty!$D$913 -> Kapitał (fundusz) z aktualizacji wyceny na koniec okresu | V50: =V39+V40 -> 0 | W50: =W39+W40 -> 0 | Z50: =IF(WrfKwot,IF(AND(AF50=0,AG50=0,AH50=0),"=","!"),"") ->  | AA50: =IF(AB50="-", "-",SUBSTITUTE(SUBSTITUTE(EtykietaNaNazwe(Bilans!$J$107),"_A"," A"),"_",".")) -> - | AB50: =IF(Bilans!WybranyWariant="JednostkaInna",Bilans!V$107, IF(Bilans!WybranyWariant="JednostkaMala",Bilans!V$203,"-")) -> - | AC50: =IF(Bilans!WybranyWariant="JednostkaInna",Bilans!W$107, IF(Bilans!WybranyWariant="JednostkaMala",Bilans!W$203,"-")) -> - | AF50: =ROUND(IF(ISNUMBER(AB50),V50-AB50,0),2) -> 0 | AG50: =ROUND(IF(ISNUMBER(AC50),W50-AC50,0),2) -> 0 | AH50: =ROUND(IF(ISNUMBER(AD50),Y50-AD50,0),2) -> 0 | AI50: -3 | AJ50: -2
A51: 2 | C51: 2 | D51: Ia | E51: 4 | J51: =D51&"."&E51 -> Ia.4 | K51: =E51 -> 4 | N51: =K51 -> 4 | O51: =teksty!$D$914 -> Pozostałe kapitały (fundusze) rezerwowe na początek okresu | V51: 0 | W51: 0 | Z51: =IF(WrfKwot,IF(AND(AF51=0,AG51=0,AH51=0),"=","!"),"") ->  | AA51: =teksty!$D$59 & ": " & J61& CHAR(10) & "(" & LOWER(SUBSTITUTE(teksty!$D$955, CHAR(10), " ")) &")" -> Kapitał: Ia.4.2 (okres poprzedni) | AB51: =W61 -> 0 | AF51: =ROUND(IF(ISNUMBER(AB51),V51-AB51,0),2) -> 0 | AG51: =ROUND(IF(ISNUMBER(AC51),W51-AC51,0),2) -> 0 | AH51: 0 | AI51: -3 | AJ51: -2
A52: 2 | C52: 3 | D52: Ia | E52: 4 | F52: 1 | J52: =D52&"."&E52 & "." & F52 -> Ia.4.1 | K52: =E52&"."&F52 -> 4.1 | N52: =K52 -> 4.1 | O52: =teksty!$D$915 -> Zmiany pozostałych kapitałów (funduszy) rezerwowych | V52: =V53-V57 -> 0 | W52: =W53-W57 -> 0
A53: 2 | C53: 4 | D53: Ia | E53: 4 | F53: =F52 -> 1 | G53: a | J53: =D53&"."&E53 & "." & F53& "." & G53 -> Ia.4.1.a | K53: =G53 &")" -> a) | N53: =K53 -> a) | O53: =teksty!$D$916 -> zwiększenie (z tytułu) | V53: =V54+V55+V56 -> 0 | W53: =W54+W55+W56 -> 0
A54: 2 | C54: 5 | D54: =D53 -> Ia | E54: 4 | F54: =F53 -> 1 | G54: =G53 -> a | H54: =H53+1 -> 1 | J54: =D54&"."&E54 & "." & F54& "." & G54 & "." & "p" & (H54-H53) -> Ia.4.1.a.p1
A55: 2 | C55: 5 | D55: Ia | E55: 4 | F55: 1 | G55: =G54 -> a | H55: =H54+1 -> 2 | J55: =D55&"."&E55 & "." & F55& "." & G55 & "." & "p" & (H55-H53) -> Ia.4.1.a.p2
A56: 2 | C56: 5 | D56: Ia | E56: 4 | F56: 1 | G56: =G55 -> a | H56: 3 | J56: =D56&"."&E56 & "." & F56& "." & G56 & "." & "p" & (H56-H53) -> Ia.4.1.a.p3
A57: 2 | C57: 4 | D57: Ia | E57: 4 | F57: 1 | G57: b | J57: =D57&"."&E57 & "." & F57& "." & G57 -> Ia.4.1.b | K57: =G57 &")" -> b) | N57: b) | O57: =teksty!$D$917 -> zmniejszenie (z tytułu) | V57: =V58+V59+V60 -> 0 | W57: =W58+W59+W60 -> 0
A58: 2 | C58: =COUNTA(D58:H58) -> 5 | D58: Ia | E58: =E57 -> 4 | F58: =F57 -> 1 | G58: =G57 -> b | H58: =H57+1 -> 1 | J58: =D58&"."&E58 & "." & F58& "." & G58 & "." & "p" & (H58-H57) -> Ia.4.1.b.p1
A59: 2 | C59: 5 | D59: Ia | E59: 4 | F59: 1 | G59: =G58 -> b | H59: =H58+1 -> 2 | J59: =D59&"."&E59 & "." & F59& "." & G59 & "." & "p" & (H59-H57) -> Ia.4.1.b.p2
A60: 2 | C60: 5 | D60: Ia | E60: 4 | F60: 1 | G60: =G59 -> b | H60: 3 | J60: =D60&"."&E60 & "." & F60& "." & G60 & "." & "p" & (H60-H57) -> Ia.4.1.b.p3
A61: 2 | C61: 3 | D61: Ia | E61: =E57 -> 4 | F61: 2 | J61: =D61&"."&E61 & "." & F61 -> Ia.4.2 | K61: =E61&"."&F61 -> 4.2 | N61: =K61 -> 4.2 | O61: =teksty!$D$918 -> Pozostałe kapitały (fundusze) rezerwowe na koniec okresu | V61: =V51+V52 -> 0 | W61: =W51+W52 -> 0 | Z61: =IF(WrfKwot,IF(AND(AF61=0,AG61=0,AH61=0),"=","!"),"") ->  | AA61: =IF(AB61="-", "-",SUBSTITUTE(SUBSTITUTE(EtykietaNaNazwe(Bilans!$J$205),"_A"," A"),"_",".")) -> - | AB61: =IF(Bilans!WybranyWariant="JednostkaInna",Bilans!V$109, IF(Bilans!WybranyWariant="JednostkaMala",Bilans!V$205,"-")) -> - | AC61: =IF(Bilans!WybranyWariant="JednostkaInna",Bilans!W$109, IF(Bilans!WybranyWariant="JednostkaMala",Bilans!W$205,"-")) -> - | AF61: =ROUND(IF(ISNUMBER(AB61),V61-AB61,0),2) -> 0 | AG61: =ROUND(IF(ISNUMBER(AC61),W61-AC61,0),2) -> 0 | AH61: =ROUND(IF(ISNUMBER(AD61),Y61-AD61,0),2) -> 0 | AI61: -3 | AJ61: -2
A62: 2 | C62: 2 | D62: Ia | E62: 5 | J62: =D62&"."&E62 -> Ia.5 | K62: =E62 -> 5 | N62: =K62 -> 5 | O62: =teksty!$D$919 -> Zysk (strata) z lat ubiegłych na początek okresu | V62: 0 | W62: 0 | Z62: =IF(WrfKwot,IF(AND(AF62=0,AG62=0,AH62=0),"=","!"),"") ->  | AA62: =teksty!$D$59 & ": " & J93 & "a/b + 5.7" & CHAR(10) & "(" & LOWER(SUBSTITUTE(teksty!$D$955, CHAR(10), " ")) &")" -> Kapitał: Ia.6a/b + 5.7 (okres poprzedni) | AB62: =W94+W95+W92 -> 0 | AF62: =ROUND(IF(ISNUMBER(AB62),ABS(V62)-ABS(AB62),0),2) -> 0 | AG62: =ROUND(IF(ISNUMBER(AC62),W62-AC62,0),2) -> 0 | AH62: =ROUND(IF(ISNUMBER(AD62),Y62-AD62,0),2) -> 0 | AI62: -3 | AJ62: -2
A63: 2 | C63: 3 | D63: Ia | E63: 5 | F63: 1 | J63: =D63&"."&E63 & "." & F63 -> Ia.5.1 | K63: =E63&"."&F63 -> 5.1 | N63: =K63 -> 5.1 | O63: =teksty!$D$920 -> Zysk z lat ubiegłych na początek okresu | V63: =V62 -> 0 | W63: =W62 -> 0
A64: 2 | C64: 4 | D64: =D63 -> Ia | E64: 5 | F64: 1 | G64: 1 | J64: =D64&"."&E64 & "." & F64& "." & G64 -> Ia.5.1.1 | O64: =IF($N$64=""," – ") &teksty!$D$921 -> – zmiany przyjętych zasad (polityki) rachunkowości
A65: 2 | C65: 4 | D65: Ia | E65: 5 | F65: 1 | G65: 2 | I65: =teksty!$D$886& teksty!$D$284 & 2 -> Zmiany w kapitale, koniec strony 2 | J65: =D65&"."&E65 & "." & F65& "." & G65 -> Ia.5.1.2 | O65: =IF($N$65=""," – ") &teksty!$D$922 -> – korekty błędów
A66: 2 | B66: P | C66: =COUNTA(D66:H66) -> 3 | D66: Ia | E66: 5 | F66: 1 | N66: =teksty!$D$885 & teksty!$D$718 -> wyszczególnienie, c.d. poprzedniej strony | U66: =$U$5 -> za rok: | V66: =$V$5 -> 2017 | W66: =$W$5 -> 2016 | X66: =teksty!$D$292 -> Przekszt. dane porów. za poprzedni okres
A67: 2 | C67: 3 | D67: Ia | E67: 5 | F67: 2 | J67: =D67&"."&E67 & "." & F67 -> Ia.5.2 | K67: =E67&"."&F67 -> 5.2 | N67: =K67 -> 5.2 | O67: =teksty!$D$923 -> Zysk z lat ubiegłych na początek okresu, po korektach | V67: =V63+V64+V65 -> 0 | W67: =W63+W64+W65 -> 0 | Z67: =teksty!$D$285 -> ukryty wiersz powyżej zawiera nagłówek dla kolejnej strony
A68: 2 | C68: 4 | D68: Ia | E68: 5 | F68: =F67 -> 2 | G68: a | J68: =D68&"."&E68 & "." & F68& "." & G68 -> Ia.5.2.a | K68: =G68 &")" -> a) | N68: =K68 -> a) | O68: =teksty!$D$924 -> zwiększenie (z tytułu) | V68: =V69+V70+V71+V72 -> 0 | W68: =W69+W70+W71+W72 -> 0
A69: 2 | C69: 5 | D69: =D68 -> Ia | E69: 5 | F69: =F68 -> 2 | G69: =G68 -> a | H69: 1 | J69: =D69&"."&E69 & "." & F69& "." & G69 & "." & H69 -> Ia.5.2.a.1 | O69: =IF($N$69=""," – ") &teksty!$D$925 -> – podziału zysku z lat ubiegłych
A70: 2 | C70: 5 | D70: Ia | E70: 5 | F70: 2 | G70: =G69 -> a | H70: =H69+1 -> 2 | J70: =D70&"."&E70 & "." & F70& "." & G70 & "." & "p" & (H70-H69) -> Ia.5.2.a.p1
A71: 2 | C71: 5 | D71: Ia | E71: 5 | F71: 2 | G71: =G70 -> a | H71: =H70+1 -> 3 | J71: =D71&"."&E71 & "." & F71& "." & G71 & "." & "p" & (H71-H69) -> Ia.5.2.a.p2
A72: =A71 -> 2 | C72: 5 | D72: Ia | E72: 5 | F72: 2 | G72: =G71 -> a | H72: 4 | J72: =D72&"."&E72 & "." & F72& "." & G72 & "." & "p" & (H72-H69) -> Ia.5.2.a.p3
A73: 2 | C73: 4 | D73: Ia | E73: 5 | F73: 2 | G73: b | J73: =D73&"."&E73 & "." & F73& "." & G73 -> Ia.5.2.b | K73: =G73 &")" -> b) | N73: =K73 -> b) | O73: =teksty!$D$926 -> zmniejszenie (z tytułu) | V73: =V74+V75+V76 -> 0 | W73: =W74+W75+W76 -> 0
A74: 2 | C74: =COUNTA(D74:H74) -> 5 | D74: Ia | E74: =E73 -> 5 | F74: =F73 -> 2 | G74: =G73 -> b | H74: =H73+1 -> 1 | J74: =D74&"."&E74 & "." & F74& "." & G74 & "." & "p" & (H74-H73) -> Ia.5.2.b.p1
A75: 2 | C75: 5 | D75: Ia | E75: =E74 -> 5 | F75: 2 | G75: =G74 -> b | H75: =H74+1 -> 2 | J75: =D75&"."&E75 & "." & F75& "." & G75 & "." & "p" & (H75-H73) -> Ia.5.2.b.p2
A76: 2 | C76: 5 | D76: Ia | E76: =E75 -> 5 | F76: 2 | G76: =G75 -> b | H76: 3 | J76: =D76&"."&E76 & "." & F76& "." & G76 & "." & "p" & (H76-H73) -> Ia.5.2.b.p3
A77: 2 | C77: 3 | D77: Ia | E77: 5 | F77: 3 | J77: =D77&"."&E77 & "." & F77 -> Ia.5.3 | K77: =E77&"."&F77 -> 5.3 | N77: =K77 -> 5.3 | O77: =teksty!$D$927 -> Zysk z lat ubiegłych na koniec okresu | V77: =V67+V68-V73 -> 0 | W77: =W67+W68-W73 -> 0
A78: 2 | C78: 3 | D78: Ia | E78: 5 | F78: 4 | J78: =D78&"."&E78 & "." & F78 -> Ia.5.4 | K78: =E78&"."&F78 -> 5.4 | N78: =K78 -> 5.4 | O78: =teksty!$D$928 -> Strata z lat ubiegłych na początek okresu
A79: 2 | C79: 4 | D79: Ia | E79: 5 | F79: 4 | G79: 1 | J79: =D79&"."&E79 & "." & F79& "." & G79 -> Ia.5.4.1 | O79: =IF($N$79=""," – ") &teksty!$D$929 -> – zmiany przyjętych zasad (polityki) rachunkowości
A80: 2 | C80: 4 | D80: Ia | E80: 5 | F80: 4 | G80: 2 | J80: =D80&"."&E80 & "." & F80& "." & G80 -> Ia.5.4.2 | O80: =IF($N$80=""," – ") &teksty!$D$930 -> – korekty błędów
A81: 2 | C81: 3 | D81: Ia | E81: 5 | F81: 5 | J81: =D81&"."&E81 & "." & F81 -> Ia.5.5 | K81: =E81&"."&F81 -> 5.5 | N81: =K81 -> 5.5 | O81: =teksty!$D$931 -> Strata z lat ubiegłych na początek okresu, po korektach | V81: =V78+V79+V80 -> 0 | W81: =W78+W79+W80 -> 0
A82: 2 | C82: 4 | D82: Ia | E82: 5 | F82: =F81 -> 5 | G82: a | J82: =D82&"."&E82 & "." & F82& "." & G82 -> Ia.5.5.a | K82: =G82 &")" -> a) | N82: =K82 -> a) | O82: =teksty!$D$932 -> zwiększenie (z tytułu) | V82: =V83+V84+V85+V86 -> 0 | W82: =W83+W84+W85+W86 -> 0
A83: 2 | C83: 5 | D83: =D82 -> Ia | E83: 5 | F83: =F82 -> 5 | G83: =G82 -> a | H83: 1 | J83: =D83&"."&E83 & "." & F83& "." & G83 & "." & H83 -> Ia.5.5.a.1 | O83: =IF($N$83=""," – ") &teksty!$D$933 -> – przeniesienia straty z lat ubiegłych do pokrycia
A84: 2 | C84: 5 | D84: Ia | E84: =E83 -> 5 | F84: 5 | G84: =G83 -> a | H84: =H83+1 -> 2 | J84: =D84&"."&E84 & "." & F84& "." & G84 & "." & "p" & (H84-H83) -> Ia.5.5.a.p1
A85: 2 | C85: 5 | D85: Ia | E85: =E84 -> 5 | F85: 5 | G85: =G84 -> a | H85: =H84+1 -> 3 | J85: =D85&"."&E85 & "." & F85& "." & G85 & "." & "p" & (H85-H83) -> Ia.5.5.a.p2
A86: 2 | C86: 5 | D86: Ia | E86: =E85 -> 5 | F86: 5 | G86: =G85 -> a | H86: 4 | J86: =D86&"."&E86 & "." & F86& "." & G86 & "." & "p" & (H86-H83) -> Ia.5.5.a.p3
A87: 2 | C87: 4 | D87: Ia | E87: 5 | F87: 5 | G87: b | J87: =D87&"."&E87 & "." & F87& "." & G87 -> Ia.5.5.b | K87: =G87 &")" -> b) | N87: =K87 -> b) | O87: =teksty!$D$934 -> zmniejszenie (z tytułu) | V87: =V88+V89+V90 -> 0 | W87: =W88+W89+W90 -> 0
A88: 2 | C88: =COUNTA(D88:H88) -> 5 | D88: Ia | E88: =E87 -> 5 | F88: =F87 -> 5 | G88: =G87 -> b | H88: =H87+1 -> 1 | J88: =D88&"."&E88 & "." & F88& "." & G88 & "." & "p" & (H88-H87) -> Ia.5.5.b.p1
A89: 2 | C89: 5 | D89: Ia | E89: =E88 -> 5 | F89: 5 | G89: =G88 -> b | H89: =H88+1 -> 2 | J89: =D89&"."&E89 & "." & F89& "." & G89 & "." & "p" & (H89-H87) -> Ia.5.5.b.p2
A90: 2 | C90: 5 | D90: Ia | E90: =E89 -> 5 | F90: 5 | G90: =G89 -> b | H90: 3 | J90: =D90&"."&E90 & "." & F90& "." & G90 & "." & "p" & (H90-H87) -> Ia.5.5.b.p3
A91: 2 | C91: 3 | D91: Ia | E91: 5 | F91: 6 | J91: =D91&"."&E91 & "." & F91 -> Ia.5.6 | K91: =E91&"."&F91 -> 5.6 | N91: =K91 -> 5.6 | O91: =teksty!$D$935 -> Strata z lat ubiegłych na koniec okresu | V91: =V81+V82-V87 -> 0 | W91: =W81+W82-W87 -> 0
A92: 2 | C92: 3 | D92: Ia | E92: 5 | F92: 7 | J92: =D92&"."&E92 & "." & F92 -> Ia.5.7 | K92: =E92&"."&F92 -> 5.7 | N92: =K92 -> 5.7 | O92: =teksty!$D$936 -> Zysk (strata) z lat ubiegłych na koniec okresu | V92: =V77-V91 -> 0 | W92: =W77-W91 -> 0
A93: 2 | C93: 2 | D93: =D92 -> Ia | E93: 6 | J93: =D93&"."&E93 -> Ia.6 | K93: =E93 -> 6 | N93: =K93 -> 6 | O93: =teksty!$D$937 -> Wynik netto | V93: =V94-V95-V96 -> 0 | W93: =W94-W95-W96 -> 0 | Z93: =IF(WrfKwot,IF(AND(AF93=0,AG93=0,AH93=0),"=","!"),"") ->  | AA93: =IF(AB93="-", "-",SUBSTITUTE(SUBSTITUTE(EtykietaNaNazwe(Bilans!$J$210),"_A"," A"),"_",".") & " + " & CHAR(10) & AA96) -> - | AB93: =IF(Bilans!WybranyWariant="JednostkaInna",Bilans!V$116+Bilans!V$117, IF(Bilans!WybranyWariant="JednostkaMala",Bilans!V$210-Bilans!V$211,"-")) -> - | AC93: =IF(Bilans!WybranyWariant="JednostkaInna",Bilans!W$116+Bilans!W$117, IF(Bilans!WybranyWariant="JednostkaMala",Bilans!W$210-Bilans!W$211,"-")) -> - | AF93: =ROUND(IF(ISNUMBER(AB93),V93-AB93,0),2) -> 0 | AG93: =ROUND(IF(ISNUMBER(AC93),W93-AC93,0),2) -> 0 | AH93: =ROUND(IF(ISNUMBER(AD93),Y93-AD93,0),2) -> 0 | AI93: -3 | AJ93: -2
A94: 2 | C94: 3 | D94: Ia | E94: 6 | F94: a | J94: =D94&"."&E94 & "." & F94 -> Ia.6.a | K94: =F94 &")" -> a) | N94: =K94 -> a) | O94: =teksty!$D$938 -> zysk netto
A95: 2 | C95: 3 | D95: Ia | E95: 6 | F95: b | J95: =D95&"."&E95 & "." & F95 -> Ia.6.b | K95: =F95 &")" -> b) | N95: =K95 -> b) | O95: =teksty!$D$939 -> strata netto
A96: 2 | C96: 3 | D96: Ia | E96: 6 | F96: c | J96: Ia.6.c | K96: =F96 &")" -> c) | N96: =K96 -> c) | O96: =teksty!$D$940 -> odpisy z zysku | Z96: =IF(WrfKwot,IF(AND(AF96=0,AG96=0,AH96=0),"=","!"),"") ->  | AA96: =IF(AB96="-", "-",SUBSTITUTE(SUBSTITUTE(EtykietaNaNazwe(Bilans!$J$211),"_A"," A"),"_",".")) -> - | AB96: =IF(Bilans!WybranyWariant="JednostkaInna",Bilans!V$117,IF(Bilans!WybranyWariant="JednostkaMala",Bilans!V$211,"-")) -> - | AC96: =IF(Bilans!WybranyWariant="JednostkaInna",Bilans!W$117,IF(Bilans!WybranyWariant="JednostkaMala",Bilans!W$211,"-")) -> - | AF96: =ROUND(IF(ISNUMBER(AB96),ABS(V96)-ABS(AB96),0),2) -> 0 | AG96: =ROUND(IF(ISNUMBER(AC96),ABS(W96)-ABS(AC96),0),2) -> 0 | AH96: =ROUND(IF(ISNUMBER(AD96),ABS(Y96)-ABS(AD96),0),2) -> 0 | AI96: -3 | AJ96: -2
A97: 2 | C97: 1 | D97: II | J97: =$D97 -> II | K97: =D97 -> II | N97: =K97 -> II | O97: =teksty!$D$941 -> Kapitał (fundusz) własny na koniec okresu (BZ) | V97: =V22+V37+V50+V61+V92+V93 -> 0 | W97: =W22+W37+W50+W61+W92+W93 -> 0
A98: 2 | C98: 1 | D98: III | J98: =$D98 -> III | K98: =D98 -> III | N98: =K98 -> III | O98: =teksty!$D$942 -> Kapitał (fundusz) własny, po uwzględnieniu proponowanego podziału zysku (pokrycia straty) | V98: =V97 -> 0 | W98: =W97 -> 0 | Z98: =IF(WrfKwot,IF(AND(AF98=0,AG98=0,AH98=0),"=","!"),"") ->  | AA98: =IF(AB98="-", "-",SUBSTITUTE(SUBSTITUTE(EtykietaNaNazwe(Bilans!$J$102),"_A"," A"),"_",".")) -> - | AB98: =IF(Bilans!WybranyWariant="JednostkaInna",Bilans!V$102, IF(Bilans!WybranyWariant="JednostkaMala",-Bilans!V$198,"-")) -> - | AC98: =IF(Bilans!WybranyWariant="JednostkaInna",Bilans!W$102, IF(Bilans!WybranyWariant="JednostkaMala",-Bilans!W$198,"-")) -> - | AF98: =ROUND(IF(ISNUMBER(AB98),ABS(V98)-ABS(AB98),0),2) -> 0 | AG98: =ROUND(IF(ISNUMBER(AC98),ABS(W98)-ABS(AC98),0),2) -> 0 | AH98: =ROUND(IF(ISNUMBER(AD98),ABS(Y98)-ABS(AD98),0),2) -> 0 | AI98: -3 | AJ98: -2
A99: 0 | I99: Skonsolidowana:
A100: 16 | C100: =COUNTA(D100:H100) -> 1 | D100: I | J100: =$D100 -> I | K100: =D100 -> I | N100: =K100 -> I | O100: =teksty!$D$888 -> Kapitał (fundusz) własny na początek okresu (BO) | V100: 2832183 | W100: 2832183
A101: =A100 -> 16 | C101: 2 | D101: =D100 -> I | E101: 1 | J101: =D101&"."&E101 -> I.1 | O101: =IF($N$8=""," – ") &teksty!$D$890 -> – korekty błędów
A102: =A101 -> 16 | C102: 1 | D102: Ia | J102: =$D102 -> Ia | K102: =D102 -> Ia | N102: =K102 -> Ia | O102: =teksty!$D$891 -> Kapitał (fundusz) własny na początek okresu (BO), po korektach | V102: =V100+V101 -> 2832183 | W102: =W100+W101 -> 2832183
A103: 16 | C103: 2 | D103: =D102 -> Ia | E103: 1 | J103: =D103&"."&E103 -> Ia.1 | K103: =E103 -> 1 | N103: =K103 -> 1 | O103: =teksty!$D$892 -> Kapitał (fundusz) podstawowy na początek okresu | V103: 83770 | W103: 83770 | Z103: =IF(WrfKwot,IF(AND(AF103=0,AG103=0,AH103=0),"=","!"),"") ->  | AA103: =teksty!$D$59 & ": " & J115 & CHAR(10) & "(" & LOWER(SUBSTITUTE(teksty!$D$955, CHAR(10), " ")) &")" -> Kapitał: Ia.1.2 (okres poprzedni) | AB103: =W115 -> 83770 | AF103: =ROUND(IF(ISNUMBER(AB103),V103-AB103,0),2) -> 0 | AG103: =ROUND(IF(ISNUMBER(AC103),W103-AC103,0),2) -> 0 | AH103: =ROUND(IF(ISNUMBER(AD103),Y103-AD103,0),2) -> 0 | AI103: -3 | AJ103: -2
A104: 16 | C104: 3 | D104: =D103 -> Ia | E104: 1 | F104: 1 | J104: =D104&"."&E104 & "." & F104 -> Ia.1.1 | K104: =E104&"."&F104 -> 1.1 | N104: =K104 -> 1.1 | O104: =teksty!$D$893 -> Zmiany kapitału (funduszu) podstawowego | V104: =V105-V110 -> 0 | W104: =W105-W110 -> 0
A105: 16 | C105: 4 | D105: =D104 -> Ia | E105: 1 | F105: =F104 -> 1 | G105: a | J105: =D105&"."&E105 & "." & F105& "." & G105 -> Ia.1.1.a | K105: =G105 &")" -> a) | N105: =K105 -> a) | O105: =teksty!$D$894 -> zwiększenie (z tytułu) | V105: =V106+V107+V108+V109 -> 0 | W105: =W106+W107+W108+W109 -> 0
A106: 16 | C106: 5 | D106: Ia | E106: 1 | F106: 1 | G106: =G105 -> a | H106: 1 | J106: =D106&"."&E106 & "." & F106& "." & G106 & "." & H106 -> Ia.1.1.a.1 | O106: =IF($N106=""," – ") &teksty!$D$895 -> – wydania udziałów (emisji akcji)
A107: 16 | C107: 5 | D107: Ia | E107: 1 | F107: 1 | G107: =G106 -> a | H107: =H106+1 -> 2 | J107: =D107&"."&E107 & "." & F107& "." & G107 & "." & "p" & (H107-H106) -> Ia.1.1.a.p1
A108: 16 | C108: 5 | D108: Ia | E108: 1 | F108: 1 | G108: =G107 -> a | H108: =H107+1 -> 3 | J108: =D108&"."&E108 & "." & F108& "." & G108 & "." & "p" & (H108-H106) -> Ia.1.1.a.p2
A109: 16 | C109: 5 | D109: Ia | E109: 1 | F109: 1 | G109: =G108 -> a | H109: 4 | J109: =D109&"."&E109 & "." & F109& "." & G109 & "." & "p" & (H109-H106) -> Ia.1.1.a.p3
A110: 16 | C110: 4 | D110: Ia | E110: 1 | F110: 1 | G110: b | J110: =D110&"."&E110 & "." & F110& "." & G110 -> Ia.1.1.b | K110: =G110 &")" -> b) | N110: =K110 -> b) | O110: =teksty!$D$896 -> zmniejszenie (z tytułu) | V110: =V111+V112+V113+V114 -> 0 | W110: =W111+W112+W113+W114 -> 0
A111: 16 | C111: 5 | D111: Ia | E111: 1 | F111: 1 | G111: =G110 -> b | H111: 1 | J111: =D111&"."&E111 & "." & F111& "." & G111 & "." & H111 -> Ia.1.1.b.1 | O111: =IF($N111=""," – ") &teksty!$D$897 -> – umorzenia udziałów (akcji)
A112: 16 | C112: 5 | D112: Ia | E112: 1 | F112: 1 | G112: =G111 -> b | H112: =H111+1 -> 2 | J112: =D112&"."&E112 & "." & F112& "." & G112 & "." & "p" & (H112-H111) -> Ia.1.1.b.p1
A113: 16 | C113: 5 | D113: Ia | E113: 1 | F113: 1 | G113: =G112 -> b | H113: =H112+1 -> 3 | J113: =D113&"."&E113 & "." & F113& "." & G113 & "." & "p" & (H113-H111) -> Ia.1.1.b.p2
A114: 16 | C114: 5 | D114: Ia | E114: 1 | F114: 1 | G114: =G113 -> b | H114: 4 | J114: =D114&"."&E114 & "." & F114& "." & G114 & "." & "p" & (H114-H111) -> Ia.1.1.b.p3
A115: 16 | C115: 3 | D115: Ia | E115: =E111 -> 1 | F115: 2 | J115: =D115&"."&E115 & "." & F115 -> Ia.1.2 | K115: =E115&"."&F115 -> 1.2 | N115: =K115 -> 1.2 | O115: =teksty!$D$898 -> Kapitał (fundusz) podstawowy na koniec okresu | V115: =V103+V104 -> 83770 | W115: =W103+W104 -> 83770 | Z115: =IF(WrfKwot,IF(AND(AF115=0,AG115=0,AH115=0),"=","!"),"") ->  | AA115: =SUBSTITUTE(SUBSTITUTE(EtykietaNaNazwe(Bilans!$J$385),"_A"," A"),"_",".") -> Pasywa A.I | AB115: =Bilans!V385 -> 83770 | AC115: =Bilans!W385 -> 83770 | AF115: =ROUND(V115-AB115,2) -> 0 | AG115: =ROUND(W115-AC115,2) -> 0 | AH115: =ROUND(Y115-AD115,2) -> 0 | AI115: -3 | AJ115: -2
A116: =A113 -> 16 | C116: 2 | D116: =D113 -> Ia | E116: 2 | J116: =D116&"."&E116 -> Ia.2 | K116: =E116 -> 2 | N116: =K116 -> 2 | O116: =teksty!$D$944 -> (uchylony)
A117: =A114 -> 16 | C117: =COUNTA(D117:H117) -> 2 | D117: =D114 -> Ia | E117: 3 | J117: =D117&"."&E117 -> Ia.3 | K117: =E117 -> 3 | N117: =K117 -> 3 | O117: =teksty!$D$944 -> (uchylony)
A118: =A115 -> 16 | C118: 2 | D118: =D115 -> Ia | E118: 4 | J118: =D118&"."&E118 -> Ia.4 | K118: =E118 -> 4 | N118: =K118 -> 4 | O118: =teksty!$D$899 -> Kapitał (fundusz) zapasowy na początek okresu | V118: 4234831 | W118: 4234831 | Z118: =IF(WrfKwot,IF(AND(AF118=0,AG118=0,AH118=0),"=","!"),"") ->  | AA118: =teksty!$D$59 & ": " & J132& CHAR(10) & "(" & LOWER(SUBSTITUTE(teksty!$D$955, CHAR(10), " ")) &")" -> Kapitał: Ia.4.2 (okres poprzedni) | AB118: =W132 -> 4234831 | AF118: =ROUND(IF(ISNUMBER(AB118),V118-AB118,0),2) -> 0 | AG118: =ROUND(IF(ISNUMBER(AC118),W118-AC118,0),2) -> 0 | AH118: =ROUND(IF(ISNUMBER(AD118),Y118-AD118,0),2) -> 0 | AI118: -3 | AJ118: -2
A119: 16 | C119: 3 | D119: =D118 -> Ia | E119: 4 | F119: 1 | J119: =D119&"."&E119 & "." & F119 -> Ia.4.1 | K119: =E119&"."&F119 -> 4.1 | N119: =K119 -> 4.1 | O119: =teksty!$D$900 -> Zmiany kapitału (funduszu) zapasowego | V119: =V120-V127 -> 353509 | W119: =W120-W127 -> 0
A120: 16 | C120: 4 | D120: =D119 -> Ia | E120: 4 | F120: =F119 -> 1 | G120: a | J120: =D120&"."&E120 & "." & F120& "." & G120 -> Ia.4.1.a | K120: =G120 &")" -> a) | N120: =K120 -> a) | O120: =teksty!$D$901 -> zwiększenie (z tytułu) | V120: =V121+V122+V123+V124+V125+V126 -> 353509 | W120: =W121+W122+W123+W124+W125+W126 -> 0
A121: 16 | C121: 5 | D121: Ia | E121: 4 | F121: 1 | G121: a | H121: 1 | J121: =D121&"."&E121 & "." & F121& "." & G121 & "." & H121 -> Ia.4.1.a.1 | O121: =IF($N121=""," – ") &teksty!$D$902 -> – emisji akcji powyżej wartości nominalnej
A122: 16 | C122: 5 | D122: Ia | E122: 4 | F122: 1 | G122: a | H122: 2 | J122: =D122&"."&E122 & "." & F122& "." & G122 & "." & H122 -> Ia.4.1.a.2 | O122: =IF($N122=""," – ") &teksty!$D$903 -> – podziału zysku (ustawowo) | V122: 353509 | W122: 0
A123: 16 | C123: 5 | D123: Ia | E123: 4 | F123: 1 | G123: a | H123: 3 | J123: =D123&"."&E123 & "." & F123& "." & G123 & "." & H123 -> Ia.4.1.a.3 | O123: =IF($N123=""," – ") &teksty!$D$904 -> – podziału zysku (ponad wymaganą ustawowo minimalną wartość)
A124: 16 | C124: 5 | D124: Ia | E124: 4 | F124: 1 | G124: a | H124: =H123+1 -> 4 | J124: =D124&"."&E124 & "." & F124& "." & G124 & "." & "p" & (H124-H123) -> Ia.4.1.a.p1
A125: 16 | C125: 5 | D125: Ia | E125: 4 | F125: 1 | G125: a | H125: =H124+1 -> 5 | J125: =D125&"."&E125 & "." & F125& "." & G125 & "." & "p" & (H125-H123) -> Ia.4.1.a.p2
A126: 16 | C126: 5 | D126: Ia | E126: 4 | F126: 1 | G126: a | H126: 6 | J126: =D126&"."&E126 & "." & F126& "." & G126 & "." & "p" & (H126-H123) -> Ia.4.1.a.p3
A127: 16 | C127: 4 | D127: Ia | E127: 4 | F127: 1 | G127: b | J127: =D127&"."&E127 & "." & F127& "." & G127 -> Ia.4.1.b | K127: =G127 &")" -> b) | N127: =K127 -> b) | O127: =teksty!$D$905 -> zmniejszenie (z tytułu) | V127: =V128+V129+V130+V131 -> 0 | W127: =W128+W129+W130+W131 -> 0
A128: 16 | C128: 5 | D128: =D127 -> Ia | E128: =E127 -> 4 | F128: 1 | G128: =G127 -> b | H128: 1 | J128: =D128&"."&E128 & "." & F128& "." & G128 & "." & H128 -> Ia.4.1.b.1 | O128: =IF($N128=""," – ") &teksty!$D$906 -> – pokrycia straty
A129: 16 | C129: 5 | D129: =D128 -> Ia | E129: =E128 -> 4 | F129: 1 | G129: =G128 -> b | H129: =H128+1 -> 2 | J129: =D129&"."&E129 & "." & F129& "." & G129 & "." & "p" & (H129-H128) -> Ia.4.1.b.p1
A130: 16 | C130: 5 | D130: =D129 -> Ia | E130: =E129 -> 4 | F130: 1 | G130: =G129 -> b | H130: =H129+1 -> 3 | J130: =D130&"."&E130 & "." & F130& "." & G130 & "." & "p" & (H130-H128) -> Ia.4.1.b.p2
A131: 16 | C131: 5 | D131: =D130 -> Ia | E131: =E130 -> 4 | F131: 1 | G131: =G130 -> b | H131: 4 | J131: =D131&"."&E131 & "." & F131& "." & G131 & "." & "p" & (H131-H128) -> Ia.4.1.b.p3
A132: 16 | C132: 3 | D132: =D131 -> Ia | E132: =E131 -> 4 | F132: 2 | I132: =teksty!$D$885 & teksty!$D$284 & 1 -> wyszczególnienie, koniec strony 1 | J132: =D132&"."&E132 & "." & F132 -> Ia.4.2 | K132: =E132&"."&F132 -> 4.2 | N132: =K132 -> 4.2 | O132: =teksty!$D$907 -> Stan kapitału (funduszu) zapasowego na koniec okresu | V132: =V118+V119 -> 4588340 | W132: =W118+W119 -> 4234831 | Z132: =IF(WrfKwot,IF(AND(AF132=0,AG132=0,AH132=0),"=","!"),"") ->  | AA132: =SUBSTITUTE(SUBSTITUTE(EtykietaNaNazwe(Bilans!$J$386),"_A"," A"),"_",".") -> Pasywa A.II | AB132: =Bilans!V386 -> 4588340 | AC132: =Bilans!W386 -> 4234831 | AF132: =ROUND(V132-AB132,2) -> 0 | AG132: =ROUND(W132-AC132,2) -> 0 | AH132: =ROUND(Y132-AD132,2) -> 0 | AI132: -3 | AJ132: -2
A133: 16 | B133: P | C133: 3 | D133: =D132 -> Ia | E133: 4 | F133: 2 | N133: =teksty!$D$885 & teksty!$D$718 -> wyszczególnienie, c.d. poprzedniej strony | U133: =$U$5 -> za rok: | V133: =$V$5 -> 2017 | W133: =$W$5 -> 2016 | X133: =teksty!$D$292 -> Przekszt. dane porów. za poprzedni okres
A134: 16 | C134: 2 | D134: =D133 -> Ia | E134: 5 | J134: =D134&"."&E134 -> Ia.5 | K134: =E134 -> 5 | N134: =K134 -> 5 | O134: =teksty!$D$945 -> Kapitał (fundusz) z aktualizacji wyceny na początek okresu | V134: 329480 | W134: 329480 | Z134: =IF(WrfKwot,IF(AND(AF134=0,AG134=0,AH134=0),"=","!"),"") ->  | AA134: =teksty!$D$59 & ": " & J145& CHAR(10) & "(" & LOWER(SUBSTITUTE(teksty!$D$955, CHAR(10), " ")) &")" -> Kapitał: Ia.5.2 (okres poprzedni) | AB134: =W145 -> 329480 | AF134: =ROUND(IF(ISNUMBER(AB134),V134-AB134,0),2) -> 0 | AG134: =ROUND(IF(ISNUMBER(AC134),W134-AC134,0),2) -> 0 | AH134: =ROUND(IF(ISNUMBER(AD134),Y134-AD134,0),2) -> 0 | AI134: -3 | AJ134: -2
A135: 16 | C135: 3 | D135: =D134 -> Ia | E135: 5 | F135: 1 | J135: =D135&"."&E135 & "." & F135 -> Ia.5.1 | K135: =E135&"."&F135 -> 5.1 | N135: =K135 -> 5.1 | O135: =teksty!$D$946 -> Zmiany kapitału (funduszu) z aktualizacji wyceny - zmiany przyjętych zasad (polityki) rachunkowości | V135: =V136-V140 -> 3953 | W135: =W136-W140 -> 0
A136: 16 | C136: 4 | D136: =D135 -> Ia | E136: 5 | F136: =F135 -> 1 | G136: a | J136: =D136&"."&E136 & "." & F136& "." & G136 -> Ia.5.1.a | K136: =G136 &")" -> a) | N136: =K136 -> a) | O136: =teksty!$D$910 -> zwiększenie (z tytułu) | V136: =V137+V138+V139 -> 3953 | W136: =W137+W138+W139 -> 0
A137: 16 | C137: 5 | D137: Ia | E137: 5 | F137: 1 | G137: =G136 -> a | H137: =H136+1 -> 1 | J137: =D137&"."&E137 & "." & F137& "." & G137 & "." & "p" & (H137-H136) -> Ia.5.1.a.p1 | O137: inne | V137: 3953 | W137: 0
A138: 16 | C138: 5 | D138: Ia | E138: 5 | F138: 1 | G138: =G137 -> a | H138: =H137+1 -> 2 | J138: =D138&"."&E138 & "." & F138& "." & G138 & "." & "p" & (H138-H136) -> Ia.5.1.a.p2
A139: 16 | C139: 5 | D139: Ia | E139: 5 | F139: 1 | G139: =G138 -> a | H139: 3 | J139: =D139&"."&E139 & "." & F139& "." & G139 & "." & "p" & (H139-H136) -> Ia.5.1.a.p3
A140: 16 | C140: 4 | D140: Ia | E140: 5 | F140: 1 | G140: b | J140: =D140&"."&E140 & "." & F140& "." & G140 -> Ia.5.1.b | K140: =G140 &")" -> b) | N140: =K140 -> b) | O140: =teksty!$D$911 -> zmniejszenie (z tytułu)
A141: 16 | C141: 5 | D141: Ia | E141: 5 | F141: 1 | G141: =G140 -> b | H141: 1 | J141: =D141&"."&E141 & "." & F141& "." & G141 & "." & H141 -> Ia.5.1.b.1 | O141: =IF($N141=""," – ") &teksty!$D$912 -> – zbycia środków trwałych
A142: 16 | C142: 5 | D142: Ia | E142: 5 | F142: 1 | G142: =G141 -> b | H142: =H141+1 -> 2 | J142: =D142&"."&E142 & "." & F142& "." & G142 & "." & "p" & (H142-H141) -> Ia.5.1.b.p1
A143: 16 | C143: 5 | D143: Ia | E143: 5 | F143: 1 | G143: =G142 -> b | H143: =H142+1 -> 3 | J143: =D143&"."&E143 & "." & F143& "." & G143 & "." & "p" & (H143-H141) -> Ia.5.1.b.p2
A144: 16 | C144: 5 | D144: Ia | E144: 5 | F144: 1 | G144: =G143 -> b | H144: 4 | J144: =D144&"."&E144 & "." & F144& "." & G144 & "." & "p" & (H144-H141) -> Ia.5.1.b.p3
A145: 16 | C145: 3 | D145: Ia | E145: =E141 -> 5 | F145: 2 | J145: =D145&"."&E145 & "." & F145 -> Ia.5.2 | K145: =E145&"."&F145 -> 5.2 | N145: =K145 -> 5.2 | O145: =teksty!$D$913 -> Kapitał (fundusz) z aktualizacji wyceny na koniec okresu | V145: =V134+V135 -> 333433 | W145: =W134+W135 -> 329480 | Z145: =IF(WrfKwot,IF(AND(AF145=0,AG145=0,AH145=0),"=","!"),"") ->  | AA145: =SUBSTITUTE(SUBSTITUTE(EtykietaNaNazwe(Bilans!$J$388),"_A"," A"),"_",".") -> Pasywa A.III | AB145: =Bilans!V388 -> 333433 | AC145: =Bilans!W388 -> 329480 | AF145: =ROUND(V145-AB145,2) -> 0 | AG145: =ROUND(W145-AC145,2) -> 0 | AH145: =ROUND(Y145-AD145,2) -> 0 | AI145: -3 | AJ145: -2
A146: 16 | C146: 2 | D146: Ia | E146: 6 | J146: =D146&"."&E146 -> Ia.6 | K146: =E146 -> 6 | N146: =K146 -> 6 | O146: =teksty!$D$914 -> Pozostałe kapitały (fundusze) rezerwowe na początek okresu | V146: 61912 | W146: 61912 | Z146: =IF(WrfKwot,IF(AND(AF146=0,AG146=0,AH146=0),"=","!"),"") ->  | AA146: =teksty!$D$59 & ": " & J156& CHAR(10) & "(" & LOWER(SUBSTITUTE(teksty!$D$955, CHAR(10), " ")) &")" -> Kapitał: Ia.6.2 (okres poprzedni) | AB146: =W156 -> 61912 | AF146: =ROUND(IF(ISNUMBER(AB146),V146-AB146,0),2) -> 0 | AG146: =ROUND(IF(ISNUMBER(AC146),W146-AC146,0),2) -> 0 | AH146: =ROUND(IF(ISNUMBER(AD146),Y146-AD146,0),2) -> 0 | AI146: -3 | AJ146: -2
A147: 16 | C147: 3 | D147: =D146 -> Ia | E147: 6 | F147: 1 | J147: =D147&"."&E147 & "." & F147 -> Ia.6.1 | K147: =E147&"."&F147 -> 6.1 | N147: =K147 -> 6.1 | O147: =teksty!$D$915 -> Zmiany pozostałych kapitałów (funduszy) rezerwowych | V147: 110 | W147: =W148-W152 -> 0
A148: 16 | C148: 4 | D148: =D147 -> Ia | E148: 6 | F148: =F147 -> 1 | G148: a | J148: =D148&"."&E148 & "." & F148& "." & G148 -> Ia.6.1.a | K148: =G148 &")" -> a) | N148: =K148 -> a) | O148: =teksty!$D$916 -> zwiększenie (z tytułu) | V148: 110 | W148: =W149+W150+W151 -> 0
A149: 16 | C149: 5 | D149: Ia | E149: 6 | F149: 1 | G149: =G148 -> a | H149: =H148+1 -> 1 | J149: =D149&"."&E149 & "." & F149& "." & G149 & "." & "p" & (H149-H148) -> Ia.6.1.a.p1
A150: 16 | C150: 5 | D150: Ia | E150: 6 | F150: 1 | G150: =G149 -> a | H150: =H149+1 -> 2 | J150: =D150&"."&E150 & "." & F150& "." & G150 & "." & "p" & (H150-H148) -> Ia.6.1.a.p2
A151: 16 | C151: 5 | D151: Ia | E151: 6 | F151: 1 | G151: =G150 -> a | H151: 3 | J151: =D151&"."&E151 & "." & F151& "." & G151 & "." & "p" & (H151-H148) -> Ia.6.1.a.p3
A152: 16 | C152: 4 | D152: Ia | E152: 6 | F152: 1 | G152: b | J152: =D152&"."&E152 & "." & F152& "." & G152 -> Ia.6.1.b | K152: =G152 &")" -> b) | N152: =K152 -> b) | O152: =teksty!$D$917 -> zmniejszenie (z tytułu) | V152: =V153+V154+V155 -> 0 | W152: =W153+W154+W155 -> 0
A153: 16 | C153: 5 | D153: Ia | E153: 6 | F153: 1 | G153: =G152 -> b | H153: =H152+1 -> 1 | J153: =D153&"."&E153 & "." & F153& "." & G153 & "." & "p" & (H153-H152) -> Ia.6.1.b.p1
A154: 16 | C154: 5 | D154: Ia | E154: 6 | F154: 1 | G154: =G153 -> b | H154: =H153+1 -> 2 | J154: =D154&"."&E154 & "." & F154& "." & G154 & "." & "p" & (H154-H152) -> Ia.6.1.b.p2
A155: 16 | C155: 5 | D155: Ia | E155: 6 | F155: 1 | G155: =G154 -> b | H155: 3 | J155: =D155&"."&E155 & "." & F155& "." & G155 & "." & "p" & (H155-H152) -> Ia.6.1.b.p3
A156: 16 | C156: 3 | D156: Ia | E156: =E152 -> 6 | F156: 2 | J156: =D156&"."&E156 & "." & F156 -> Ia.6.2 | K156: =E156&"."&F156 -> 6.2 | N156: =K156 -> 6.2 | O156: =teksty!$D$918 -> Pozostałe kapitały (fundusze) rezerwowe na koniec okresu | V156: =V146+V147 -> 62022 | W156: =W146+W147 -> 61912 | Z156: =IF(WrfKwot,IF(AND(AF156=0,AG156=0,AH156=0),"=","!"),"") ->  | AA156: =SUBSTITUTE(SUBSTITUTE(EtykietaNaNazwe(Bilans!$J$390),"_A"," A"),"_",".") -> Pasywa A.IV | AB156: =Bilans!V390 -> 62022 | AC156: =Bilans!W390 -> 61912 | AF156: =ROUND(V156-AB156,2) -> 0 | AG156: =ROUND(W156-AC156,2) -> 0 | AH156: =ROUND(Y156-AD156,2) -> 0 | AI156: -3 | AJ156: -2
A157: =A155 -> 16 | C157: =COUNTA(D157:H157) -> 2 | D157: =D155 -> Ia | E157: 7 | J157: =D157&"."&E157 -> Ia.7 | K157: =E157 -> 7 | N157: =K157 -> 7 | O157: =teksty!D947 -> Różnice kursowe z przeliczenia | Z157: =IF(WrfKwot,IF(AND(AF157=0,AG157=0,AH157=0),"=","!"),"") ->  | AA157: =SUBSTITUTE(SUBSTITUTE(EtykietaNaNazwe(Bilans!$J$392),"_A"," A"),"_",".") -> Pasywa A.V | AB157: =Bilans!V392 -> 0 | AC157: =Bilans!W392 -> 0 | AF157: =ROUND(V157-AB157,2) -> 0 | AG157: =ROUND(W157-AC157,2) -> 0 | AH157: 0 | AI157: -3 | AJ157: -2
A158: =A156 -> 16 | C158: 2 | D158: =D156 -> Ia | E158: 8 | J158: =D158&"."&E158 -> Ia.8 | K158: =E158 -> 8 | N158: =K158 -> 8 | O158: =teksty!$D$919 -> Zysk (strata) z lat ubiegłych na początek okresu | V158: 531566 | W158: 0 | Z158: =IF(WrfKwot,IF(AND(AF158=0,AG158=0,AH158=0),"=","!"),"") ->  | AA158: =teksty!$D$59 & ": " & J189 & "a/b+8.7" & CHAR(10) & "(" & LOWER(SUBSTITUTE(teksty!$D$955, CHAR(10), " ")) &")" -> Kapitał: Ia.9a/b+8.7 (okres poprzedni) | AB158: =W190+W191+W188 -> -1852456 | AF158: =ROUND(IF(ISNUMBER(AB158),ABS(V158)-ABS(AB158),0),2) -> -1320890 | AG158: =ROUND(IF(ISNUMBER(AC158),W158-AC158,0),2) -> 0 | AH158: =ROUND(IF(ISNUMBER(AD158),Y158-AD158,0),2) -> 0 | AI158: -3 | AJ158: -2
A159: 16 | C159: 3 | D159: =D158 -> Ia | E159: 8 | F159: 1 | J159: =D159&"."&E159 & "." & F159 -> Ia.8.1 | K159: =E159&"."&F159 -> 8.1 | N159: =K159 -> 8.1 | O159: =teksty!$D$920 -> Zysk z lat ubiegłych na początek okresu | V159: =V158 -> 531566 | W159: =W158 -> 0
A160: 16 | C160: 4 | D160: =D159 -> Ia | E160: 8 | F160: 1 | G160: 1 | J160: =D160&"."&E160 & "." & F160& "." & G160 -> Ia.8.1.1 | O160: =IF($N160=""," – ") &teksty!$D$930 -> – korekty błędów
A161: 16 | C161: 4 | D161: =D160 -> Ia | E161: 8 | F161: 1 | G161: 2 | I161: =teksty!$D$886& teksty!$D$284 & 2 -> Zmiany w kapitale, koniec strony 2 | J161: =D161&"."&E161 & "." & F161& "." & G161 -> Ia.8.1.2 | O161: =IF($N161=""," – ") &teksty!$D$921 -> – zmiany przyjętych zasad (polityki) rachunkowości
A162: 16 | B162: P | C162: 3 | D162: =D161 -> Ia | E162: 8 | F162: 1 | N162: =teksty!$D$885 & teksty!$D$718 -> wyszczególnienie, c.d. poprzedniej strony | U162: =$U$5 -> za rok: | V162: =$V$5 -> 2017 | W162: =$W$5 -> 2016 | X162: =teksty!$D$292 -> Przekszt. dane porów. za poprzedni okres
A163: 16 | C163: 3 | D163: =D162 -> Ia | E163: 8 | F163: 2 | J163: =D163&"."&E163 & "." & F163 -> Ia.8.2 | K163: =E163&"."&F163 -> 8.2 | N163: =K163 -> 8.2 | O163: =teksty!$D$923 -> Zysk z lat ubiegłych na początek okresu, po korektach | V163: =V159+V160+V161 -> 531566 | W163: =W159+W160+W161 -> 0 | Z163: =teksty!$D$285 -> ukryty wiersz powyżej zawiera nagłówek dla kolejnej strony
A164: 16 | C164: 4 | D164: =D163 -> Ia | E164: 8 | F164: =F163 -> 2 | G164: a | J164: =D164&"."&E164 & "." & F164& "." & G164 -> Ia.8.2.a | K164: =G164 &")" -> a) | N164: =K164 -> a) | O164: =teksty!$D$924 -> zwiększenie (z tytułu) | V164: =V165+V166+V167+V168 -> 0 | W164: =W165+W166+W167+W168 -> 0
A165: 16 | C165: 5 | D165: Ia | E165: 8 | F165: 2 | G165: =G164 -> a | H165: 1 | J165: =D165&"."&E165 & "." & F165& "." & G165 & "." & H165 -> Ia.8.2.a.1 | O165: =IF($N165=""," – ") &teksty!$D$925 -> – podziału zysku z lat ubiegłych
A166: 16 | C166: 5 | D166: Ia | E166: 8 | F166: 2 | G166: =G165 -> a | H166: =H165+1 -> 2 | J166: =D166&"."&E166 & "." & F166& "." & G166 & "." & "p" & (H166-H165) -> Ia.8.2.a.p1
A167: 16 | C167: 5 | D167: Ia | E167: 8 | F167: 2 | G167: =G166 -> a | H167: =H166+1 -> 3 | J167: =D167&"."&E167 & "." & F167& "." & G167 & "." & "p" & (H167-H165) -> Ia.8.2.a.p2
A168: =A167 -> 16 | C168: 5 | D168: Ia | E168: 8 | F168: 2 | G168: =G167 -> a | H168: 4 | J168: =D168&"."&E168 & "." & F168& "." & G168 & "." & "p" & (H168-H165) -> Ia.8.2.a.p3
A169: 16 | C169: 4 | D169: Ia | E169: 8 | F169: 2 | G169: b | J169: =D169&"."&E169 & "." & F169& "." & G169 -> Ia.8.2.b | K169: =G169 &")" -> b) | N169: =K169 -> b) | O169: =teksty!$D$926 -> zmniejszenie (z tytułu) | V169: =V170+V171+V172 -> 0 | W169: =W170+W171+W172 -> 0
A170: 16 | C170: 5 | D170: Ia | E170: 8 | F170: 2 | G170: =G169 -> b | H170: =H169+1 -> 1 | J170: =D170&"."&E170 & "." & F170& "." & G170 & "." & "p" & (H170-H169) -> Ia.8.2.b.p1
A171: 16 | C171: 5 | D171: Ia | E171: 8 | F171: 2 | G171: =G170 -> b | H171: =H170+1 -> 2 | J171: =D171&"."&E171 & "." & F171& "." & G171 & "." & "p" & (H171-H169) -> Ia.8.2.b.p2
A172: 16 | C172: 5 | D172: Ia | E172: 8 | F172: 2 | G172: =G171 -> b | H172: 3 | J172: =D172&"."&E172 & "." & F172& "." & G172 & "." & "p" & (H172-H169) -> Ia.8.2.b.p3
A173: 16 | C173: 3 | D173: Ia | E173: 8 | F173: 3 | J173: =D173&"."&E173 & "." & F173 -> Ia.8.3 | K173: =E173&"."&F173 -> 8.3 | N173: =K173 -> 8.3 | O173: =teksty!$D$927 -> Zysk z lat ubiegłych na koniec okresu | V173: =V163+V164-V169 -> 531566 | W173: =W163+W164-W169 -> 0
A174: 16 | C174: 3 | D174: =D173 -> Ia | E174: 8 | F174: 4 | J174: =D174&"."&E174 & "." & F174 -> Ia.8.4 | K174: =E174&"."&F174 -> 8.4 | N174: =K174 -> 8.4 | O174: =teksty!$D$928 -> Strata z lat ubiegłych na początek okresu | V174: 2559108 | W174: 2387182
A175: 16 | C175: 4 | D175: =D174 -> Ia | E175: 8 | F175: 4 | G175: 1 | J175: =D175&"."&E175 & "." & F175& "." & G175 -> Ia.8.4.1 | O175: =IF($N175=""," – ") &teksty!$D$930 -> – korekty błędów
A176: 16 | C176: 4 | D176: =D175 -> Ia | E176: 8 | F176: 4 | G176: 2 | J176: =D176&"."&E176 & "." & F176& "." & G176 -> Ia.8.4.2 | O176: =IF($N176=""," – ") &teksty!$D$921 -> – zmiany przyjętych zasad (polityki) rachunkowości
A177: 16 | C177: 3 | D177: =D176 -> Ia | E177: 8 | F177: 5 | J177: =D177&"."&E177 & "." & F177 -> Ia.8.5 | K177: =E177&"."&F177 -> 8.5 | N177: =K177 -> 8.5 | O177: =teksty!$D$931 -> Strata z lat ubiegłych na początek okresu, po korektach | V177: =V174+V175+V176 -> 2559108 | W177: =W174+W175+W176 -> 2387182
A178: 16 | C178: 4 | D178: =D177 -> Ia | E178: 8 | F178: =F177 -> 5 | G178: a | J178: =D178&"."&E178 & "." & F178& "." & G178 -> Ia.8.5.a | K178: =G178 &")" -> a) | N178: =K178 -> a) | O178: =teksty!$D$932 -> zwiększenie (z tytułu) | V178: =V179+V180+V181+V182 -> 0 | W178: =W179+W180+W181+W182 -> -3160
A179: 16 | C179: 5 | D179: Ia | E179: 8 | F179: 5 | G179: =G178 -> a | H179: 1 | J179: =D179&"."&E179 & "." & F179& "." & G179 & "." & H179 -> Ia.8.5.a.1 | O179: =IF($N179=""," – ") &teksty!$D$933 -> – przeniesienia straty z lat ubiegłych do pokrycia | V179: 0 | W179: -3160
A180: 16 | C180: 5 | D180: Ia | E180: 8 | F180: 5 | G180: =G179 -> a | H180: =H179+1 -> 2 | J180: =D180&"."&E180 & "." & F180& "." & G180 & "." & "p" & (H180-H179) -> Ia.8.5.a.p1
A181: 16 | C181: 5 | D181: Ia | E181: 8 | F181: 5 | G181: =G180 -> a | H181: =H180+1 -> 3 | J181: =D181&"."&E181 & "." & F181& "." & G181 & "." & "p" & (H181-H179) -> Ia.8.5.a.p2
A182: 16 | C182: 5 | D182: Ia | E182: 8 | F182: 5 | G182: =G181 -> a | H182: 4 | J182: =D182&"."&E182 & "." & F182& "." & G182 & "." & "p" & (H182-H179) -> Ia.8.5.a.p3
A183: 16 | C183: 4 | D183: Ia | E183: 8 | F183: 5 | G183: b | J183: =D183&"."&E183 & "." & F183& "." & G183 -> Ia.8.5.b | K183: =G183 &")" -> b) | N183: =K183 -> b) | O183: =teksty!$D$934 -> zmniejszenie (z tytułu) | V183: =V184+V185+V186 -> -185962 | W183: =W184+W185+W186 -> 0
A184: 16 | C184: 5 | D184: Ia | E184: 8 | F184: 5 | G184: =G183 -> b | H184: =H183+1 -> 1 | J184: =D184&"."&E184 & "." & F184& "." & G184 & "." & "p" & (H184-H183) -> Ia.8.5.b.p1 | O184: inne | V184: -185962 | W184: 0
A185: 16 | C185: 5 | D185: Ia | E185: 8 | F185: 5 | G185: =G184 -> b | H185: =H184+1 -> 2 | J185: =D185&"."&E185 & "." & F185& "." & G185 & "." & "p" & (H185-H183) -> Ia.8.5.b.p2
A186: 16 | C186: 5 | D186: Ia | E186: 8 | F186: 5 | G186: =G185 -> b | H186: 3 | J186: =D186&"."&E186 & "." & F186& "." & G186 & "." & "p" & (H186-H183) -> Ia.8.5.b.p3
A187: 16 | C187: 3 | D187: Ia | E187: 8 | F187: 6 | J187: =D187&"."&E187 & "." & F187 -> Ia.8.6 | K187: =E187&"."&F187 -> 8.6 | N187: =K187 -> 8.6 | O187: =teksty!$D$935 -> Strata z lat ubiegłych na koniec okresu | V187: =V177+V178-V183 -> 2745070 | W187: =W177+W178-W183 -> 2384022
A188: 16 | C188: 3 | D188: =D187 -> Ia | E188: 8 | F188: 7 | J188: =D188&"."&E188 & "." & F188 -> Ia.8.7 | K188: =E188&"."&F188 -> 8.7 | N188: =K188 -> 8.7 | O188: =teksty!$D$936 -> Zysk (strata) z lat ubiegłych na koniec okresu | V188: =V173-V187 -> -2213504 | W188: =W173-W187 -> -2384022
A189: 16 | C189: 2 | D189: =D188 -> Ia | E189: 9 | J189: =D189&"."&E189 -> Ia.9 | K189: =E189 -> 9 | N189: =K189 -> 9 | O189: =teksty!$D$937 -> Wynik netto | V189: =V190-V191-V192 -> 154716 | W189: =W190-W191-W192 -> 506212 | Z189: =IF(WrfKwot,IF(AND(AF189=0,AG189=0,AH189=0),"=","!"),"") ->  | AA189: =SUBSTITUTE(SUBSTITUTE(EtykietaNaNazwe(Bilans!$J$394),"_A"," A"),"_",".") & " + " & CHAR(10) & AA192 -> Pasywa A.VII + Pasywa A.VIII | AB189: =Bilans!V394+Bilans!V395 -> 154716 | AC189: =Bilans!W394+Bilans!W395 -> 506212 | AF189: =ROUND(IF(ISNUMBER(AB189),V189-AB189,0),2) -> 0 | AG189: =ROUND(IF(ISNUMBER(AC189),W189-AC189,0),2) -> 0 | AH189: =ROUND(IF(ISNUMBER(AD189),Y189-AD189,0),2) -> 0 | AI189: -3 | AJ189: -2
A190: 16 | C190: 3 | D190: =D189 -> Ia | E190: 9 | F190: a | J190: =D190&"."&E190 & "." & F190 -> Ia.9.a | K190: =F190 &")" -> a) | N190: =K190 -> a) | O190: =teksty!$D$938 -> zysk netto | V190: 235551 | W190: 531566
A191: 16 | C191: 3 | D191: =D190 -> Ia | E191: 9 | F191: b | J191: =D191&"."&E191 & "." & F191 -> Ia.9.b | K191: =F191 &")" -> b) | N191: b) | O191: =teksty!$D$939 -> strata netto
A192: 16 | C192: 3 | D192: =D191 -> Ia | E192: 9 | F192: c | J192: Ia.9.c | K192: =F192 &")" -> c) | N192: c) | O192: =teksty!$D$940 -> odpisy z zysku | V192: 80835 | W192: 25354 | Z192: =IF(WrfKwot,IF(AND(AF192=0,AG192=0,AH192=0),"=","!"),"") ->  | AA192: =SUBSTITUTE(SUBSTITUTE(EtykietaNaNazwe(Bilans!$J$395),"_A"," A"),"_",".") -> Pasywa A.VIII | AB192: =Bilans!V$395 -> -80835 | AC192: =Bilans!W$395 -> -25354 | AF192: =ROUND(IF(ISNUMBER(AB192),ABS(V192)-ABS(AB192),0),2) -> 0 | AG192: =ROUND(IF(ISNUMBER(AC192),ABS(W192)-ABS(AC192),0),2) -> 0 | AH192: =ROUND(IF(ISNUMBER(AD192),ABS(Y192)-ABS(AD192),0),2) -> 0 | AI192: -3 | AJ192: -2
A193: 16 | C193: 1 | D193: II | J193: =$D193 -> II | K193: =D193 -> II | N193: =K193 -> II | O193: =teksty!$D$941 -> Kapitał (fundusz) własny na koniec okresu (BZ) | V193: =V115+V132+V145+V156+V157+V188+V189 -> 3008777 | W193: =W115+W132+W145+W156+W157+W188+W189 -> 2832183
A194: 16 | C194: 1 | D194: III | J194: =$D194 -> III | K194: =D194 -> III | N194: =K194 -> III | O194: =teksty!$D$942 -> Kapitał (fundusz) własny, po uwzględnieniu proponowanego podziału zysku (pokrycia straty) | V194: =V193 -> 3008777 | W194: =W193 -> 2832183 | Z194: =IF(WrfKwot,IF(AND(AF194=0,AG194=0,AH194=0),"=","!"),"") ->  | AA194: =SUBSTITUTE(SUBSTITUTE(EtykietaNaNazwe(Bilans!$J$384),"_A"," A"),"_",".") -> Pasywa A | AB194: =Bilans!V$384 -> 3008777 | AC194: =Bilans!W$384 -> 2832183 | AF194: =ROUND(V194-AB194,2) -> 0 | AG194: =ROUND(W194-AC194,2) -> 0 | AH194: =ROUND(Y194-AD194,2) -> 0 | AI194: -3 | AJ194: -2

Sheet Przepływy
A1: RachPrzeplywow | C1: Poziom | F1: Składniki | J1: (pełen symbol) | K1: (wyświetlana etykieta) | R1: 6 | S1: =VLOOKUP(WybranaPozycja,teksty!B150:F155,2) -> Skonsolidowana | U1: 2 | V1: =VLOOKUP(WybranaPodpozycja,teksty!B159:F160,2) -> Posrednia
M2: =teksty!D787 -> Rachunek przepływów
I3: =teksty!$D$291 -> Opcjonalne. Aby nie włączać tego zestawienia do sprawozdania - ukryj ten arkusz | N3: =Wprowadzenie!$I$4 & " " & IF(NumerWariantuRaportu = 5, teksty!$D$289, "") -> TEST S.A. (skonsolidowany) | X3: =teksty!D283 & VLOOKUP(NumerBazyRaportu,BazyKwot,3) -> wszystkie kwoty w tysiącach złotych
N5: =VLOOKUP(WybranaPodpozycja,teksty!$B$159:$F$160,3) -> metoda pośrednia | U5: =IF(BezDat,"",teksty!$D$615) -> za rok: | V5: =IF(BezDat,teksty!$D$954,YEAR(DataDo)) -> 2017 | W5: =IF(BezDat,teksty!$D$955,V5-1) -> 2016 | X5: =teksty!$D$292 -> Przekszt. dane porów. za poprzedni okres | AA5: =IF(OR(_xlfn.ISFORMULA($V$8),_xlfn.ISFORMULA($W$8)),teksty!$D$951,"") -> W niektórych polach tego zestawienia napotkasz pomocnicze formuły. Jeżeli to potrzebne, możesz je zmienić, lub wpisać w te pola odpowiednie kwoty.
A6: =(4*65536)+(2+32) -> 262178 | C6: =COUNTA(D6:H6) -> 1 | D6: A | J6: =$D6 -> A | K6: =D6 -> A | N6: =K6 -> A | O6: =teksty!$D$851 -> Przepływy środków pieniężnych z działalności operacyjnej
A7: =(4*65536)+(2+32) -> 262178 | C7: 2 | D7: =D6 -> A | E7: I | J7: =D7&"."&E7 -> A.I | K7: =E7 -> I | N7: I | O7: =teksty!$D$852 -> Zysk (strata) netto | Z7: =IF(WrfKwot,IF(AND(AF7=0,AG7=0,AH7=0),"=","!"),"") ->  | AA7: =IF(AB7="-", "-",SUBSTITUTE(SUBSTITUTE(EtykietaNaNazwe(Bilans!$J$210),"_A"," A"),"_",".")) -> - | AB7: =IF(Bilans!WybranyWariant="JednostkaInna",Bilans!V$116, IF(Bilans!WybranyWariant="JednostkaMala",Bilans!V$210,"-")) -> - | AC7: =IF(Bilans!WybranyWariant="JednostkaInna",Bilans!W$116, IF(Bilans!WybranyWariant="JednostkaMala",Bilans!W$210,"-")) -> - | AD7: =IF(Bilans!WybranyWariant="JednostkaInna",Bilans!X$116, IF(Bilans!WybranyWariant="JednostkaMala",Bilans!X$210,"-")) -> - | AF7: =ROUND(IF(ISNUMBER(AB7),V7-AB7,0),2) -> 0 | AG7: =ROUND(IF(ISNUMBER(AC7),W7-AC7,0),2) -> 0 | AH7: 0
A8: 262178 | C8: 2 | D8: =D7 -> A | E8: II | J8: =D8&"."&E8 -> A.II | K8: =E8 -> II | N8: II | O8: =teksty!$D$853 -> Korekty razem | V8: =V9+V10+V11+V12+V13+V14+V15+V16+V17+V18 -> 0 | W8: =W9+W10+W11+W12+W13+W14+W15+W16+W17+W18 -> 0
A9: 262178 | C9: 3 | D9: =D8 -> A | E9: II | F9: 1 | J9: =D9&"."&E9 & "." & F9 -> A.II.1 | K9: =F9 -> 1 | N9: 1 | O9: =teksty!$D$854 -> Amortyzacja
A10: 262178 | C10: 3 | D10: A | E10: II | F10: 2 | J10: A.II.2 | K10: 2 | N10: 2 | O10: =teksty!$D$855 -> Zyski (straty) z tytułu różnic kursowych
A11: 262178 | C11: 3 | D11: A | E11: II | F11: 3 | J11: A.II.3 | K11: 3 | N11: 3 | O11: =teksty!$D$856 -> Odsetki i udziały w zyskach (dywidendy)
A12: 262178 | C12: 3 | D12: A | E12: II | F12: 4 | J12: A.II.4 | K12: 4 | N12: 4 | O12: =teksty!$D$857 -> Zysk (strata) z działalności inwestycyjnej
A13: 262178 | C13: 3 | D13: A | E13: II | F13: 5 | J13: A.II.5 | K13: 5 | N13: 5 | O13: =teksty!$D$858 -> Zmiana stanu rezerw
A14: 262178 | C14: 3 | D14: A | E14: II | F14: 6 | J14: A.II.6 | K14: 6 | N14: 6 | O14: =teksty!$D$859 -> Zmiana stanu zapasów
A15: 262178 | C15: 3 | D15: A | E15: II | F15: 7 | J15: A.II.7 | K15: 7 | N15: 7 | O15: =teksty!$D$860 -> Zmiana stanu należności
A16: 262178 | C16: 3 | D16: A | E16: II | F16: 8 | J16: A.II.8 | K16: 8 | N16: 8 | O16: =teksty!$D$861 -> Zmiana stanu zobowiązań krótkoterminowych, z wyjątkiem pożyczek i kredytów
A17: 262178 | C17: 3 | D17: A | E17: II | F17: 9 | J17: A.II.9 | K17: 9 | N17: 9 | O17: =teksty!$D$862 -> Zmiana stanu rozliczeń międzyokresowych
A18: 262178 | C18: 3 | D18: A | E18: II | F18: 10 | J18: A.II.10 | K18: 10 | N18: 10 | O18: =teksty!$D$863 -> Inne korekty
A19: 262178 | C19: 2 | D19: =D18 -> A | E19: III | J19: =D19&"."&E19 -> A.III | K19: =E19 -> III | N19: =K19 -> III | O19: =teksty!$D$864 -> Przepływy pieniężne netto z działalności operacyjnej (I±II) | V19: =V7+V8 -> 0 | W19: =W7+W8 -> 0
A20: 262178 | C20: 1 | D20: B | J20: =$D20 -> B | K20: =D20 -> B | N20: B | O20: =teksty!$D$802 -> Przepływy środków pieniężnych z działalności inwestycyjnej
A21: 262178 | C21: 2 | D21: =D20 -> B | E21: I | J21: =D21&"."&E21 -> B.I | K21: =E21 -> I | N21: =K21 -> I | O21: =teksty!$D$803 -> Wpływy | V21: =V22+V23+V24+V32 -> 0 | W21: =W22+W23+W24+W32 -> 0
A22: 262178 | C22: 3 | D22: =D21 -> B | E22: I | F22: 1 | J22: =D22&"."&E22 & "." & F22 -> B.I.1 | K22: =F22 -> 1 | N22: =K22 -> 1 | O22: =teksty!$D$804 -> Zbycie wartości niematerialnych i prawnych oraz rzeczowych aktywów trwałych
A23: 262178 | C23: 3 | D23: =D22 -> B | E23: I | F23: 2 | J23: =D23&"."&E23 & "." & F23 -> B.I.2 | K23: =F23 -> 2 | N23: =K23 -> 2 | O23: =teksty!$D$805 -> Zbycie inwestycji w nieruchomości oraz wartości niematerialne i prawne
A24: 262178 | C24: 3 | D24: =D23 -> B | E24: I | F24: 3 | J24: =D24&"."&E24 & "." & F24 -> B.I.3 | K24: =F24 -> 3 | N24: =K24 -> 3 | O24: =teksty!$D$806 -> Z aktywów finansowych, w tym: | V24: =V25+V26 -> 0 | W24: =W25+W26 -> 0
A25: 262178 | C25: 4 | D25: =D24 -> B | E25: I | F25: =F24 -> 3 | G25: a | J25: =D25&"."&E25 & "." & F25& "." & G25 -> B.I.3.a | K25: =G25 &")" -> a) | N25: =K25 -> a) | O25: =teksty!$D$807 -> w jednostkach powiązanych
A26: 262178 | C26: 4 | D26: =D25 -> B | E26: I | F26: =F25 -> 3 | G26: b | J26: =D26&"."&E26 & "." & F26& "." & G26 -> B.I.3.b | K26: =G26 &")" -> b) | N26: b) | O26: =teksty!$D$808 -> w pozostałych jednostkach | V26: =V27+V28+V29+V30+V31 -> 0 | W26: =W27+W28+W29+W30+W31 -> 0
A27: 262178 | C27: 5 | D27: =D26 -> B | E27: I | F27: 3 | G27: =G26 -> b | H27: 1 | J27: =$D27&"."&E27&"."&F27&"."&G27&"."&H27 -> B.I.3.b.1 | K27: =H27 & ") " -> 1) | O27: =$K$27&teksty!$D$809 -> 1) zbycie aktywów finansowych
A28: 262178 | C28: 5 | D28: =D27 -> B | E28: I | F28: 3 | G28: =G27 -> b | H28: 2 | J28: =$D28&"."&E28&"."&F28&"."&G28&"."&H28 -> B.I.3.b.2 | K28: =H28 & ") " -> 2) | O28: =$K$28&teksty!$D$810 -> 2) dywidendy i udziały w zyskach
A29: 262178 | C29: 5 | D29: =D28 -> B | E29: I | F29: 3 | G29: =G28 -> b | H29: 3 | J29: =$D29&"."&E29&"."&F29&"."&G29&"."&H29 -> B.I.3.b.3 | K29: =H29 & ") " -> 3) | O29: =$K$29&teksty!$D$811 -> 3) spłata udzielonych pożyczek długoterminowych
A30: 262178 | C30: 5 | D30: =D29 -> B | E30: I | F30: 3 | G30: =G29 -> b | H30: 4 | J30: =$D30&"."&E30&"."&F30&"."&G30&"."&H30 -> B.I.3.b.4 | K30: =H30 & ") " -> 4) | O30: =$K$30&teksty!$D$812 -> 4) odsetki
A31: 262178 | C31: 5 | D31: =D30 -> B | E31: I | F31: 3 | G31: =G30 -> b | H31: 5 | J31: =$D31&"."&E31&"."&F31&"."&G31&"."&H31 -> B.I.3.b.5 | K31: =H31 & ") " -> 5) | O31: =$K$31&teksty!$D$813 -> 5) inne wpływy z aktywów finansowych
A32: 262178 | C32: 3 | D32: =D31 -> B | E32: I | F32: 4 | J32: =D32&"."&E32 & "." & F32 -> B.I.4 | K32: =F32 -> 4 | N32: =K32 -> 4 | O32: =teksty!$D$814 -> Inne wpływy inwestycyjne
A33: 262178 | C33: 2 | D33: =D32 -> B | E33: II | J33: =D33&"."&E33 -> B.II | K33: =E33 -> II | N33: =K33 -> II | O33: =teksty!$D$815 -> Wydatki | V33: =V34+V36+V37+V42 -> 0 | W33: =W34+W36+W37+W42 -> 0
A34: 262178 | C34: 3 | D34: =D33 -> B | E34: II | F34: 1 | I34: =teksty!$D$789 & teksty!$D$284 & 1 -> Rach. Przepływów, koniec strony 1 | J34: =D34&"."&E34 & "." & F34 -> B.II.1 | K34: =F34 -> 1 | N34: =K34 -> 1 | O34: =teksty!$D$816 -> Nabycie wartości niematerialnych i prawnych oraz rzeczowych aktywów trwałych
A35: 262178 | B35: P | C35: 2 | D35: B | E35: II | N35: =teksty!$D$160 & teksty!$D$718 -> metoda pośrednia, c.d. poprzedniej strony | U35: =$U$5 -> za rok: | V35: =$V$5 -> 2017 | W35: =$W$5 -> 2016 | X35: =teksty!$D$292 -> Przekszt. dane porów. za poprzedni okres
A36: 262178 | C36: 3 | D36: =D35 -> B | E36: II | F36: 2 | J36: =D36&"."&E36 & "." & F36 -> B.II.2 | K36: =F36 -> 2 | N36: =K36 -> 2 | O36: =teksty!$D$817 -> Inwestycje w nieruchomości oraz wartości niematerialne i prawne | Z36: =teksty!$D$285 -> ukryty wiersz powyżej zawiera nagłówek dla kolejnej strony
A37: 262178 | C37: 3 | D37: =D36 -> B | E37: II | F37: 3 | J37: =D37&"."&E37 & "." & F37 -> B.II.3 | K37: =F37 -> 3 | N37: =K37 -> 3 | O37: =teksty!$D$819 -> Na aktywa finansowe, w tym: | V37: =V38+V39 -> 0 | W37: =W38+W39 -> 0
A38: 262178 | C38: 4 | D38: =D37 -> B | E38: II | F38: =F37 -> 3 | G38: a | J38: =D38&"."&E38 & "." & F38& "." & G38 -> B.II.3.a | K38: =G38 &")" -> a) | N38: =K38 -> a) | O38: =teksty!$D$820 -> w jednostkach powiązanych
A39: 262178 | C39: 4 | D39: =D38 -> B | E39: II | F39: =F38 -> 3 | G39: b | J39: =D39&"."&E39 & "." & F39& "." & G39 -> B.II.3.b | K39: =G39 &")" -> b) | N39: b) | O39: =teksty!$D$821 -> w pozostałych jednostkach | V39: =V40+V41 -> 0 | W39: =W40+W41 -> 0
A40: 262178 | C40: 5 | D40: =D39 -> B | E40: II | F40: 3 | G40: =G39 -> b | H40: 1 | J40: =$D40&"."&E40&"."&F40&"."&G40&"."&H40 -> B.II.3.b.1 | K40: =H40 & ") " -> 1) | O40: =$K$40&teksty!$D$822 -> 1) nabycie aktywów finansowych
A41: 262178 | C41: 5 | D41: =D40 -> B | E41: II | F41: 3 | G41: =G40 -> b | H41: 2 | J41: =$D41&"."&E41&"."&F41&"."&G41&"."&H41 -> B.II.3.b.2 | K41: =H41 & ") " -> 2) | O41: =$K$41&teksty!$D$823 -> 2) udzielone pożyczki długoterminowe
A42: 262178 | C42: 3 | D42: =D41 -> B | E42: II | F42: 4 | J42: =D42&"."&E42 & "." & F42 -> B.II.4 | K42: =F42 -> 4 | N42: =K42 -> 4 | O42: =teksty!$D$824 -> Inne wydatki inwestycyjne
A43: 262178 | C43: 2 | D43: =D42 -> B | E43: III | J43: =D43&"."&E43 -> B.III | K43: =E43 -> III | N43: =K43 -> III | O43: =teksty!$D$825 -> Przepływy pieniężne netto z działalności inwestycyjnej (I–II) | V43: =V21-V33 -> 0 | W43: =W21-W33 -> 0
A44: 262178 | C44: 1 | D44: C | J44: =$D44 -> C | K44: =D44 -> C | N44: =K44 -> C | O44: =teksty!$D$826 -> Przepływy środków pieniężnych z działalności finansowej
A45: 262178 | C45: 2 | D45: =D44 -> C | E45: I | J45: =D45&"."&E45 -> C.I | K45: =E45 -> I | N45: =K45 -> I | O45: =teksty!$D$827 -> Wpływy | V45: =V46+V47+V48+V49 -> 0 | W45: =W46+W47+W48+W49 -> 0
A46: 262178 | C46: 3 | D46: =D45 -> C | E46: I | F46: 1 | J46: =D46&"."&E46 & "." & F46 -> C.I.1 | K46: =F46 -> 1 | N46: 1 | O46: =teksty!$D$828 -> Wpływy netto z wydania udziałów (emisji akcji) i innych instrumentów kapitałowych oraz dopłat do kapitału
A47: 262178 | C47: 3 | D47: =D46 -> C | E47: I | F47: 2 | J47: =D47&"."&E47 & "." & F47 -> C.I.2 | K47: =F47 -> 2 | N47: 2 | O47: =teksty!$D$829 -> Kredyty i pożyczki
A48: 262178 | C48: 3 | D48: =D47 -> C | E48: I | F48: 3 | J48: =D48&"."&E48 & "." & F48 -> C.I.3 | K48: =F48 -> 3 | N48: 3 | O48: =teksty!$D$830 -> Emisja dłużnych papierów wartościowych
A49: 262178 | C49: 3 | D49: =D48 -> C | E49: I | F49: 4 | J49: =D49&"."&E49 & "." & F49 -> C.I.4 | K49: =F49 -> 4 | N49: 4 | O49: =teksty!$D$831 -> Inne wpływy finansowe
A50: 262178 | C50: 2 | D50: =D49 -> C | E50: II | J50: =D50&"."&E50 -> C.II | K50: =E50 -> II | N50: II | O50: =teksty!$D$832 -> Wydatki | V50: =V51+V52+V53+V54+V55+V56+V57+V58+V59 -> 0 | W50: =W51+W52+W53+W54+W55+W56+W57+W58+W59 -> 0
A51: 262178 | C51: 3 | D51: =D50 -> C | E51: II | F51: 1 | J51: =D51&"."&E51 & "." & F51 -> C.II.1 | K51: =F51 -> 1 | N51: 1 | O51: =teksty!$D$833 -> Nabycie udziałów (akcji) własnych
A52: 262178 | C52: 3 | D52: =D51 -> C | E52: II | F52: 2 | J52: C.II.2 | K52: 2 | N52: 2 | O52: =teksty!$D$834 -> Dywidendy i inne wypłaty na rzecz właścicieli
A53: 262178 | C53: 3 | D53: =D52 -> C | E53: II | F53: 3 | J53: C.II.3 | K53: 3 | N53: 3 | O53: =teksty!$D$835 -> Inne, niż wypłaty na rzecz właścicieli, wydatki z tytułu podziału zysku
A54: 262178 | C54: 3 | D54: =D53 -> C | E54: II | F54: 4 | J54: C.II.4 | K54: 4 | N54: 4 | O54: =teksty!$D$836 -> Spłaty kredytów i pożyczek
A55: 262178 | C55: 3 | D55: =D54 -> C | E55: II | F55: 5 | J55: C.II.5 | K55: 5 | N55: 5 | O55: =teksty!$D$837 -> Wykup dłużnych papierów wartościowych
A56: 262178 | C56: 3 | D56: =D55 -> C | E56: II | F56: 6 | J56: C.II.6 | K56: 6 | N56: 6 | O56: =teksty!$D$838 -> Z tytułu innych zobowiązań finansowych
A57: 262178 | C57: 3 | D57: =D56 -> C | E57: II | F57: 7 | J57: C.II.7 | K57: 7 | N57: 7 | O57: =teksty!$D$839 -> Płatności zobowiązań z tytułu umów leasingu finansowego
A58: 262178 | C58: 3 | D58: =D57 -> C | E58: II | F58: 8 | J58: C.II.8 | K58: 8 | N58: 8 | O58: =teksty!$D$840 -> Odsetki
A59: 262178 | C59: 3 | D59: =D58 -> C | E59: II | F59: 9 | J59: C.II.9 | K59: 9 | N59: 9 | O59: =teksty!$D$841 -> Inne wydatki finansowe
A60: 262178 | C60: 2 | D60: =D59 -> C | E60: III | J60: =D60&"."&E60 -> C.III | K60: =E60 -> III | N60: III | O60: =teksty!$D$842 -> Przepływy pieniężne netto z działalności finansowej (I–II) | V60: =V45-V50 -> 0 | W60: =W45-W50 -> 0
A61: 262178 | C61: 1 | D61: D | J61: =$D61 -> D | K61: =D61 -> D | N61: =K61 -> D | O61: =teksty!$D$843 -> Przepływy pieniężne netto, razem (A.III±B.III±C.III) | V61: =V19+V43+V60 -> 0 | W61: =W19+W43+W60 -> 0 | Z61: =IF(WrfKwot,IF(AND(AF61=0,AG61=0,AH61=0),"=","!"),"") ->  | AA61: =teksty!$D$60 & " " & N62 -> Przepływy E | AB61: =V62 -> 0 | AC61: =W62 -> 0 | AD61: 0 | AF61: =ROUND(IF(ISNUMBER(AB61),V61-AB61,0),2) -> 0 | AG61: =ROUND(IF(ISNUMBER(AC61),W61-AC61,0),2) -> 0 | AH61: =ROUND(IF(ISNUMBER(AD61),X61-AD61,0),2) -> 0
A62: 262178 | C62: 1 | D62: E | J62: =$D62 -> E | K62: =D62 -> E | N62: E | O62: =teksty!$D$844 -> Bilansowa zmiana stanu środków pieniężnych, w tym: | Z62: =IF(WrfKwot,IF(AND(AF62=0,AG62=0,AH62=0),"=","!"),"") ->  | AA62: =IF(AA65="-","-",AA65 & " " & N63 & CHAR(10) & "(" & teksty!$D$788 &")") -> - | AB62: =IF(ISNUMBER(AB65),AB65-AC65,"-") -> - | AF62: =ROUND(IF(ISNUMBER(AB62),V62-AB62,0),2) -> 0 | AG62: =ROUND(IF(ISNUMBER(AC62),W62-AC62,0),2) -> 0 | AH62: =ROUND(IF(ISNUMBER(AD62),X62-AD62,0),2) -> 0
A63: 262178 | C63: 2 | D63: =D62 -> E | E63: 1 | J63: =D63&"."&E63 -> E.1 | O63: =IF($N$63=""," – ") &teksty!$D$845 -> – zmiana stanu środków pieniężnych z tytułu różnic kursowych
A64: 262178 | C64: 1 | D64: F | J64: =$D64 -> F | K64: =D64 -> F | N64: =K64 -> F | O64: =teksty!$D$846 -> Środki pieniężne na początek okresu | V64: 0 | W64: 0 | Z64: =IF(WrfKwot,IF(AND(AF64=0,AG64=0,AH64=0),"=","!"),"") ->  | AA64: =teksty!$D$60 & " " & N65 & CHAR(10) & "(" & LOWER(SUBSTITUTE(teksty!$D$955, CHAR(10), " ")) &")" -> Przepływy G (okres poprzedni) | AB64: =W65 -> 0 | AF64: =ROUND(IF(ISNUMBER(AB64),V64-AB64,0),2) -> 0 | AG64: =ROUND(IF(ISNUMBER(AC64),W64-AC64,0),2) -> 0 | AH64: 0
A65: 262178 | C65: =COUNTA(D65:H65) -> 1 | D65: G | J65: =$D65 -> G | K65: =D65 -> G | N65: G | O65: =teksty!$D$847 -> Środki pieniężne na koniec okresu (F±D), w tym: | V65: =V64+V61 -> 0 | W65: =W64+W61 -> 0 | Z65: =IF(WrfKwot,IF(AND(AF65=0,AG65=0,AH65=0),"=","!"),"") ->  | AA65: =SUBSTITUTE(SUBSTITUTE(SUBSTITUTE(EtykietaNaNazwe(IF(Bilans!WybranyWariant="JednostkaInna",Bilans!$J$88,"-")),"_B"," B"),"_","."),"1.C","1c)") -> - | AB65: =IF(Bilans!WybranyWariant="JednostkaInna",Bilans!V$88,"-") -> - | AC65: =IF(Bilans!WybranyWariant="JednostkaInna",Bilans!W$88,"-") -> - | AD65: =IF(Bilans!WybranyWariant="JednostkaInna",Bilans!X$88,"-") -> - | AF65: =ROUND(IF(ISNUMBER(AB65),V65-AB65,0),2) -> 0 | AG65: 0 | AH65: 0
A66: 262178 | C66: =COUNTA(D66:H66) -> 2 | D66: =D65 -> G | E66: 1 | J66: =D66&"."&E66 -> G.1 | O66: =IF($N$66=""," – ") &teksty!$D$848 -> – o ograniczonej możliwości dysponowania
A67: 0
A68: =(2*65536)+(2+32) -> 131106 | C68: =COUNTA(D68:H68) -> 1 | D68: A | J68: =$D68 -> A | K68: =D68 -> A | N68: =K68 -> A | O68: =teksty!$D$791 -> Przepływy środków pieniężnych z działalności operacyjnej
A69: =A68 -> 131106 | C69: =COUNTA(D69:H69) -> 2 | D69: =D68 -> A | E69: I | J69: =D69&"."&E69 -> A.I | K69: =E69 -> I | N69: I | O69: =teksty!$D$792 -> Wpływy | V69: =V70+V71 -> 0 | W69: =W70+W71 -> 0
A70: =A69 -> 131106 | C70: 3 | D70: =D69 -> A | E70: I | F70: 1 | J70: =D70&"."&E70 & "." & F70 -> A.I.1 | K70: =F70 -> 1 | N70: 1 | O70: =teksty!$D$793 -> Sprzedaż
A71: 131106 | C71: =COUNTA(D71:H71) -> 3 | D71: A | E71: I | F71: 2 | J71: =D71&"."&E71 & "." & F71 -> A.I.2 | K71: =F71 -> 2 | N71: 2 | O71: =teksty!$D$794 -> Inne wpływy z działalności operacyjnej
A72: 131106 | C72: 2 | D72: =D71 -> A | E72: II | J72: =D72&"."&E72 -> A.II | K72: =E72 -> II | N72: II | O72: =teksty!$D$795 -> Wydatki | V72: =V73+V74+V75+V76+V77 -> 0 | W72: =W73+W74+W75+W76+W77 -> 0
A73: 131106 | C73: 3 | D73: A | E73: II | F73: 1 | J73: =D73&"."&E73 & "." & F73 -> A.II.1 | K73: =F73 -> 1 | N73: 1 | O73: =teksty!$D$796 -> Dostawy i usługi
A74: 131106 | C74: =COUNTA(D74:H74) -> 3 | D74: A | E74: II | F74: 2 | J74: =D74&"."&E74 & "." & F74 -> A.II.2 | K74: =F74 -> 2 | N74: 2 | O74: =teksty!$D$797 -> Wynagrodzenia netto
A75: 131106 | C75: 3 | D75: A | E75: II | F75: 3 | J75: =D75&"."&E75 & "." & F75 -> A.II.3 | K75: =F75 -> 3 | N75: 3 | O75: =teksty!$D$798 -> Ubezpieczenia społeczne i zdrowotne oraz inne świadczenia
A76: 131106 | C76: 3 | D76: A | E76: II | F76: 4 | J76: =D76&"."&E76 & "." & F76 -> A.II.4 | K76: =F76 -> 4 | N76: 4 | O76: =teksty!$D$799 -> Podatki i opłaty o charakterze publicznoprawnym
A77: 131106 | C77: 3 | D77: A | E77: II | F77: 5 | J77: =D77&"."&E77 & "." & F77 -> A.II.5 | K77: =F77 -> 5 | N77: 5 | O77: =teksty!$D$800 -> Inne wydatki operacyjne
A78: 131106 | C78: 2 | D78: =D77 -> A | E78: III | J78: =D78&"."&E78 -> A.III | K78: =E78 -> III | N78: III | O78: =teksty!$D$801 -> Przepływy pieniężne netto z działalności operacyjnej (I–II) | V78: =V69-V72 -> 0 | W78: =W69-W72 -> 0
A79: 131106 | C79: 1 | D79: B | J79: =$D79 -> B | K79: =D79 -> B | N79: =K79 -> B | O79: =teksty!$D$802 -> Przepływy środków pieniężnych z działalności inwestycyjnej
A80: 131106 | C80: 2 | D80: =D79 -> B | E80: I | J80: =D80&"."&E80 -> B.I | K80: =E80 -> I | N80: =K80 -> I | O80: =teksty!$D$803 -> Wpływy | V80: =V81+V82+V83+V91 -> 0 | W80: =W81+W82+W83+W91 -> 0
A81: 131106 | C81: 3 | D81: =D80 -> B | E81: I | F81: 1 | J81: =D81&"."&E81 & "." & F81 -> B.I.1 | K81: =F81 -> 1 | N81: =K81 -> 1 | O81: =teksty!$D$804 -> Zbycie wartości niematerialnych i prawnych oraz rzeczowych aktywów trwałych
A82: 131106 | C82: 3 | D82: B | E82: I | F82: 2 | J82: =D82&"."&E82 & "." & F82 -> B.I.2 | K82: =F82 -> 2 | N82: =K82 -> 2 | O82: =teksty!$D$805 -> Zbycie inwestycji w nieruchomości oraz wartości niematerialne i prawne
A83: 131106 | C83: 3 | D83: B | E83: I | F83: 3 | J83: =D83&"."&E83 & "." & F83 -> B.I.3 | K83: =F83 -> 3 | N83: =K83 -> 3 | O83: =teksty!$D$806 -> Z aktywów finansowych, w tym: | V83: =V84+V85 -> 0 | W83: =W84+W85 -> 0
A84: 131106 | C84: 4 | D84: B | E84: I | F84: =F83 -> 3 | G84: a | J84: =D84&"."&E84 & "." & F84& "." & G84 -> B.I.3.a | K84: =G84 &")" -> a) | N84: =K84 -> a) | O84: =teksty!$D$807 -> w jednostkach powiązanych
A85: 131106 | C85: 4 | D85: B | E85: I | F85: =F84 -> 3 | G85: b | J85: =D85&"."&E85 & "." & F85& "." & G85 -> B.I.3.b | K85: =G85 &")" -> b) | N85: =K85 -> b) | O85: =teksty!$D$808 -> w pozostałych jednostkach | V85: =V86+V87+V88+V89+V90 -> 0 | W85: =W86+W87+W88+W89+W90 -> 0
A86: 131106 | C86: 5 | D86: B | E86: I | F86: 3 | G86: =G85 -> b | H86: 1 | J86: =$D86&"."&E86&"."&F86&"."&G86&"."&H86 -> B.I.3.b.1 | K86: =H86 & ") " -> 1) | O86: =$K$86&teksty!$D$809 -> 1) zbycie aktywów finansowych
A87: 131106 | C87: 5 | D87: B | E87: I | F87: 3 | G87: =G86 -> b | H87: 2 | J87: =$D87&"."&E87&"."&F87&"."&G87&"."&H87 -> B.I.3.b.2 | K87: =H87 & ") " -> 2) | O87: =$K$87&teksty!$D$810 -> 2) dywidendy i udziały w zyskach
A88: 131106 | C88: 5 | D88: B | E88: I | F88: 3 | G88: =G87 -> b | H88: 3 | J88: =$D88&"."&E88&"."&F88&"."&G88&"."&H88 -> B.I.3.b.3 | K88: =H88 & ") " -> 3) | O88: =$K$88&teksty!$D$811 -> 3) spłata udzielonych pożyczek długoterminowych
A89: 131106 | C89: 5 | D89: B | E89: I | F89: 3 | G89: =G88 -> b | H89: 4 | J89: =$D89&"."&E89&"."&F89&"."&G89&"."&H89 -> B.I.3.b.4 | K89: =H89 & ") " -> 4) | O89: =$K$89&teksty!$D$812 -> 4) odsetki
A90: 131106 | C90: 5 | D90: B | E90: I | F90: 3 | G90: =G89 -> b | H90: 5 | J90: =$D90&"."&E90&"."&F90&"."&G90&"."&H90 -> B.I.3.b.5 | K90: =H90 & ") " -> 5) | O90: =$K$90&teksty!$D$813 -> 5) inne wpływy z aktywów finansowych
A91: 131106 | C91: 3 | D91: B | E91: I | F91: 4 | J91: =D91&"."&E91 & "." & F91 -> B.I.4 | K91: =F91 -> 4 | N91: =K91 -> 4 | O91: =teksty!$D$814 -> Inne wpływy inwestycyjne
A92: 131106 | C92: 2 | D92: =D91 -> B | E92: II | J92: =D92&"."&E92 -> B.II | K92: =E92 -> II | N92: =K92 -> II | O92: =teksty!$D$815 -> Wydatki | V92: =V93+V94+V96+V101 -> 0 | W92: =W93+W94+W96+W101 -> 0
A93: 131106 | C93: 3 | D93: B | E93: II | F93: 1 | J93: =D93&"."&E93 & "." & F93 -> B.II.1 | K93: =F93 -> 1 | N93: =K93 -> 1 | O93: =teksty!$D$816 -> Nabycie wartości niematerialnych i prawnych oraz rzeczowych aktywów trwałych
A94: 131106 | C94: 3 | D94: B | E94: II | F94: 2 | I94: =teksty!$D$789 & teksty!$D$284 & 1 -> Rach. Przepływów, koniec strony 1 | J94: =D94&"."&E94 & "." & F94 -> B.II.2 | K94: =F94 -> 2 | N94: =K94 -> 2 | O94: =teksty!$D$817 -> Inwestycje w nieruchomości oraz wartości niematerialne i prawne
A95: 131106 | B95: P | C95: 2 | D95: B | E95: II | N95: =teksty!$D$159 & teksty!$D$718 -> metoda bezpośrednia, c.d. poprzedniej strony | U95: =$U$5 -> za rok: | V95: =$V$5 -> 2017 | W95: =$W$5 -> 2016 | X95: =teksty!$D$292 -> Przekszt. dane porów. za poprzedni okres
A96: 131106 | C96: 3 | D96: B | E96: II | F96: 3 | J96: =D96&"."&E96 & "." & F96 -> B.II.3 | K96: =F96 -> 3 | N96: =K96 -> 3 | O96: =teksty!$D$819 -> Na aktywa finansowe, w tym: | V96: =V97+V98 -> 0 | W96: =W97+W98 -> 0 | Z96: =teksty!$D$285 -> ukryty wiersz powyżej zawiera nagłówek dla kolejnej strony
A97: 131106 | C97: 4 | D97: B | E97: II | F97: =F96 -> 3 | G97: a | J97: =D97&"."&E97 & "." & F97& "." & G97 -> B.II.3.a | K97: =G97 &")" -> a) | N97: =K97 -> a) | O97: =teksty!$D$820 -> w jednostkach powiązanych
A98: 131106 | C98: 4 | D98: B | E98: II | F98: =F97 -> 3 | G98: b | J98: =D98&"."&E98 & "." & F98& "." & G98 -> B.II.3.b | K98: =G98 &")" -> b) | N98: b) | O98: =teksty!$D$821 -> w pozostałych jednostkach | V98: =V99+V100 -> 0 | W98: =W99+W100 -> 0
A99: 131106 | C99: 5 | D99: =D98 -> B | E99: II | F99: 3 | G99: =G98 -> b | H99: 1 | J99: =$D99&"."&E99&"."&F99&"."&G99&"."&H99 -> B.II.3.b.1 | K99: =H99 & ") " -> 1) | O99: =$K$99&teksty!$D$822 -> 1) nabycie aktywów finansowych
A100: 131106 | C100: 5 | D100: =D99 -> B | E100: II | F100: 3 | G100: =G99 -> b | H100: 2 | J100: =$D100&"."&E100&"."&F100&"."&G100&"."&H100 -> B.II.3.b.2 | K100: =H100 & ") " -> 2) | O100: =$K$100&teksty!$D$823 -> 2) udzielone pożyczki długoterminowe
A101: 131106 | C101: 3 | D101: B | E101: II | F101: 4 | J101: =D101&"."&E101 & "." & F101 -> B.II.4 | K101: =F101 -> 4 | N101: =K101 -> 4 | O101: =teksty!$D$824 -> Inne wydatki inwestycyjne
A102: 131106 | C102: 2 | D102: =D101 -> B | E102: III | J102: =D102&"."&E102 -> B.III | K102: =E102 -> III | N102: =K102 -> III | O102: =teksty!$D$825 -> Przepływy pieniężne netto z działalności inwestycyjnej (I–II) | V102: =V80-V92 -> 0 | W102: =W80-W92 -> 0
A103: 131106 | C103: 1 | D103: C | J103: =$D103 -> C | K103: =D103 -> C | N103: =K103 -> C | O103: =teksty!$D$826 -> Przepływy środków pieniężnych z działalności finansowej
A104: 131106 | C104: 2 | D104: =D103 -> C | E104: I | J104: =D104&"."&E104 -> C.I | K104: =E104 -> I | N104: =K104 -> I | O104: =teksty!$D$827 -> Wpływy | V104: =V105+V106+V107+V108 -> 0 | W104: =W105+W106+W107+W108 -> 0
A105: 131106 | C105: 3 | D105: =D104 -> C | E105: I | F105: 1 | J105: =D105&"."&E105 & "." & F105 -> C.I.1 | K105: =F105 -> 1 | N105: 1 | O105: =teksty!$D$828 -> Wpływy netto z wydania udziałów (emisji akcji) i innych instrumentów kapitałowych oraz dopłat do kapitału
A106: 131106 | C106: 3 | D106: C | E106: I | F106: 2 | J106: =D106&"."&E106 & "." & F106 -> C.I.2 | K106: =F106 -> 2 | N106: 2 | O106: =teksty!$D$829 -> Kredyty i pożyczki
A107: 131106 | C107: 3 | D107: C | E107: I | F107: 3 | J107: =D107&"."&E107 & "." & F107 -> C.I.3 | K107: =F107 -> 3 | N107: 3 | O107: =teksty!$D$830 -> Emisja dłużnych papierów wartościowych
A108: 131106 | C108: =COUNTA(D108:H108) -> 3 | D108: C | E108: I | F108: 4 | J108: =D108&"."&E108 & "." & F108 -> C.I.4 | K108: =F108 -> 4 | N108: 4 | O108: =teksty!$D$831 -> Inne wpływy finansowe
A109: 131106 | C109: 2 | D109: =D108 -> C | E109: II | J109: =D109&"."&E109 -> C.II | K109: =E109 -> II | N109: II | O109: =teksty!$D$832 -> Wydatki | V109: =V110+V111+V112+V113+V114+V115+V116+V117+V118 -> 0 | W109: =W110+W111+W112+W113+W114+W115+W116+W117+W118 -> 0
A110: 131106 | C110: 3 | D110: C | E110: II | F110: 1 | J110: =D110&"."&E110 & "." & F110 -> C.II.1 | K110: =F110 -> 1 | N110: 1 | O110: =teksty!$D$833 -> Nabycie udziałów (akcji) własnych
A111: 131106 | C111: =COUNTA(D111:H111) -> 3 | D111: C | E111: II | F111: 2 | J111: C.II.2 | K111: 2 | N111: 2 | O111: =teksty!$D$834 -> Dywidendy i inne wypłaty na rzecz właścicieli
A112: 131106 | C112: =COUNTA(D112:H112) -> 3 | D112: C | E112: II | F112: 3 | J112: C.II.3 | K112: 3 | N112: 3 | O112: =teksty!$D$835 -> Inne, niż wypłaty na rzecz właścicieli, wydatki z tytułu podziału zysku
A113: 131106 | C113: 3 | D113: C | E113: II | F113: 4 | J113: C.II.4 | K113: 4 | N113: 4 | O113: =teksty!$D$836 -> Spłaty kredytów i pożyczek
A114: 131106 | C114: 3 | D114: C | E114: II | F114: 5 | J114: C.II.5 | K114: 5 | N114: 5 | O114: =teksty!$D$837 -> Wykup dłużnych papierów wartościowych
A115: 131106 | C115: 3 | D115: C | E115: II | F115: 6 | J115: C.II.6 | K115: 6 | N115: 6 | O115: =teksty!$D$838 -> Z tytułu innych zobowiązań finansowych
A116: 131106 | C116: 3 | D116: C | E116: II | F116: 7 | J116: C.II.7 | K116: 7 | N116: 7 | O116: =teksty!$D$839 -> Płatności zobowiązań z tytułu umów leasingu finansowego
A117: 131106 | C117: =COUNTA(D117:H117) -> 3 | D117: C | E117: II | F117: 8 | J117: C.II.8 | K117: 8 | N117: 8 | O117: =teksty!$D$840 -> Odsetki
A118: 131106 | C118: 3 | D118: C | E118: II | F118: 9 | J118: C.II.9 | K118: 9 | N118: 9 | O118: =teksty!$D$841 -> Inne wydatki finansowe
A119: 131106 | C119: =COUNTA(D119:H119) -> 2 | D119: =D118 -> C | E119: III | J119: =D119&"."&E119 -> C.III | K119: =E119 -> III | N119: III | O119: =teksty!$D$842 -> Przepływy pieniężne netto z działalności finansowej (I–II) | V119: =V104-V109 -> 0 | W119: =W104-W109 -> 0
A120: 131106 | C120: 1 | D120: D | J120: =$D120 -> D | K120: =D120 -> D | N120: =K120 -> D | O120: =teksty!$D$843 -> Przepływy pieniężne netto, razem (A.III±B.III±C.III) | V120: =V78+V102+V119 -> 0 | W120: =W78+W102+W119 -> 0 | Z120: =IF(WrfKwot,IF(AND(AF120=0,AG120=0,AH120=0),"=","!"),"") ->  | AA120: =teksty!$D$60 & " " & N121 -> Przepływy E | AB120: =V121 -> 0 | AC120: =W121 -> 0 | AD120: =X121 -> 0 | AF120: =ROUND(IF(ISNUMBER(AB120),V120-AB120,0),2) -> 0 | AG120: =ROUND(IF(ISNUMBER(AC120),W120-AC120,0),2) -> 0 | AH120: =ROUND(IF(ISNUMBER(AD120),X120-AD120,0),2) -> 0
A121: 131106 | C121: =COUNTA(D121:H121) -> 1 | D121: E | J121: =$D121 -> E | K121: =D121 -> E | N121: =K121 -> E | O121: =teksty!$D$844 -> Bilansowa zmiana stanu środków pieniężnych, w tym: | Z121: =IF(WrfKwot,IF(AND(AF121=0,AG121=0,AH121=0),"=","!"),"") ->  | AA121: =IF(AA124="-","-",AA124 & " " & N122 & CHAR(10) & "(" & teksty!$D$788 &")") -> - | AB121: =IF(ISNUMBER(AB124),AB124-AC124,"-") -> - | AF121: =ROUND(IF(ISNUMBER(AB121),V121-AB121,0),2) -> 0 | AG121: 0 | AH121: 0
A122: 131106 | C122: 2 | D122: =D121 -> E | E122: 1 | J122: =D122&"."&E122 -> E.1 | O122: =IF($N$122=""," – ") &teksty!$D$845 -> – zmiana stanu środków pieniężnych z tytułu różnic kursowych
A123: 131106 | C123: =COUNTA(D123:H123) -> 1 | D123: F | J123: =$D123 -> F | K123: =D123 -> F | N123: =K123 -> F | O123: =teksty!$D$846 -> Środki pieniężne na początek okresu | V123: 0 | W123: 0 | Z123: =IF(WrfKwot,IF(AND(AF123=0,AG123=0,AH123=0),"=","!"),"") ->  | AA123: =teksty!$D$60 & " " & N124 & CHAR(10) & "(" & LOWER(SUBSTITUTE(teksty!$D$955, CHAR(10), " ")) &")" -> Przepływy G (okres poprzedni) | AB123: =W124 -> 0 | AF123: =ROUND(IF(ISNUMBER(AB123),V123-AB123,0),2) -> 0 | AG123: =ROUND(IF(ISNUMBER(AC123),W123-AC123,0),2) -> 0 | AH123: =ROUND(IF(ISNUMBER(AD123),X123-AD123,0),2) -> 0
A124: 131106 | C124: 1 | D124: G | J124: =$D124 -> G | K124: =D124 -> G | N124: =K124 -> G | O124: =teksty!$D$847 -> Środki pieniężne na koniec okresu (F±D), w tym: | V124: =V123+V120 -> 0 | W124: =W123+W120 -> 0 | Z124: =IF(WrfKwot,IF(AND(AF124=0,AG124=0,AH124=0),"=","!"),"") ->  | AA124: =SUBSTITUTE(SUBSTITUTE(SUBSTITUTE(EtykietaNaNazwe(IF(Bilans!WybranyWariant="JednostkaInna",Bilans!$J$88,"-")),"_B"," B"),"_","."),"1.C","1c)") -> - | AB124: =IF(Bilans!WybranyWariant="JednostkaInna",Bilans!V$88,"-") -> - | AC124: =IF(Bilans!WybranyWariant="JednostkaInna",Bilans!W$88,"-") -> - | AD124: =IF(Bilans!WybranyWariant="JednostkaInna",Bilans!X$88,"-") -> - | AF124: =ROUND(IF(ISNUMBER(AB124),V124-AB124,0),2) -> 0 | AG124: 0 | AH124: 0
A125: 131106 | C125: 2 | D125: =D124 -> G | E125: 1 | J125: =D125&"."&E125 -> G.1 | O125: =IF($N$125=""," – ") &teksty!$D$848 -> – o ograniczonej możliwości dysponowania
A126: 131106
A127: 0 | I127: Skonsolidowana:
A128: =(4*65536)+64 -> 262208 | C128: =COUNTA(D128:H128) -> 1 | D128: A | J128: =$D128 -> A | K128: =D128 -> A | N128: =K128 -> A | O128: =teksty!$D$851 -> Przepływy środków pieniężnych z działalności operacyjnej
A129: =A128 -> 262208 | C129: 2 | D129: =D128 -> A | E129: I | J129: =D129&"."&E129 -> A.I | K129: =E129 -> I | N129: I | O129: =teksty!$D$852 -> Zysk (strata) netto | V129: 235551 | W129: 531566 | Z129: =IF(WrfKwot,IF(AND(AF129=0,AG129=0,AH129=0),"=","!"),"") ->  | AA129: =SUBSTITUTE(SUBSTITUTE(EtykietaNaNazwe(Bilans!$J$394),"_A"," A"),"_",".") -> Pasywa A.VII | AB129: =Bilans!$V$394 -> 235551 | AC129: =Bilans!$W$394 -> 531566 | AD129: =Bilans!$X$394 -> 0 | AF129: =ROUND(V129-AB129,2) -> 0 | AG129: =ROUND(W129-AC129,2) -> 0 | AH129: 0
A130: =A129 -> 262208 | C130: 2 | D130: =D129 -> A | E130: II | J130: A.II | K130: =E130 -> II | N130: II | O130: =teksty!$D$853 -> Korekty razem | V130: =V131+V132+V133+V134+V135+V136+V137+V138+V139+V140+V141+V142+V143+V144 -> 253020 | W130: =W131+W132+W133+W134+W135+W136+W137+W138+W139+W140+W141+W142+W143+W144 -> 483141
A131: =A128 -> 262208 | C131: 3 | D131: =D128 -> A | E131: =E130 -> II | F131: 1 | J131: =D131&"."&E131 & "." & F131 -> A.II.1 | K131: =F131 -> 1 | N131: 1 | O131: =teksty!$D$869 -> Zyski (straty) mniejszości | V131: 221179 | W131: 386141
A132: 262208 | C132: =COUNTA(D132:H132) -> 3 | D132: A | E132: =E131 -> II | F132: 2 | J132: =D132&"."&E132 & "." & F132 -> A.II.2 | K132: =F132 -> 2 | N132: =K132 -> 2 | O132: =teksty!$D$870 -> Zysk (strata) z udziałów (akcji) w jednostkach wycenianych metodą praw własności | V132: -415 | W132: -1179
A133: 262208 | C133: 3 | D133: A | E133: II | F133: 3 | J133: =D133&"."&E133 & "." & F133 -> A.II.3 | K133: =F133 -> 3 | N133: 3 | O133: =teksty!$D$854 -> Amortyzacja | V133: 131903 | W133: 124983
A134: 262208 | C134: 3 | D134: A | E134: II | F134: 4 | J134: A.II.4 | K134: 4 | N134: 4 | O134: =teksty!$D$871 -> Odpisy wartości firmy
A135: 262208 | C135: =COUNTA(D135:H135) -> 3 | D135: A | E135: =E132 -> II | F135: 5 | J135: =D135&"."&E135 & "." & F135 -> A.II.5 | K135: =F135 -> 5 | N135: =K135 -> 5 | O135: =teksty!$D$872 -> Odpisy ujemnej wartości firmy | V135: 13463 | W135: 0
A136: 262208 | C136: 3 | D136: A | E136: =E135 -> II | F136: 6 | J136: A.II.6 | K136: 6 | N136: 6 | O136: =teksty!$D$855 -> Zyski (straty) z tytułu różnic kursowych | V136: -45889 | W136: 19643
A137: 262208 | C137: 3 | D137: =D136 -> A | E137: II | F137: 7 | J137: A.II.7 | K137: 7 | N137: 7 | O137: =teksty!$D$856 -> Odsetki i udziały w zyskach (dywidendy) | V137: 48509 | W137: -31211
A138: 262208 | C138: 3 | D138: =D137 -> A | E138: II | F138: 8 | J138: A.II.8 | K138: 8 | N138: 8 | O138: =teksty!$D$857 -> Zysk (strata) z działalności inwestycyjnej | V138: 18037 | W138: -47828
A139: 262208 | C139: 3 | D139: =D138 -> A | E139: II | F139: 9 | J139: A.II.9 | K139: 9 | N139: 9 | O139: =teksty!$D$858 -> Zmiana stanu rezerw | V139: 52539 | W139: 37412
A140: 262208 | C140: 3 | D140: =D139 -> A | E140: II | F140: 10 | J140: A.II.10 | K140: 10 | N140: 10 | O140: =teksty!$D$859 -> Zmiana stanu zapasów | V140: -13524 | W140: -17328
A141: 262208 | C141: 3 | D141: =D140 -> A | E141: II | F141: 11 | J141: A.II.11 | K141: 11 | N141: 11 | O141: =teksty!$D$860 -> Zmiana stanu należności | V141: -7732 | W141: 3744
A142: 262208 | C142: 3 | D142: =D141 -> A | E142: II | F142: 12 | J142: A.II.12 | K142: 12 | N142: 12 | O142: =teksty!$D$861 -> Zmiana stanu zobowiązań krótkoterminowych, z wyjątkiem pożyczek i kredytów | V142: -148288 | W142: -43259
A143: 262208 | C143: 3 | D143: =D142 -> A | E143: II | F143: 13 | J143: A.II.13 | K143: 13 | N143: 13 | O143: =teksty!$D$862 -> Zmiana stanu rozliczeń międzyokresowych | V143: -16762 | W143: 43209
A144: 262208 | C144: 3 | D144: =D143 -> A | E144: II | F144: 14 | J144: A.II.14 | K144: 14 | N144: 14 | O144: =teksty!$D$863 -> Inne korekty | V144: 0 | W144: 8814
A145: 262208 | C145: 2 | D145: A | E145: III | J145: =D145&"."&E145 -> A.III | K145: =E145 -> III | N145: III | O145: =teksty!$D$864 -> Przepływy pieniężne netto z działalności operacyjnej (I±II) | V145: =V129+V130 -> 488571 | W145: =W129+W130 -> 1014707
A146: 262208 | C146: 1 | D146: B | J146: =$D146 -> B | K146: =D146 -> B | N146: B | O146: =teksty!$D$802 -> Przepływy środków pieniężnych z działalności inwestycyjnej
A147: 262208 | C147: 2 | D147: =D146 -> B | E147: I | J147: =D147&"."&E147 -> B.I | K147: =E147 -> I | N147: =K147 -> I | O147: =teksty!$D$803 -> Wpływy | V147: =V148+V149+V150+V159 -> 130607 | W147: =W148+W149+W150+W159 -> 605549
A148: 262208 | C148: 3 | D148: =D147 -> B | E148: I | F148: 1 | J148: =D148&"."&E148 & "." & F148 -> B.I.1 | K148: =F148 -> 1 | N148: =K148 -> 1 | O148: =teksty!$D$804 -> Zbycie wartości niematerialnych i prawnych oraz rzeczowych aktywów trwałych | V148: 46671 | W148: 5017
A149: 262208 | C149: 3 | D149: =D148 -> B | E149: I | F149: 2 | J149: =D149&"."&E149 & "." & F149 -> B.I.2 | K149: =F149 -> 2 | N149: =K149 -> 2 | O149: =teksty!$D$805 -> Zbycie inwestycji w nieruchomości oraz wartości niematerialne i prawne
A150: 262208 | C150: 3 | D150: =D149 -> B | E150: I | F150: 3 | J150: =D150&"."&E150 & "." & F150 -> B.I.3 | K150: =F150 -> 3 | N150: =K150 -> 3 | O150: =teksty!$D$806 -> Z aktywów finansowych, w tym: | V150: =V151+V152 -> 83936 | W150: =W151+W152 -> 600169
A151: 262208 | C151: 4 | D151: =D150 -> B | E151: I | F151: =F150 -> 3 | G151: a | J151: =D151&"."&E151 & "." & F151& "." & G151 -> B.I.3.a | K151: =G151 &")" -> a) | N151: =K151 -> a) | O151: =teksty!$D$873 -> w jednostkach wycenianych metodą praw własności
A152: 262208 | C152: 4 | D152: =D151 -> B | E152: I | F152: =F151 -> 3 | G152: b | J152: =D152&"."&E152 & "." & F152& "." & G152 -> B.I.3.b | K152: =G152 &")" -> b) | N152: b) | O152: =teksty!$D$808 -> w pozostałych jednostkach | V152: =V153+V154+V155+V156+V158 -> 83936 | W152: =W153+W154+W155+W156+W158 -> 600169
A153: 262208 | C153: 5 | D153: =D152 -> B | E153: I | F153: 3 | G153: =G152 -> b | H153: 1 | J153: =$D153&"."&E153&"."&F153&"."&G153&"."&H153 -> B.I.3.b.1 | K153: =H153 & ") " -> 1) | O153: =$K$27&teksty!$D$809 -> 1) zbycie aktywów finansowych | V153: 0 | W153: 209796
A154: 262208 | C154: 5 | D154: =D153 -> B | E154: I | F154: 3 | G154: =G153 -> b | H154: 2 | J154: =$D154&"."&E154&"."&F154&"."&G154&"."&H154 -> B.I.3.b.2 | K154: =H154 & ") " -> 2) | O154: =$K$28&teksty!$D$810 -> 2) dywidendy i udziały w zyskach | V154: 4936 | W154: 4643
A155: 262208 | C155: 5 | D155: =D154 -> B | E155: I | F155: 3 | G155: =G154 -> b | H155: 3 | J155: =$D155&"."&E155&"."&F155&"."&G155&"."&H155 -> B.I.3.b.3 | K155: =H155 & ") " -> 3) | O155: =$K$29&teksty!$D$811 -> 3) spłata udzielonych pożyczek długoterminowych | V155: 64058 | W155: 370998
A156: 262208 | C156: 5 | D156: =D155 -> B | E156: I | F156: 3 | G156: =G155 -> b | H156: 4 | I156: =teksty!$D$789 & teksty!$D$284 & 1 -> Rach. Przepływów, koniec strony 1 | J156: =$D156&"."&E156&"."&F156&"."&G156&"."&H156 -> B.I.3.b.4 | K156: =H156 & ") " -> 4) | O156: =$K$30&teksty!$D$812 -> 4) odsetki | V156: 12342 | W156: 14641
A157: =A161 -> 262208 | B157: P | C157: =COUNTA(D157:H157) -> 2 | D157: =D161 -> B | E157: =E161 -> II | N157: =teksty!$D$160 & teksty!$D$718 -> metoda pośrednia, c.d. poprzedniej strony | U157: =$U$5 -> za rok: | V157: =$V$5 -> 2017 | W157: =$W$5 -> 2016 | X157: =teksty!$D$292 -> Przekszt. dane porów. za poprzedni okres
A158: =A156 -> 262208 | C158: 5 | D158: =D156 -> B | E158: I | F158: 3 | G158: =G156 -> b | H158: 5 | J158: =$D158&"."&E158&"."&F158&"."&G158&"."&H158 -> B.I.3.b.5 | K158: =H158 & ") " -> 5) | O158: =$K$31&teksty!$D$813 -> 5) inne wpływy z aktywów finansowych | V158: 2600 | W158: 91 | Z158: =teksty!$D$285 -> ukryty wiersz powyżej zawiera nagłówek dla kolejnej strony
A159: 262208 | C159: 3 | D159: =D158 -> B | E159: I | F159: 4 | J159: =D159&"."&E159 & "." & F159 -> B.I.4 | K159: =F159 -> 4 | N159: =K159 -> 4 | O159: =teksty!$D$814 -> Inne wpływy inwestycyjne | V159: 0 | W159: 363
A160: 262208 | C160: 2 | D160: =D159 -> B | E160: II | J160: =D160&"."&E160 -> B.II | K160: =E160 -> II | N160: =K160 -> II | O160: =teksty!$D$815 -> Wydatki | V160: =V161+V162+V163+V168+V169 -> 500901 | W160: =W161+W162+W163+W168+W169 -> 487192
A161: 262208 | C161: 3 | D161: =D160 -> B | E161: II | F161: 1 | J161: =D161&"."&E161 & "." & F161 -> B.II.1 | K161: =F161 -> 1 | N161: =K161 -> 1 | O161: =teksty!$D$816 -> Nabycie wartości niematerialnych i prawnych oraz rzeczowych aktywów trwałych | V161: 231395 | W161: 397921
A162: =A157 -> 262208 | C162: 3 | D162: =D157 -> B | E162: =E157 -> II | F162: 2 | J162: =D162&"."&E162 & "." & F162 -> B.II.2 | K162: =F162 -> 2 | N162: =K162 -> 2 | O162: =teksty!$D$817 -> Inwestycje w nieruchomości oraz wartości niematerialne i prawne | V162: 5925 | W162: 4980
A163: 262208 | C163: 3 | D163: =D162 -> B | E163: II | F163: 3 | J163: =D163&"."&E163 & "." & F163 -> B.II.3 | K163: =F163 -> 3 | N163: =K163 -> 3 | O163: =teksty!$D$819 -> Na aktywa finansowe, w tym: | V163: =V164+V165 -> 214181 | W163: =W164+W165 -> 84105
A164: 262208 | C164: 4 | D164: =D163 -> B | E164: II | F164: =F163 -> 3 | G164: a | J164: =D164&"."&E164 & "." & F164& "." & G164 -> B.II.3.a | K164: =G164 &")" -> a) | N164: =K164 -> a) | O164: =teksty!$D$873 -> w jednostkach wycenianych metodą praw własności
A165: 262208 | C165: 4 | D165: =D164 -> B | E165: II | F165: =F164 -> 3 | G165: b | J165: =D165&"."&E165 & "." & F165& "." & G165 -> B.II.3.b | K165: =G165 &")" -> b) | N165: b) | O165: =teksty!$D$821 -> w pozostałych jednostkach | V165: =V166+V167 -> 214181 | W165: =W166+W167 -> 84105
A166: 262208 | C166: 5 | D166: =D165 -> B | E166: II | F166: 3 | G166: =G165 -> b | H166: 1 | J166: =$D166&"."&E166&"."&F166&"."&G166&"."&H166 -> B.II.3.b.1 | K166: =H166 & ") " -> 1) | O166: =$K$40&teksty!$D$822 -> 1) nabycie aktywów finansowych | V166: 211323 | W166: 5102
A167: 262208 | C167: 5 | D167: =D166 -> B | E167: II | F167: 3 | G167: =G166 -> b | H167: 2 | J167: =$D167&"."&E167&"."&F167&"."&G167&"."&H167 -> B.II.3.b.2 | K167: =H167 & ") " -> 2) | O167: =$K$41&teksty!$D$823 -> 2) udzielone pożyczki długoterminowe | V167: 2858 | W167: 79003
A168: =A166 -> 262208 | C168: =COUNTA(D168:H168) -> 3 | D168: =D166 -> B | E168: II | F168: 4 | J168: =D168&"."&E168 & "." & F168 -> B.II.4 | K168: =F168 -> 4 | N168: =K168 -> 4 | O168: =teksty!$D$867 -> Dywidendy i inne udziały w zyskach wypłacone udziałowcom (akcjonariuszom) mniejszościowym
A169: =A167 -> 262208 | C169: 3 | D169: B | E169: II | F169: 5 | J169: =D169&"."&E169 & "." & F169 -> B.II.5 | K169: =F169 -> 5 | N169: =K169 -> 5 | O169: =teksty!$D$824 -> Inne wydatki inwestycyjne | V169: 49400 | W169: 186
A170: 262208 | C170: 2 | D170: =D169 -> B | E170: III | J170: =D170&"."&E170 -> B.III | K170: =E170 -> III | N170: =K170 -> III | O170: =teksty!$D$825 -> Przepływy pieniężne netto z działalności inwestycyjnej (I–II) | V170: =V147-V160 -> -370294 | W170: =W147-W160 -> 118357
A171: 262208 | C171: 1 | D171: C | J171: =$D171 -> C | K171: =D171 -> C | N171: =K171 -> C | O171: =teksty!$D$826 -> Przepływy środków pieniężnych z działalności finansowej
A172: 262208 | C172: 2 | D172: =D171 -> C | E172: I | J172: =D172&"."&E172 -> C.I | K172: =E172 -> I | N172: I | O172: =teksty!$D$827 -> Wpływy | V172: =V173+V174+V175+V176 -> 7157 | W172: =W173+W174+W175+W176 -> 42257
A173: 262208 | C173: 3 | D173: =D172 -> C | E173: I | F173: 1 | J173: =D173&"."&E173 & "." & F173 -> C.I.1 | K173: =F173 -> 1 | N173: 1 | O173: =teksty!$D$828 -> Wpływy netto z wydania udziałów (emisji akcji) i innych instrumentów kapitałowych oraz dopłat do kapitału
A174: 262208 | C174: 3 | D174: =D173 -> C | E174: I | F174: 2 | J174: =D174&"."&E174 & "." & F174 -> C.I.2 | K174: =F174 -> 2 | N174: 2 | O174: =teksty!$D$829 -> Kredyty i pożyczki | V174: 4161 | W174: 42127
A175: 262208 | C175: 3 | D175: =D174 -> C | E175: I | F175: 3 | J175: =D175&"."&E175 & "." & F175 -> C.I.3 | K175: =F175 -> 3 | N175: 3 | O175: =teksty!$D$830 -> Emisja dłużnych papierów wartościowych
A176: 262208 | C176: 3 | D176: =D175 -> C | E176: I | F176: 4 | J176: =D176&"."&E176 & "." & F176 -> C.I.4 | K176: =F176 -> 4 | N176: 4 | O176: =teksty!$D$831 -> Inne wpływy finansowe | V176: 2996 | W176: 130
A177: 262208 | C177: 2 | D177: =D176 -> C | E177: II | J177: =D177&"."&E177 -> C.II | K177: =E177 -> II | N177: II | O177: =teksty!$D$832 -> Wydatki | V177: =V178+V179+V180+V181+V182+V183+V184+V185+V186 -> 429806 | W177: =W178+W179+W180+W181+W182+W183+W184+W185+W186 -> 502488
A178: 262208 | C178: 3 | D178: =D177 -> C | E178: II | F178: 1 | J178: =D178&"."&E178 & "." & F178 -> C.II.1 | K178: =F178 -> 1 | N178: 1 | O178: =teksty!$D$833 -> Nabycie udziałów (akcji) własnych
A179: 262208 | C179: 3 | D179: =D178 -> C | E179: II | F179: 2 | J179: C.II.2 | K179: 2 | N179: 2 | O179: =teksty!$D$834 -> Dywidendy i inne wypłaty na rzecz właścicieli | V179: 382 | W179: 761
A180: 262208 | C180: 3 | D180: =D179 -> C | E180: II | F180: 3 | J180: C.II.3 | K180: 3 | N180: 3 | O180: =teksty!$D$835 -> Inne, niż wypłaty na rzecz właścicieli, wydatki z tytułu podziału zysku
A181: 262208 | C181: 3 | D181: =D180 -> C | E181: II | F181: 4 | J181: C.II.4 | K181: 4 | N181: 4 | O181: =teksty!$D$836 -> Spłaty kredytów i pożyczek | V181: 336150 | W181: 371136
A182: 262208 | C182: 3 | D182: =D181 -> C | E182: II | F182: 5 | J182: C.II.5 | K182: 5 | N182: 5 | O182: =teksty!$D$837 -> Wykup dłużnych papierów wartościowych
A183: 262208 | C183: 3 | D183: =D182 -> C | E183: II | F183: 6 | J183: C.II.6 | K183: 6 | N183: 6 | O183: =teksty!$D$838 -> Z tytułu innych zobowiązań finansowych
A184: 262208 | C184: 3 | D184: =D183 -> C | E184: II | F184: 7 | J184: C.II.7 | K184: 7 | N184: 7 | O184: =teksty!$D$839 -> Płatności zobowiązań z tytułu umów leasingu finansowego | V184: 13727 | W184: 16918
A185: 262208 | C185: 3 | D185: =D184 -> C | E185: II | F185: 8 | J185: C.II.8 | K185: 8 | N185: 8 | O185: =teksty!$D$840 -> Odsetki | V185: 77801 | W185: 112824
A186: 262208 | C186: 3 | D186: =D185 -> C | E186: II | F186: 9 | J186: C.II.9 | K186: 9 | N186: 9 | O186: =teksty!$D$841 -> Inne wydatki finansowe | V186: 1746 | W186: 849
A187: 262208 | C187: 2 | D187: =D186 -> C | E187: III | I187: =teksty!$D$789 & teksty!$D$284 & 2 -> Rach. Przepływów, koniec strony 2 | J187: =D187&"."&E187 -> C.III | K187: =E187 -> III | N187: III | O187: =teksty!$D$842 -> Przepływy pieniężne netto z działalności finansowej (I–II) | V187: =V172-V177 -> -422649 | W187: =W172-W177 -> -460231
A188: =A192 -> 262208 | B188: P | C188: =COUNTA(D188:H188) -> 0 | N188: =teksty!$D$160 & teksty!$D$718 -> metoda pośrednia, c.d. poprzedniej strony | U188: =$U$5 -> za rok: | V188: =$V$5 -> 2017 | W188: =$W$5 -> 2016 | X188: =teksty!$D$292 -> Przekszt. dane porów. za poprzedni okres | Z188: =teksty!$D$285 -> ukryty wiersz powyżej zawiera nagłówek dla kolejnej strony
A189: =A187 -> 262208 | C189: 1 | D189: D | J189: =$D189 -> D | K189: =D189 -> D | N189: D | O189: =teksty!$D$843 -> Przepływy pieniężne netto, razem (A.III±B.III±C.III) | V189: =V145+V170+V187 -> -304372 | W189: =W145+W170+W187 -> 672833 | Z189: =IF(WrfKwot,IF(AND(AF189=0,AG189=0,AH189=0),"=","!"),"") ->  | AA189: =teksty!$D$60 & " " & N190 -> Przepływy E | AB189: =V190 -> -304372 | AC189: =W190 -> 672833 | AD189: =X190 -> 0 | AF189: =ROUND(IF(ISNUMBER(AB189),V189-AB189,0),2) -> 0 | AG189: =ROUND(IF(ISNUMBER(AC189),W189-AC189,0),2) -> 0 | AH189: =ROUND(IF(ISNUMBER(AD189),X189-AD189,0),2) -> 0
A190: 262208 | C190: 1 | D190: E | J190: =$D190 -> E | K190: =D190 -> E | N190: E | O190: =teksty!$D$844 -> Bilansowa zmiana stanu środków pieniężnych, w tym: | V190: -304372 | W190: 672833 | Z190: =IF(WrfKwot,IF(AND(AF190=0,AG190=0,AH190=0),"=","!"),"") ->  | AA190: =IF(AA193="-","-",AA193 & " " & N191 & CHAR(10) & "(" & teksty!$D$788 &")") -> Aktywa B.III.1d) (zmiana) | AB190: =AB193-AC193 -> -304372 | AF190: =ROUND(IF(ISNUMBER(AB190),V190-AB190,0),2) -> 0 | AG190: 0 | AH190: 0
A191: 262208 | C191: 2 | D191: =D190 -> E | E191: 1 | J191: =D191&"."&E191 -> E.1 | O191: =IF($N$63=""," – ") &teksty!$D$845 -> – zmiana stanu środków pieniężnych z tytułu różnic kursowych | V191: 2948 | W191: 0
A192: 262208 | C192: 1 | D192: F | J192: =$D192 -> F | K192: =D192 -> F | N192: =K192 -> F | O192: =teksty!$D$846 -> Środki pieniężne na początek okresu | V192: 1476866 | W192: 804033 | Z192: =IF(WrfKwot,IF(AND(AF192=0,AG192=0,AH192=0),"=","!"),"") ->  | AA192: =teksty!$D$60 & " " & N193 & CHAR(10) & "(" & LOWER(SUBSTITUTE(teksty!$D$955, CHAR(10), " ")) &")" -> Przepływy G (okres poprzedni) | AB192: =W193 -> 1476866 | AF192: =ROUND(IF(ISNUMBER(AB192),V192-AB192,0),2) -> 0 | AG192: =ROUND(IF(ISNUMBER(AC192),W192-AC192,0),2) -> 0 | AH192: =ROUND(IF(ISNUMBER(AD192),X192-AD192,0),2) -> 0
A193: 262208 | C193: =COUNTA(D193:H193) -> 1 | D193: G | J193: =$D193 -> G | K193: =D193 -> G | N193: G | O193: =teksty!$D$847 -> Środki pieniężne na koniec okresu (F±D), w tym: | V193: =V192+V189 -> 1172494 | W193: =W192+W189 -> 1476866 | Z193: =IF(WrfKwot,IF(AND(AF193=0,AG193=0,AH193=0),"=","!"),"") ->  | AA193: =SUBSTITUTE(SUBSTITUTE(SUBSTITUTE(EtykietaNaNazwe(Bilans!$J$370),"_B"," B"),"_","."),"1.D","1d)") -> Aktywa B.III.1d) | AB193: =Bilans!V$370 -> 1172494 | AC193: =Bilans!W$370 -> 1476866 | AD193: =Bilans!X$370 -> 0 | AF193: =ROUND(IF(ISNUMBER(AB193),V193-AB193,0),2) -> 0 | AG193: 0 | AH193: 0
A194: 262208 | C194: =COUNTA(D194:H194) -> 2 | D194: =D193 -> G | E194: 1 | J194: =D194&"."&E194 -> G.1 | O194: =IF($N$66=""," – ") &teksty!$D$848 -> – o ograniczonej możliwości dysponowania | V194: 82056 | W194: 88617
A195: 0
A196: =(2*65536)+64 -> 131136 | C196: =COUNTA(D196:H196) -> 1 | D196: A | J196: =$D196 -> A | K196: =D196 -> A | N196: =K196 -> A | O196: =teksty!$D$791 -> Przepływy środków pieniężnych z działalności operacyjnej
A197: =A196 -> 131136 | C197: =COUNTA(D197:H197) -> 2 | D197: =D196 -> A | E197: I | J197: =D197&"."&E197 -> A.I | K197: =E197 -> I | N197: I | O197: =teksty!$D$792 -> Wpływy
A198: =A197 -> 131136 | C198: 3 | D198: =D197 -> A | E198: I | F198: 1 | J198: =D198&"."&E198 & "." & F198 -> A.I.1 | K198: =F198 -> 1 | N198: 1 | O198: =teksty!$D$793 -> Sprzedaż
A199: 131136 | C199: 3 | D199: =D198 -> A | E199: I | F199: 2 | J199: =D199&"."&E199 & "." & F199 -> A.I.2 | K199: =F199 -> 2 | N199: 2 | O199: =teksty!$D$794 -> Inne wpływy z działalności operacyjnej
A200: 131136 | C200: 2 | D200: =D199 -> A | E200: II | J200: =D200&"."&E200 -> A.II | K200: =E200 -> II | N200: II | O200: =teksty!$D$795 -> Wydatki
A201: 131136 | C201: 3 | D201: =D200 -> A | E201: II | F201: 1 | J201: =D201&"."&E201 & "." & F201 -> A.II.1 | K201: =F201 -> 1 | N201: 1 | O201: =teksty!$D$796 -> Dostawy i usługi
... 53 more rows

Sheet Dodatkowe (hidden)
A1: Dodatkowe | D1: (wyświetlana etykieta) | H1: 6 | I1: =VLOOKUP(WybranaPozycja,teksty!B164:F169,2) -> Skonsolidowana | M1: =OR(WybranaPozycja=2, WybranaPozycja=4) -> FALSE
E2: =teksty!D950 -> Dodatkowe informacje i objaśnienia
F3: =Wprowadzenie!$I$4 & " " & IF(NumerWariantuRaportu = 5, teksty!$D$289, "") -> TEST S.A. (skonsolidowany) | P3: =teksty!D283 & VLOOKUP(NumerBazyRaportu,BazyKwot,3) -> wszystkie kwoty w tysiącach złotych | S3: =IF(OR(_xlfn.ISFORMULA(L139),_xlfn.ISFORMULA(L141)),teksty!$D$951,"") -> W niektórych polach tego zestawienia napotkasz pomocnicze formuły. Jeżeli to potrzebne, możesz je zmienić, lub wpisać w te pola odpowiednie kwoty.
E4: =teksty!$D$952 -> Rozliczenie różnicy pomiędzy podstawą opodatkowania a wynikiem finansowym:
F6: =teksty!$D$953 -> Rozliczenie różnicy pomiędzy podstawą opodatkowania podatkiem dochodowym a wynikiem finansowym (zyskiem, stratą) brutto | L6: =SUBSTITUTE(teksty!$D$954, CHAR(10)," ") -> Okres bieżący | O6: =SUBSTITUTE(teksty!$D$955, CHAR(10)," ") -> Okres poprzedni
L7: =teksty!$D$956 -> Ogółem: | M7: =teksty!$D$957 -> w tym z zysków kapitałowych: | O7: =teksty!$D$956 -> Ogółem: | P7: =teksty!$D$957 -> w tym z zysków kapitałowych:
C8: P_ID 1 | D8: A | F8: =D8 & "." -> A. | G8: =teksty!D966 -> Zysk (strata) brutto za dany rok | M8: ___ | P8: ___ | S8: =IF(WrfKwot,IF(AND(Y8=0,Z8=0,AA8=0),"=","!"),"") ->  | T8: =teksty!$D$58 & ": " & IF(RZiS!WybranyWariant="JednostkaInna", IF(RZiS!SPor,RZiS!N55,RZiS!N103), IF(RZiS!WybranyWariant="JednostkaMala", IF(RZiS!SPor,RZiS!N170,RZiS!N132), IF(RZiS!WybranyWariant="JednostkaMikro", RZiS!N211 & "+" & IF(RZiS!SPor,RZiS!N212,RZiS!N213), IF(RZiS!WybranyWariant="JednostkaOp",RZiS!N195, "-")))) -> RZiS: - | U8: =IF(RZiS!WybranyWariant="JednostkaInna", RZiS!SPor*RZiS!V$55+RZiS!SKalk*RZiS!V$103, IF(RZiS!WybranyWariant="JednostkaMala",RZiS!SPor*RZiS!V$170+RZiS!SKalk*RZiS!V$132, IF(RZiS!WybranyWariant="JednostkaMikro",RZiS!V$211+RZiS!SPor*RZiS!V$212+RZiS!SKalk*RZiS!V$213, IF(RZiS!WybranyWariant="JednostkaOp",RZiS!V$195, "-")))) -> - | V8: =IF(RZiS!WybranyWariant="JednostkaInna", RZiS!SPor*RZiS!W$55+RZiS!SKalk*RZiS!W$103, IF(RZiS!WybranyWariant="JednostkaMala",RZiS!SPor*RZiS!W$170+RZiS!SKalk*RZiS!W$132, IF(RZiS!WybranyWariant="JednostkaMikro",RZiS!W$211+RZiS!SPor*RZiS!W$212+RZiS!SKalk*RZiS!W$213, IF(RZiS!WybranyWariant="JednostkaOp",RZiS!W$195, "-")))) -> - | Y8: =ROUND(IF(AND(ISNUMBER(L8),ISNUMBER(U8)),L8-U8,0),0) -> 0 | Z8: =ROUND(IF(AND(ISNUMBER(O8),ISNUMBER(V8)),O8-V8,0),0) -> 0 | AA8: 0 | AB8: -7 | AC8: -4
C10: P_ID 2 | D10: B | F10: B. | G10: =teksty!D967&" *" & IF(G12<> "", inc,"") -> Przychody zwolnione z opodatkowania *
A11: =127*B11 -> 0 | B11: =B12 -> 0 | G11: =teksty!$D$959 -> pdst. prawna: | H11: =teksty!$D$960 -> Art. | I11: =teksty!$D$961 -> poz. | J11: =teksty!$D$962 -> pkt. | K11: =teksty!$D$963 -> lit. | L11: =teksty!$D$958 -> (informacja uszczegóławiająca, wynikająca z potrzeb lub specyfiki jednostki) | Q11: 0
A12: =127*B12 -> 0 | B12: =IF(G12<>"",1,0) -> 0 | D12: =D11+1 -> 1 | F12: =D12 -> 1 | Q12: 1
A13: 0 | B13: 0 | D13: =D12+1 -> 2 | F13: 2 | Q13: 1
A14: 0 | B14: 0 | D14: =D13+1 -> 3 | F14: 3 | Q14: 1
A15: 0 | B15: 0 | D15: 4 | F15: 4 | Q15: 1
A16: 0 | B16: 0 | D16: =D15+1 -> 5 | F16: 5 | Q16: 1
A17: 0 | B17: 0 | D17: =D16+1 -> 6 | F17: 6 | Q17: 1
A18: 0 | B18: 0 | D18: 7 | F18: 7 | Q18: 1
A19: 0 | B19: 0 | D19: =D18+1 -> 8 | F19: 8 | Q19: 1
A20: 0 | B20: 0 | D20: =D19+1 -> 9 | F20: 9 | Q20: 1
A21: 0 | B21: 0 | D21: 10 | F21: 10 | Q21: 1
A22: 0 | B22: =B11 -> 0 | G22: =teksty!$D$964 -> pozostałe (mniej niż 20 tys. zł): | L22: =IF(L12="","",L10-SUM(L12:L21)) ->  | O22: =IF(O12="","",O10-SUM(O12:O21)) ->  | Q22: 0
C24: P_ID 3 | D24: C | F24: C. | G24: =teksty!D968& IF(G26<> "", inc,"") -> Przychody niepodlegające opodatkowania w roku bieżącym
A25: =127*B25 -> 0 | B25: =B26 -> 0 | G25: =teksty!$D$959 -> pdst. prawna: | H25: =teksty!$D$960 -> Art. | I25: =teksty!$D$961 -> poz. | J25: =teksty!$D$962 -> pkt. | K25: =teksty!$D$963 -> lit. | L25: =teksty!$D$958 -> (informacja uszczegóławiająca, wynikająca z potrzeb lub specyfiki jednostki) | Q25: 0
A26: =127*B26 -> 0 | B26: =IF(G26<>"",1,0) -> 0 | D26: =D25+1 -> 1 | F26: =D26 -> 1 | Q26: 1
A27: 0 | B27: 0 | D27: =D26+1 -> 2 | F27: 2 | Q27: 1
A28: 0 | B28: 0 | D28: =D27+1 -> 3 | F28: 3 | Q28: 1
A29: 0 | B29: 0 | D29: 4 | F29: 4 | Q29: 1
A30: 0 | B30: 0 | D30: =D29+1 -> 5 | F30: 5 | Q30: 1
A31: 0 | B31: 0 | D31: =D30+1 -> 6 | F31: 6 | Q31: 1
A32: 0 | B32: 0 | D32: 7 | F32: 7 | Q32: 1
A33: 0 | B33: 0 | D33: 8 | F33: 8 | Q33: 1
A34: 0 | B34: 0 | D34: =D33+1 -> 9 | F34: 9 | Q34: 1
A35: 0 | B35: 0 | D35: =D34+1 -> 10 | F35: 10 | Q35: 1
A36: 0 | B36: =B25 -> 0 | G36: =teksty!$D$964 -> pozostałe (mniej niż 20 tys. zł): | L36: =IF(L26="","",L24-SUM(L26:L35)) ->  | O36: =IF(O26="","",O24-SUM(O26:O35)) ->  | Q36: 0
C38: P_ID 4 | D38: D | F38: D. | G38: =teksty!D969& IF(G40<> "", inc,"") -> Przychody podlegające opodatkowania w roku bieżącym, ujęte w księgach rachunkowych lat ubiegłych
A39: =127*B39 -> 0 | B39: =B40 -> 0 | G39: =teksty!$D$959 -> pdst. prawna: | H39: =teksty!$D$960 -> Art. | I39: =teksty!$D$961 -> poz. | J39: =teksty!$D$962 -> pkt. | K39: =teksty!$D$963 -> lit. | L39: =teksty!$D$958 -> (informacja uszczegóławiająca, wynikająca z potrzeb lub specyfiki jednostki) | Q39: 0
A40: =127*B40 -> 0 | B40: =IF(G40<>"",1,0) -> 0 | D40: =D39+1 -> 1 | F40: =D40 -> 1 | Q40: 1
A41: 0 | B41: 0 | D41: =D40+1 -> 2 | F41: 2 | Q41: 1
A42: 0 | B42: 0 | D42: =D41+1 -> 3 | F42: 3 | Q42: 1
A43: 0 | B43: 0 | D43: 4 | F43: 4 | Q43: 1
A44: 0 | B44: 0 | D44: 5 | F44: 5 | Q44: 1
A45: 0 | B45: 0 | D45: =D44+1 -> 6 | F45: 6 | Q45: 1
A46: 0 | B46: 0 | D46: =D45+1 -> 7 | F46: 7 | Q46: 1
A47: 0 | B47: 0 | D47: =D46+1 -> 8 | F47: 8 | Q47: 1
A48: 0 | B48: 0 | D48: 9 | F48: 9 | Q48: 1
A49: 0 | B49: 0 | D49: 10 | F49: 10 | Q49: 1
A50: 0 | B50: =B39 -> 0 | G50: =teksty!$D$964 -> pozostałe (mniej niż 20 tys. zł): | L50: =IF(L40="","",L38-SUM(L40:L49)) ->  | O50: =IF(O40="","",O38-SUM(O40:O49)) ->  | Q50: 0
C52: P_ID 5 | D52: E | F52: E. | G52: =teksty!D970 & "*" & IF(G54<> "", inc,"") -> Koszty niestanowiące kosztów uzyskania przychodów *
A53: =127*B53 -> 0 | B53: =B54 -> 0 | G53: =teksty!$D$959 -> pdst. prawna: | H53: =teksty!$D$960 -> Art. | I53: =teksty!$D$961 -> poz. | J53: =teksty!$D$962 -> pkt. | K53: =teksty!$D$963 -> lit. | L53: =teksty!$D$958 -> (informacja uszczegóławiająca, wynikająca z potrzeb lub specyfiki jednostki) | Q53: 0
A54: =127*B54 -> 0 | B54: =IF(G54<>"",1,0) -> 0 | D54: =D53+1 -> 1 | F54: =D54 -> 1 | Q54: 1
A55: 0 | B55: 0 | D55: =D54+1 -> 2 | F55: 2 | Q55: 1
A56: 0 | B56: 0 | D56: =D55+1 -> 3 | F56: 3 | Q56: 1
A57: 0 | B57: 0 | D57: 4 | F57: 4 | Q57: 1
A58: 0 | B58: 0 | D58: 5 | F58: 5 | Q58: 1
A59: =127*B59 -> 0 | B59: =IF(G59<>"",1,0) -> 0 | D59: =D58+1 -> 6 | F59: =D59 -> 6 | Q59: 1
A60: 0 | B60: 0 | D60: =D59+1 -> 7 | F60: 7 | Q60: 1
A61: 0 | B61: 0 | D61: =D60+1 -> 8 | F61: 8 | Q61: 1
A62: 0 | B62: 0 | D62: 9 | F62: 9 | Q62: 1
A63: 0 | B63: 0 | D63: 10 | F63: 10 | Q63: 1
A64: =127*B64 -> 0 | B64: =IF(G64<>"",1,0) -> 0 | D64: =D63+1 -> 11 | F64: =D64 -> 11 | Q64: 1
A65: 0 | B65: 0 | D65: =D64+1 -> 12 | F65: 12 | Q65: 1
A66: 0 | B66: 0 | D66: =D65+1 -> 13 | F66: 13 | Q66: 1
A67: 0 | B67: 0 | D67: 14 | F67: 14 | Q67: 1
A68: 0 | B68: 0 | D68: 15 | F68: 15 | Q68: 1
A69: =127*B69 -> 0 | B69: =IF(G69<>"",1,0) -> 0 | D69: =D68+1 -> 16 | F69: =D69 -> 16 | Q69: 1
A70: 0 | B70: 0 | D70: =D69+1 -> 17 | F70: 17 | Q70: 1
A71: 0 | B71: 0 | D71: =D70+1 -> 18 | F71: 18 | Q71: 1
A72: 0 | B72: 0 | D72: 19 | F72: 19 | Q72: 1
A73: 0 | B73: 0 | D73: 20 | F73: 20 | Q73: 1
A74: 0 | B74: =B53 -> 0 | G74: =teksty!$D$964 -> pozostałe (mniej niż 20 tys. zł): | L74: =IF(L54="","",L52-SUM(L54:L73)) ->  | O74: =IF(O54="","",O52-SUM(O54:O73)) ->  | Q74: 0
C76: P_ID 6 | D76: F | F76: F. | G76: =teksty!D971 & IF(G78<> "", inc,"") -> Koszty nieuznawane za koszty uzyskania przychodów w bieżącym roku
A77: =127*B77 -> 0 | B77: =B78 -> 0 | G77: =teksty!$D$959 -> pdst. prawna: | H77: =teksty!$D$960 -> Art. | I77: =teksty!$D$961 -> poz. | J77: =teksty!$D$962 -> pkt. | K77: =teksty!$D$963 -> lit. | L77: =teksty!$D$958 -> (informacja uszczegóławiająca, wynikająca z potrzeb lub specyfiki jednostki) | Q77: 0
A78: =127*B78 -> 0 | B78: =IF(G78<>"",1,0) -> 0 | D78: =D77+1 -> 1 | F78: =D78 -> 1 | Q78: 1
A79: 0 | B79: 0 | D79: =D78+1 -> 2 | F79: 2 | Q79: 1
A80: 0 | B80: 0 | D80: =D79+1 -> 3 | F80: 3 | Q80: 1
A81: 0 | B81: 0 | D81: 4 | F81: 4 | Q81: 1
A82: 0 | B82: 0 | D82: 5 | F82: 5 | Q82: 1
A83: =127*B83 -> 0 | B83: =IF(G83<>"",1,0) -> 0 | D83: =D82+1 -> 6 | F83: =D83 -> 6 | Q83: 1
A84: 0 | B84: 0 | D84: =D83+1 -> 7 | F84: 7 | Q84: 1
A85: 0 | B85: 0 | D85: =D84+1 -> 8 | F85: 8 | Q85: 1
A86: 0 | B86: 0 | D86: 9 | F86: 9 | Q86: 1
A87: 0 | B87: 0 | D87: 10 | F87: 10 | Q87: 1
A88: =127*B88 -> 0 | B88: =IF(G88<>"",1,0) -> 0 | D88: =D87+1 -> 11 | F88: =D88 -> 11 | Q88: 1
A89: 0 | B89: 0 | D89: =D88+1 -> 12 | F89: 12 | Q89: 1
A90: 0 | B90: 0 | D90: =D89+1 -> 13 | F90: 13 | Q90: 1
A91: 0 | B91: 0 | D91: 14 | F91: 14 | Q91: 1
A92: 0 | B92: 0 | D92: 15 | F92: 15 | Q92: 1
A93: 0 | B93: =B77 -> 0 | G93: =teksty!$D$964 -> pozostałe (mniej niż 20 tys. zł): | L93: =IF(L78="","",L76-SUM(L78:L92)) ->  | O93: =IF(O78="","",O76-SUM(O78:O92)) ->  | Q93: 0
C95: P_ID 7 | D95: G | F95: G. | G95: =teksty!D972 & IF(G97<> "", inc,"") -> Koszty uznawane za koszty uzyskania przychodów w roku bieżącym ujęte w księgach lat ubiegłych
A96: =127*B96 -> 0 | B96: =B97 -> 0 | G96: =teksty!$D$959 -> pdst. prawna: | H96: =teksty!$D$960 -> Art. | I96: =teksty!$D$961 -> poz. | J96: =teksty!$D$962 -> pkt. | K96: =teksty!$D$963 -> lit. | L96: =teksty!$D$958 -> (informacja uszczegóławiająca, wynikająca z potrzeb lub specyfiki jednostki) | Q96: 0
A97: =127*B97 -> 0 | B97: =IF(G97<>"",1,0) -> 0 | D97: =D96+1 -> 1 | F97: =D97 -> 1 | Q97: 1
A98: 0 | B98: 0 | D98: =D97+1 -> 2 | F98: 2 | Q98: 1
A99: 0 | B99: 0 | D99: =D98+1 -> 3 | F99: 3 | Q99: 1
A100: 0 | B100: 0 | D100: 4 | F100: 4 | Q100: 1
A101: 0 | B101: 0 | D101: 5 | F101: 5 | Q101: 1
A102: =127*B102 -> 0 | B102: =IF(G102<>"",1,0) -> 0 | D102: =D101+1 -> 6 | F102: =D102 -> 6 | Q102: 1
A103: 0 | B103: 0 | D103: =D102+1 -> 7 | F103: 7 | Q103: 1
A104: 0 | B104: 0 | D104: =D103+1 -> 8 | F104: 8 | Q104: 1
A105: 0 | B105: 0 | D105: 9 | F105: 9 | Q105: 1
A106: 0 | B106: 0 | D106: 10 | F106: 10 | Q106: 1
A107: =127*B107 -> 0 | B107: =IF(G107<>"",1,0) -> 0 | D107: =D106+1 -> 11 | F107: =D107 -> 11 | Q107: 1
A108: 0 | B108: 0 | D108: =D107+1 -> 12 | F108: 12 | Q108: 1
A109: 0 | B109: 0 | D109: =D108+1 -> 13 | F109: 13 | Q109: 1
A110: 0 | B110: 0 | D110: 14 | F110: 14 | Q110: 1
A111: 0 | B111: 0 | D111: 15 | F111: 15 | Q111: 1
A112: 0 | B112: =B96 -> 0 | G112: =teksty!$D$964 -> pozostałe (mniej niż 20 tys. zł): | L112: =IF(L97="","",L95-SUM(L97:L111)) ->  | O112: =IF(O97="","",O95-SUM(O97:O111)) ->  | Q112: 0
G114: =teksty!D973 -> Dochód (A - B - C + D + E + F - G) | L114: =IF(ISNUMBER($L$8),$L$8-$L$10-$L$24+$L$38+$L$52+$L$76-$L$95,"") ->  | M114: ___ | O114: =IF(ISNUMBER($O$8),$O$8-$O$10-$O$24+$O$38+$O$52+$O$76-$O$95,"") ->  | P114: ___ | S114: =teksty!$D$974 -> pomocniczy wiersz sumujący (wartości z tego wiersza nie są zapisywane do pliku e-sprawozdania)
C116: P_ID 8 | D116: H | F116: H. | G116: =teksty!D975 & IF(G118<> "", inc,"") -> Strata z lat ubiegłych
A117: =127*B117 -> 0 | B117: =B118 -> 0 | L117: =teksty!$D$958 -> (informacja uszczegóławiająca, wynikająca z potrzeb lub specyfiki jednostki) | Q117: 0
A118: =127*B118 -> 0 | B118: =IF(G118<>"",1,0) -> 0 | D118: =D117+1 -> 1 | F118: =D118 -> 1 | Q118: 1
A119: 0 | B119: 0 | D119: =D118+1 -> 2 | F119: 2 | Q119: 1
A120: 0 | B120: 0 | D120: =D119+1 -> 3 | F120: 3 | Q120: 1
A121: 0 | B121: 0 | D121: 4 | F121: 4 | Q121: 1
A122: 0 | B122: 0 | D122: 5 | F122: 5 | Q122: 1
A123: 0 | B123: =B117 -> 0 | G123: =teksty!$D$965 -> pozostałe: | L123: =IF(L118="","",L116-SUM(L118:L122)) ->  | M123: =IF(M118="","",M116-SUM(M118:M122)) ->  | O123: =IF(O118="","",O116-SUM(O118:O122)) ->  | P123: =IF(P118="","",P116-SUM(P118:P122)) ->  | Q123: 0
C125: P_ID 9 | D125: I | F125: I. | G125: =teksty!D977 & IF(G127<> "", inc,"") -> Inne zmiany podstawy opodatkowania
A126: =127*B126 -> 0 | B126: =B127 -> 0 | G126: =teksty!$D$959 -> pdst. prawna: | H126: =teksty!$D$960 -> Art. | I126: =teksty!$D$961 -> poz. | J126: =teksty!$D$962 -> pkt. | K126: =teksty!$D$963 -> lit. | L126: =teksty!$D$958 -> (informacja uszczegóławiająca, wynikająca z potrzeb lub specyfiki jednostki) | Q126: 0
A127: =127*B127 -> 0 | B127: =IF(G127<>"",1,0) -> 0 | D127: =D126+1 -> 1 | F127: =D127 -> 1 | Q127: 1
A128: 0 | B128: 0 | D128: =D127+1 -> 2 | F128: 2 | Q128: 1
A129: 0 | B129: 0 | D129: =D128+1 -> 3 | F129: 3 | Q129: 1
A130: 0 | B130: 0 | D130: 4 | F130: 4 | Q130: 1
A131: 0 | B131: 0 | D131: 5 | F131: 5 | Q131: 1
A132: =127*B132 -> 0 | B132: =IF(G132<>"",1,0) -> 0 | D132: 6 | F132: =D132 -> 6 | Q132: 1
A133: 0 | B133: 0 | D133: 7 | F133: 7 | Q133: 1
A134: 0 | B134: 0 | D134: 8 | F134: 8 | Q134: 1
A135: 0 | B135: 0 | D135: 9 | F135: 9 | Q135: 1
A136: 0 | B136: 0 | D136: 10 | F136: 10 | Q136: 1
A137: 0 | B137: =B126 -> 0 | G137: =teksty!$D$964 -> pozostałe (mniej niż 20 tys. zł): | L137: =IF(L127="","",L125-SUM(L127:L136)) ->  | O137: =IF(O127="","",O125-SUM(O127:O136)) ->  | Q137: 0
C139: P_ID 10 | D139: J | F139: J. | G139: =teksty!D978 -> Podstawa opodatkowania podatkiem dochodowym | L139: =IF(ISNUMBER($L$8),ROUND($L$114-$L$116+$L$125,0),"") ->  | M139: ___ | O139: =IF(ISNUMBER($O$8),ROUND($O$114-$O$116+$O$125,0),"") ->  | P139: ___ | AD139: =SUBSTITUTE(teksty!$D$954, CHAR(10)," ") -> Okres bieżący | AE139: =SUBSTITUTE(teksty!$D$955, CHAR(10)," ") -> Okres poprzedni
C141: P_ID 11 | D141: K | F141: K. | G141: =teksty!D979 -> Podatek dochodowy | L141: =IF(ISNUMBER($L$8),IF($L$139> 0,ROUND(CIT_B*$L$139,0),0),"") ->  | M141: ___ | O141: =IF(ISNUMBER($O$8),IF($O$139> 0,ROUND(CIT_P*$O$139,0),0),"") ->  | P141: ___ | S141: =IF(WrfKwot,IF(AND(Y141=0,Z141=0,AA141=0),"=","!"),"") ->  | T141: =teksty!$D$58&": "& IF(RZiS!WybranyWariant="JednostkaInna",CHAR(10)&IF(RZiS!SPor,RZiS!N56,RZiS!N104)&" − '"&teksty!D$668&"'", IF(RZiS!WybranyWariant="JednostkaMala",CHAR(10)&IF(RZiS!SPor,RZiS!N171,RZiS!N133)&" − '"&teksty!D$668&"'", IF(RZiS!WybranyWariant="JednostkaMikro",RZiS!N212, IF(RZiS!WybranyWariant="JednostkaOp",RZiS!N196, "-")))) -> RZiS: - | U141: =IF(RZiS!WybranyWariant="JednostkaInna", RZiS!SPor*RZiS!V$56+RZiS!SKalk*RZiS!V$104 - BiezacyPodatekOdroczony, IF(RZiS!WybranyWariant="JednostkaMala",RZiS!SPor*RZiS!V$171+RZiS!SKalk*RZiS!V$133 - BiezacyPodatekOdroczony, IF(RZiS!WybranyWariant="JednostkaMikro",RZiS!V$211, IF(RZiS!WybranyWariant="JednostkaOp",RZiS!V$196, "-")))) -> - | V141: =IF(RZiS!WybranyWariant="JednostkaInna", RZiS!SPor*RZiS!W$56+RZiS!SKalk*RZiS!W$104 - PoprzedniPodatekOdroczony, IF(RZiS!WybranyWariant="JednostkaMala",RZiS!SPor*RZiS!W$171+RZiS!SKalk*RZiS!W$133 - PoprzedniPodatekOdroczony, IF(RZiS!WybranyWariant="JednostkaMikro",RZiS!W$211, IF(RZiS!WybranyWariant="JednostkaOp",RZiS!W$196, "-")))) -> - | X141: =teksty!$D$997 & ": " -> Stawka CIT: | Y141: =ROUND(IF(AND(ISNUMBER(L141),ISNUMBER(U141)),L141-U141,0),0) -> 0 | Z141: =ROUND(IF(AND(ISNUMBER(O141),ISNUMBER(V141)),O141-V141,0),0) -> 0 | AA141: 0 | AB141: -7 | AC141: -4 | AD141: 0.19 | AE141: 0.19
U142: =IF(RZiS!WybranyWariant="JednostkaInna", RZiS!SPor*RZiS!V$57+RZiS!SKalk*RZiS!V$105,0)+IF(RZiS!WybranyWariant="JednostkaMala", RZiS!SPor*RZiS!V$172+RZiS!SKalk*RZiS!V134,0) -> 0 | V142: =IF(RZiS!WybranyWariant="JednostkaInna", RZiS!SPor*RZiS!W$57+RZiS!SKalk*RZiS!W$105,0)+IF(RZiS!WybranyWariant="JednostkaMala", RZiS!SPor*RZiS!W$172+RZiS!SKalk*RZiS!W134,0) -> 0
F143: * | G143: =teksty!D981 -> trwałe różnice pomiędzy zyskiem/stratą dla celów rachunkowych a dochodem/stratą dla celów podatkowych
E145: =teksty!$D$983 -> Załączniki i objaśnienia:
G147: brak | O147: =teksty!$D$985 -> Załącznik:
O151: =teksty!$D$985 -> Załącznik:
O155: =teksty!$D$985 -> Załącznik:
O159: =teksty!$D$985 -> Załącznik:
O163: =teksty!$D$985 -> Załącznik:
O167: =teksty!$D$985 -> Załącznik:
O171: =teksty!$D$985 -> Załącznik:
O175: =teksty!$D$985 -> Załącznik:
O179: =teksty!$D$985 -> Załącznik:
O183: =teksty!$D$985 -> Załącznik:

Sheet inne (hidden)

Sheet teksty (hidden)
H1: Ten arkusz obsługuje wielojęzyczność skoroszytu
C2: W kolumnie D są teksty aktualnie wybranej wersji językowej, a w kolumnach B,C,E,F - dodatkowe dane konfiguracyjne: | I2: Unikalna etykieta
H3: Objaśnienie | J3: PL | K3: EN | L3: Trzeci język - do wpisania przez Użytkownika
I4: 5
A5: Etykiety przycisków: | C5: Id obiektu | D5: Etykieta | H5: Etykiety przycisków: | I5: 10
C6: ShiftColumn | D6: =OFFSET(I6,0,WybranyJezyk) -> Przestaw rok | I6: 15 | J6: Przestaw rok | K6: Shift to next year | L6: Przestaw rok
C7: WyzerujWszystko | D7: Wyzeruj cały raport | I7: 20 | J7: Wyzeruj cały raport | K7: Reset whole report | L7: Wyzeruj cały raport
C8: WyzerujDane | D8: Wyzeruj, zachowując część Wprowadzenia | I8: 25 | J8: Wyzeruj, zachowując część Wprowadzenia | K8: Reset, but preserve descriptions | L8: Wyzeruj, zachowując część Wprowadzenia
C9: Wczytaj | D9: Wczytaj plik e-sprawozdania | I9: 30 | J9: Wczytaj plik e-sprawozdania | K9: Open report file (XML) | L9: Wczytaj plik e-sprawozdania
C10: Zapisz | D10: Zapisz jako plik e-sprawozdania | I10: 35 | J10: Zapisz jako plik e-sprawozdania | K10: Save as report file (XML) | L10: Zapisz jako plik e-sprawozdania
C11: Manual | D11: Instrukcja obsługi | I11: 40 | J11: Instrukcja obsługi | K11: User guide | L11: Instrukcja obsługi
C12: Licencja | D12: Licencja | I12: 45 | J12: Licencja | K12: Licence terms | L12: Licencja
C13: DrukujWszystko | D13: Utwórz podgląd sprawozdania (PDF) | I13: 50 | J13: Utwórz podgląd sprawozdania (PDF) | K13: Create report preview (PDF) | L13: Utwórz podgląd sprawozdania (PDF)
C14: EditLinks | D14: Edytuj linki do plików… | I14: 55 | J14: Edytuj linki do plików… | K14: Edit external links… | L14: Edytuj linki do plików…
D15: Etykiety skoroszytu w: | I15: 60 | J15: Etykiety skoroszytu w: | K15: Workbook labels in: | L15: Etykiety skoroszytu w:
D16: Niezgodności w powiązanych kwotach: | I16: 61 | J16: Niezgodności w powiązanych kwotach: | K16: Differences in related amounts: | L16: Niezgodności w powiązanych kwotach sprawozdania:
A17: Listy: | B17: Obsługiwane języki dla etykiet: | I17: 65
B18: Nr kolejny | C18: Wart. | D18: Etykieta | H18: Lista języków | I18: 70
B19: 1 | C19: PL | D19: =OFFSET(I19,0,WybranyJezyk) -> języku polskim | I19: 75 | J19: języku polskim | K19: Polish | L19: języku polskim
B20: 2 | C20: EN | D20: =OFFSET(I20,0,WybranyJezyk) -> języku angielskim | I20: 80 | J20: języku angielskim | K20: English | L20: języku angielskim
B21: 3 | C21: 03 | D21: =OFFSET(I21,0,WybranyJezyk) -> języku trzecim | I21: 85 | J21: języku trzecim | K21: User-defined language | L21: języku trzecim
I22: 90
B23: Baza kwot (wartość nazwana Baza): | I23: 95
B24: Nr kolejny | C24: Wart. | D24: Etykieta | E24: Sufiks kodu formularza | H24: Lista baz kwot | I24: 100
B25: 1 | C25: WZlotych | D25: =OFFSET(I25,0,WybranyJezyk) -> złotych | E25: Z | I25: 105 | J25: złotych | K25: PLN | L25: złotych
B26: 2 | C26: WTysiacach | D26: =OFFSET(I26,0,WybranyJezyk) -> tysiącach złotych | E26: T | I26: 110 | J26: tysiącach złotych | K26: thousand PLN | L26: tysiącach złotych
I27: 115
B28: Wariant numeru id przedsiębiorcy (pole alternatywne w arkuszu Wprowadzenie) | I28: 120
B29: Nr kolejny | C29: Wart. | D29: Etykieta | H29: Lista typów Id (z "Wprowadzenia") | I29: 125
B30: 1 | C30: KRS | D30: =OFFSET(I30,0,WybranyJezyk) -> numer KRS | I30: 130 | J30: numer KRS | K30: KRS: | L30: numer KRS
B31: 2 | C31: NIP | D31: =OFFSET(I31,0,WybranyJezyk) -> numer NIP | I31: 135 | J31: numer NIP | K31: NIP: | L31: numer NIP
B33: Opcje weryfikacji niezgodności kwot
B34: Nr kolejny | C34: Wart. | D34: Etykieta | H34: Lista sposobu obsługi niezgodnych kwot
B35: 1 | C35: domyslne | D35: =OFFSET(I35,0,WybranyJezyk) -> obsługa domyślna | I35: 136 | J35: obsługa domyślna | K35: default method | L35: obsługa domyślna
B36: 2 | C36: wyswietlaj | D36: =OFFSET(I36,0,WybranyJezyk) -> tylko wyświetlaj | I36: 137 | J36: tylko wyświetlaj | K36: display only | L36: tylko wyświetlaj
B37: 3 | C37: ostrzezenie | D37: =OFFSET(I37,0,WybranyJezyk) -> sygnalizuj jako ostrzeżenie | I37: 138 | J37: sygnalizuj jako ostrzeżenie | K37: show as warning | L37: sygnalizuj jako ostrzeżenie
B38: 4 | C38: blad | D38: =OFFSET(I38,0,WybranyJezyk) -> sygnalizuj jako błąd | I38: 139 | J38: sygnalizuj jako błąd | K38: show as error | L38: sygnalizuj jako błąd
I39: 140
B40: Wariant dla pola logicznego: | I40: 145
B41: Nr kolejny | C41: Wart. | D41: Etykieta | H41: Lista Tak/Nie | I41: 150
B42: 1 | C42: true | D42: =OFFSET(I42,0,WybranyJezyk) -> Tak | I42: 155 | J42: Tak | K42: Yes | L42: Tak
B43: 2 | C43: false | D43: =OFFSET(I43,0,WybranyJezyk) -> Nie | I43: 160 | J43: Nie | K43: No | L43: Nie
I44: 165
B45: Wariant raportu (lista nazwana WariantRaportu) | I45: 170
B46: Nr kolejny | C46: Wart. | D46: Etykieta | E46: Prefiks kodu formularza | F46: Max. opcji | H46: Lista wariantów raportu | I46: 175
B47: 1 | C47: JednostkaMikro | D47: =OFFSET(I47,0,WybranyJezyk) -> dla mikroprzedsiębiorstwa ("Jednostka Mikro") | E47: SFJMI | F47: 3 | I47: 180 | J47: dla mikroprzedsiębiorstwa ("Jednostka Mikro") | K47: for micro-entities ("Jednostka Mikro") | L47: dla mikroprzedsiębiorstwa ("Jednostka Mikro")
B48: 2 | C48: JednostkaMala | D48: =OFFSET(I48,0,WybranyJezyk) -> dla małego przedsiębiorstwa ("Jednostka Mała") | E48: SFJMA | F48: 2 | I48: 185 | J48: dla małego przedsiębiorstwa ("Jednostka Mała") | K48: for small entities ("Jednostka Mała") | L48: dla małego przedsiębiorstwa ("Jednostka Mała")
B49: 3 | C49: JednostkaInna | D49: =OFFSET(I49,0,WybranyJezyk) -> dla większego przedsiębiorstwa ("Jednostka Inna") | E49: SFJIN | F49: 1 | I49: 190 | J49: dla większego przedsiębiorstwa ("Jednostka Inna") | K49: for other entities ("Jednostka Inna") | L49: dla większego przedsiębiorstwa ("Jednostka Inna")
B50: 4 | C50: JednostkaOp | D50: =OFFSET(I50,0,WybranyJezyk) -> dla organizacji pozarządowej ("Jednostka Op") | E50: SFJOP | F50: 1 | I50: 195 | J50: dla organizacji pozarządowej ("Jednostka Op") | K50: for NGOs ("Jednostka Op") | L50: dla organizacji pozarządowej ("Jednostka Op")
B51: 5 | C51: Skonsolidowana | D51: =OFFSET(I51,0,WybranyJezyk) -> skonsolidowanym (dla "Skonsolidowana Jednostka Inna") | E51: SFSIN | F51: 1 | I51: 200 | J51: skonsolidowanym (dla "Skonsolidowana Jednostka Inna") | K51: for the consolidated statement ("Skonsolidowana Jednostka Inna") | L51: skonsolidowanym (dla "Skonsolidowana Jednostka Inna")
I52: 205
B53: Lista sekcji (arkuszy) raportu | I53: 210
B54: Niezmienny Id | C54: Nazwa sekcji w zasobach XML /przedrostek nazwy elementu w dokumencie (do pierwszej spacji) | D54: Etykieta arkusza (zależna od języka) | E54: Odsyłacz do obszaru z wariantami formularza (do identyfikacji podczas importu) | H54: Lista nazw arkuszy | I54: 215 | L54: UWAGA: poniższe nazwy arkuszy się nie drukują. Dlatego najlepiej je pozostawić w wersji polskiej, bo niewłaściwa zmiana nazw arkuszy może spowodować błędy programu. Jeżeli jednak musisz je zmienić, pamiętaj, że nazwy arkuszy: 1. nie mogą zawierać dziwnych znaków jak np. "&" - tylko litery, a nazwy pierwszych 7 nie mogą zawierać spacji. 2. każda nazwa musi być unikalna
B55: Nagłówek | C55: Naglowek | D55: =OFFSET(I55,0,WybranyJezyk) -> Nagłówek | I55: 220 | J55: Nagłówek | K55: Header | L55: Nagłówek
B56: Wprowadzenie | C56: WprowadzenieDoSprawozdaniaFinansowego | D56: Wprowadzenie | E56: =Adr($B$105:$F$110) -> teksty!$B$105:$F$110 | I56: 225 | J56: Wprowadzenie | K56: Introduction | L56: Wprowadzenie
B57: Bilans | C57: Bilans | D57: Bilans | E57: =Adr($B$114:$F$119) -> teksty!$B$114:$F$119 | I57: 230 | J57: Bilans | K57: Balance | L57: Bilans
B58: RZiS | C58: RZiS | D58: RZiS | E58: =Adr($B$131:$F$136) -> teksty!$B$131:$F$136 | I58: 235 | J58: RZiS | K58: Profit | L58: RZiS
B59: ZestZmianWKapitale | C59: ZestZmianWKapitale | D59: Kapitał | E59: =Adr(B123:F127) -> teksty!$B$123:$F$127 | I59: 240 | J59: Kapitał | K59: Equity | L59: Kapitał
B60: RachPrzeplywow | C60: RachPrzeplywow | D60: Przepływy | E60: =Adr(B150:F155) -> teksty!$B$150:$F$155 | I60: 245 | J60: Przepływy | K60: CashFlow | L60: Przepływy
B61: Dodatkowe | C61: DodatkoweInformacjeIObjasnienia | D61: Dodatkowe | E61: =Adr($B$164:$F$169) -> teksty!$B$164:$F$169 | I61: 250 | J61: Dodatkowe | K61: Other | L61: Dodatkowe
A62: =A60+1 -> 1 | B62: ="Dodatkowe " &A62 -> Dodatkowe 1 | C62: ="DodatkoweInformacjeIObjasnienia " & A62 -> DodatkoweInformacjeIObjasnienia 1 | D62: Dodatkowe (1) | E62: teksty!$B$164:$F$169 | I62: 255 | J62: Dodatkowe (1) | K62: =SUBSTITUTE(J62,J$61,K$61) -> Other (1) | L62: Dodatkowe (1)
A63: =A62+1 -> 2 | B63: ="Dodatkowe " &A63 -> Dodatkowe 2 | C63: ="DodatkoweInformacjeIObjasnienia " & A63 -> DodatkoweInformacjeIObjasnienia 2 | D63: Dodatkowe (2) | E63: teksty!$B$164:$F$169 | I63: 260 | J63: Dodatkowe (2) | K63: =SUBSTITUTE(J63,J$61,K$61) -> Other (2) | L63: Dodatkowe (2)
A64: 3 | B64: Dodatkowe 3 | C64: DodatkoweInformacjeIObjasnienia 3 | D64: Dodatkowe (3) | E64: teksty!$B$164:$F$169 | I64: 265 | J64: Dodatkowe (3) | K64: Other (3) | L64: Dodatkowe (3)
A65: 4 | B65: Dodatkowe 4 | C65: DodatkoweInformacjeIObjasnienia 4 | D65: Dodatkowe (4) | E65: teksty!$B$164:$F$169 | I65: 270 | J65: Dodatkowe (4) | K65: Other (4) | L65: Dodatkowe (4)
A66: 5 | B66: Dodatkowe 5 | C66: DodatkoweInformacjeIObjasnienia 5 | D66: Dodatkowe (5) | E66: teksty!$B$164:$F$169 | I66: 275 | J66: Dodatkowe (5) | K66: Other (5) | L66: Dodatkowe (5)
A67: 6 | B67: Dodatkowe 6 | C67: DodatkoweInformacjeIObjasnienia 6 | D67: Dodatkowe (6) | E67: teksty!$B$164:$F$169 | I67: 280 | J67: Dodatkowe (6) | K67: Other (6) | L67: Dodatkowe (6)
A68: 7 | B68: Dodatkowe 7 | C68: DodatkoweInformacjeIObjasnienia 7 | D68: Dodatkowe (7) | E68: teksty!$B$164:$F$169 | I68: 285 | J68: Dodatkowe (7) | K68: Other (7) | L68: Dodatkowe (7)
A69: 8 | B69: Dodatkowe 8 | C69: DodatkoweInformacjeIObjasnienia 8 | D69: Dodatkowe (8) | E69: teksty!$B$164:$F$169 | I69: 290 | J69: Dodatkowe (8) | K69: Other (8) | L69: Dodatkowe (8)
A70: 9 | B70: Dodatkowe 9 | C70: DodatkoweInformacjeIObjasnienia 9 | D70: Dodatkowe (9) | E70: teksty!$B$164:$F$169 | I70: 295 | J70: Dodatkowe (9) | K70: Other (9) | L70: Dodatkowe (9)
A71: 10 | B71: Dodatkowe 10 | C71: DodatkoweInformacjeIObjasnienia 10 | D71: Dodatkowe (10) | E71: teksty!$B$164:$F$169 | I71: 300 | J71: Dodatkowe (10) | K71: Other (10) | L71: Dodatkowe (10)
A72: 11 | B72: Dodatkowe 11 | C72: DodatkoweInformacjeIObjasnienia 11 | D72: Dodatkowe (11) | E72: teksty!$B$164:$F$169 | I72: 305 | J72: Dodatkowe (11) | K72: Other (11) | L72: Dodatkowe (11)
A73: 12 | B73: Dodatkowe 12 | C73: DodatkoweInformacjeIObjasnienia 12 | D73: Dodatkowe (12) | E73: teksty!$B$164:$F$169 | I73: 310 | J73: Dodatkowe (12) | K73: Other (12) | L73: Dodatkowe (12)
A74: 13 | B74: Dodatkowe 13 | C74: DodatkoweInformacjeIObjasnienia 13 | D74: Dodatkowe (13) | E74: teksty!$B$164:$F$169 | I74: 315 | J74: Dodatkowe (13) | K74: Other (13) | L74: Dodatkowe (13)
A75: 14 | B75: Dodatkowe 14 | C75: DodatkoweInformacjeIObjasnienia 14 | D75: Dodatkowe (14) | E75: teksty!$B$164:$F$169 | I75: 320 | J75: Dodatkowe (14) | K75: Other (14) | L75: Dodatkowe (14)
A76: 15 | B76: Dodatkowe 15 | C76: DodatkoweInformacjeIObjasnienia 15 | D76: Dodatkowe (15) | E76: teksty!$B$164:$F$169 | I76: 325 | J76: Dodatkowe (15) | K76: Other (15) | L76: Dodatkowe (15)
A77: 16 | B77: Dodatkowe 16 | C77: DodatkoweInformacjeIObjasnienia 16 | D77: Dodatkowe (16) | E77: teksty!$B$164:$F$169 | I77: 330 | J77: Dodatkowe (16) | K77: Other (16) | L77: Dodatkowe (16)
A78: 17 | B78: Dodatkowe 17 | C78: DodatkoweInformacjeIObjasnienia 17 | D78: Dodatkowe (17) | E78: teksty!$B$164:$F$169 | I78: 335 | J78: Dodatkowe (17) | K78: Other (17) | L78: Dodatkowe (17)
A79: 18 | B79: Dodatkowe 18 | C79: DodatkoweInformacjeIObjasnienia 18 | D79: Dodatkowe (18) | E79: teksty!$B$164:$F$169 | I79: 340 | J79: Dodatkowe (18) | K79: Other (18) | L79: Dodatkowe (18)
A80: 19 | B80: Dodatkowe 19 | C80: DodatkoweInformacjeIObjasnienia 19 | D80: Dodatkowe (19) | E80: teksty!$B$164:$F$169 | I80: 345 | J80: Dodatkowe (19) | K80: Other (19) | L80: Dodatkowe (19)
A81: 20 | B81: Dodatkowe 20 | C81: DodatkoweInformacjeIObjasnienia 20 | D81: Dodatkowe (20) | E81: teksty!$B$164:$F$169 | I81: 350 | J81: Dodatkowe (20) | K81: Other (20) | L81: Dodatkowe (20)
A82: 21 | B82: Dodatkowe 21 | C82: DodatkoweInformacjeIObjasnienia 21 | D82: Dodatkowe (21) | E82: teksty!$B$164:$F$169 | I82: 355 | J82: Dodatkowe (21) | K82: Other (21) | L82: Dodatkowe (21)
A83: 22 | B83: Dodatkowe 22 | C83: DodatkoweInformacjeIObjasnienia 22 | D83: Dodatkowe (22) | E83: teksty!$B$164:$F$169 | I83: 360 | J83: Dodatkowe (22) | K83: Other (22) | L83: Dodatkowe (22)
A84: 23 | B84: Dodatkowe 23 | C84: DodatkoweInformacjeIObjasnienia 23 | D84: Dodatkowe (23) | E84: teksty!$B$164:$F$169 | I84: 365 | J84: Dodatkowe (23) | K84: Other (23) | L84: Dodatkowe (23)
A85: 24 | B85: Dodatkowe 24 | C85: DodatkoweInformacjeIObjasnienia 24 | D85: Dodatkowe (24) | E85: teksty!$B$164:$F$169 | I85: 370 | J85: Dodatkowe (24) | K85: Other (24) | L85: Dodatkowe (24)
A86: 25 | B86: Dodatkowe 25 | C86: DodatkoweInformacjeIObjasnienia 25 | D86: Dodatkowe (25) | E86: teksty!$B$164:$F$169 | I86: 375 | J86: Dodatkowe (25) | K86: Other (25) | L86: Dodatkowe (25)
A87: 26 | B87: Dodatkowe 26 | C87: DodatkoweInformacjeIObjasnienia 26 | D87: Dodatkowe (26) | E87: teksty!$B$164:$F$169 | I87: 380 | J87: Dodatkowe (26) | K87: Other (26) | L87: Dodatkowe (26)
A88: 27 | B88: Dodatkowe 27 | C88: DodatkoweInformacjeIObjasnienia 27 | D88: Dodatkowe (27) | E88: teksty!$B$164:$F$169 | I88: 385 | J88: Dodatkowe (27) | K88: Other (27) | L88: Dodatkowe (27)
A89: 28 | B89: Dodatkowe 28 | C89: DodatkoweInformacjeIObjasnienia 28 | D89: Dodatkowe (28) | E89: teksty!$B$164:$F$169 | I89: 390 | J89: Dodatkowe (28) | K89: Other (28) | L89: Dodatkowe (28)
A90: 29 | B90: Dodatkowe 29 | C90: DodatkoweInformacjeIObjasnienia 29 | D90: Dodatkowe (29) | E90: teksty!$B$164:$F$169 | I90: 395 | J90: Dodatkowe (29) | K90: Other (29) | L90: Dodatkowe (29)
A91: 30 | B91: Dodatkowe 30 | C91: DodatkoweInformacjeIObjasnienia 30 | D91: Dodatkowe (30) | E91: teksty!$B$164:$F$169 | I91: 400 | J91: Dodatkowe (30) | K91: Other (30) | L91: Dodatkowe (30)
A92: 31 | B92: Dodatkowe 31 | C92: DodatkoweInformacjeIObjasnienia 31 | D92: Dodatkowe (31) | E92: teksty!$B$164:$F$169 | I92: 405 | J92: Dodatkowe (31) | K92: Other (31) | L92: Dodatkowe (31)
A93: 32 | B93: Dodatkowe 32 | C93: DodatkoweInformacjeIObjasnienia 32 | D93: Dodatkowe (32) | E93: teksty!$B$164:$F$169 | I93: 410 | J93: Dodatkowe (32) | K93: Other (32) | L93: Dodatkowe (32)
A94: 33 | B94: Dodatkowe 33 | C94: DodatkoweInformacjeIObjasnienia 33 | D94: Dodatkowe (33) | E94: teksty!$B$164:$F$169 | I94: 415 | J94: Dodatkowe (33) | K94: Other (33) | L94: Dodatkowe (33)
A95: 34 | B95: Dodatkowe 34 | C95: DodatkoweInformacjeIObjasnienia 34 | D95: Dodatkowe (34) | E95: teksty!$B$164:$F$169 | I95: 420 | J95: Dodatkowe (34) | K95: Other (34) | L95: Dodatkowe (34)
A96: 35 | B96: Dodatkowe 35 | C96: ="DodatkoweInformacjeIObjasnienia " & A96 -> DodatkoweInformacjeIObjasnienia 35 | D96: Dodatkowe (35) | E96: teksty!$B$164:$F$169 | I96: 425 | J96: Dodatkowe (35) | K96: Other (35) | L96: Dodatkowe (35)
A97: 36 | B97: Dodatkowe 36 | C97: DodatkoweInformacjeIObjasnienia 36 | D97: Dodatkowe (36) | E97: teksty!$B$164:$F$169 | I97: 430 | J97: Dodatkowe (36) | K97: Other (36) | L97: Dodatkowe (36)
A98: 37 | B98: Dodatkowe 37 | C98: DodatkoweInformacjeIObjasnienia 37 | D98: Dodatkowe (37) | E98: teksty!$B$164:$F$169 | I98: 435 | J98: Dodatkowe (37) | K98: Other (37) | L98: Dodatkowe (37)
A99: 38 | B99: Dodatkowe 38 | C99: DodatkoweInformacjeIObjasnienia 38 | D99: Dodatkowe (38) | E99: teksty!$B$164:$F$169 | I99: 440 | J99: Dodatkowe (38) | K99: Other (38) | L99: Dodatkowe (38)
A100: 39 | B100: Dodatkowe 39 | C100: DodatkoweInformacjeIObjasnienia 39 | D100: Dodatkowe (39) | E100: teksty!$B$164:$F$169 | I100: 445 | J100: Dodatkowe (39) | K100: Other (39) | L100: Dodatkowe (39)
A101: 40 | B101: Dodatkowe 40 | C101: ="DodatkoweInformacjeIObjasnienia " & A101 -> DodatkoweInformacjeIObjasnienia 40 | D101: Dodatkowe (40) | E101: teksty!$B$164:$F$169 | I101: 450 | J101: Dodatkowe (40) | K101: Other (40) | L101: Dodatkowe (40)
I102: 455
B103: warianty sekcji "WprowadzenieDoSprawozdaniaFinansowego": | I103: 460 | L103: ------- koniec nazw arkuszy -------
B104: Nr kolejny | C104: Pole tekstowe ze wzorcem struktury | D104: Etykieta | E104: Nazwa bazowa węzła XML | F104: Odsyłacz do obszaru subelementów | H104: Lista wersji "Wprowadzenia" | I104: 465
B105: 1 | C105: JednostkaInna(Rozszerzona) | D105: =OFFSET(I105,0,WybranyJezyk) -> wersja pełna | E105: WprowadzenieDoSprawozdaniaFinansowegoJednostkaInna | I105: 470 | J105: wersja pełna | K105: full version | L105: wersja pełna
B106: 2 | C106: JednostkaMala | D106: =OFFSET(I106,0,WybranyJezyk) -> wersja uproszczona | E106: InformacjeOgolneJednostkaMikro,WprowadzenieDoSprawozdaniaFinansowegoJednostkaMala | I106: 475 | J106: wersja uproszczona | K106: simplified version | L106: wersja uproszczona
I107: 480
B108: 4 | C108: JednostkaInna | D108: =OFFSET(I108,0,WybranyJezyk) -> stała | E108: WprowadzenieDoSprawozdaniaFinansowego | I108: 485 | J108: stała | K108: fixed | L108: stała
B109: 5 | C109: JednostkaOp | D109: =OFFSET(I109,0,WybranyJezyk) -> stała | E109: WprowadzenieDoSprawozdaniaFinansowegoJednostkaOp | I109: 490 | J109: stała | K109: fixed | L109: stała
B110: 6 | C110: Skonsolidowana | D110: =OFFSET(I110,0,WybranyJezyk) -> stała | E110: WprowadzenieDoSprawozdaniaFinansowego | I110: 495 | J110: stała | K110: fixed | L110: stała
I111: 500
B112: warianty sekcji "Bilans": | I112: 505
B113: Nr kolejny | C113: Pole tekstowe ze wzorcem struktury | D113: Etykieta | E113: Nazwa bazowa węzła XML | F113: Odsyłacz do obszaru subelementów | H113: Lista wersji "Bilansu" | I113: 510
B114: 1 | C114: JednostkaInna | D114: =OFFSET(I114,0,WybranyJezyk) -> wersja pełna | E114: Bilans,BilansJednostkaInna | I114: 515 | J114: wersja pełna | K114: full version | L114: wersja pełna
B115: 2 | C115: JednostkaMala | D115: =OFFSET(I115,0,WybranyJezyk) -> wersja uproszczona | E115: BilansJednostkaMala | I115: 520 | J115: wersja uproszczona | K115: simplified version | L115: wersja uproszczona
B116: 3 | C116: JednostkaMikro | D116: =OFFSET(I116,0,WybranyJezyk) -> wersja najprostsza | E116: BilansJednostkaMikro | I116: 525 | J116: wersja najprostsza | K116: the simplest version | L116: wersja najprostsza
I117: 530
B118: 5 | C118: JednostkaOp | D118: =OFFSET(I118,0,WybranyJezyk) -> stała | E118: BilansJednostkaOp | I118: 535 | J118: stała | K118: fixed | L118: stała
B119: 6 | C119: Skonsolidowana | D119: =OFFSET(I119,0,WybranyJezyk) -> stała | E119: Bilans | I119: 540 | J119: stała | K119: fixed | L119: stała
I120: 545
B121: warianty sekcji "ZestZmianWKapitale": | I121: 550
B122: Nr kolejny | C122: Pole tekstowe ze wzorcem struktury | D122: Etykieta | E122: Nazwa bazowa węzła XML | F122: Odsyłacz do obszaru subelementów | I122: 555
B123: 1 | C123: JednostkaInna | D123: =OFFSET(I123,0,WybranyJezyk) -> stała | E123: ZestZmianWKapitale,ZestZmianWKapitaleJednostkaInna | I123: 560 | J123: stała | K123: fixed | L123: stała
I124: 565
I125: 570
B126: 4 | C126: Skonsolidowana | D126: =OFFSET(I126,0,WybranyJezyk) -> stała | E126: ZestZmianWKapitale | I126: 575 | J126: stała | K126: fixed | L126: stała
I127: 580
I128: 585
B129: warianty sekcji "RZiS": | I129: 590
B130: Nr kolejny | C130: Pole tekstowe ze wzorcem struktury | D130: Etykieta | E130: Nazwa bazowa węzła XML | F130: Odsyłacz do obszaru subelementów | H130: Lista wersji"RZiS" | I130: 595
B131: 1 | C131: JednostkaInna | D131: =OFFSET(I131,0,WybranyJezyk) -> wersja pełna | E131: RZiS,RZiSJednostkaInna | F131: =Adr($B$140:$F$141) -> teksty!$B$140:$F$141 | I131: 600 | J131: wersja pełna | K131: full version | L131: wersja pełna
B132: 2 | C132: JednostkaMala | D132: =OFFSET(I132,0,WybranyJezyk) -> wersja uproszczona | E132: RZiSJednostkaMala | F132: =Adr($B$140:$F$141) -> teksty!$B$140:$F$141 | I132: 605 | J132: wersja uproszczona | K132: simplified version | L132: wersja uproszczona
B133: 3 | C133: JednostkaMikro | D133: =OFFSET(I133,0,WybranyJezyk) -> wersja najprostsza | E133: RZiSJednostkaMikro | F133: =Adr(B145:F146) -> teksty!$B$145:$F$146 | I133: 610 | J133: wersja najprostsza | K133: the simplest version | L133: wersja najprostsza
I134: 615
B135: 5 | C135: JednostkaOp | D135: =OFFSET(I135,0,WybranyJezyk) -> stała | E135: RZiSJednostkaOp | I135: 620 | J135: stała | K135: fixed | L135: stała
B136: 6 | C136: Skonsolidowana | D136: =OFFSET(I136,0,WybranyJezyk) -> stała | E136: RZiS | F136: =Adr($B$140:$F$141) -> teksty!$B$140:$F$141 | I136: 625 | J136: stała | K136: fixed | L136: stała
I137: 630
B138: subwarianty sekcji "RZiS": | I138: 635
B139: Nr kolejny | C139: (nieistotne) | D139: Etykieta | E139: Nazwa bazowa węzła XML | F139: Odsyłacz do obszaru subelementów | H139: Lista wariantów "RZS" | I139: 640
B140: 1 | C140: Kalkulacyjny | D140: =OFFSET(I140,0,WybranyJezyk) -> wariant kalkulacyjny | E140: RZiSKalk | I140: 645 | J140: wariant kalkulacyjny | K140: calculation variant | L140: wariant kalkulacyjny
B141: 2 | C141: Porownawczy | D141: =OFFSET(I141,0,WybranyJezyk) -> wariant porównawczy | E141: RZiSPor | I141: 650 | J141: wariant porównawczy | K141: comparative variant | L141: wariant porównawczy
I142: 655
B143: subwarianty sekcji "RZiS": | I143: 660
B144: Nr kolejny | C144: (nieistotne) | D144: Etykieta | E144: Nazwa bazowa węzła XML | F144: Odsyłacz do obszaru subelementów | H144: Lista subwariantów RZiS dla jedn. Mikro | I144: 665
B145: 1 | C145: art3.1a.2 | D145: =OFFSET(I145,0,WybranyJezyk) -> wariant dla jednostki z art. 3 ust. 1a pkt 2 ustawy | E145: G | I145: 670 | J145: wariant dla jednostki z art. 3 ust. 1a pkt 2 ustawy | K145: for entities descr. by sect. 3, par. 1a, p. 2 of the Act | L145: wariant dla jednostki z art. 3 ust. 1a pkt 2 ustawy
B146: 2 | C146: pozostale | D146: =OFFSET(I146,0,WybranyJezyk) -> wariant dla jednostek z art. 3 ust. 1a p. 1,3, i 4 oraz ust. 1b | E146: F | I146: 675 | J146: wariant dla jednostek z art. 3 ust. 1a p. 1,3, i 4 oraz ust. 1b | K146: for entities descr. By sect. 3, par. 1a p. 1,3, 4 or par. 1b of the Act | L146: wariant dla jednostek z art. 3 ust. 1a p. 1,3, i 4 oraz ust. 1b
I147: 680
B148: warianty sekcji "RachPrzeplywow": | I148: 685
B149: Nr kolejny | C149: Pole tekstowe ze wzorcem struktury | D149: Etykieta | E149: Nazwa bazowa węzła XML | F149: Odsyłacz do obszaru subelementów | I149: 690
B150: 1 | C150: JednostkaInna | D150: =OFFSET(I150,0,WybranyJezyk) -> stała | E150: RachPrzeplywow,RachPrzeplywowJednostkaInna | F150: =Adr($B$159:$F$160) -> teksty!$B$159:$F$160 | I150: 695 | J150: stała | K150: fixed | L150: stała
I151: 700
I152: 705
I153: 710
B154: 5 | C154: JednostkaOp | D154: =OFFSET(I154,0,WybranyJezyk) -> stała | E154: RachPrzeplywowJednostkaInna | F154: =Adr($B$159:$F$160) -> teksty!$B$159:$F$160 | I154: 715 | J154: stała | K154: fixed | L154: stała
B155: 6 | C155: Skonsolidowana | D155: =OFFSET(I155,0,WybranyJezyk) -> stała | E155: RachPrzeplywow | F155: =Adr($B$159:$F$160) -> teksty!$B$159:$F$160 | I155: 720 | J155: stała | K155: fixed | L155: stała
I156: 725
B157: subwarianty sekcji "RachPrzeplywow": | I157: 730
B158: Nr kolejny | C158: (nieistotne) | D158: Etykieta | E158: Nazwa bazowa węzła XML | F158: Odsyłacz do obszaru subelementów | H158: Lista wariantów "Przepływów" | I158: 735
B159: 1 | C159: Bezposrednia | D159: =OFFSET(I159,0,WybranyJezyk) -> metoda bezpośrednia | E159: PrzeplywyBezp | I159: 740 | J159: metoda bezpośrednia | K159: direct method | L159: metoda bezpośrednia
B160: 2 | C160: Posrednia | D160: =OFFSET(I160,0,WybranyJezyk) -> metoda pośrednia | E160: PrzeplywyPosr | I160: 745 | J160: metoda pośrednia | K160: indirect method | L160: metoda pośrednia
I161: 750
B162: sufiksy nazwy obaszaru do "DodatkoweInformacjeIObjasnienia": | I162: 755
B163: Nr kolejny | C163: Pole tekstowe ze wzorcem struktury | D163: Etykieta | E163: Nazwa bazowa węzła XML | F163: Odsyłacz do obszaru subelementów | I163: 760
B164: 1 | C164: JednostkaInna | D164: =OFFSET(I164,0,WybranyJezyk) -> stała | E164: DodatkoweInformacjeIObjasnieniaJednstkaInna,DodatkoweInformacjeIObjasnieniaJednostkaInna | I164: 765 | J164: stała | K164: fixed | L164: stała
B165: 2 | C165: JednostkaInna | D165: =OFFSET(I165,0,WybranyJezyk) -> stała | E165: InformacjeUzupelniajaceDoBilansuJednostkaMikro,DodatkoweInformacjeIObjasnieniaJednostkaMala | I165: 770 | J165: stała | K165: fixed | L165: stała
I166: 775
B167: 4 | C167: JednostkaOp | D167: =OFFSET(I167,0,WybranyJezyk) -> stała | E167: InformacjaDodatkowaJednostkaOp | I167: 780 | J167: stała | K167: fixed | L167: stała
I168: 785
B169: 6 | C169: Skonsolidowana | D169: =OFFSET(I169,0,WybranyJezyk) -> stała | E169: DodatkoweInformacjeIObjasnieniaJednostkaInna | I169: 790 | J169: stała | K169: fixed | L169: stała
I170: 795
A171: Teksty używane w kodzie programu: | I171: 800
I172: 805
C173: ID używane w kodzie | D173: Tekst (pola {0}, {1}, {2}, … są na kolejne argumenty wywołania) | H173: Komunikaty programu | I173: 810
C174: WkbookCorrupted | D174: =OFFSET(I174,0,WybranyJezyk) -> W tym skoroszycie brakuje niektórych danych niezbędnych do poprawnego działania. (Ta kopia jest niekompletna) | H174: UWAGA: zawsze należy zachować pola {0}, {1}, {2}, … - są to miejsca na kolejne argumenty wywołania | I174: 815 | J174: W tym skoroszycie brakuje niektórych danych niezbędnych do poprawnego działania. (Ta kopia jest niekompletna) | K174: This workbook lost some vital data, and is not working properly. (This copy is incomplete). | L174: =J174 -> W tym skoroszycie brakuje niektórych danych niezbędnych do poprawnego działania. (Ta kopia jest niekompletna)
C175: WkbookProblem | D175: Problem ze skoroszytem | I175: 820 | J175: Problem ze skoroszytem | K175: Workbook problem | L175: =J175 -> Problem ze skoroszytem
C176: ErrOnOpen | D176: Błąd podczas otwierania pliku | I176: 825 | J176: Błąd podczas otwierania pliku | K176: Error on opening the file | L176: Błąd podczas otwierania pliku
C177: CannotLoadFile | D177: Nie można załadować pliku: {0} | I177: 830 | J177: Nie można załadować pliku: {0} | K177: Cannot load file: {0} | L177: Nie można załadować pliku: {0}
C178: UnknownProtectionPwd | D178: Arkusz jest chroniony nieznanym hasłem. Ten przycisk działa tylko dla arkuszy z ochroną bez hasła lub z hasłem predefiniowanym | I178: 835 | J178: Arkusz jest chroniony nieznanym hasłem. Ten przycisk działa tylko dla arkuszy z ochroną bez hasła lub z hasłem predefiniowanym | K178: This worksheet is protected by an unknown password. This button works only for the sheets protected without a password, or by the predefined password | L178: Arkusz jest chroniony nieznanym hasłem. Ten przycisk działa tylko dla arkuszy z ochroną bez hasła lub z hasłem predefiniowanym
C179: CannotUnprotect | D179: Nie można wyłączyć ochrony arkusza. Spróbuj użyć oryginalnej wersji tego skoroszytu (z tą coś jest nie tak) | I179: 840 | J179: Nie można wyłączyć ochrony arkusza. Spróbuj użyć oryginalnej wersji tego skoroszytu (z tą coś jest nie tak) | K179: Cannot unprotect this worksheet. Try to use the original version of this workbook (there is something wrong with this one). | L179: Nie można wyłączyć ochrony arkusza. Spróbuj użyć oryginalnej wersji tego skoroszytu (z tą coś jest nie tak)
C180: STDExpireMsg | D180: Szanowny Kliencie, upłynął okres licencji udzielonej na używanie tego skoroszytu. Aby przedłużyć licencję, prosimy o kontakt z producentem (biuro@zigzak.eu). | I180: 845 | J180: Szanowny Kliencie, upłynął okres licencji udzielonej na używanie tego skoroszytu. Aby przedłużyć licencję, prosimy o kontakt z producentem (biuro@zigzak.eu). | K180: Dear Customer, the licence for this workbook has expired. To buy a new licence, plrease contact the producer (biuro@zigzak.eu) | L180: Szanowny Kliencie, upłynął okres licencji udzielonej na używanie tego skoroszytu. Aby przedłużyć licencję, prosimy o kontakt z producentem (biuro@zigzak.eu).
C181: STDExpireDemoMsg | D181: Okres ważności tej wersji demonstracyjnej już upłynął. Zapytaj (biuro@zigzak.eu) o warunki udzielenia pełnej licencji | I181: 850 | J181: Okres ważności tej wersji demonstracyjnej już upłynął. Zapytaj (biuro@zigzak.eu) o warunki udzielenia pełnej licencji | K181: This demo version has expired. Ask the producer (biuro@zigzak.eu) for the license terms. | L181: Okres ważności tej wersji demonstracyjnej już upłynął. Zapytaj (biuro@zigzak.eu) o warunki udzielenia pełnej licencji
C182: IFormExpireMsg | D182: Szanowny Kliencie, upłynął okres licencji udzielonej na używanie tego skoroszytu. Aby przedłużyć licencję, prosimy o kontakt z producentem (biuro@zigzak.eu). | I182: 855 | J182: Szanowny Kliencie, upłynął okres licencji udzielonej na używanie tego skoroszytu. Aby przedłużyć licencję, prosimy o kontakt z producentem (biuro@zigzak.eu). | K182: Dear Customer, the licence for this workbook has expired. To buy a new licence, plrease contact the producer (biuro@zigzak.eu) | L182: Szanowny Kliencie, upłynął okres licencji udzielonej na używanie tego skoroszytu. Aby przedłużyć licencję, prosimy o kontakt z producentem (biuro@zigzak.eu).
C183: IFormExpireDemoMsg | D183: Okres ważności tej wersji demonstracyjnej już upłynął. W celu nabycia pełnej licencji prosimy o kontakt z naszym partnerem: Signform Sp. z o.o. tel. +48 608-43-63-83 e-mail: biuro@signform.pl | I183: 860 | J183: Okres ważności tej wersji demonstracyjnej już upłynął. W celu nabycia pełnej licencji prosimy o kontakt z naszym partnerem: Signform Sp. z o.o. tel. +48 608-43-63-83 e-mail: biuro@signform.pl | K183: This demo version has expired. To buy a licence for this workbook, contact our sales partner: Signform Sp. z o.o. phone: +48 608-43-63-83 e-mail: biuro@signform.pl | L183: Okres ważności tej wersji demonstracyjnej już upłynął. W celu nabycia pełnej licencji prosimy o kontakt z naszym partnerem: Signform Sp. z o.o. tel. +48 608-43-63-83 e-mail: biuro@signform.pl
C184: DemoLicenseMsg | D184: Wersja demonstracyjna (kopiowanie dozwolone). W sprawie otrzymania licencji na wersję produktywną skontaktuj się z Właścicielem (biuro@zigzak.eu) | I184: 865 | J184: Wersja demonstracyjna (kopiowanie dozwolone). W sprawie otrzymania licencji na wersję produktywną skontaktuj się z Właścicielem (biuro@zigzak.eu) | K184: Demo version (copying allowed). If you are interested in buying the full licence, ask the producer (biuro@zigzak.eu) . | L184: Wersja demonstracyjna (kopiowanie dozwolone). W sprawie otrzymania licencji na wersję produktywną skontaktuj się z Właścicielem (biuro@zigzak.eu)
C185: DemoYearRestriction | D185: Ta wersja demonstracyjna nie pozwala na stworzenie raportu za okres obejmujący zeszły rok ({0}). Możesz w niej stworzyć raporty za lata wcześniejsze. W sprawie otrzymania pełnej licencji skontaktuj się z producentem (biuro@zigzak.eu) | I185: 870 | J185: Ta wersja demonstracyjna nie pozwala na stworzenie raportu za okres obejmujący zeszły rok ({0}). Możesz w niej stworzyć raporty za lata wcześniejsze. W sprawie otrzymania pełnej licencji skontaktuj się z producentem (biuro@zigzak.eu) | K185: This demo version does not allow to save report for the previous year ({0}). You can use it to create reports for the previous years. If you are interested in buying the full licence, contact the producer (biuro@zigzak.eu) . | L185: Ta wersja demonstracyjna nie pozwala na stworzenie raportu za okres obejmujący zeszły rok ({0}). Możesz w niej stworzyć raporty za lata wcześniejsze. W sprawie otrzymania pełnej licencji skontaktuj się z producentem (biuro@zigzak.eu)
C186: IFormDemoYearRestriction | D186: Ta wersja demonstracyjna nie pozwala na stworzenie raportu za okres obejmujący zeszły rok ({0}). Możesz w niej stworzyć raporty za lata wcześniejsze. Aby nabyć pełną licencję, skontaktuj się z naszym partnerem: Signform Sp. z o.o. tel. +48 608-43-63-83 e-mail: biuro@signform.pl | I186: 875 | J186: Ta wersja demonstracyjna nie pozwala na stworzenie raportu za okres obejmujący zeszły rok ({0}). Możesz w niej stworzyć raporty za lata wcześniejsze. Aby nabyć pełną licencję, skontaktuj się z naszym partnerem: Signform Sp. z o.o. tel. +48 608-43-63-83 e-mail: biuro@signform.pl | K186: This demo version does not allow to save report for the previous year ({0}). You can use it to create reports for the previous years. To buy a full licence for this workbook, contact our sales partner: Signform Sp. z o.o. phone: +48 608-43-63-83 e-mail: biuro@signform.pl | L186: Ta wersja demonstracyjna nie pozwala na stworzenie raportu za okres obejmujący zeszły rok ({0}). Możesz w niej stworzyć raporty za lata wcześniejsze. Aby nabyć pełną licencję, skontaktuj się z naszym partnerem: Signform Sp. z o.o. tel. +48 608-43-63-83 e-mail: biuro@signform.pl
C187: MappingXMLFields… | D187: Przypisywanie pól arkuszy do pól dokumentu XML: | I187: 880 | J187: Przypisywanie pól arkuszy do pól dokumentu XML: | K187: Assigning worksheet fields to the XML document elements: | L187: Przypisywanie pól arkuszy do pól dokumentu XML:
C188: Assertion | D188: Nieoczekiwany problem techniczny | I188: 885 | J188: Nieoczekiwany problem techniczny | K188: Unexpected technical problem | L188: Nieoczekiwany problem techniczny
C189: NoFieldMapped | D189: We wzorcowym pliku ({0}) brak pola "{1}" Czy ten skoroszyt nie jest w jakiś sposób uszkodzony? | I189: 890 | J189: We wzorcowym pliku ({0}) brak pola "{1}" Czy ten skoroszyt nie jest w jakiś sposób uszkodzony? | K189: Field '{1}' not found in the template document ({0}). Is this workbook file corrupted? | L189: We wzorcowym pliku ({0}) brak pola "{1}" Czy ten skoroszyt nie jest w jakiś sposób uszkodzony?
C190: TooManyFieldsMapped | D190: We wzorcowym pliku ({0}) pola "{1}" występują {2} razy! Uwaga dla programisty: proszę sprawdzić definicję mapowania w wierszu {3}. | I190: 895 | J190: We wzorcowym pliku ({0}) pola "{1}" występują {2} razy! Uwaga dla programisty: proszę sprawdzić definicję mapowania w wierszu {3}. | K190: Field '{1}' occurs {2} times in the template document ({0}). Note for the programmer: check the mapping declaraction in row {3}. | L190: We wzorcowym pliku ({0}) pola "{1}" występują {2} razy! Uwaga dla programisty: proszę sprawdzić definicję mapowania w wierszu {3}.
C191: TooLongFileName | D191: Nazwa pliku jest za długa (o {0} {1}). | I191: 900 | J191: Nazwa pliku jest za długa (o {0} {1}). | K191: File name too long (by {0} {1}). | L191: Nazwa pliku jest za długa (o {0} {1}).
C192: 1char | D192: znak | I192: 905 | J192: znak | K192: character | L192: znak
C193: 2-4chars | D193: znaki | I193: 910 | J193: znaki | K193: characters | L193: znaki
C194: >4chars | D194: znaków | I194: 915 | J194: znaków | K194: characters | L194: znaków
C195: WrongFileNameChar | D195: Znak nr {0} ('{1}') w nazwie '{2}' jest niepoprawny. Dopuszczalne znaki to: litery łacińskie, cyfry, oraz myślnik ('-'), podkreślenie('_'), i kropka ('.') | I195: 920 | J195: Znak nr {0} ('{1}') w nazwie '{2}' jest niepoprawny. Dopuszczalne znaki to: litery łacińskie, cyfry, oraz myślnik ('-'), podkreślenie('_'), i kropka ('.') | K195: Character at pos. {0} ('{1}') in name '{2}' is improper. Allowed are: latin letters, digits, dashes ('-'), underscores ('_'), and dots ('.'). | L195: Znak nr {0} ('{1}') w nazwie '{2}' jest niepoprawny. Dopuszczalne znaki to: litery łacińskie, cyfry, oraz myślnik ('-'), podkreślenie('_'), i kropka ('.')
C196: Warning | D196: Ostrzeżenie | I196: 925 | J196: Ostrzeżenie | K196: Warning | L196: Ostrzeżenie
C197: Question | D197: Pytanie | I197: 926 | J197: Pytanie | K197: Question | L197: Pytanie
C198: Information | D198: Informacja | I198: 927 | J198: Informacja | K198: Information | L198: Informacja
C199: CorrectThisImportFileName? | D199: Naza pliku nie spełnia wymagań MF: {0} Nazwę tego pliku możesz poprawić, nawet w oknie dialogowym które przed chwilą się zamknęło. (Wystarczy przed wskazaniem pliku kliknąć w jego nazwę prawym przyciskiem myszy i z menu kontektowego wybrać polecenie "Zmień nazwę"). Czy chcesz teraz otworzyć ponownie okno wyboru plików i poprawić w nim tę nazwę? | I199: 930 | J199: Naza pliku nie spełnia wymagań MF: {0} Nazwę tego pliku możesz poprawić, nawet w oknie dialogowym które przed chwilą się zamknęło. (Wystarczy przed wskazaniem pliku kliknąć w jego nazwę prawym przyciskiem myszy i z menu kontektowego wybrać polecenie "Zmień nazwę"). Czy chcesz teraz otworzyć ponownie okno wyboru plików i poprawić w nim tę nazwę? | K199: File name does not match the requirements: {0} You can correct this name even in the file selector dialog that you have just closed. (Before selecting the file, you can right-click the mouse on its name and from the contect menu select the "Rename" command). Do you want to open the file selector dialog again, and correct this file name? | L199: Naza pliku nie spełnia wymagań MF: {0} Nazwę tego pliku możesz poprawić, nawet w oknie dialogowym które przed chwilą się zamknęło. (Wystarczy przed wskazaniem pliku kliknąć w jego nazwę prawym przyciskiem myszy i z menu kontektowego wybrać polecenie "Zmień nazwę"). Czy chcesz teraz otworzyć ponownie okno wyboru plików i poprawić w nim tę nazwę?
C200: CorrectThisExportFileName? | D200: Ten plik zostanie odrzucony przez serwer eKRS/KAS z powodu: {0} Czy chcesz teraz poprawić tę nazwę? | I200: 935 | J200: Ten plik zostanie odrzucony przez serwer eKRS/KAS z powodu: {0} Czy chcesz teraz poprawić tę nazwę? | K200: This file will be discarded by the target portal because of: {0} Do you ant to correct its name? | L200: Ten plik zostanie odrzucony przez serwer eKRS/KAS z powodu: {0} Czy chcesz teraz poprawić tę nazwę?
C201: PreparingToExport | D201: Przygotowania do eksportu... | I201: 940 | J201: Przygotowania do eksportu... | K201: Preparing the export…. | L201: Przygotowania do eksportu...
... 800 more rows

Sheet mapowanie (hidden)
B1: Mapowanie pól sprawozdania na elementy dokumentu XML | J1: Uwaga: przestrzeń nazw "sf:" to przesztrzeń aktualnie wybranego wariantu. Używaj "xjin:", "xjma:" i "xjmi:", by odróżnić "statycznie" poszczególne warianty bazowej struktury (np. xjin to "JednostkaInna<Wtysiacach/WZlotych>"). Do podobnego celu możesz użyć "jin:", "jma:" i "jmi:" (np. jin to "JednostkaInnaStruktury")
N3: Zamiennik 1/1 dla wersji schematu: | O3: Zamiennik 1/2
B4: Adres | C4: Domyślne dane w miejsce pustej komórki | D4: Dodatkowy atrybut | E4: Zachowaj przy resecie częściowym | F4: Flaga | G4: Typ | H4: Nr kolejny | I4: Formuła | J4: Element nadrzędny | K4: Element docelowy | L4: Weryfikacja adresu komórki (etykieta elementu) | N4: 1-0,1-0E
B5: =Adr(DataOd) -> Nagłówek!$E$8 | D5: MarkParent | G5: Data | J5: sf:Naglowek | K5: dtsf:OkresOd | L5: 0
B6: =Adr(DataDo) -> Nagłówek!$G$8 | D6: MarkParent | G6: Data | J6: sf:Naglowek | K6: dtsf:OkresDo | L6: -
B7: =Adr(Nagłówek!G11) -> Nagłówek!$G$11 | C7: =TODAY() -> 2024-04-02 | G7: Data | J7: sf:Naglowek | K7: dtsf:DataSporzadzenia
B8: =Adr(Wprowadzenie!I4) -> Wprowadzenie!$I$4 | G8: Tekst | J8: sf:P_1A | K8: dtsf:NazwaFirmy
B9: =Adr(Wprowadzenie!I24) -> Wprowadzenie!$I$24 | G9: Tekst | J9: dtsf:Siedziba | K9: dtsf:Wojewodztwo
B10: =Adr(Wprowadzenie!I22) -> Wprowadzenie!$I$22 | G10: Tekst | J10: dtsf:Siedziba | K10: dtsf:Powiat
B11: =Adr(Wprowadzenie!I20) -> Wprowadzenie!$I$20 | G11: Tekst | J11: dtsf:Siedziba | K11: dtsf:Gmina
B12: =Adr(Wprowadzenie!I16) -> Wprowadzenie!$I$16 | G12: Tekst | J12: dtsf:Siedziba | K12: dtsf:Miejscowosc
B13: =Adr(Wprowadzenie!O18) -> Wprowadzenie!$O$18 | G13: Tekst | I13: PL | J13: dtsf:Adres | K13: dtsf:KodKraju | N13: =J13 -> dtsf:Adres | O13: etd:KodKraju
B14: =Adr(Wprowadzenie!I24) -> Wprowadzenie!$I$24 | G14: Tekst | J14: dtsf:Adres | K14: dtsf:Wojewodztwo | N14: =J14 -> dtsf:Adres | O14: etd:Wojewodztwo
B15: =Adr(Wprowadzenie!I22) -> Wprowadzenie!$I$22 | G15: Tekst | J15: dtsf:Adres | K15: dtsf:Powiat | N15: dtsf:Adres | O15: etd:Powiat
B16: =Adr(Wprowadzenie!I20) -> Wprowadzenie!$I$20 | G16: Tekst | J16: dtsf:Adres | K16: dtsf:Gmina | N16: dtsf:Adres | O16: etd:Gmina
B17: =Adr(Wprowadzenie!I12) -> Wprowadzenie!$I$12 | G17: Tekst | J17: dtsf:Adres | K17: dtsf:Ulica | N17: dtsf:Adres | O17: etd:Ulica
B18: =Adr(Wprowadzenie!I14) -> Wprowadzenie!$I$14 | G18: Tekst | J18: dtsf:Adres | K18: dtsf:NrDomu | N18: dtsf:Adres | O18: etd:NrDomu
B19: =Adr(Wprowadzenie!K14) -> Wprowadzenie!$K$14 | G19: Tekst | J19: dtsf:Adres | K19: dtsf:NrLokalu | N19: dtsf:Adres | O19: etd:NrLokalu
B20: =Adr(Wprowadzenie!I16) -> Wprowadzenie!$I$16 | G20: Tekst | J20: dtsf:Adres | K20: dtsf:Miejscowosc | N20: dtsf:Adres | O20: etd:Miejscowosc
B21: =Adr(Wprowadzenie!L18) -> Wprowadzenie!$L$18 | G21: Tekst | J21: dtsf:Adres | K21: dtsf:KodPocztowy | N21: dtsf:Adres | O21: etd:KodPocztowy
B22: =Adr(Wprowadzenie!I18) -> Wprowadzenie!$I$18 | G22: Tekst | J22: dtsf:Adres | K22: dtsf:Poczta | N22: dtsf:Adres | O22: etd:Poczta
B23: =Adr(Wprowadzenie!O32) -> Wprowadzenie!$O$32 | G23: Tekst | J23: dtsf:AdresPrzedsiebiorcyZagranicznego | K23: dtsf:KodKraju | N23: =J23 -> dtsf:AdresPrzedsiebiorcyZagranicznego | O23: etd:KodKraju
B24: =Adr(Wprowadzenie!L32) -> Wprowadzenie!$L$32 | G24: Tekst | J24: dtsf:AdresPrzedsiebiorcyZagranicznego | K24: dtsf:KodPocztowy | N24: dtsf:AdresPrzedsiebiorcyZagranicznego | O24: etd:KodPocztowy
B25: =Adr(Wprowadzenie!I32) -> Wprowadzenie!$I$32 | G25: Tekst | J25: dtsf:AdresPrzedsiebiorcyZagranicznego | K25: dtsf:Miejscowosc | N25: dtsf:AdresPrzedsiebiorcyZagranicznego | O25: etd:Miejscowosc
B26: =Adr(Wprowadzenie!I28) -> Wprowadzenie!$I$28 | G26: Tekst | J26: dtsf:AdresPrzedsiebiorcyZagranicznego | K26: dtsf:Ulica | N26: dtsf:AdresPrzedsiebiorcyZagranicznego | O26: etd:Ulica
B27: =Adr(Wprowadzenie!I30) -> Wprowadzenie!$I$30 | G27: Tekst | J27: dtsf:AdresPrzedsiebiorcyZagranicznego | K27: dtsf:NrDomu | N27: dtsf:AdresPrzedsiebiorcyZagranicznego | O27: etd:NrDomu
B28: =Adr(Wprowadzenie!K30) -> Wprowadzenie!$K$30 | G28: Tekst | J28: dtsf:AdresPrzedsiebiorcyZagranicznego | K28: dtsf:NrLokalu | N28: dtsf:AdresPrzedsiebiorcyZagranicznego | O28: etd:NrLokalu
B29: =Adr(Wprowadzenie!I36) -> Wprowadzenie!$I$36 | G29: Tekst | J29: xsin:WprowadzenieDoSprawozdaniaFinansowego/xsin:P_1 | K29: xsin:P_1B
B30: =Adr(Wprowadzenie!I42) -> Wprowadzenie!$I$42 | G30: Tekst | H30: 1 | J30: sf:P_1C | K30: dtsf:KodPKD
B31: =Adr(Wprowadzenie!I43) -> Wprowadzenie!$I$43 | G31: Tekst | H31: 2 | J31: sf:P_1C | K31: dtsf:KodPKD
B32: =Adr(Wprowadzenie!I44) -> Wprowadzenie!$I$44 | G32: Tekst | H32: 3 | J32: sf:P_1C | K32: dtsf:KodPKD
B33: =Adr(Wprowadzenie!I45) -> Wprowadzenie!$I$45 | G33: Tekst | H33: 4 | J33: sf:P_1C | K33: dtsf:KodPKD
B34: =Adr(Wprowadzenie!I46) -> Wprowadzenie!$I$46 | G34: Tekst | H34: 5 | J34: sf:P_1C | K34: dtsf:KodPKD
B35: =Adr(Wprowadzenie!I47) -> Wprowadzenie!$I$47 | G35: Tekst | H35: 6 | J35: sf:P_1C | K35: dtsf:KodPKD
B36: =Adr(Wprowadzenie!$I$51) -> Wprowadzenie!$I$51 | G36: Tekst | J36: sf:InformacjeOgolneJednostkaMikro/sf:P_1 | K36: sf:P_1C
B37: =Adr(Wprowadzenie!$I$51) -> Wprowadzenie!$I$51 | G37: Tekst | J37: sf:WprowadzenieDoSprawozdaniaFinansowegoJednostkaMala/sf:P_1 | K37: sf:P_1C
B38: =Adr(Wprowadzenie!$I$51) -> Wprowadzenie!$I$51 | G38: Tekst | J38: sf:WprowadzenieDoSprawozdaniaFinansowegoJednostkaOp/sf:P_1 | K38: sf:P_1C
B39: =Adr(Wprowadzenie!$I$51) -> Wprowadzenie!$I$51 | G39: Tekst | J39: sf:WprowadzenieDoSprawozdaniaFinansowegoJednostkaInna/sf:P_1 | K39: sf:P_1D
B40: =Adr(Wprowadzenie!$I$51) -> Wprowadzenie!$I$51 | G40: Tekst | J40: xjin:WprowadzenieDoSprawozdaniaFinansowego/sf:P_1 | K40: sf:P_1D
B41: =Adr(Wprowadzenie!$I$51) -> Wprowadzenie!$I$51 | G41: Tekst | J41: xsin:WprowadzenieDoSprawozdaniaFinansowego/sf:P_1 | K41: xsin:P_1C | N41: none | O41: none
B42: =Adr(Wprowadzenie!$I$53) -> Wprowadzenie!$I$53 | G42: Tekst | J42: xjin:WprowadzenieDoSprawozdaniaFinansowego/sf:P_1 | K42: sf:P_1E | N42: sf:P_1/sf:P_1D | O42: dtsf:KRS
B43: =Adr(Wprowadzenie!$I$53) -> Wprowadzenie!$I$53 | G43: Tekst | J43: xsin:WprowadzenieDoSprawozdaniaFinansowego/sf:P_1 | K43: xsin:P_1D | N43: xsin:WprowadzenieDoSprawozdaniaFinansowego/xsin:P_1 | O43: xsin:P_1C
B44: =Adr(Wprowadzenie!$I$53) -> Wprowadzenie!$I$53 | G44: Tekst | J44: sf:InformacjeOgolneJednostkaMikro/sf:P_1 | K44: sf:P_1D | N44: =J44 & "/sf:P_1C" -> sf:InformacjeOgolneJednostkaMikro/sf:P_1/sf:P_1C | O44: dtsf:KRS
B45: =Adr(Wprowadzenie!$I$53) -> Wprowadzenie!$I$53 | G45: Tekst | J45: sf:WprowadzenieDoSprawozdaniaFinansowegoJednostkaMala/sf:P_1 | K45: sf:P_1D | N45: =J45 & "/sf:P_1C" -> sf:WprowadzenieDoSprawozdaniaFinansowegoJednostkaMala/sf:P_1/sf:P_1C | O45: dtsf:KRS
B46: =Adr(Wprowadzenie!$I$53) -> Wprowadzenie!$I$53 | G46: Tekst | J46: sf:WprowadzenieDoSprawozdaniaFinansowegoJednostkaOp/sf:P_1 | K46: sf:P_1D | N46: sf:WprowadzenieDoSprawozdaniaFinansowegoJednostkaOp/sf:P_1/sf:P_1C | O46: dtsf:KRS
B47: =Adr(Wprowadzenie!$I$53) -> Wprowadzenie!$I$53 | G47: Tekst | J47: sf:WprowadzenieDoSprawozdaniaFinansowegoJednostkaInna/sf:P_1 | K47: sf:P_1E
B48: =Adr(Wprowadzenie!I1653) -> Wprowadzenie!$I$1653 | E48: 1 | G48: Data | J48: sf:P_2 | K48: dtsf:DataOd
B49: =Adr(Wprowadzenie!I1655) -> Wprowadzenie!$I$1655 | E49: 1 | G49: =IF(CzyData(INDIRECT(B49)), "Data", "Tekst") -> Tekst | J49: sf:P_2 | K49: dtsf:DataDoOpis
B50: =Adr(DataOd) -> Nagłówek!$E$8 | G50: Data | J50: sf:P_3 | K50: dtsf:DataOd
B51: =Adr(DataDo) -> Nagłówek!$G$8 | G51: Data | J51: sf:P_3 | K51: dtsf:DataDo
B52: =Adr(Wprowadzenie!I784) -> Wprowadzenie!$I$784 | G52: Tekst | J52: xsin:WprowadzenieDoSprawozdaniaFinansowego | K52: xsin:P_3
B53: =Adr(Wprowadzenie!$I$1677) -> Wprowadzenie!$I$1677 | G53: Logiczny | I53: 2 | J53: xjin:WprowadzenieDoSprawozdaniaFinansowego | K53: xjin:P_4
B54: =Adr(Wprowadzenie!$I$1677) -> Wprowadzenie!$I$1677 | G54: Logiczny | I54: 2 | J54: xsin:WprowadzenieDoSprawozdaniaFinansowego | K54: xsin:P_8
B55: =Adr(Wprowadzenie!$I$1677) -> Wprowadzenie!$I$1677 | G55: Logiczny | I55: 2 | J55: sf:WprowadzenieDoSprawozdaniaFinansowegoJednostkaInna | K55: sf:P_4
B56: =Adr(Wprowadzenie!$I$1683) -> Wprowadzenie!$I$1683 | G56: Logiczny | I56: 1 | J56: xjin:P_5 | K56: xjin:P_5A
B57: =Adr(Wprowadzenie!$I$1686) -> Wprowadzenie!$I$1686 | G57: Logiczny | I57: 1 | J57: xjin:P_5 | K57: xjin:P_5B
B58: =Adr(Wprowadzenie!$I$1689) -> Wprowadzenie!$I$1689 | G58: Tekst | J58: xjin:P_5 | K58: xjin:P_5C
B59: =Adr(Wprowadzenie!$I$1683) -> Wprowadzenie!$I$1683 | G59: Logiczny | I59: 1 | J59: xjma:P_5 | K59: xjma:P_5A
B60: =Adr(Wprowadzenie!$I$1686) -> Wprowadzenie!$I$1686 | G60: Logiczny | I60: 1 | J60: xjma:P_5 | K60: xjma:P_5B
B61: =Adr(Wprowadzenie!$I$1689) -> Wprowadzenie!$I$1689 | G61: Tekst | J61: xjma:P_5 | K61: xjma:P_5C
B62: =Adr(Wprowadzenie!$I$1683) -> Wprowadzenie!$I$1683 | G62: Logiczny | I62: 1 | J62: xjmi:P_5 | K62: xjmi:P_5A
B63: =Adr(Wprowadzenie!$I$1686) -> Wprowadzenie!$I$1686 | G63: Logiczny | I63: 1 | J63: xjmi:P_5 | K63: xjmi:P_5B
B64: =Adr(Wprowadzenie!$I$1689) -> Wprowadzenie!$I$1689 | G64: Tekst | J64: xjmi:P_5 | K64: xjmi:P_5C
B65: =Adr(Wprowadzenie!$I$1683) -> Wprowadzenie!$I$1683 | G65: Logiczny | I65: 1 | J65: xjop:P_4 | K65: xjop:P_4A
B66: =Adr(Wprowadzenie!$I$1686) -> Wprowadzenie!$I$1686 | G66: Logiczny | I66: 1 | J66: xjop:P_4 | K66: xjop:P_4B
B67: =Adr(Wprowadzenie!$I$1689) -> Wprowadzenie!$I$1689 | G67: Tekst | J67: xjop:P_4 | K67: xjop:P_4C
B68: =Adr(Wprowadzenie!$I$1683) -> Wprowadzenie!$I$1683 | G68: Logiczny | I68: 1 | J68: xsin:P_9 | K68: xsin:P_9A
B69: =Adr(Wprowadzenie!$I$1686) -> Wprowadzenie!$I$1686 | G69: Logiczny | I69: 1 | J69: xsin:P_9 | K69: xsin:P_9B
B70: =Adr(Wprowadzenie!$I$1689) -> Wprowadzenie!$I$1689 | G70: Tekst | J70: xsin:P_9 | K70: xsin:P_9C
B71: =Adr(Wprowadzenie!$I$1695) -> Wprowadzenie!$I$1695 | F71: Exists | G71: Logiczny | I71: 2 | J71: xjin:WprowadzenieDoSprawozdaniaFinansowego | K71: xjin:P_6
B72: =Adr(Wprowadzenie!$I$1698) -> Wprowadzenie!$I$1698 | F72: Ancestor | G72: Logiczny | J72: xjin:WprowadzenieDoSprawozdaniaFinansowego | K72: xjin:P_6A
B73: =Adr(Wprowadzenie!$I$1701) -> Wprowadzenie!$I$1701 | F73: Ancestor | G73: Tekst | J73: xjin:WprowadzenieDoSprawozdaniaFinansowego | K73: xjin:P_6B
B74: =Adr(Wprowadzenie!$I$1695) -> Wprowadzenie!$I$1695 | F74: Exists | G74: Logiczny | I74: 2 | J74: sf:WprowadzenieDoSprawozdaniaFinansowegoJednostkaInna | K74: sf:P_6
B75: =Adr(Wprowadzenie!$I$1698) -> Wprowadzenie!$I$1698 | F75: Ancestor | G75: Logiczny | J75: sf:WprowadzenieDoSprawozdaniaFinansowegoJednostkaInna | K75: sf:P_6A
B76: =Adr(Wprowadzenie!$I$1701) -> Wprowadzenie!$I$1701 | F76: Ancestor | G76: Tekst | J76: sf:WprowadzenieDoSprawozdaniaFinansowegoJednostkaInna | K76: sf:P_6B
B77: =Adr(Wprowadzenie!$I$1772) -> Wprowadzenie!$I$1772 | F77: Ancestor | G77: Mtekst | J77: xjin:WprowadzenieDoSprawozdaniaFinansowego | K77: xjin:P_7A | N77: =J77 -> xjin:WprowadzenieDoSprawozdaniaFinansowego | O77: sf:P_7B
B78: =Adr(Wprowadzenie!$I$1782) -> Wprowadzenie!$I$1782 | F78: Ancestor | G78: Mtekst | J78: xjin:WprowadzenieDoSprawozdaniaFinansowego | K78: xjin:P_7B | N78: =J78 -> xjin:WprowadzenieDoSprawozdaniaFinansowego | O78: sf:P_7C
B79: =Adr(Wprowadzenie!$I$1787) -> Wprowadzenie!$I$1787 | F79: Ancestor | G79: Mtekst | J79: xjin:WprowadzenieDoSprawozdaniaFinansowego | K79: xjin:P_7C | N79: xjin:WprowadzenieDoSprawozdaniaFinansowego | O79: sf:P_7D
B80: =Adr(Wprowadzenie!$I$1792) -> Wprowadzenie!$I$1792 | F80: Ancestor | G80: Mtekst | J80: xjin:WprowadzenieDoSprawozdaniaFinansowego | K80: xjin:P_7D | N80: new | O80: none
B81: =Adr(Wprowadzenie!I1761) -> Wprowadzenie!$I$1761 | F81: Ancestor | G81: Mtekst | J81: xsin:WprowadzenieDoSprawozdaniaFinansowego | K81: xsin:P_11A
B82: =Adr(Wprowadzenie!I1767) -> Wprowadzenie!$I$1767 | F82: Ancestor | G82: Mtekst | J82: xsin:WprowadzenieDoSprawozdaniaFinansowego | K82: xsin:P_11B
B83: =Adr(Wprowadzenie!$I$1772) -> Wprowadzenie!$I$1772 | F83: Ancestor | G83: Mtekst | J83: xsin:WprowadzenieDoSprawozdaniaFinansowego | K83: xsin:P_11C
B84: =Adr(Wprowadzenie!I1777) -> Wprowadzenie!$I$1777 | F84: Ancestor | G84: Mtekst | J84: xsin:WprowadzenieDoSprawozdaniaFinansowego | K84: xsin:P_11D
B85: =Adr(Wprowadzenie!$I$1782) -> Wprowadzenie!$I$1782 | F85: Ancestor | G85: Mtekst | J85: xsin:WprowadzenieDoSprawozdaniaFinansowego | K85: xsin:P_11E
B86: =Adr(Wprowadzenie!$I$1787) -> Wprowadzenie!$I$1787 | F86: Ancestor | G86: Mtekst | J86: xsin:WprowadzenieDoSprawozdaniaFinansowego | K86: xsin:P_11F
B87: =Adr(Wprowadzenie!$I$1792) -> Wprowadzenie!$I$1792 | F87: Ancestor | G87: Mtekst | J87: xsin:WprowadzenieDoSprawozdaniaFinansowego | K87: xsin:P_11G
B88: =Adr(Wprowadzenie!$I$1772) -> Wprowadzenie!$I$1772 | F88: Ancestor | G88: Mtekst | J88: sf:WprowadzenieDoSprawozdaniaFinansowegoJednostkaInna | K88: sf:P_7A | N88: =J88 -> sf:WprowadzenieDoSprawozdaniaFinansowegoJednostkaInna | O88: sf:P_7B
B89: =Adr(Wprowadzenie!$I$1782) -> Wprowadzenie!$I$1782 | F89: Ancestor | G89: Mtekst | J89: sf:WprowadzenieDoSprawozdaniaFinansowegoJednostkaInna | K89: sf:P_7B | N89: =J89 -> sf:WprowadzenieDoSprawozdaniaFinansowegoJednostkaInna | O89: sf:P_7C
B90: =Adr(Wprowadzenie!$I$1787) -> Wprowadzenie!$I$1787 | F90: Ancestor | G90: Mtekst | J90: sf:WprowadzenieDoSprawozdaniaFinansowegoJednostkaInna | K90: sf:P_7C | N90: sf:WprowadzenieDoSprawozdaniaFinansowegoJednostkaInna | O90: sf:P_7D
B91: =Adr(Wprowadzenie!$I$1792) -> Wprowadzenie!$I$1792 | F91: Ancestor | G91: Mtekst | J91: sf:WprowadzenieDoSprawozdaniaFinansowegoJednostkaInna | K91: sf:P_7D | N91: new | O91: none
B92: =Adr(Wprowadzenie!$I$1772) -> Wprowadzenie!$I$1772 | F92: Ancestor | G92: Mtekst | J92: sf:WprowadzenieDoSprawozdaniaFinansowegoJednostkaMala | K92: sf:P_6A | N92: =J92 -> sf:WprowadzenieDoSprawozdaniaFinansowegoJednostkaMala | O92: sf:P_6B
B93: =Adr(Wprowadzenie!$I$1782) -> Wprowadzenie!$I$1782 | F93: Ancestor | G93: Mtekst | J93: sf:WprowadzenieDoSprawozdaniaFinansowegoJednostkaMala | K93: sf:P_6B | N93: =J93 -> sf:WprowadzenieDoSprawozdaniaFinansowegoJednostkaMala | O93: sf:P_6C
B94: =Adr(Wprowadzenie!$I$1787) -> Wprowadzenie!$I$1787 | F94: Ancestor | G94: Mtekst | J94: sf:WprowadzenieDoSprawozdaniaFinansowegoJednostkaMala | K94: sf:P_6C | N94: sf:WprowadzenieDoSprawozdaniaFinansowegoJednostkaMala | O94: sf:P_6D
B95: =Adr(Wprowadzenie!$I$1792) -> Wprowadzenie!$I$1792 | F95: Ancestor | G95: Mtekst | J95: sf:WprowadzenieDoSprawozdaniaFinansowegoJednostkaMala | K95: sf:P_6D | N95: new | O95: none
B96: =Adr(Wprowadzenie!$I$1772) -> Wprowadzenie!$I$1772 | F96: Ancestor | G96: Mtekst | J96: sf:InformacjeOgolneJednostkaMikro | K96: sf:P_6A | N96: =J96 -> sf:InformacjeOgolneJednostkaMikro | O96: sf:P_6B
B97: =Adr(Wprowadzenie!$I$1782) -> Wprowadzenie!$I$1782 | F97: Ancestor | G97: Mtekst | J97: sf:InformacjeOgolneJednostkaMikro | K97: sf:P_6B | N97: =J97 -> sf:InformacjeOgolneJednostkaMikro | O97: sf:P_6C
B98: =Adr(Wprowadzenie!$I$1787) -> Wprowadzenie!$I$1787 | F98: Ancestor | G98: Mtekst | J98: sf:InformacjeOgolneJednostkaMikro | K98: sf:P_6C | N98: sf:InformacjeOgolneJednostkaMikro | O98: sf:P_6D
B99: =Adr(Wprowadzenie!$I$1792) -> Wprowadzenie!$I$1792 | F99: Ancestor | G99: Mtekst | J99: sf:InformacjeOgolneJednostkaMikro | K99: sf:P_6D
B100: =Adr(Wprowadzenie!$I$1772) -> Wprowadzenie!$I$1772 | F100: Ancestor | G100: Mtekst | J100: sf:WprowadzenieDoSprawozdaniaFinansowegoJednostkaOp | K100: sf:P_5A | N100: =J100 -> sf:WprowadzenieDoSprawozdaniaFinansowegoJednostkaOp | O100: sf:P_5B
B101: =Adr(Wprowadzenie!$I$1782) -> Wprowadzenie!$I$1782 | F101: Ancestor | G101: Mtekst | J101: sf:WprowadzenieDoSprawozdaniaFinansowegoJednostkaOp | K101: sf:P_5B | N101: =J101 -> sf:WprowadzenieDoSprawozdaniaFinansowegoJednostkaOp | O101: sf:P_5C
B102: =Adr(Wprowadzenie!$I$1787) -> Wprowadzenie!$I$1787 | F102: Ancestor | G102: Mtekst | J102: sf:WprowadzenieDoSprawozdaniaFinansowegoJednostkaOp | K102: sf:P_5C | N102: sf:WprowadzenieDoSprawozdaniaFinansowegoJednostkaOp | O102: sf:P_5D
B103: =Adr(Wprowadzenie!$I$1792) -> Wprowadzenie!$I$1792 | F103: Ancestor | G103: Mtekst | J103: sf:WprowadzenieDoSprawozdaniaFinansowegoJednostkaOp | K103: sf:P_5D | N103: new | O103: none
B104: =Adr(Wprowadzenie!I1798) -> Wprowadzenie!$I$1798 | G104: Tekst | J104: xsin:WprowadzenieDoSprawozdaniaFinansowego | K104: xsin:P_12
B105: =Adr(Wprowadzenie!I1803) -> Wprowadzenie!$I$1803 | G105: Tekst | J105: xsin:WprowadzenieDoSprawozdaniaFinansowego | K105: xsin:P_13
B106: =Adr(Wprowadzenie!$I$1809) -> Wprowadzenie!$I$1809 | F106: Pidx | G106: Tekst | H106: 1 | J106: sf:P_8 | K106: dtsf:NazwaPozycji
B107: =Adr(Wprowadzenie!$I$1811) -> Wprowadzenie!$I$1811 | F107: Pidx | G107: Mtekst | H107: 1 | J107: sf:P_8 | K107: dtsf:Opis
B108: =Adr(Wprowadzenie!$I$1815) -> Wprowadzenie!$I$1815 | F108: Pidx | G108: Tekst | H108: 2 | J108: sf:P_8 | K108: dtsf:NazwaPozycji
B109: =Adr(Wprowadzenie!$I$1817) -> Wprowadzenie!$I$1817 | F109: Pidx | G109: Mtekst | H109: 2 | J109: sf:P_8 | K109: dtsf:Opis
B110: =Adr(Wprowadzenie!$I$1821) -> Wprowadzenie!$I$1821 | F110: Pidx | G110: Tekst | H110: 3 | J110: sf:P_8 | K110: dtsf:NazwaPozycji
B111: =Adr(Wprowadzenie!$I$1823) -> Wprowadzenie!$I$1823 | F111: Pidx | G111: Mtekst | H111: 3 | J111: sf:P_8 | K111: dtsf:Opis
B112: =Adr(Wprowadzenie!$I$1827) -> Wprowadzenie!$I$1827 | F112: Pidx | G112: Tekst | H112: 4 | J112: sf:P_8 | K112: dtsf:NazwaPozycji
B113: =Adr(Wprowadzenie!$I$1829) -> Wprowadzenie!$I$1829 | F113: Pidx | G113: Mtekst | H113: 4 | J113: sf:P_8 | K113: dtsf:Opis
B114: =Adr(Wprowadzenie!$I$1809) -> Wprowadzenie!$I$1809 | F114: Pidx | G114: Tekst | H114: 1 | J114: xsin:P_14 | K114: dtsf:NazwaPozycji
B115: =Adr(Wprowadzenie!$I$1811) -> Wprowadzenie!$I$1811 | F115: Pidx | G115: Mtekst | H115: 1 | J115: xsin:P_14 | K115: dtsf:Opis
B116: =Adr(Wprowadzenie!$I$1815) -> Wprowadzenie!$I$1815 | F116: Pidx | G116: Tekst | H116: 2 | J116: xsin:P_14 | K116: dtsf:NazwaPozycji
B117: =Adr(Wprowadzenie!$I$1817) -> Wprowadzenie!$I$1817 | F117: Pidx | G117: Mtekst | H117: 2 | J117: xsin:P_14 | K117: dtsf:Opis
B118: =Adr(Wprowadzenie!$I$1821) -> Wprowadzenie!$I$1821 | F118: Pidx | G118: Tekst | H118: 3 | J118: xsin:P_14 | K118: dtsf:NazwaPozycji
B119: =Adr(Wprowadzenie!$I$1823) -> Wprowadzenie!$I$1823 | F119: Pidx | G119: Mtekst | H119: 3 | J119: xsin:P_14 | K119: dtsf:Opis
B120: =Adr(Wprowadzenie!$I$1827) -> Wprowadzenie!$I$1827 | F120: Pidx | G120: Tekst | H120: 4 | J120: xsin:P_14 | K120: dtsf:NazwaPozycji
B121: =Adr(Wprowadzenie!$I$1829) -> Wprowadzenie!$I$1829 | F121: Pidx | G121: Mtekst | H121: 4 | J121: xsin:P_14 | K121: dtsf:Opis
B122: =Adr(Wprowadzenie!$I$1669) -> Wprowadzenie!$I$1669 | G122: Tekst | J122: sf:WprowadzenieDoSprawozdaniaFinansowegoJednostkaInna | K122: sf:P_9
B123: =Adr(Wprowadzenie!$I$1669) -> Wprowadzenie!$I$1669 | G123: Tekst | J123: sf:WprowadzenieDoSprawozdaniaFinansowegoJednostkaMala | K123: sf:P_4
B124: =Adr(Wprowadzenie!$I$1669) -> Wprowadzenie!$I$1669 | G124: Tekst | J124: sf:InformacjeOgolneJednostkaMikro | K124: sf:P_4
B125: =Adr(Wprowadzenie!$I$1809) -> Wprowadzenie!$I$1809 | F125: Pidx | G125: Tekst | H125: 1 | J125: sf:P_7 | K125: dtsf:NazwaPozycji
B126: =Adr(Wprowadzenie!$I$1811) -> Wprowadzenie!$I$1811 | F126: Pidx | G126: Mtekst | H126: 1 | J126: sf:P_7 | K126: dtsf:Opis
B127: =Adr(Wprowadzenie!$I$1815) -> Wprowadzenie!$I$1815 | F127: Pidx | G127: Tekst | H127: 2 | J127: sf:P_7 | K127: dtsf:NazwaPozycji
B128: =Adr(Wprowadzenie!$I$1817) -> Wprowadzenie!$I$1817 | F128: Pidx | G128: Mtekst | H128: 2 | J128: sf:P_7 | K128: dtsf:Opis
B129: =Adr(Wprowadzenie!$I$1821) -> Wprowadzenie!$I$1821 | F129: Pidx | G129: Tekst | H129: 3 | J129: sf:P_7 | K129: dtsf:NazwaPozycji
B130: =Adr(Wprowadzenie!$I$1823) -> Wprowadzenie!$I$1823 | F130: Pidx | G130: Mtekst | H130: 3 | J130: sf:P_7 | K130: dtsf:Opis
B131: =Adr(Wprowadzenie!$I$1827) -> Wprowadzenie!$I$1827 | F131: Pidx | G131: Tekst | H131: 4 | J131: sf:P_7 | K131: dtsf:NazwaPozycji
B132: =Adr(Wprowadzenie!$I$1829) -> Wprowadzenie!$I$1829 | F132: Pidx | G132: Mtekst | H132: 4 | J132: sf:P_7 | K132: dtsf:Opis
B133: =Adr(Wprowadzenie!$I$1809) -> Wprowadzenie!$I$1809 | F133: Pidx | G133: Tekst | H133: 1 | J133: xjop:P_6 | K133: dtsf:NazwaPozycji
B134: =Adr(Wprowadzenie!$I$1811) -> Wprowadzenie!$I$1811 | F134: Pidx | G134: Mtekst | H134: 1 | J134: xjop:P_6 | K134: dtsf:Opis
B135: =Adr(Wprowadzenie!$I$1815) -> Wprowadzenie!$I$1815 | F135: Pidx | G135: Tekst | H135: 2 | J135: xjop:P_6 | K135: dtsf:NazwaPozycji
B136: =Adr(Wprowadzenie!$I$1817) -> Wprowadzenie!$I$1817 | F136: Pidx | G136: Mtekst | H136: 2 | J136: xjop:P_6 | K136: dtsf:Opis
B137: =Adr(Wprowadzenie!$I$1821) -> Wprowadzenie!$I$1821 | F137: Pidx | G137: Tekst | H137: 3 | J137: xjop:P_6 | K137: dtsf:NazwaPozycji
B138: =Adr(Wprowadzenie!$I$1823) -> Wprowadzenie!$I$1823 | F138: Pidx | G138: Mtekst | H138: 3 | J138: xjop:P_6 | K138: dtsf:Opis
B139: =Adr(Wprowadzenie!$I$1827) -> Wprowadzenie!$I$1827 | F139: Pidx | G139: Tekst | H139: 4 | J139: xjop:P_6 | K139: dtsf:NazwaPozycji
B140: =Adr(Wprowadzenie!$I$1829) -> Wprowadzenie!$I$1829 | F140: Pidx | G140: Mtekst | H140: 4 | J140: xjop:P_6 | K140: dtsf:Opis
B141: =Adr(Wprowadzenie!I59) -> Wprowadzenie!$I$59 | F141: Pidx | G141: Tekst | H141: =OFFSET(INDIRECT(B141),-2,-5) -> 1 | J141: xsin:P_2 | K141: xsin:P_2A
B142: =Adr(Wprowadzenie!I64) -> Wprowadzenie!$I$64 | F142: Pidx | G142: Tekst | H142: =H141 -> 1 | J142: xsin:P_2 | K142: xsin:P_2B
B143: =Adr(Wprowadzenie!N69) -> Wprowadzenie!$N$69 | F143: Pidx | G143: Procent | H143: =H142 -> 1 | J143: xsin:P_2 | K143: xsin:P_2C
B144: =Adr(Wprowadzenie!N71) -> Wprowadzenie!$N$71 | F144: Pidx | G144: Procent | H144: 1 | J144: xsin:P_2 | K144: xsin:P_2D
B145: =Adr(Wprowadzenie!I74) -> Wprowadzenie!$I$74 | F145: Pidx | G145: Tekst | H145: 1 | J145: xsin:P_2 | K145: xsin:P_2E
B146: =Adr(Wprowadzenie!I79) -> Wprowadzenie!$I$79 | F146: Pidx | G146: Tekst | H146: =OFFSET(INDIRECT(B146),-2,-5) -> 2 | J146: xsin:P_2 | K146: xsin:P_2A
B147: =Adr(Wprowadzenie!I83) -> Wprowadzenie!$I$83 | F147: Pidx | G147: Tekst | H147: =H146 -> 2 | J147: xsin:P_2 | K147: xsin:P_2B
B148: =Adr(Wprowadzenie!N87) -> Wprowadzenie!$N$87 | F148: Pidx | G148: Procent | H148: =H147 -> 2 | J148: xsin:P_2 | K148: xsin:P_2C
B149: =Adr(Wprowadzenie!N89) -> Wprowadzenie!$N$89 | F149: Pidx | G149: Procent | H149: 2 | J149: xsin:P_2 | K149: xsin:P_2D
B150: =Adr(Wprowadzenie!I92) -> Wprowadzenie!$I$92 | F150: Pidx | G150: Tekst | H150: 2 | J150: xsin:P_2 | K150: xsin:P_2E
B151: =Adr(Wprowadzenie!I97) -> Wprowadzenie!$I$97 | F151: Pidx | G151: Tekst | H151: =OFFSET(INDIRECT(B151),-2,-5) -> 3 | J151: xsin:P_2 | K151: xsin:P_2A
B152: =Adr(Wprowadzenie!I101) -> Wprowadzenie!$I$101 | F152: Pidx | G152: Tekst | H152: =H151 -> 3 | J152: xsin:P_2 | K152: xsin:P_2B
B153: =Adr(Wprowadzenie!N105) -> Wprowadzenie!$N$105 | F153: Pidx | G153: Procent | H153: =H152 -> 3 | J153: xsin:P_2 | K153: xsin:P_2C
B154: =Adr(Wprowadzenie!N107) -> Wprowadzenie!$N$107 | F154: Pidx | G154: Procent | H154: 3 | J154: xsin:P_2 | K154: xsin:P_2D
B155: =Adr(Wprowadzenie!I110) -> Wprowadzenie!$I$110 | F155: Pidx | G155: Tekst | H155: 3 | J155: xsin:P_2 | K155: xsin:P_2E
B156: =Adr(Wprowadzenie!I115) -> Wprowadzenie!$I$115 | F156: Pidx | G156: Tekst | H156: =OFFSET(INDIRECT(B156),-2,-5) -> 4 | J156: xsin:P_2 | K156: xsin:P_2A
B157: =Adr(Wprowadzenie!I119) -> Wprowadzenie!$I$119 | F157: Pidx | G157: Tekst | H157: =H156 -> 4 | J157: xsin:P_2 | K157: xsin:P_2B
B158: =Adr(Wprowadzenie!N123) -> Wprowadzenie!$N$123 | F158: Pidx | G158: Procent | H158: =H157 -> 4 | J158: xsin:P_2 | K158: xsin:P_2C
B159: =Adr(Wprowadzenie!N125) -> Wprowadzenie!$N$125 | F159: Pidx | G159: Procent | H159: 4 | J159: xsin:P_2 | K159: xsin:P_2D
B160: =Adr(Wprowadzenie!I128) -> Wprowadzenie!$I$128 | F160: Pidx | G160: Tekst | H160: 4 | J160: xsin:P_2 | K160: xsin:P_2E
B161: =Adr(Wprowadzenie!I133) -> Wprowadzenie!$I$133 | F161: Pidx | G161: Tekst | H161: =OFFSET(INDIRECT(B161),-2,-5) -> 5 | J161: xsin:P_2 | K161: xsin:P_2A
B162: =Adr(Wprowadzenie!I137) -> Wprowadzenie!$I$137 | F162: Pidx | G162: Tekst | H162: =H161 -> 5 | J162: xsin:P_2 | K162: xsin:P_2B
B163: =Adr(Wprowadzenie!N141) -> Wprowadzenie!$N$141 | F163: Pidx | G163: Procent | H163: =H162 -> 5 | J163: xsin:P_2 | K163: xsin:P_2C
B164: =Adr(Wprowadzenie!N143) -> Wprowadzenie!$N$143 | F164: Pidx | G164: Procent | H164: 5 | J164: xsin:P_2 | K164: xsin:P_2D
B165: =Adr(Wprowadzenie!I146) -> Wprowadzenie!$I$146 | F165: Pidx | G165: Tekst | H165: 5 | J165: xsin:P_2 | K165: xsin:P_2E
B166: =Adr(Wprowadzenie!I151) -> Wprowadzenie!$I$151 | F166: Pidx | G166: Tekst | H166: =OFFSET(INDIRECT(B166),-2,-5) -> 6 | J166: xsin:P_2 | K166: xsin:P_2A
B167: =Adr(Wprowadzenie!I155) -> Wprowadzenie!$I$155 | F167: Pidx | G167: Tekst | H167: =H166 -> 6 | J167: xsin:P_2 | K167: xsin:P_2B
B168: =Adr(Wprowadzenie!N159) -> Wprowadzenie!$N$159 | F168: Pidx | G168: Procent | H168: =H167 -> 6 | J168: xsin:P_2 | K168: xsin:P_2C
B169: =Adr(Wprowadzenie!N161) -> Wprowadzenie!$N$161 | F169: Pidx | G169: Procent | H169: 6 | J169: xsin:P_2 | K169: xsin:P_2D
B170: =Adr(Wprowadzenie!I164) -> Wprowadzenie!$I$164 | F170: Pidx | G170: Tekst | H170: 6 | J170: xsin:P_2 | K170: xsin:P_2E
B171: =Adr(Wprowadzenie!I169) -> Wprowadzenie!$I$169 | F171: Pidx | G171: Tekst | H171: =OFFSET(INDIRECT(B171),-2,-5) -> 7 | J171: xsin:P_2 | K171: xsin:P_2A
B172: =Adr(Wprowadzenie!I173) -> Wprowadzenie!$I$173 | F172: Pidx | G172: Tekst | H172: =H171 -> 7 | J172: xsin:P_2 | K172: xsin:P_2B
B173: =Adr(Wprowadzenie!N177) -> Wprowadzenie!$N$177 | F173: Pidx | G173: Procent | H173: =H172 -> 7 | J173: xsin:P_2 | K173: xsin:P_2C
B174: =Adr(Wprowadzenie!N179) -> Wprowadzenie!$N$179 | F174: Pidx | G174: Procent | H174: 7 | J174: xsin:P_2 | K174: xsin:P_2D
B175: =Adr(Wprowadzenie!I182) -> Wprowadzenie!$I$182 | F175: Pidx | G175: Tekst | H175: 7 | J175: xsin:P_2 | K175: xsin:P_2E
B176: =Adr(Wprowadzenie!I187) -> Wprowadzenie!$I$187 | F176: Pidx | G176: Tekst | H176: =OFFSET(INDIRECT(B176),-2,-5) -> 8 | J176: xsin:P_2 | K176: xsin:P_2A
B177: =Adr(Wprowadzenie!I191) -> Wprowadzenie!$I$191 | F177: Pidx | G177: Tekst | H177: =H176 -> 8 | J177: xsin:P_2 | K177: xsin:P_2B
B178: =Adr(Wprowadzenie!N195) -> Wprowadzenie!$N$195 | F178: Pidx | G178: Procent | H178: =H177 -> 8 | J178: xsin:P_2 | K178: xsin:P_2C
B179: =Adr(Wprowadzenie!N197) -> Wprowadzenie!$N$197 | F179: Pidx | G179: Procent | H179: 8 | J179: xsin:P_2 | K179: xsin:P_2D
B180: =Adr(Wprowadzenie!I200) -> Wprowadzenie!$I$200 | F180: Pidx | G180: Tekst | H180: 8 | J180: xsin:P_2 | K180: xsin:P_2E
B181: =Adr(Wprowadzenie!I205) -> Wprowadzenie!$I$205 | F181: Pidx | G181: Tekst | H181: =OFFSET(INDIRECT(B181),-2,-5) -> 9 | J181: xsin:P_2 | K181: xsin:P_2A
B182: =Adr(Wprowadzenie!I209) -> Wprowadzenie!$I$209 | F182: Pidx | G182: Tekst | H182: =H181 -> 9 | J182: xsin:P_2 | K182: xsin:P_2B
B183: =Adr(Wprowadzenie!N213) -> Wprowadzenie!$N$213 | F183: Pidx | G183: Procent | H183: =H182 -> 9 | J183: xsin:P_2 | K183: xsin:P_2C
B184: =Adr(Wprowadzenie!N215) -> Wprowadzenie!$N$215 | F184: Pidx | G184: Procent | H184: 9 | J184: xsin:P_2 | K184: xsin:P_2D
B185: =Adr(Wprowadzenie!I218) -> Wprowadzenie!$I$218 | F185: Pidx | G185: Tekst | H185: 9 | J185: xsin:P_2 | K185: xsin:P_2E
B186: =Adr(Wprowadzenie!I223) -> Wprowadzenie!$I$223 | F186: Pidx | G186: Tekst | H186: =OFFSET(INDIRECT(B186),-2,-5) -> 10 | J186: xsin:P_2 | K186: xsin:P_2A
B187: =Adr(Wprowadzenie!I227) -> Wprowadzenie!$I$227 | F187: Pidx | G187: Tekst | H187: =H186 -> 10 | J187: xsin:P_2 | K187: xsin:P_2B
B188: =Adr(Wprowadzenie!N231) -> Wprowadzenie!$N$231 | F188: Pidx | G188: Procent | H188: =H187 -> 10 | J188: xsin:P_2 | K188: xsin:P_2C
B189: =Adr(Wprowadzenie!N233) -> Wprowadzenie!$N$233 | F189: Pidx | G189: Procent | H189: 10 | J189: xsin:P_2 | K189: xsin:P_2D
B190: =Adr(Wprowadzenie!I236) -> Wprowadzenie!$I$236 | F190: Pidx | G190: Tekst | H190: 10 | J190: xsin:P_2 | K190: xsin:P_2E
B191: =Adr(Wprowadzenie!I241) -> Wprowadzenie!$I$241 | F191: Pidx | G191: Tekst | H191: =OFFSET(INDIRECT(B191),-2,-5) -> 11 | J191: xsin:P_2 | K191: xsin:P_2A
B192: =Adr(Wprowadzenie!I245) -> Wprowadzenie!$I$245 | F192: Pidx | G192: Tekst | H192: =H191 -> 11 | J192: xsin:P_2 | K192: xsin:P_2B
B193: =Adr(Wprowadzenie!N249) -> Wprowadzenie!$N$249 | F193: Pidx | G193: Procent | H193: =H192 -> 11 | J193: xsin:P_2 | K193: xsin:P_2C
B194: =Adr(Wprowadzenie!N251) -> Wprowadzenie!$N$251 | F194: Pidx | G194: Procent | H194: 11 | J194: xsin:P_2 | K194: xsin:P_2D
B195: =Adr(Wprowadzenie!I254) -> Wprowadzenie!$I$254 | F195: Pidx | G195: Tekst | H195: 11 | J195: xsin:P_2 | K195: xsin:P_2E
B196: =Adr(Wprowadzenie!I259) -> Wprowadzenie!$I$259 | F196: Pidx | G196: Tekst | H196: =OFFSET(INDIRECT(B196),-2,-5) -> 12 | J196: xsin:P_2 | K196: xsin:P_2A
B197: =Adr(Wprowadzenie!I263) -> Wprowadzenie!$I$263 | F197: Pidx | G197: Tekst | H197: =H196 -> 12 | J197: xsin:P_2 | K197: xsin:P_2B
B198: =Adr(Wprowadzenie!N267) -> Wprowadzenie!$N$267 | F198: Pidx | G198: Procent | H198: =H197 -> 12 | J198: xsin:P_2 | K198: xsin:P_2C
B199: =Adr(Wprowadzenie!N269) -> Wprowadzenie!$N$269 | F199: Pidx | G199: Procent | H199: 12 | J199: xsin:P_2 | K199: xsin:P_2D
B200: =Adr(Wprowadzenie!I272) -> Wprowadzenie!$I$272 | F200: Pidx | G200: Tekst | H200: 12 | J200: xsin:P_2 | K200: xsin:P_2E
B201: =Adr(Wprowadzenie!I277) -> Wprowadzenie!$I$277 | F201: Pidx | G201: Tekst | H201: =OFFSET(INDIRECT(B201),-2,-5) -> 13 | J201: xsin:P_2 | K201: xsin:P_2A
... 5208 more rows

Sheet techniczne (hidden)
A1: Na poczatek trochę pól powiązanych z zapisywanym/odczytywanym plikiem: | O1: Kod języka etykiet: | P1: =VLOOKUP(Q1,teksty!B19:D21,2) -> PL | Q1: 1
C2: Wariant raportu: | D2: =VLOOKUP(F2,ListaWariantowRaportow,2) & VLOOKUP(G2,BazyKwot,2) -> SkonsolidowanaWTysiacach | F2: 5 | G2: 2 | J2: Bez dat w nagłówkach: | K2: =OR(DataDo="", MONTH(DataOd)> 1,MONTH(DataDo)< 12,DAY(DataOd)>1,YEAR(DataOd) <> YEAR(DataDo)) -> FALSE | O2: XED | P2: #4538
C3: Numer ID podmiotu: | D3: =VLOOKUP(E3,teksty!B30:C31,2) -> KRS | E3: 1 | J3: Weryfikacja wybranych kwot: | K3: FALSE | L3: 1 | O3: XSD | P3: http://www.mf.gov.pl/documents/764034/6464789/{jednostka}{baza}%281%29_v1-0.xsd
O4: SF namespace | P4: =Q117 -> http://www.mf.gov.pl/schematy/SF/DefinicjeTypySprawozdaniaFinansowe{nsPrefix}{jednostka}{baza}
O9: Dodatkowe testy merytoryczne podczas Importu:
O11: Sprawdź podczas importu | P11: Operator porównania | Q11: Wykonać przed walidacją XSD? | R11: Węzeł z porównywaną wartością (wyrażenie Xpath) (uruchamiane dla DocumentNode) | S11: Oczekiwana wartość | T11: Komunikat o ewentualnym błędzie (Wpisz {Val} tam, gdzie ma być podstawiona wartość z importowanego dokumentu)
O12: =TRUE -> TRUE | P12: in | Q12: =TRUE -> TRUE | R12: *[local-name()='Naglowek']/*[local-name()='KodSprawozdania']/@wersjaSchemy | S12: {wersjaSchemy} | T12: =teksty!D994 -> Niewłaściwy wersja pliku sprawozdania ({Val}), podczas gdy powinna być to jedna z następujących wersji: '{Exp}'. Ten format może zawierać inne pola, i taka operacja jest niemożliwa
O14: Nazwa skoroszytu: | Q14: e-sprawozdań finansowych
O15: Numer seryjny: | Q15: DEMO
O16: Numer edycji: | Q16: 2.35
O17: Wygenerowano: | Q17: 2024-04-02T13:47:30
O19: Dodatkowe flagi sterujące | Q19: 00
O82: Wzorce wszystkich przestrzeni nazw i ich prefiksy. Ta lista ma dwojakie zastosowanie: 1. wiersze z nazwą załącznika są używane do budowy Schema Cache (Po nazwie załącznika - pamiętaj o zmianie nazwy Obiektu po wstawieniu, na taki, jaki jest wpisany w pierwszej kolumnie) 2. wiersze z przedrostkiem NS - do "uzdatnienia" dokumentu do wyszukiwania poprzez dodanie tych przestrzeni nazw do właściwości obiektu DOMDocument
O83: Nazwa załącznika | P83: Prefiks NS | Q83: Przestrzeń nazw
O84: KodyPKD | Q84: http://crd.gov.pl/xml/schematy/dziedzinowe/mf/2018/02/01/eD/KodyPKD/
O85: KodyKrajow | Q85: http://crd.gov.pl/xml/schematy/dziedzinowe/mf/2016/01/25/eD/DefinicjeTypy/
O86: ElementarneTypyDanych | Q86: http://crd.gov.pl/xml/schematy/dziedzinowe/mf/2016/01/25/eD/DefinicjeTypy/
O87: StrukturyDanych | Q87: http://crd.gov.pl/xml/schematy/dziedzinowe/mf/2016/01/25/eD/DefinicjeTypy/
O88: DefinicjeTypySF | Q88: http://www.mf.gov.pl/schematy/SF/DefinicjeTypySprawozdaniaFinansowe/2018/07/09/DefinicjeTypySprawozdaniaFinansowe/
Q89: http://www.mf.gov.pl/schematy/SF/DefinicjeTypySprawozdaniaFinansowe/2018/07/09/JednostkaInnaStruktury
Q90: http://www.mf.gov.pl/schematy/SF/DefinicjeTypySprawozdaniaFinansowe/2018/07/09/JednostkaInnaWZlotych
Q91: http://www.mf.gov.pl/schematy/SF/DefinicjeTypySprawozdaniaFinansowe/2018/07/09/JednostkaInnaWTysiacach
Q92: http://www.mf.gov.pl/schematy/SF/DefinicjeTypySprawozdaniaFinansowe/2018/07/09/JednostkaMalaStruktury
Q93: http://www.mf.gov.pl/schematy/SF/DefinicjeTypySprawozdaniaFinansowe/2018/07/09/JednostkaMalaWTysiacach
Q94: http://www.mf.gov.pl/schematy/SF/DefinicjeTypySprawozdaniaFinansowe/2018/07/09/JednostkaMalaWZlotych
Q95: http://www.mf.gov.pl/schematy/SF/DefinicjeTypySprawozdaniaFinansowe/2018/07/09/JednostkaMikroStruktury
Q96: http://www.mf.gov.pl/schematy/SF/DefinicjeTypySprawozdaniaFinansowe/2018/07/09/JednostkaMikroWTysiacach
Q97: http://www.mf.gov.pl/schematy/SF/DefinicjeTypySprawozdaniaFinansowe/2018/07/09/JednostkaMikroWZlotych
Q98: http://www.mf.gov.pl/schematy/SF/DefinicjeTypySprawozdaniaFinansowe/2018/07/09/JednostkaOpStruktury
Q99: http://www.mf.gov.pl/schematy/SF/DefinicjeTypySprawozdaniaFinansowe/2018/07/09/JednostkaOrganizacjiPozarzadowejWZlotych
Q100: http://www.mf.gov.pl/schematy/SF/DefinicjeTypySprawozdaniaFinansowe/2018/07/09/JednostkaOrganizacjiPozarzadowejWTysiacach
O101: SkonsolidowanaStruktury | Q101: http://www.mf.gov.pl/schematy/SF/DefinicjeTypySprawozdaniaFinansowe/2018/07/09/SkonsolidowanaJednostkaInnaStruktury
O102: SkonsolidowanaWTysiacach | Q102: http://www.mf.gov.pl/schematy/SF/DefinicjeTypySprawozdaniaFinansowe/2018/07/09/SkonsolidowanaJednostkaInnaWTysiacach
O103: SkonsolidowanaWZlotych | Q103: http://www.mf.gov.pl/schematy/SF/DefinicjeTypySprawozdaniaFinansowe/2018/07/09/SkonsolidowanaJednostkaInnaWZlotych
P104: etd | Q104: http://crd.gov.pl/xml/schematy/dziedzinowe/mf/2016/01/25/eD/DefinicjeTypy/
P105: dtsf | Q105: http://www.mf.gov.pl/schematy/SF/DefinicjeTypySprawozdaniaFinansowe/2018/07/09/DefinicjeTypySprawozdaniaFinansowe/
P106: jmi | Q106: http://www.mf.gov.pl/schematy/SF/DefinicjeTypySprawozdaniaFinansowe/2018/07/09/JednostkaMikroStruktury
P107: jma | Q107: http://www.mf.gov.pl/schematy/SF/DefinicjeTypySprawozdaniaFinansowe/2018/07/09/JednostkaMalaStruktury
P108: jin | Q108: http://www.mf.gov.pl/schematy/SF/DefinicjeTypySprawozdaniaFinansowe/2018/07/09/JednostkaInnaStruktury
P109: jop | Q109: http://www.mf.gov.pl/schematy/SF/DefinicjeTypySprawozdaniaFinansowe/2018/07/09/JednostkaOpStruktury
P110: sin | Q110: http://www.mf.gov.pl/schematy/SF/DefinicjeTypySprawozdaniaFinansowe/2018/07/09/SkonsolidowanaJednostkaInnaStruktury
P111: st | Q111: http://www.mf.gov.pl/schematy/SF/DefinicjeTypySprawozdaniaFinansowe/2018/07/09/{jednostka}Struktury
P112: xjin | Q112: http://www.mf.gov.pl/schematy/SF/DefinicjeTypySprawozdaniaFinansowe/2018/07/09/JednostkaInna{baza}
P113: xjma | Q113: http://www.mf.gov.pl/schematy/SF/DefinicjeTypySprawozdaniaFinansowe/2018/07/09/JednostkaMala{baza}
P114: xjmi | Q114: http://www.mf.gov.pl/schematy/SF/DefinicjeTypySprawozdaniaFinansowe/2018/07/09/JednostkaMikro{baza}
P115: xsin | Q115: http://www.mf.gov.pl/schematy/SF/DefinicjeTypySprawozdaniaFinansowe/2018/07/09/SkonsolidowanaJednostkaInna{baza}
P116: xjop | Q116: http://www.mf.gov.pl/schematy/SF/DefinicjeTypySprawozdaniaFinansowe/2018/07/09/JednostkaOrganizacjiPozarzadowej{baza}
P117: sf | Q117: http://www.mf.gov.pl/schematy/SF/DefinicjeTypySprawozdaniaFinansowe{nsPrefix}{jednostka}{baza}
O119: Tablica wyjatków dla atrybutu ReportDef.Info:
O120: Typ wyjatku (Hint) | P120: Wariant raportu | Q120: Argument 'About' | R120: Wartość
O121: extra | P121: default | Q121: nsPrefix | R121: /2018/07/09/
O122: extra | P122: default | Q122: wersjaSchemy | R122: 1-2,1-0E
O123: extra | P123: Skonsolidowana | Q123: wersjaSchemy | R123: 1-2,1-0
O124: xmlns | P124: JednostkaOp | Q124: Jednostka | R124: JednostkaOrganizacjiPozarzadowej
O125: xmlns | P125: Skonsolidowana | Q125: Jednostka | R125: SkonsolidowanaJednostkaInna
C137: Lista dodatkowych elementów tekstowych (AdditionalTextElements), ładowanych przy okazji pobierania wzorców T* (segmentów XML)
C138: Nazwa ramki tekstowej
C139: ID_PozycjaUzytkownikaBezPodstawy
C140: ID_PozycjaUzytkownika
C141: Wpr_P2
C142: Wpr_P4
C143: Wpr_P5
C145: Numery pozycji "Wprowadzenia" (różnią się dla poszczególnych wariantów):
G146: Inna(ext) | H146: Mała | J146: Inna | K146: Op | L146: Sk
C147: Numer waruantu (jak w opisie tej sekcji w arkuszy "teksty"): | F147: pole ref. | G147: 1 | H147: 2 | I147: nie używane | J147: 4 | K147: 5 | L147: 6
B148: 1 | C148: Numer NIP | G148: P_1D | H148: P_1C | J148: P_1D | K148: P_1C | L148: P_1C
B149: 2 | C149: Czas trwania działalności (jeśli ograniczony) | G149: P_2 | H149: P_2 | J149: P_2 | K149: P_2
B150: 3 | C150: Zakres dat raportu | G150: P_3 | H150: P_3 | J150: P_3 | K150: P_3
B151: 4 | C151: Kryteria zastosowane do wyboru jednostek w raporcie skonsolidowanym | L151: P_3
B152: 5 | C152: Włączenie danych wewn. Jednostek organizacyjnych | G152: P_4 | J152: P_4 | L152: P_8
B153: 6 | C153: Założenie kontynuacji działalności jednostki | G153: P_5 | H153: P_5 | J153: P_5 | K153: P_4 | L153: P_9
B154: 7 | C154: Czy w okresie nastąpiło połączenie spółek? | G154: P_6 | J154: P_6 | L154: P_10
B155: 8 | C155: Uproszczenia, zastsowane w raporcie | G155: P_9 | H155: P_4 | J155: P_9
B156: 9 | C156: Polityka rachunkowości | G156: P_7 | H156: P_6 | J156: P_7 | K156: P_5 | L156: P_11
B157: 10 | C157: wycena aktywów i pasywów | G157: =G$156&"A" -> P_7A | H157: =H$156&"A" -> P_6A | J157: =J$156&"A" -> P_7A | K157: =K$156&"A" -> P_5A | L157: P_11C
B158: 11 | C158: ustalenie wyniku fin. | G158: =G$156&"B" -> P_7B | H158: =H$156&"B" -> P_6B | J158: =J$156&"B" -> P_7B | K158: =K$156&"B" -> P_5B | L158: P_11E
B159: 12 | C159: sporządzanie sprawozdań finansowych | G159: =G$156&"C" -> P_7C | H159: =H$156&"C" -> P_6C | J159: =J$156&"C" -> P_7C | K159: =K$156&"C" -> P_5C | L159: P_11F
B160: 13 | C160: Uwagi | G160: P_8 | H160: P_7 | J160: P_8 | K160: P_6 | L160: P_14
B161: 14 | C161: Lista jednostek odporządkowanych | L161: P_2
B162: 15 | C162: Lista jednostek innych niż podporządkowane | L162: P_4
B163: 16 | C163: Lista jednostekwyłączonych z raportu | L163: P_5
B164: 17 | C164: Lista jednostek o ograniczonym czasie trwania | L164: P_6
B165: 18 | C165: Lista jednostek o innych okresach | L165: P_7
B166: 19 | C166: Numer KRS | G166: P_1E | H166: P_1D | J166: P_1E | K166: P_1D | L166: P_1D
B167: 20 | C167: pozostałe | G167: =G$156&"D" -> P_7D | H167: =H$156&"D" -> P_6D | J167: =J$156&"D" -> P_7D | K167: =K$156&"D" -> P_5D | L167: P_11G
B169: Symbole_Arkuszy: aktualne nazwy arkuszy (pola nazwane, wykorzystywane w uproszczonych formułach wstawianych w arkuszu "mapowanie" przez Generator e-sprawozdań)
B170: Arkusz (jak w adresie) | D170: Nazwa symboliczna (wykorzystywana w formule arkusza "mapowanie")
C171: =IF(ISERROR(FIND(" ",teksty!D55)), teksty!D55,"'" & teksty!D55 & "'") -> Nagłówek | D171: Adr_Nagłówek
C172: =IF(ISERROR(FIND(" ",teksty!D56)), teksty!D56,"'" & teksty!D56 & "'") -> Wprowadzenie | D172: Adr_Wprowadzenie
C173: =IF(ISERROR(FIND(" ",teksty!D57)), teksty!D57,"'" & teksty!D57 & "'") -> Bilans | D173: Adr_Bilans
C174: =IF(ISERROR(FIND(" ",teksty!D58)), teksty!D58,"'" & teksty!D58 & "'") -> RZiS | D174: Adr_RZiS
C175: =IF(ISERROR(FIND(" ",teksty!D59)), teksty!D59,"'" & teksty!D59 & "'") -> Kapitał | D175: Adr_Kapitał
C176: =IF(ISERROR(FIND(" ",teksty!D60)), teksty!D60,"'" & teksty!D60 & "'") -> Przepływy | D176: Adr_Przepływy
C177: =IF(ISERROR(FIND(" ",teksty!D61)), teksty!D61,"'" & teksty!D61 & "'") -> Dodatkowe | D177: Adr_Dodatkowe
C178: =IF(ISERROR(FIND(" ",teksty!D62)), teksty!D62,"'" & teksty!D62 & "'") -> 'Dodatkowe (1)' | D178: Adr_Dodatkowe_1
C179: =IF(ISERROR(FIND(" ",teksty!D63)), teksty!D63,"'" & teksty!D63 & "'") -> 'Dodatkowe (2)' | D179: Adr_Dodatkowe_2
C180: =IF(ISERROR(FIND(" ",teksty!D64)), teksty!D64,"'" & teksty!D64 & "'") -> 'Dodatkowe (3)' | D180: Adr_Dodatkowe_3
C181: =IF(ISERROR(FIND(" ",teksty!D65)), teksty!D65,"'" & teksty!D65 & "'") -> 'Dodatkowe (4)' | D181: Adr_Dodatkowe_4
C182: =IF(ISERROR(FIND(" ",teksty!D66)), teksty!D66,"'" & teksty!D66 & "'") -> 'Dodatkowe (5)' | D182: Adr_Dodatkowe_5
C183: =IF(ISERROR(FIND(" ",teksty!D67)), teksty!D67,"'" & teksty!D67 & "'") -> 'Dodatkowe (6)' | D183: Adr_Dodatkowe_6
C184: =IF(ISERROR(FIND(" ",teksty!D68)), teksty!D68,"'" & teksty!D68 & "'") -> 'Dodatkowe (7)' | D184: Adr_Dodatkowe_7
C185: =IF(ISERROR(FIND(" ",teksty!D69)), teksty!D69,"'" & teksty!D69 & "'") -> 'Dodatkowe (8)' | D185: Adr_Dodatkowe_8
C186: =IF(ISERROR(FIND(" ",teksty!D70)), teksty!D70,"'" & teksty!D70 & "'") -> 'Dodatkowe (9)' | D186: Adr_Dodatkowe_9
C187: =IF(ISERROR(FIND(" ",teksty!D71)), teksty!D71,"'" & teksty!D71 & "'") -> 'Dodatkowe (10)' | D187: Adr_Dodatkowe_10
C188: =IF(ISERROR(FIND(" ",teksty!D72)), teksty!D72,"'" & teksty!D72 & "'") -> 'Dodatkowe (11)' | D188: Adr_Dodatkowe_11
C189: =IF(ISERROR(FIND(" ",teksty!D73)), teksty!D73,"'" & teksty!D73 & "'") -> 'Dodatkowe (12)' | D189: Adr_Dodatkowe_12
C190: =IF(ISERROR(FIND(" ",teksty!D74)), teksty!D74,"'" & teksty!D74 & "'") -> 'Dodatkowe (13)' | D190: Adr_Dodatkowe_13
C191: =IF(ISERROR(FIND(" ",teksty!D75)), teksty!D75,"'" & teksty!D75 & "'") -> 'Dodatkowe (14)' | D191: Adr_Dodatkowe_14
C192: =IF(ISERROR(FIND(" ",teksty!D76)), teksty!D76,"'" & teksty!D76 & "'") -> 'Dodatkowe (15)' | D192: Adr_Dodatkowe_15
C193: =IF(ISERROR(FIND(" ",teksty!D77)), teksty!D77,"'" & teksty!D77 & "'") -> 'Dodatkowe (16)' | D193: Adr_Dodatkowe_16
C194: =IF(ISERROR(FIND(" ",teksty!D78)), teksty!D78,"'" & teksty!D78 & "'") -> 'Dodatkowe (17)' | D194: Adr_Dodatkowe_17
C195: =IF(ISERROR(FIND(" ",teksty!D79)), teksty!D79,"'" & teksty!D79 & "'") -> 'Dodatkowe (18)' | D195: Adr_Dodatkowe_18
C196: =IF(ISERROR(FIND(" ",teksty!D80)), teksty!D80,"'" & teksty!D80 & "'") -> 'Dodatkowe (19)' | D196: Adr_Dodatkowe_19
C197: =IF(ISERROR(FIND(" ",teksty!D81)), teksty!D81,"'" & teksty!D81 & "'") -> 'Dodatkowe (20)' | D197: Adr_Dodatkowe_20
C198: =IF(ISERROR(FIND(" ",teksty!D82)), teksty!D82,"'" & teksty!D82 & "'") -> 'Dodatkowe (21)' | D198: Adr_Dodatkowe_21
C199: =IF(ISERROR(FIND(" ",teksty!D83)), teksty!D83,"'" & teksty!D83 & "'") -> 'Dodatkowe (22)' | D199: Adr_Dodatkowe_22
C200: =IF(ISERROR(FIND(" ",teksty!D84)), teksty!D84,"'" & teksty!D84 & "'") -> 'Dodatkowe (23)' | D200: Adr_Dodatkowe_23
C201: =IF(ISERROR(FIND(" ",teksty!D85)), teksty!D85,"'" & teksty!D85 & "'") -> 'Dodatkowe (24)' | D201: Adr_Dodatkowe_24
C202: =IF(ISERROR(FIND(" ",teksty!D86)), teksty!D86,"'" & teksty!D86 & "'") -> 'Dodatkowe (25)' | D202: Adr_Dodatkowe_25
C203: =IF(ISERROR(FIND(" ",teksty!D87)), teksty!D87,"'" & teksty!D87 & "'") -> 'Dodatkowe (26)' | D203: Adr_Dodatkowe_26
C204: =IF(ISERROR(FIND(" ",teksty!D88)), teksty!D88,"'" & teksty!D88 & "'") -> 'Dodatkowe (27)' | D204: Adr_Dodatkowe_27
C205: =IF(ISERROR(FIND(" ",teksty!D89)), teksty!D89,"'" & teksty!D89 & "'") -> 'Dodatkowe (28)' | D205: Adr_Dodatkowe_28
C206: =IF(ISERROR(FIND(" ",teksty!D90)), teksty!D90,"'" & teksty!D90 & "'") -> 'Dodatkowe (29)' | D206: Adr_Dodatkowe_29
C207: =IF(ISERROR(FIND(" ",teksty!D91)), teksty!D91,"'" & teksty!D91 & "'") -> 'Dodatkowe (30)' | D207: Adr_Dodatkowe_30
C208: =IF(ISERROR(FIND(" ",teksty!D92)), teksty!D92,"'" & teksty!D92 & "'") -> 'Dodatkowe (31)' | D208: Adr_Dodatkowe_31
C209: =IF(ISERROR(FIND(" ",teksty!D93)), teksty!D93,"'" & teksty!D93 & "'") -> 'Dodatkowe (32)' | D209: Adr_Dodatkowe_32
C210: =IF(ISERROR(FIND(" ",teksty!D94)), teksty!D94,"'" & teksty!D94 & "'") -> 'Dodatkowe (33)' | D210: Adr_Dodatkowe_33
C211: =IF(ISERROR(FIND(" ",teksty!D95)), teksty!D95,"'" & teksty!D95 & "'") -> 'Dodatkowe (34)' | D211: Adr_Dodatkowe_34
C212: =IF(ISERROR(FIND(" ",teksty!D96)), teksty!D96,"'" & teksty!D96 & "'") -> 'Dodatkowe (35)' | D212: Adr_Dodatkowe_35
C213: =IF(ISERROR(FIND(" ",teksty!D97)), teksty!D97,"'" & teksty!D97 & "'") -> 'Dodatkowe (36)' | D213: Adr_Dodatkowe_36
C214: =IF(ISERROR(FIND(" ",teksty!D98)), teksty!D98,"'" & teksty!D98 & "'") -> 'Dodatkowe (37)' | D214: Adr_Dodatkowe_37
C215: =IF(ISERROR(FIND(" ",teksty!D99)), teksty!D99,"'" & teksty!D99 & "'") -> 'Dodatkowe (38)' | D215: Adr_Dodatkowe_38
C216: =IF(ISERROR(FIND(" ",teksty!D100)), teksty!D100,"'" & teksty!D100 & "'") -> 'Dodatkowe (39)' | D216: Adr_Dodatkowe_39
C217: =IF(ISERROR(FIND(" ",teksty!D101)), teksty!D101,"'" & teksty!D101 & "'") -> 'Dodatkowe (40)' | D217: Adr_Dodatkowe_40
B219: Pomocnicze definicje, używane w formowaniu arkuszy transformacji:
B220: In_SFJMI | D220: <xsl:stylesheet version="1.0" xmlns:xsl="http://www.w3.org/1999/XSL/Transform" xmlns="{namespace}" xmlns:esf="{namespace}" exclude-result-prefixes="esf"> <xsl:output method='xml' indent="yes" encoding="UTF-8"/> <!-- basic: identity copy: --> <xsl:template match="@*|node()"> <xsl:copy><xsl:apply-templates select="@*|node()"/></xsl:copy> </xsl:template> <!-- Zamieniamy nazwy (z zał 4 na zał. 5): --> <xsl:template match="esf:InformacjeOgolneJednostkaMikro"> <WprowadzenieDoSprawozdaniaFinansowegoJednostkaMala> <xsl:apply-templates/> </WprowadzenieDoSprawozdaniaFinansowegoJednostkaMala> </xsl:template> <xsl:template match="esf:InformacjeUzupelniajaceDoBilansuJednostkaMikro"> <DodatkoweInformacjeIObjasnieniaJednostkaMala> <xsl:apply-templates/> </DodatkoweInformacjeIObjasnieniaJednostkaMala> </xsl:template> <xsl:template match="esf:InformacjeUzupelniajaceDoBilansu"> <DodatkoweInformacjeIObjasnienia> <xsl:apply-templates/> </DodatkoweInformacjeIObjasnienia> </xsl:template> </xsl:stylesheet>
B221: Out_SFJMI | D221: <xsl:stylesheet version="1.0" xmlns:xsl="http://www.w3.org/1999/XSL/Transform" xmlns="{namespace}" xmlns:esf="{namespace}" exclude-result-prefixes="esf"> <xsl:output method='xml' indent="yes" encoding="UTF-8"/> <!-- basic: identity copy: --> <xsl:template match="@*|node()"> <xsl:copy><xsl:apply-templates select="@*|node()"/></xsl:copy> </xsl:template> <!-- Zamieniamy nazwy (z zał 5 na zał. 4): --> <xsl:template match="esf:WprowadzenieDoSprawozdaniaFinansowegoJednostkaMala"> <InformacjeOgolneJednostkaMikro> <xsl:apply-templates/> </InformacjeOgolneJednostkaMikro> </xsl:template> <xsl:template match="esf:DodatkoweInformacjeIObjasnieniaJednostkaMala"> <InformacjeUzupelniajaceDoBilansuJednostkaMikro> <xsl:apply-templates/> </InformacjeUzupelniajaceDoBilansuJednostkaMikro> </xsl:template> <xsl:template match="esf:DodatkoweInformacjeIObjasnienia"> <InformacjeUzupelniajaceDoBilansu> <xsl:apply-templates/> </InformacjeUzupelniajaceDoBilansu> </xsl:template> </xsl:stylesheet>
B223: Ewentualne arkusze transformacji to obszary nazwane Xslt<In|Out>_<6-znakowy kod wariantu e-sprawozdania>, np. XsltIn_SFJMIZ
B224: Nazwa | D224: Arkusz transformacji | R224: Przestrzeń nazw powiązanego wariantu e-sprawozdania
